Workbook

Sheet Cover
B4: Overview
B6: File Name: | C6: NewClimate Economic Impact Model - Electricity Supply (EIM-ES)
B7: Version: | C7: v2.1
B8: Location: | C8: The model is made available for download online at ambitiontoaction.net/outputs
B10: Description: | C10: Spreadsheet-based model to estimate the employment and wider economic impacts of scenario projections of capacity and generation in the electricity sector.
C11: The model estimates the number of jobs created both directly in the electricity generation sector and across the wider economy based on investment costs, salary data and scenario projections for the development of the electricity sector
C12: A full description of the model is available online at ambitiontoaction.net/outputs
B14: Instructions: | C14: A user guide for the model is available online at ambitiontoaction.net/outputs
B16: Info and useage rights: | C16: The original version of this model was developed by NewClimate Institute under the Ambition to Action project, funded by the International Climate Initiative (IKI)
C17: This version includes analysis developed for the study "Identifying finance needs for a just transformation of Indonesia’s power sector", published in February 2024 by NewClimate Institute and IESR
C18: https://newclimate.org/resources/publications/identifying-finance-needs-for-a-just-transformation-of-indonesias-power
C20: The model is provided as an open source tool to support policy making in the electricity supply sector
C21: Useage should appropriately reference NewClimate Institute, the name and version of the model as set out above
C22: The authors, NewClimate Institute, the Ambition to Action project and the funders (IKI) are in no way liable for any errors or omissions in the model, and nor are they in any way liable for the accuracy or appropriateness of data included in the model, nor any use, manipulation or application of the model by a third party
B24: Contact: | C24: Harry Fearnehough (h.fearnehough@newclimate.org); Reena Skribbe (r.skribbe@newclimate.org)
C25: www.newclimate.org
C26: www.ambitiontoaction.net
B28: Sheets
B30: INPUTS
B31: Scenario_Setup | C31: Enter key parameters, scenario names and descriptions and technology list
B32: General_INPUT_S1 | C32: Enter capacity and generation information for scenario 1
B33: Cost_INPUT_S1 | C33: Enter cost and local share information for each technology for scenario 1
B34: General_INPUT_S2
B35: Cost_INPUT_S2
B36: General_INPUT_S3
B37: Cost_INPUT_S3
B38: General_INPUT_S4
B39: Cost_INPUT_S4
B40: General_INPUT_S5
B41: Cost_INPUT_S5
B42: General_INPUT_S6
B43: Cost_INPUT_S6
B44: General_INPUT_S7
B45: Cost_INPUT_S7
B46: General_INPUT_S8
B47: Cost_INPUT_S8
B48: General_INPUT_S9
B49: Cost_INPUT_S9
B50: General_INPUT_S10
B51: Cost_INPUT_S10
B52: Fuel_Costs | C52: Enter annual fuel costs where relevant
B53: Learning_Curves | C53: Enter technology and cost-type specific assumptions for cost learning effects over time
B54: DefaultComponentSummary | C54: Interface sheet to separate NewClimate ElectricitySupplyTechnologyBreakdownDatabase; a database of publicly available information of the cost breakdown for a set of default technologies
B55: IO_INPUT
B56: IO_Input | C56: Enter Input Output table for country
B57: Scenario_Loop
B58: General_INPUT | C58: Used to take input data from each scenario and run calculations
B59: Cost_INPUT | C59: Used to take input data from each scenario and run calculations
B60: ScenarioRESULTS | C60: Used to calculate scenario results and then feed into individual scenario results sheets
B61: RESULTS
B62: ScenarioComparison | C62: Comparison of headline results from all scenarios
B63: RESULTS_Charts | C63: Visualisation of results for selected scenario (chosen within sheet)
B64: RESULTS_S1 | C64: Detailed results for scenario 1
B65: RESULTS_S2 | C65: Detailed results for scenarios 2 to 10
B66: RESULTS_S3
B67: RESULTS_S4
B68: RESULTS_S5
B69: RESULTS_S6
B70: RESULTS_S7
B71: RESULTS_S8
B72: RESULTS_S9
B73: RESULTS_S10
B74: CALCULATIONS
B75: TECHNOLOGIES
B76: Tech1 | C76: =INDEX(TechName_List,MATCH($B76,TechRef_List,0)) -> Coal
B77: Tech2 | C77: Coal CCS
B78: Tech3 | C78: Gas Open
B79: Tech4 | C79: Gas Combined
B80: Tech5 | C80: Gas Combined CCS
B81: Tech6 | C81: Oil
B82: Tech7 | C82: Nuclear
B83: Tech8 | C83: Biomass
B84: Tech9 | C84: Solar utility
B85: Tech10 | C85: Solar rooftop
B86: Tech11 | C86: Solar floating
B87: Tech12 | C87: Wind onshore
B88: Tech13 | C88: Wind offshore
B89: Tech14 | C89: Geothermal
B90: Tech15 | C90: Hydro large
B91: Tech16 | C91: Hydro small
B92: Tech17 | C92: Hydrogen
B93: Tech18 | C93: Pumped storage
B94: Tech19 | C94: Batteries
B95: Tech20 | C95: unassigned1
B96: Tech21 | C96: unassigned2
B97: Tech22 | C97: unassigned3
B98: Tech23 | C98: unassigned4
B99: Tech24 | C99: unassigned5
B100: Tech25 | C100: unassigned6
B101: Tech26 | C101: unassigned7
B102: Tech27 | C102: unassigned8
B103: Tech28 | C103: unassigned9
B104: Tech29 | C104: unassigned10
B105: Tech30 | C105: unassigned11
B106: Tech31 | C106: unassigned12
B107: Tech32 | C107: unassigned13
B108: Tech33 | C108: unassigned14
B109: Tech34 | C109: unassigned15
B110: Tech35 | C110: unassigned16
B111: Sectoral_IMPACTS | C111: Calculation of macroeconomic impacts, including direct, indirect and induced output, value added and employment for all years in aggregate
B112: I_O_TABLE | C112: Calculation of economic multipliers for each sector from Input Output table
B113: Lists | C113: Lists of defined named ranges used in calculations
A120: END OF SHEET CONTENT

Sheet INPUTS >>
A1: Return to Cover
B3: [LEFT EMPTY]

Sheet Scenario_Setup
A1: Return to Cover
B3: Scenario setup sheet
C6: Summary instructions
C9: General | D9: Yellow cells to be filled in with intput data and assumptions
C10: General | D10: Yellow cells with orange text require entries to be selected from pre-determined drop-down lists
C11: General | D11: Non-yellow cells calculate automatically based on the input data
C13: Step 1 | D13: Enter key parameters, scenario names and descriptions and technology list in the tables below in this sheet (fill in all yellow shaded cells)
C14: Step 2 | D14: Press F9 to recalculate the model and populate all relevant fields with the scenario names and technology list
C15: Step 3 | D15: Populate General_INPUT_S(1,2,3,…) and Cost_INPUT_S(1,2,3,…) sheets with scenario input data for all scenarios that you would like to run
C16: Step 4 | D16: Click on RUN SCENARIOS button to the right and wait for a message to appear confirming that all scenarios have completed
C17: Step 5 | D17: Review results in ScenarioComparison and the individual RESULTS_S(1,2,3,…) sheets
C20: Key parameters
C23: Country selection | D23: Indonesia
C24: Period start | D24: 2023 | E24: Enter period start and end years, e.g. "2017"
C25: Period end | D25: 2050 | E25: The period start and end years define the period over which the indirect and induced job creation is calculated, using the IO tables. They are also used to define the analysis period for the aggregated direct employment results (i.e. not annual results).
C27: Currency year | D27: 2019 | E27: ="All economic data is defined in "&CurrencyYear&" "&CurrencyUnit -> All economic data is defined in 2019 USD
C28: Currency unit | D28: USD | E28: Inputs should be denominated in the same real currency terms, converted prior to entering into the model
C31: Scenario definition
C34: Enter scenario names and descriptions for all scenarios that you would like to run
C35: Leave scenario name column blank if not being used
C38: Ref | D38: Scenario name | E38: Scenario description
C39: S1 | D39: Scenario 1 (JETP) | E39: Based on the IEA's Announced Pledges Scenario, Indonesia achieves the targets set by the JETP.
C40: S2 | D40: Scenario 2 (JETP+) | E40: Based on the IEA's Net Zero Emissions Scenario, Indonesia goes beyond the targets set by the JETP, in line with its commitments to the Paris Agreement.
C41: S3 | D41: Scenario 3 (JETP_HighLCR) | E41: Based on the IEA's Announced Pledges Scenario, but the domestic content share for all physical component parts of all solar technologies is doubled, up to a maximum of 100%.
C42: S4 | D42: Scenario 4 (JETP_LowLCR) | E42: Based on the IEA's Announced Pledges Scenario, but the domestic content share for all physical component parts of all solar technologies is halved.
C43: S5 | D43: Scenario 5 (JETP_FastLearning) | E43: Based on the IEA's Announced Pledges Scenario, but assuming faster learning curves, using the lower bound of technology investment cost estimates for 2050.
C44: S6 | D44: Scenario 6 (JETP_Slow_Learning | E44: Based on the IEA's Announced Pledges Scenario, but assuming slower learning curves, using the upper bound of technology investment cost estimates for 2050.
C45: S7 | D45: Scenario 7 (CIPPv1) | E45: Based on first version of CIPP published in November 2023, covering on-grid electricity supply
C46: S8
C47: S9
C48: S10
C53: Technology list
C56: Enter technology list up to a maximum of 35 different technologies and fill the columns of the table with information on the average plant of that technology
C57: Fuel type and plant efficiency - for converting thermal energy into electrical energy - should be included for plants that use fuel as inputs (e.g. fossil fuels or bioenergy) and are included to calculate the investments made in fuel
C58: For technologies with no fuel inputs, select "Not applicable" from the bottom of the drop down list
C59: Load factors can be used to estimate annual generation from installed capacity where modelled projections of generation does not exist (where generation estimates are included directly in the model these load factors are not used)
C60: The discount rates are used to estimate a simplified LCOE of each technology based on the cost inputs included in the model. They are only used to summarise the cost input data for review, but are NOT directly used in the modelling and can be left at 10% as a default
C61: The construction duration and average lifetime of new plants are used to apportion the capital and operational spending to the relevant years within the model. These should be included as integers in the table below, where necessary pre-rounding to the nearest year.
C64: TechRef_List | D64: TechName_List | I64: TechEfficiency | J64: TechFuelType
C65: Tech Ref | D65: Technology | E65: Load factor | F65: Discount rate | G65: Construction duration | H65: Lifetime | I65: Average plant efficiency | J65: Fuel type | K65: Sources
C66: Tech1 | D66: Coal | E66: 0.7 | F66: 0.1 | G66: 4 | H66: 30 | I66: 0.37 | J66: Coal | K66: Load factor - IESR (2023) Construction duration, lifetime, average plant efficiency - Directorate General of Electricity & Danish Energy Agency (2021)
C67: Tech2 | D67: Coal CCS | E67: =E66 -> 0.7 | F67: 0.1 | G67: =G66 -> 4 | H67: =H66 -> 30 | I67: 0.37 | J67: Coal | K67: Same as for coal
C68: Tech3 | D68: Gas Open | E68: 0.35 | F68: 0.1 | G68: 2 | H68: 25 | I68: 0.33 | J68: Natural gas | K68: Load factor - IESR (2023) Construction duration, lifetime, average plant efficiency - Directorate General of Electricity & Danish Energy Agency (2021)
C69: Tech4 | D69: Gas Combined | E69: 0.35 | F69: 0.1 | G69: 3 | H69: 25 | I69: 0.56 | J69: Natural gas | K69: Load factor - IESR (2023) Construction duration, lifetime, average plant efficiency - Directorate General of Electricity & Danish Energy Agency (2021)
C70: Tech5 | D70: Gas Combined CCS | E70: =E69 -> 0.35 | F70: 0.1 | G70: =G69 -> 3 | H70: =H69 -> 25 | I70: 0.56 | J70: Natural gas | K70: Same as for gas combined
C71: Tech6 | D71: Oil | E71: 0.35 | F71: 0.1 | G71: 2 | H71: 25 | I71: 0.33 | J71: Fuel oil | K71: Load factor - IESR (2023) Construction duration, lifetime, average plant efficiency - Directorate General of Electricity & Danish Energy Agency (2021)
C72: Tech7 | D72: Nuclear | E72: 0.85 | F72: 0.1 | G72: 8 | H72: 60 | I72: 0.34 | J72: Uranium | K72: Load factor, construction duration, average plant efficiency - IESR (2023) Lifetime - Indonesian Institute for Energy Economics & Nautilus Institute for Security and Sustainability (2017)
C73: Tech8 | D73: Biomass | E73: 0.9 | F73: 0.1 | G73: 2 | H73: 25 | I73: 0.31 | J73: Solid biomass | K73: Load factor - IESR (2023) Construction duration, lifetime, average plant efficiency - Directorate General of Electricity & Danish Energy Agency (2021)
C74: Tech9 | D74: Solar utility | E74: 0.19 | F74: 0.1 | G74: 1 | H74: 35 | I74: 1 | J74: Not applicable | K74: All - IESR (2023)
C75: Tech10 | D75: Solar rooftop | E75: 0.18 | F75: 0.1 | G75: 1 | H75: 35 | I75: 1 | J75: Not applicable | K75: All - IESR (2023)
C76: Tech11 | D76: Solar floating | E76: 0.21 | F76: 0.1 | G76: 1 | H76: 25 | I76: 1 | J76: Not applicable | K76: All - IESR (2023)
C77: Tech12 | D77: Wind onshore | E77: 0.34 | F77: 0.1 | G77: 2 | H77: 27 | I77: 1 | J77: Not applicable | K77: All - IESR (2023)
C78: Tech13 | D78: Wind offshore | E78: 0.48 | F78: 0.1 | G78: 3 | H78: 27 | I78: 1 | J78: Not applicable | K78: All - IESR (2023)
C79: Tech14 | D79: Geothermal | E79: 0.8 | F79: 0.1 | G79: 2 | H79: 30 | I79: 0.15 | J79: Not applicable | K79: All - IESR (2023)
C80: Tech15 | D80: Hydro large | E80: 0.36 | F80: 0.1 | G80: 4 | H80: 50 | I80: 0.95 | J80: Not applicable | K80: All - IESR (2023)
C81: Tech16 | D81: Hydro small | E81: 0.76 | F81: 0.1 | G81: 2 | H81: 50 | I81: 0.8 | J81: Not applicable | K81: All - IESR (2023)
C82: Tech17 | D82: Hydrogen | E82: 0.99 | F82: 0.1 | G82: 2 | H82: =H69 -> 25 | I82: 0.5 | J82: Not applicable | K82: Making the breakthrough: Green hydrogen policies and technology costs (irena.org)
C83: Tech18 | D83: Pumped storage | E83: =10/24 -> 0.4166666667 | F83: 0.1 | G83: 4 | H83: 50 | I83: 0.8 | J83: Not applicable | K83: Load factor (10h run run time) - US Deparment of Energy (2020) Construction duration, lifetime, average plant efficiency - Directorate General of Electricity & Danish Energy Agency (2021)
C84: Tech19 | D84: Batteries | E84: =4/24 -> 0.1666666667 | F84: 0.1 | G84: 1 | H84: 20 | I84: 0.95 | J84: Not applicable | K84: Load factor (4h run time) - NREL (2021) Construction duration, lifetime, average plant efficiency - Directorate General of Electricity & Danish Energy Agency (2021)
C85: Tech20 | D85: unassigned1 | E85: 0.01 | F85: 0.1 | G85: 1 | H85: 25 | J85: unassigned
C86: Tech21 | D86: unassigned2 | E86: 0.01 | F86: 0.1 | G86: 1 | H86: 25 | J86: unassigned
C87: Tech22 | D87: unassigned3 | E87: 0.01 | F87: 0.1 | G87: 1 | H87: 25 | J87: unassigned
C88: Tech23 | D88: unassigned4 | E88: 0.01 | F88: 0.1 | G88: 1 | H88: 25 | J88: unassigned
C89: Tech24 | D89: unassigned5 | E89: 0.01 | F89: 0.1 | G89: 1 | H89: 25 | J89: unassigned
C90: Tech25 | D90: unassigned6 | E90: 0.01 | F90: 0.1 | G90: 1 | H90: 25 | J90: unassigned
C91: Tech26 | D91: unassigned7 | E91: 0.01 | F91: 0.1 | G91: 1 | H91: 25 | J91: unassigned
C92: Tech27 | D92: unassigned8 | E92: 0.01 | F92: 0.1 | G92: 1 | H92: 25 | J92: unassigned
C93: Tech28 | D93: unassigned9 | E93: 0.01 | F93: 0.1 | G93: 1 | H93: 25 | J93: unassigned
C94: Tech29 | D94: unassigned10 | E94: 0.01 | F94: 0.1 | G94: 1 | H94: 25 | J94: unassigned
C95: Tech30 | D95: unassigned11 | E95: 0.01 | F95: 0.1 | G95: 1 | H95: 25 | J95: unassigned
C96: Tech31 | D96: unassigned12 | E96: 0.01 | F96: 0.1 | G96: 1 | H96: 25 | J96: unassigned
C97: Tech32 | D97: unassigned13 | E97: 0.01 | F97: 0.1 | G97: 1 | H97: 25 | J97: unassigned
C98: Tech33 | D98: unassigned14 | E98: 0.01 | F98: 0.1 | G98: 1 | H98: 25 | J98: unassigned
C99: Tech34 | D99: unassigned15 | E99: 0.01 | F99: 0.1 | G99: 1 | H99: 25 | J99: unassigned
C100: Tech35 | D100: unassigned16 | E100: 0.01 | F100: 0.1 | G100: 1 | H100: 25 | J100: unassigned
D102: Source | E102: See column K | F102: Default assumption | G102: See column K | H102: See column K | I102: See column K
A105: END OF SHEET CONTENT

Sheet Conversions
B3: Scenario 1 Capacity
D6: GW
B7: TechList | C7: TechList | D7: 2019 | E7: 2020 | F7: 2021 | G7: 2022 | H7: 2023 | I7: 2024 | J7: 2025 | K7: 2026 | L7: 2027 | M7: 2028 | N7: 2029 | O7: 2030 | P7: 2031 | Q7: 2032 | R7: 2033 | S7: 2034 | T7: 2035 | U7: 2036 | V7: 2037 | W7: 2038 | X7: 2039 | Y7: 2040 | Z7: 2041 | AA7: 2042 | AB7: 2043 | AC7: 2044 | AD7: 2045 | AE7: 2046 | AF7: 2047 | AG7: 2048 | AH7: 2049 | AI7: 2050 | AJ7: 2051 | AK7: 2052 | AL7: 2053 | AM7: 2054 | AN7: 2055 | AO7: 2056 | AP7: 2057 | AQ7: 2058 | AR7: 2059 | AS7: 2060
B8: Tech_1 | C8: Coal | D8: 34 | E8: 38.6866 | F8: 40.9226 | G8: 47.4126 | H8: 50.277601 | I8: 57.217602 | J8: 60.117603 | K8: 61.817604 | L8: 66.758604 | M8: 67.908604 | N8: 67.778604 | O8: 68.678604 | P8: 43.8 | Q8: 42.6 | R8: 41.4 | S8: 40.2 | T8: 39 | U8: 37.8 | V8: 36.6 | W8: 35.4 | X8: 34.2 | Y8: 33 | Z8: 30.7 | AA8: 28.4 | AB8: 26.1 | AC8: 23.8 | AD8: 21.5 | AE8: 19.2 | AF8: 16.9 | AG8: 14.6 | AH8: 12.3 | AI8: 10 | AJ8: 9 | AK8: 8 | AL8: 7 | AM8: 6 | AN8: 5 | AO8: 4 | AP8: 3 | AQ8: 2 | AR8: 1 | AS8: 0
B9: Tech_2 | C9: Coal_CCS | D9: 0 | E9: 0 | F9: 0 | G9: 0 | H9: 0 | I9: 0 | J9: 0 | K9: 0 | L9: 0 | M9: 0 | N9: 0 | O9: 0 | P9: 0.3010691376 | Q9: 0.6021382751 | R9: 0.9032074127 | S9: 1.20427655 | T9: 1.505345688 | U9: 1.806414825 | V9: 2.107483963 | W9: 2.4085531 | X9: 2.709622238 | Y9: 3.010691376 | Z9: 3.09531005 | AA9: 3.18038489 | AB9: 3.265915895 | AC9: 3.351903065 | AD9: 3.438346401 | AE9: 3.525245902 | AF9: 3.612601568 | AG9: 3.7004134 | AH9: 3.788681397 | AI9: 3.87740556 | AJ9: 4.161026372 | AK9: 4.446243763 | AL9: 4.733057733 | AM9: 5.021468282 | AN9: 5.31147541 | AO9: 5.603079116 | AP9: 5.896279401 | AQ9: 6.191076265 | AR9: 6.487469708 | AS9: 6.785459729
B10: Tech_3 | C10: Gas_Open | D10: 5.040322581 | E10: 5.040322581 | F10: 5.040322581 | G10: 5.313620072 | H10: 5.586917563 | I10: 5.860215054 | J10: 6.133512545 | K10: 6.406810036 | L10: 6.680107527 | M10: 6.953405018 | N10: 7.226702509 | O10: 7.5 | P10: 7.233870968 | Q10: 6.967741935 | R10: 6.701612903 | S10: 6.435483871 | T10: 6.169354839 | U10: 5.903225806 | V10: 5.637096774 | W10: 5.370967742 | X10: 5.10483871 | Y10: 4.838709677 | Z10: 4.52983871 | AA10: 4.220967742 | AB10: 3.912096774 | AC10: 3.603225806 | AD10: 3.294354839 | AE10: 2.985483871 | AF10: 2.676612903 | AG10: 2.367741935 | AH10: 2.058870968 | AI10: 1.75 | AJ10: 1.7 | AK10: 1.65 | AL10: 1.6 | AM10: 1.55 | AN10: 1.5 | AO10: 1.45 | AP10: 1.4 | AQ10: 1.35 | AR10: 1.3 | AS10: 1.25
B11: Tech_4 | C11: Gas_Combined | D11: 15.12096774 | E11: 15.12096774 | F11: 15.12096774 | G11: 15.94086022 | H11: 16.76075269 | I11: 17.58064516 | J11: 18.40053763 | K11: 19.22043011 | L11: 20.04032258 | M11: 20.86021505 | N11: 21.68010753 | O11: 22.5 | P11: 21.7016129 | Q11: 20.90322581 | R11: 20.10483871 | S11: 19.30645161 | T11: 18.50806452 | U11: 17.70967742 | V11: 16.91129032 | W11: 16.11290323 | X11: 15.31451613 | Y11: 14.51612903 | Z11: 13.58951613 | AA11: 12.66290323 | AB11: 11.73629032 | AC11: 10.80967742 | AD11: 9.883064516 | AE11: 8.956451613 | AF11: 8.02983871 | AG11: 7.103225806 | AH11: 6.176612903 | AI11: 5.25 | AJ11: 5.1 | AK11: 4.95 | AL11: 4.8 | AM11: 4.65 | AN11: 4.5 | AO11: 4.35 | AP11: 4.2 | AQ11: 4.05 | AR11: 3.9 | AS11: 3.75
B12: Tech_5 | C12: Gas_Combined_CCS | D12: 0 | E12: 0 | F12: 0 | G12: 0 | H12: 0 | I12: 0 | J12: 0 | K12: 0 | L12: 0 | M12: 0 | N12: 0 | O12: 0 | P12: 0.1550962224 | Q12: 0.3101924448 | R12: 0.4652886671 | S12: 0.6203848895 | T12: 0.7754811119 | U12: 0.9305773343 | V12: 1.085673557 | W12: 1.240769779 | X12: 1.395866001 | Y12: 1.550962224 | Z12: 1.58038489 | AA12: 1.60935139 | AB12: 1.637861725 | AC12: 1.665915895 | AD12: 1.693513899 | AE12: 1.720655738 | AF12: 1.747341411 | AG12: 1.773570919 | AH12: 1.799344262 | AI12: 1.82466144 | AJ12: 1.940185317 | AK12: 2.054112616 | AL12: 2.166443336 | AM12: 2.277177477 | AN12: 2.386315039 | AO12: 2.493856023 | AP12: 2.599800428 | AQ12: 2.704148254 | AR12: 2.806899501 | AS12: 2.90805417
B13: Tech_6 | C13: Oil | D13: 12.09677419 | E13: 12.09677419 | F13: 12.09677419 | G13: 11.86379928 | H13: 11.63082437 | I13: 11.39784946 | J13: 11.16487455 | K13: 10.93189964 | L13: 10.69892473 | M13: 10.46594982 | N13: 10.23297491 | O13: 10 | P13: 9.7 | Q13: 9.4 | R13: 9.1 | S13: 8.8 | T13: 8.5 | U13: 8.2 | V13: 7.9 | W13: 7.6 | X13: 7.3 | Y13: 7 | Z13: 6.75 | AA13: 6.5 | AB13: 6.25 | AC13: 6 | AD13: 5.75 | AE13: 5.5 | AF13: 5.25 | AG13: 5 | AH13: 4.75 | AI13: 4.5 | AJ13: 4.45 | AK13: 4.4 | AL13: 4.35 | AM13: 4.3 | AN13: 4.25 | AO13: 4.2 | AP13: 4.15 | AQ13: 4.1 | AR13: 4.05 | AS13: 4
B14: Tech_7 | C14: Nuclear | D14: 0 | E14: 0 | F14: 0 | G14: 0 | H14: 0 | I14: 0 | J14: 0 | K14: 0 | L14: 0 | M14: 0 | N14: 0 | O14: 0 | P14: 0.35 | Q14: 0.7 | R14: 1.05 | S14: 1.4 | T14: 1.75 | U14: 2.1 | V14: 2.45 | W14: 2.8 | X14: 3.15 | Y14: 3.5 | Z14: 4 | AA14: 4.5 | AB14: 5 | AC14: 5.5 | AD14: 6 | AE14: 6.5 | AF14: 7 | AG14: 7.5 | AH14: 8 | AI14: 8.5 | AJ14: 8.65 | AK14: 8.8 | AL14: 8.95 | AM14: 9.1 | AN14: 9.25 | AO14: 9.4 | AP14: 9.55 | AQ14: 9.7 | AR14: 9.85 | AS14: 10
B15: Tech_8 | C15: Biomass | D15: 3.9914469 | E15: 3.9914469 | F15: 3.9914469 | G15: 4.054803199 | H15: 4.118159499 | I15: 4.181515799 | J15: 4.244872099 | K15: 4.308228399 | L15: 4.371584699 | M15: 4.434940999 | N15: 4.498297299 | O15: 4.561653599 | P15: 5.188880969 | Q15: 5.816108339 | R15: 6.443335709 | S15: 7.070563079 | T15: 7.697790449 | U15: 8.325017819 | V15: 8.952245189 | W15: 9.579472559 | X15: 10.20669993 | Y15: 10.8339273 | Z15: 11.74625802 | AA15: 12.65858874 | AB15: 13.57091946 | AC15: 14.48325018 | AD15: 15.3955809 | AE15: 16.30791162 | AF15: 17.22024234 | AG15: 18.13257306 | AH15: 19.04490378 | AI15: 19.9572345 | AJ15: 20.46151105 | AK15: 20.9657876 | AL15: 21.47006415 | AM15: 21.9743407 | AN15: 22.47861725 | AO15: 22.9828938 | AP15: 23.48717035 | AQ15: 23.9914469 | AR15: 24.49572345 | AS15: 25
B16: Tech_9 | C16: Solar_utility | D16: 0.495 | E16: 0.495 | F16: 0.495 | G16: 2.869477575 | H16: 5.111758005 | I16: 7.221841292 | J16: 9.199727436 | K16: 11.04541644 | L16: 12.75890829 | M16: 14.340203 | N16: 15.78930057 | O16: 17.106201 | P16: 24.35067712 | Q16: 31.17320029 | R16: 37.57377049 | S16: 43.55238774 | T16: 49.10905203 | U16: 54.24376336 | V16: 58.95652174 | W16: 63.24732716 | X16: 67.11617962 | Y16: 70.56307912 | Z16: 80.2817712 | AA16: 90.00046329 | AB16: 99.71915538 | AC16: 109.4378475 | AD16: 119.1565396 | AE16: 128.8752316 | AF16: 138.5939237 | AG16: 148.3126158 | AH16: 158.0313079 | AI16: 167.75 | AJ16: 170.3563257 | AK16: 172.9626515 | AL16: 175.5689772 | AM16: 178.1753029 | AN16: 180.7816287 | AO16: 183.3879544 | AP16: 185.9942801 | AQ16: 188.6006058 | AR16: 191.2069316 | AS16: 193.8132573
B17: Tech_10 | C17: Solar_rooftop | D17: 0.005 | E17: 0.005 | F17: 0.005 | G17: 0.0430256153 | H17: 0.1030840879 | I17: 0.1851754178 | J17: 0.2892996049 | K17: 0.4154566493 | L17: 0.563646551 | M17: 0.73386931 | N17: 0.9261249263 | O17: 1.1404134 | P17: 2.001425517 | Q17: 3.073414113 | R17: 4.356379187 | S17: 5.850320741 | T17: 7.555238774 | U17: 9.471133286 | V17: 11.59800428 | W17: 13.93585175 | X17: 16.48467569 | Y17: 19.24447612 | Z17: 22.62486279 | AA17: 26.18195296 | AB17: 29.91574661 | AC17: 33.82624376 | AD17: 37.9134444 | AE17: 42.17734854 | AF17: 46.61795617 | AG17: 51.23526728 | AH17: 56.0292819 | AI17: 61 | AJ17: 61.94775481 | AK17: 62.89550962 | AL17: 63.84326443 | AM17: 64.79101924 | AN17: 65.73877406 | AO17: 66.68652887 | AP17: 67.63428368 | AQ17: 68.58203849 | AR17: 69.5297933 | AS17: 70.47754811
B18: Tech_11 | C18: Solar_floating | D18: 0 | E18: 0 | F18: 0 | G18: 0.06619325431 | H18: 0.242550795 | I18: 0.5290726222 | J18: 0.9257587357 | K18: 1.432609136 | L18: 2.049623822 | M18: 2.776802795 | N18: 3.614146054 | O18: 4.561653599 | P18: 7.004989309 | Q18: 9.659301497 | R18: 12.52459016 | S18: 15.60085531 | T18: 18.88809694 | U18: 22.38631504 | V18: 26.09550962 | W18: 30.01568068 | X18: 34.14682823 | Y18: 38.48895225 | Z18: 43.06022274 | AA18: 47.45478974 | AB18: 51.67265324 | AC18: 55.71381326 | AD18: 59.57826978 | AE18: 63.26602281 | AF18: 66.77707234 | AG18: 70.11141839 | AH18: 73.26906094 | AI18: 76.25 | AJ18: 77.43469351 | AK18: 78.61938703 | AL18: 79.80408054 | AM18: 80.98877406 | AN18: 82.17346757 | AO18: 83.35816108 | AP18: 84.5428546 | AQ18: 85.72754811 | AR18: 86.91224163 | AS18: 88.09693514
B19: Tech_12 | C19: Wind_onshore | D19: 0 | E19: 0 | F19: 0 | G19: 0.5702066999 | H19: 1.1404134 | I19: 1.7106201 | J19: 2.2808268 | K19: 2.8510335 | L19: 3.4212402 | M19: 3.9914469 | N19: 4.561653599 | O19: 5.131860299 | P19: 8.130577334 | Q19: 10.93428368 | R19: 13.54297933 | S19: 15.95666429 | T19: 18.17533856 | U19: 20.19900214 | V19: 22.02765502 | W19: 23.66129722 | X19: 25.09992872 | Y19: 26.34354954 | Z19: 29.7874918 | AA19: 33.12070135 | AB19: 36.34317819 | AC19: 39.45492231 | AD19: 42.45593371 | AE19: 45.3462124 | AF19: 48.12575837 | AG19: 50.79457163 | AH19: 53.35265217 | AI19: 55.8 | AJ19: 58.38 | AK19: 60.96 | AL19: 63.54 | AM19: 66.12 | AN19: 68.7 | AO19: 71.28 | AP19: 73.86 | AQ19: 76.44 | AR19: 79.02 | AS19: 81.6
B20: Tech_13 | C20: Wind_offshore | D20: 0 | E20: 0 | F20: 0 | G20: 0 | H20: 0 | I20: 0 | J20: 0 | K20: 0 | L20: 0 | M20: 0 | N20: 0 | O20: 0 | P20: 0.2514611547 | Q20: 0.6979330007 | R20: 1.339415538 | S20: 2.175908767 | T20: 3.207412687 | U20: 4.433927299 | V20: 5.855452602 | W20: 7.471988596 | X20: 9.283535282 | Y20: 11.29009266 | Z20: 13.38278617 | AA20: 15.5862124 | AB20: 17.90037135 | AC20: 20.32526301 | AD20: 22.86088738 | AE20: 25.50724448 | AF20: 28.26433428 | AG20: 31.13215681 | AH20: 34.11071205 | AI20: 37.2 | AJ20: 38.92 | AK20: 40.64 | AL20: 42.36 | AM20: 44.08 | AN20: 45.8 | AO20: 47.52 | AP20: 49.24 | AQ20: 50.96 | AR20: 52.68 | AS20: 54.4
B21: Tech_14 | C21: Geothermal | D21: 3.4212402 | E21: 3.4212402 | F21: 3.4212402 | G21: 3.9280906 | H21: 4.434940999 | I21: 4.941791399 | J21: 5.448641799 | K21: 5.955492199 | L21: 6.462342599 | M21: 6.969192999 | N21: 7.476043399 | O21: 7.982893799 | P21: 9.066286529 | Q21: 10.14967926 | R21: 11.23307199 | S21: 12.31646472 | T21: 13.39985745 | U21: 14.48325018 | V21: 15.56664291 | W21: 16.65003564 | X21: 17.73342837 | Y21: 18.8168211 | Z21: 18.87384177 | AA21: 18.93086244 | AB21: 18.98788311 | AC21: 19.04490378 | AD21: 19.10192445 | AE21: 19.15894512 | AF21: 19.21596579 | AG21: 19.27298646 | AH21: 19.33000713 | AI21: 19.3870278 | AJ21: 19.64832502 | AK21: 19.90962224 | AL21: 20.17091946 | AM21: 20.43221668 | AN21: 20.6935139 | AO21: 20.95481112 | AP21: 21.21610834 | AQ21: 21.47740556 | AR21: 21.73870278 | AS21: 22
B22: Tech_15 | C22: Hydro_large | D22: 4.333570919 | E22: 4.333570919 | F22: 4.333570919 | G22: 5.265612488 | H22: 6.186390715 | I22: 7.095905599 | J22: 7.994157141 | K22: 8.881145341 | L22: 9.756870199 | M22: 10.62133171 | N22: 11.47452989 | O22: 12.31646472 | P22: 14.6976479 | Q22: 17.05146115 | R22: 19.37790449 | S22: 21.6769779 | T22: 23.9486814 | U22: 26.19301497 | V22: 28.40997862 | W22: 30.59957234 | X22: 32.76179615 | Y22: 34.89665004 | Z22: 36.12323806 | AA22: 37.33288097 | AB22: 38.52557876 | AC22: 39.70133143 | AD22: 40.86013899 | AE22: 42.00200143 | AF22: 43.12691875 | AG22: 44.23489095 | AH22: 45.32591803 | AI22: 46.4 | AJ22: 47.21076051 | AK22: 48.00767498 | AL22: 48.79074341 | AM22: 49.55996579 | AN22: 50.31534212 | AO22: 51.05687242 | AP22: 51.78455666 | AQ22: 52.49839487 | AR22: 53.19838703 | AS22: 53.88453314
B23: Tech_16 | C23: Hydro_small | D23: 0.22808268 | E23: 0.22808268 | F23: 0.22808268 | G23: 0.3097419111 | H23: 0.4026644844 | I23: 0.5068503999 | J23: 0.6222996577 | K23: 0.7490122577 | L23: 0.8869881999 | M23: 1.036227484 | N23: 1.196730111 | O23: 1.36849608 | P23: 1.724305061 | Q23: 2.107483963 | R23: 2.518032787 | S23: 2.955951532 | T23: 3.4212402 | U23: 3.913898788 | V23: 4.433927299 | W23: 4.981325731 | X23: 5.556094084 | Y23: 6.158232359 | Z23: 6.626156094 | AA23: 7.111024947 | AB23: 7.612838917 | AC23: 8.131598004 | AD23: 8.66730221 | AE23: 9.219951532 | AF23: 9.789545973 | AG23: 10.37608553 | AH23: 10.97957021 | AI23: 11.6 | AJ23: 12.17384391 | AK23: 12.76153386 | AL23: 13.36306985 | AM23: 13.97845189 | AN23: 14.60767997 | AO23: 15.2507541 | AP23: 15.90767427 | AQ23: 16.57844048 | AR23: 17.26305274 | AS23: 17.96151105
B24: Tech_17 | C24: Hydrogen | D24: 0 | E24: 0 | F24: 0 | G24: 0 | H24: 0 | I24: 0 | J24: 0 | K24: 0 | L24: 0 | M24: 0 | N24: 0 | O24: 0 | P24: 0.4561653599 | Q24: 0.9123307199 | R24: 1.36849608 | S24: 1.82466144 | T24: 2.2808268 | U24: 2.73699216 | V24: 3.19315752 | W24: 3.64932288 | X24: 4.105488239 | Y24: 4.561653599 | Z24: 5.205488239 | AA24: 5.84932288 | AB24: 6.49315752 | AC24: 7.13699216 | AD24: 7.7808268 | AE24: 8.42466144 | AF24: 9.06849608 | AG24: 9.71233072 | AH24: 10.35616536 | AI24: 11 | AJ24: 11 | AK24: 11 | AL24: 11 | AM24: 11 | AN24: 11 | AO24: 11 | AP24: 11 | AQ24: 11 | AR24: 11 | AS24: 11
B25: Tech_18 | C25: Pumped_storage | D25: 0 | E25: 0 | F25: 0 | G25: 0 | H25: 0 | I25: 0 | J25: 0 | K25: 0 | L25: 0 | M25: 0 | N25: 0 | O25: 0 | P25: 0 | Q25: 0 | R25: 0 | S25: 0 | T25: 0 | U25: 0 | V25: 0 | W25: 0 | X25: 0 | Y25: 0 | Z25: 0 | AA25: 0 | AB25: 0 | AC25: 0 | AD25: 0 | AE25: 0 | AF25: 0 | AG25: 0 | AH25: 0 | AI25: 0 | AJ25: 0 | AK25: 0 | AL25: 0 | AM25: 0 | AN25: 0 | AO25: 0 | AP25: 0 | AQ25: 0 | AR25: 0 | AS25: 0
B26: Tech_19 | C26: Batteries | D26: 0 | E26: 0 | F26: 0 | G26: 0.8869881999 | H26: 1.7739764 | I26: 2.6609646 | J26: 3.5479528 | K26: 4.434940999 | L26: 5.321929199 | M26: 6.208917399 | N26: 7.095905599 | O26: 7.982893799 | P26: 10.8339273 | Q26: 13.6849608 | R26: 16.5359943 | S26: 19.3870278 | T26: 22.2380613 | U26: 25.0890948 | V26: 27.9401283 | W26: 30.7911618 | X26: 33.6421953 | Y26: 36.4932288 | Z26: 40.34390592 | AA26: 44.19458304 | AB26: 48.04526016 | AC26: 51.89593728 | AD26: 55.7466144 | AE26: 59.59729152 | AF26: 63.44796864 | AG26: 67.29864576 | AH26: 71.14932288 | AI26: 75 | AJ26: 76.7 | AK26: 78.4 | AL26: 80.1 | AM26: 81.8 | AN26: 83.5 | AO26: 85.2 | AP26: 86.9 | AQ26: 88.6 | AR26: 90.3 | AS26: 92
B27: Tech_20 | C27: Other 1 | D27: 0 | E27: 0 | F27: 0 | G27: 0 | H27: 0 | I27: 0 | J27: 0 | K27: 0 | L27: 0 | M27: 0 | N27: 0 | O27: 0 | P27: 0 | Q27: 0 | R27: 0 | S27: 0 | T27: 0 | U27: 0 | V27: 0 | W27: 0 | X27: 0 | Y27: 0 | Z27: 0 | AA27: 0 | AB27: 0 | AC27: 0 | AD27: 0 | AE27: 0 | AF27: 0 | AG27: 0 | AH27: 0 | AI27: 0 | AJ27: 0 | AK27: 0 | AL27: 0 | AM27: 0 | AN27: 0 | AO27: 0 | AP27: 0 | AQ27: 0 | AR27: 0 | AS27: 0
C28: TOTAL | D28: =SUM(D8:D27) -> 78.73240521 | E28: =SUM(E8:E27) -> 83.41900521 | F28: 85.65500521 | G28: 98.52501911 | H28: 107.770034 | I28: 121.0900489 | J28: 130.3700638 | K28: 138.4500787 | L28: 149.7710926 | M28: 157.3011065 | N28: 163.5511204 | O28: 170.8311343 | P28: 166.9479928 | Q28: 186.7434553 | R28: 206.5389178 | S28: 226.3343802 | T28: 246.1298427 | U28: 265.9253052 | V28: 285.7207677 | W28: 305.5162302 | X28: 325.3116927 | Y28: 345.1071552 | Z28: 372.3010726 | AA28: 399.49499 | AB28: 426.6889074 | AC28: 453.8828248 | AD28: 481.0767422 | AE28: 508.2706596 | AF28: 535.4645771 | AG28: 562.6584945 | AH28: 589.8524119 | AI28: 617.0463293 | AJ28: 629.2344262 | AK28: 641.4225232 | AL28: 653.6106201 | AM28: 665.798717 | AN28: 677.986814 | AO28: 690.1749109 | AP28: 702.3630078 | AQ28: 714.5511048 | AR28: 726.7392017 | AS28: 738.9272986
D30: MW
B31: TechList | C31: TechList | D31: 2019 | E31: 2020 | F31: 2021 | G31: 2022 | H31: 2023 | I31: 2024 | J31: 2025 | K31: 2026 | L31: 2027 | M31: 2028 | N31: 2029 | O31: 2030 | P31: 2031 | Q31: 2032 | R31: 2033 | S31: 2034 | T31: 2035 | U31: 2036 | V31: 2037 | W31: 2038 | X31: 2039 | Y31: 2040 | Z31: 2041 | AA31: 2042 | AB31: 2043 | AC31: 2044 | AD31: 2045 | AE31: 2046 | AF31: 2047 | AG31: 2048 | AH31: 2049 | AI31: 2050 | AJ31: 2051 | AK31: 2052 | AL31: 2053 | AM31: 2054 | AN31: 2055 | AO31: 2056 | AP31: 2057 | AQ31: 2058 | AR31: 2059 | AS31: 2060
B32: Tech_1 | C32: Coal | D32: =D8*1000 -> 34000 | E32: 38686.6 | F32: 40922.6 | G32: 47412.6 | H32: 50277.601 | I32: 57217.602 | J32: 60117.603 | K32: 61817.604 | L32: 66758.604 | M32: 67908.604 | N32: 67778.604 | O32: 68678.604 | P32: 43800 | Q32: 42600 | R32: 41400 | S32: 40200 | T32: 39000 | U32: 37800 | V32: 36600 | W32: 35400 | X32: 34200 | Y32: 33000 | Z32: 30700 | AA32: 28400 | AB32: 26100 | AC32: 23800 | AD32: 21500 | AE32: 19200 | AF32: 16900 | AG32: 14600 | AH32: 12300 | AI32: 10000 | AJ32: 9000 | AK32: 8000 | AL32: 7000 | AM32: 6000 | AN32: 5000 | AO32: 4000 | AP32: 3000 | AQ32: 2000 | AR32: 1000 | AS32: 0
B33: Tech_2 | C33: Coal_CCS | D33: =D9*1000 -> 0 | E33: 0 | F33: 0 | G33: 0 | H33: 0 | I33: 0 | J33: 0 | K33: 0 | L33: 0 | M33: 0 | N33: 0 | O33: 0 | P33: 301.0691376 | Q33: 602.1382751 | R33: 903.2074127 | S33: 1204.27655 | T33: 1505.345688 | U33: 1806.414825 | V33: 2107.483963 | W33: 2408.5531 | X33: 2709.622238 | Y33: 3010.691376 | Z33: 3095.31005 | AA33: 3180.38489 | AB33: 3265.915895 | AC33: 3351.903065 | AD33: 3438.346401 | AE33: 3525.245902 | AF33: 3612.601568 | AG33: 3700.4134 | AH33: 3788.681397 | AI33: 3877.40556 | AJ33: 4161.026372 | AK33: 4446.243763 | AL33: 4733.057733 | AM33: 5021.468282 | AN33: 5311.47541 | AO33: 5603.079116 | AP33: 5896.279401 | AQ33: 6191.076265 | AR33: 6487.469708 | AS33: 6785.459729
B34: Tech_3 | C34: Gas_Open | D34: =D10*1000 -> 5040.322581 | E34: 5040.322581 | F34: 5040.322581 | G34: 5313.620072 | H34: 5586.917563 | I34: 5860.215054 | J34: 6133.512545 | K34: 6406.810036 | L34: 6680.107527 | M34: 6953.405018 | N34: 7226.702509 | O34: 7500 | P34: 7233.870968 | Q34: 6967.741935 | R34: 6701.612903 | S34: 6435.483871 | T34: 6169.354839 | U34: 5903.225806 | V34: 5637.096774 | W34: 5370.967742 | X34: 5104.83871 | Y34: 4838.709677 | Z34: 4529.83871 | AA34: 4220.967742 | AB34: 3912.096774 | AC34: 3603.225806 | AD34: 3294.354839 | AE34: 2985.483871 | AF34: 2676.612903 | AG34: 2367.741935 | AH34: 2058.870968 | AI34: 1750 | AJ34: 1700 | AK34: 1650 | AL34: 1600 | AM34: 1550 | AN34: 1500 | AO34: 1450 | AP34: 1400 | AQ34: 1350 | AR34: 1300 | AS34: 1250
B35: Tech_4 | C35: Gas_Combined | D35: =D11*1000 -> 15120.96774 | E35: 15120.96774 | F35: 15120.96774 | G35: 15940.86022 | H35: 16760.75269 | I35: 17580.64516 | J35: 18400.53763 | K35: 19220.43011 | L35: 20040.32258 | M35: 20860.21505 | N35: 21680.10753 | O35: 22500 | P35: 21701.6129 | Q35: 20903.22581 | R35: 20104.83871 | S35: 19306.45161 | T35: 18508.06452 | U35: 17709.67742 | V35: 16911.29032 | W35: 16112.90323 | X35: 15314.51613 | Y35: 14516.12903 | Z35: 13589.51613 | AA35: 12662.90323 | AB35: 11736.29032 | AC35: 10809.67742 | AD35: 9883.064516 | AE35: 8956.451613 | AF35: 8029.83871 | AG35: 7103.225806 | AH35: 6176.612903 | AI35: 5250 | AJ35: 5100 | AK35: 4950 | AL35: 4800 | AM35: 4650 | AN35: 4500 | AO35: 4350 | AP35: 4200 | AQ35: 4050 | AR35: 3900 | AS35: 3750
B36: Tech_5 | C36: Gas_Combined_CCS | D36: =D12*1000 -> 0 | E36: 0 | F36: 0 | G36: 0 | H36: 0 | I36: 0 | J36: 0 | K36: 0 | L36: 0 | M36: 0 | N36: 0 | O36: 0 | P36: 155.0962224 | Q36: 310.1924448 | R36: 465.2886671 | S36: 620.3848895 | T36: 775.4811119 | U36: 930.5773343 | V36: 1085.673557 | W36: 1240.769779 | X36: 1395.866001 | Y36: 1550.962224 | Z36: 1580.38489 | AA36: 1609.35139 | AB36: 1637.861725 | AC36: 1665.915895 | AD36: 1693.513899 | AE36: 1720.655738 | AF36: 1747.341411 | AG36: 1773.570919 | AH36: 1799.344262 | AI36: 1824.66144 | AJ36: 1940.185317 | AK36: 2054.112616 | AL36: 2166.443336 | AM36: 2277.177477 | AN36: 2386.315039 | AO36: 2493.856023 | AP36: 2599.800428 | AQ36: 2704.148254 | AR36: 2806.899501 | AS36: 2908.05417
B37: Tech_6 | C37: Oil | D37: =D13*1000 -> 12096.77419 | E37: 12096.77419 | F37: 12096.77419 | G37: 11863.79928 | H37: 11630.82437 | I37: 11397.84946 | J37: 11164.87455 | K37: 10931.89964 | L37: 10698.92473 | M37: 10465.94982 | N37: 10232.97491 | O37: 10000 | P37: 9700 | Q37: 9400 | R37: 9100 | S37: 8800 | T37: 8500 | U37: 8200 | V37: 7900 | W37: 7600 | X37: 7300 | Y37: 7000 | Z37: 6750 | AA37: 6500 | AB37: 6250 | AC37: 6000 | AD37: 5750 | AE37: 5500 | AF37: 5250 | AG37: 5000 | AH37: 4750 | AI37: 4500 | AJ37: 4450 | AK37: 4400 | AL37: 4350 | AM37: 4300 | AN37: 4250 | AO37: 4200 | AP37: 4150 | AQ37: 4100 | AR37: 4050 | AS37: 4000
B38: Tech_7 | C38: Nuclear | D38: =D14*1000 -> 0 | E38: 0 | F38: 0 | G38: 0 | H38: 0 | I38: 0 | J38: 0 | K38: 0 | L38: 0 | M38: 0 | N38: 0 | O38: 0 | P38: 350 | Q38: 700 | R38: 1050 | S38: 1400 | T38: 1750 | U38: 2100 | V38: 2450 | W38: 2800 | X38: 3150 | Y38: 3500 | Z38: 4000 | AA38: 4500 | AB38: 5000 | AC38: 5500 | AD38: 6000 | AE38: 6500 | AF38: 7000 | AG38: 7500 | AH38: 8000 | AI38: 8500 | AJ38: 8650 | AK38: 8800 | AL38: 8950 | AM38: 9100 | AN38: 9250 | AO38: 9400 | AP38: 9550 | AQ38: 9700 | AR38: 9850 | AS38: 10000
B39: Tech_8 | C39: Biomass | D39: =D15*1000 -> 3991.4469 | E39: 3991.4469 | F39: 3991.4469 | G39: 4054.803199 | H39: 4118.159499 | I39: 4181.515799 | J39: 4244.872099 | K39: 4308.228399 | L39: 4371.584699 | M39: 4434.940999 | N39: 4498.297299 | O39: 4561.653599 | P39: 5188.880969 | Q39: 5816.108339 | R39: 6443.335709 | S39: 7070.563079 | T39: 7697.790449 | U39: 8325.017819 | V39: 8952.245189 | W39: 9579.472559 | X39: 10206.69993 | Y39: 10833.9273 | Z39: 11746.25802 | AA39: 12658.58874 | AB39: 13570.91946 | AC39: 14483.25018 | AD39: 15395.5809 | AE39: 16307.91162 | AF39: 17220.24234 | AG39: 18132.57306 | AH39: 19044.90378 | AI39: 19957.2345 | AJ39: 20461.51105 | AK39: 20965.7876 | AL39: 21470.06415 | AM39: 21974.3407 | AN39: 22478.61725 | AO39: 22982.8938 | AP39: 23487.17035 | AQ39: 23991.4469 | AR39: 24495.72345 | AS39: 25000
B40: Tech_9 | C40: Solar_utility | D40: =D16*1000 -> 495 | E40: 495 | F40: 495 | G40: 2869.477575 | H40: 5111.758005 | I40: 7221.841292 | J40: 9199.727436 | K40: 11045.41644 | L40: 12758.90829 | M40: 14340.203 | N40: 15789.30057 | O40: 17106.201 | P40: 24350.67712 | Q40: 31173.20029 | R40: 37573.77049 | S40: 43552.38774 | T40: 49109.05203 | U40: 54243.76336 | V40: 58956.52174 | W40: 63247.32716 | X40: 67116.17962 | Y40: 70563.07912 | Z40: 80281.7712 | AA40: 90000.46329 | AB40: 99719.15538 | AC40: 109437.8475 | AD40: 119156.5396 | AE40: 128875.2316 | AF40: 138593.9237 | AG40: 148312.6158 | AH40: 158031.3079 | AI40: 167750 | AJ40: 170356.3257 | AK40: 172962.6515 | AL40: 175568.9772 | AM40: 178175.3029 | AN40: 180781.6287 | AO40: 183387.9544 | AP40: 185994.2801 | AQ40: 188600.6058 | AR40: 191206.9316 | AS40: 193813.2573
B41: Tech_10 | C41: Solar_rooftop | D41: =D17*1000 -> 5 | E41: 5 | F41: 5 | G41: 43.0256153 | H41: 103.0840879 | I41: 185.1754178 | J41: 289.2996049 | K41: 415.4566493 | L41: 563.646551 | M41: 733.86931 | N41: 926.1249263 | O41: 1140.4134 | P41: 2001.425517 | Q41: 3073.414113 | R41: 4356.379187 | S41: 5850.320741 | T41: 7555.238774 | U41: 9471.133286 | V41: 11598.00428 | W41: 13935.85175 | X41: 16484.67569 | Y41: 19244.47612 | Z41: 22624.86279 | AA41: 26181.95296 | AB41: 29915.74661 | AC41: 33826.24376 | AD41: 37913.4444 | AE41: 42177.34854 | AF41: 46617.95617 | AG41: 51235.26728 | AH41: 56029.2819 | AI41: 61000 | AJ41: 61947.75481 | AK41: 62895.50962 | AL41: 63843.26443 | AM41: 64791.01924 | AN41: 65738.77406 | AO41: 66686.52887 | AP41: 67634.28368 | AQ41: 68582.03849 | AR41: 69529.7933 | AS41: 70477.54811
B42: Tech_11 | C42: Solar_floating | D42: =D18*1000 -> 0 | E42: 0 | F42: 0 | G42: 66.19325431 | H42: 242.550795 | I42: 529.0726222 | J42: 925.7587357 | K42: 1432.609136 | L42: 2049.623822 | M42: 2776.802795 | N42: 3614.146054 | O42: 4561.653599 | P42: 7004.989309 | Q42: 9659.301497 | R42: 12524.59016 | S42: 15600.85531 | T42: 18888.09694 | U42: 22386.31504 | V42: 26095.50962 | W42: 30015.68068 | X42: 34146.82823 | Y42: 38488.95225 | Z42: 43060.22274 | AA42: 47454.78974 | AB42: 51672.65324 | AC42: 55713.81326 | AD42: 59578.26978 | AE42: 63266.02281 | AF42: 66777.07234 | AG42: 70111.41839 | AH42: 73269.06094 | AI42: 76250 | AJ42: 77434.69351 | AK42: 78619.38703 | AL42: 79804.08054 | AM42: 80988.77406 | AN42: 82173.46757 | AO42: 83358.16108 | AP42: 84542.8546 | AQ42: 85727.54811 | AR42: 86912.24163 | AS42: 88096.93514
B43: Tech_12 | C43: Wind_onshore | D43: =D19*1000 -> 0 | E43: 0 | F43: 0 | G43: 570.2066999 | H43: 1140.4134 | I43: 1710.6201 | J43: 2280.8268 | K43: 2851.0335 | L43: 3421.2402 | M43: 3991.4469 | N43: 4561.653599 | O43: 5131.860299 | P43: 8130.577334 | Q43: 10934.28368 | R43: 13542.97933 | S43: 15956.66429 | T43: 18175.33856 | U43: 20199.00214 | V43: 22027.65502 | W43: 23661.29722 | X43: 25099.92872 | Y43: 26343.54954 | Z43: 29787.4918 | AA43: 33120.70135 | AB43: 36343.17819 | AC43: 39454.92231 | AD43: 42455.93371 | AE43: 45346.2124 | AF43: 48125.75837 | AG43: 50794.57163 | AH43: 53352.65217 | AI43: 55800 | AJ43: 58380 | AK43: 60960 | AL43: 63540 | AM43: 66120 | AN43: 68700 | AO43: 71280 | AP43: 73860 | AQ43: 76440 | AR43: 79020 | AS43: 81600
B44: Tech_13 | C44: Wind_offshore | D44: =D20*1000 -> 0 | E44: 0 | F44: 0 | G44: 0 | H44: 0 | I44: 0 | J44: 0 | K44: 0 | L44: 0 | M44: 0 | N44: 0 | O44: 0 | P44: 251.4611547 | Q44: 697.9330007 | R44: 1339.415538 | S44: 2175.908767 | T44: 3207.412687 | U44: 4433.927299 | V44: 5855.452602 | W44: 7471.988596 | X44: 9283.535282 | Y44: 11290.09266 | Z44: 13382.78617 | AA44: 15586.2124 | AB44: 17900.37135 | AC44: 20325.26301 | AD44: 22860.88738 | AE44: 25507.24448 | AF44: 28264.33428 | AG44: 31132.15681 | AH44: 34110.71205 | AI44: 37200 | AJ44: 38920 | AK44: 40640 | AL44: 42360 | AM44: 44080 | AN44: 45800 | AO44: 47520 | AP44: 49240 | AQ44: 50960 | AR44: 52680 | AS44: 54400
B45: Tech_14 | C45: Geothermal | D45: =D21*1000 -> 3421.2402 | E45: 3421.2402 | F45: 3421.2402 | G45: 3928.0906 | H45: 4434.940999 | I45: 4941.791399 | J45: 5448.641799 | K45: 5955.492199 | L45: 6462.342599 | M45: 6969.192999 | N45: 7476.043399 | O45: 7982.893799 | P45: 9066.286529 | Q45: 10149.67926 | R45: 11233.07199 | S45: 12316.46472 | T45: 13399.85745 | U45: 14483.25018 | V45: 15566.64291 | W45: 16650.03564 | X45: 17733.42837 | Y45: 18816.8211 | Z45: 18873.84177 | AA45: 18930.86244 | AB45: 18987.88311 | AC45: 19044.90378 | AD45: 19101.92445 | AE45: 19158.94512 | AF45: 19215.96579 | AG45: 19272.98646 | AH45: 19330.00713 | AI45: 19387.0278 | AJ45: 19648.32502 | AK45: 19909.62224 | AL45: 20170.91946 | AM45: 20432.21668 | AN45: 20693.5139 | AO45: 20954.81112 | AP45: 21216.10834 | AQ45: 21477.40556 | AR45: 21738.70278 | AS45: 22000
B46: Tech_15 | C46: Hydro_large | D46: =D22*1000 -> 4333.570919 | E46: 4333.570919 | F46: 4333.570919 | G46: 5265.612488 | H46: 6186.390715 | I46: 7095.905599 | J46: 7994.157141 | K46: 8881.145341 | L46: 9756.870199 | M46: 10621.33171 | N46: 11474.52989 | O46: 12316.46472 | P46: 14697.6479 | Q46: 17051.46115 | R46: 19377.90449 | S46: 21676.9779 | T46: 23948.6814 | U46: 26193.01497 | V46: 28409.97862 | W46: 30599.57234 | X46: 32761.79615 | Y46: 34896.65004 | Z46: 36123.23806 | AA46: 37332.88097 | AB46: 38525.57876 | AC46: 39701.33143 | AD46: 40860.13899 | AE46: 42002.00143 | AF46: 43126.91875 | AG46: 44234.89095 | AH46: 45325.91803 | AI46: 46400 | AJ46: 47210.76051 | AK46: 48007.67498 | AL46: 48790.74341 | AM46: 49559.96579 | AN46: 50315.34212 | AO46: 51056.87242 | AP46: 51784.55666 | AQ46: 52498.39487 | AR46: 53198.38703 | AS46: 53884.53314
B47: Tech_16 | C47: Hydro_small | D47: =D23*1000 -> 228.08268 | E47: 228.08268 | F47: 228.08268 | G47: 309.7419111 | H47: 402.6644844 | I47: 506.8503999 | J47: 622.2996577 | K47: 749.0122577 | L47: 886.9881999 | M47: 1036.227484 | N47: 1196.730111 | O47: 1368.49608 | P47: 1724.305061 | Q47: 2107.483963 | R47: 2518.032787 | S47: 2955.951532 | T47: 3421.2402 | U47: 3913.898788 | V47: 4433.927299 | W47: 4981.325731 | X47: 5556.094084 | Y47: 6158.232359 | Z47: 6626.156094 | AA47: 7111.024947 | AB47: 7612.838917 | AC47: 8131.598004 | AD47: 8667.30221 | AE47: 9219.951532 | AF47: 9789.545973 | AG47: 10376.08553 | AH47: 10979.57021 | AI47: 11600 | AJ47: 12173.84391 | AK47: 12761.53386 | AL47: 13363.06985 | AM47: 13978.45189 | AN47: 14607.67997 | AO47: 15250.7541 | AP47: 15907.67427 | AQ47: 16578.44048 | AR47: 17263.05274 | AS47: 17961.51105
B48: Tech_17 | C48: Hydrogen | D48: =D24*1000 -> 0 | E48: 0 | F48: 0 | G48: 0 | H48: 0 | I48: 0 | J48: 0 | K48: 0 | L48: 0 | M48: 0 | N48: 0 | O48: 0 | P48: 456.1653599 | Q48: 912.3307199 | R48: 1368.49608 | S48: 1824.66144 | T48: 2280.8268 | U48: 2736.99216 | V48: 3193.15752 | W48: 3649.32288 | X48: 4105.488239 | Y48: 4561.653599 | Z48: 5205.488239 | AA48: 5849.32288 | AB48: 6493.15752 | AC48: 7136.99216 | AD48: 7780.8268 | AE48: 8424.66144 | AF48: 9068.49608 | AG48: 9712.33072 | AH48: 10356.16536 | AI48: 11000 | AJ48: 11000 | AK48: 11000 | AL48: 11000 | AM48: 11000 | AN48: 11000 | AO48: 11000 | AP48: 11000 | AQ48: 11000 | AR48: 11000 | AS48: 11000
B49: Tech_18 | C49: Pumped_storage | D49: =D25*1000 -> 0 | E49: 0 | F49: 0 | G49: 0 | H49: 0 | I49: 0 | J49: 0 | K49: 0 | L49: 0 | M49: 0 | N49: 0 | O49: 0 | P49: 0 | Q49: 0 | R49: 0 | S49: 0 | T49: 0 | U49: 0 | V49: 0 | W49: 0 | X49: 0 | Y49: 0 | Z49: 0 | AA49: 0 | AB49: 0 | AC49: 0 | AD49: 0 | AE49: 0 | AF49: 0 | AG49: 0 | AH49: 0 | AI49: 0 | AJ49: 0 | AK49: 0 | AL49: 0 | AM49: 0 | AN49: 0 | AO49: 0 | AP49: 0 | AQ49: 0 | AR49: 0 | AS49: 0
B50: Tech_19 | C50: Batteries | D50: =D26*1000 -> 0 | E50: 0 | F50: 0 | G50: 886.9881999 | H50: 1773.9764 | I50: 2660.9646 | J50: 3547.9528 | K50: 4434.940999 | L50: 5321.929199 | M50: 6208.917399 | N50: 7095.905599 | O50: 7982.893799 | P50: 10833.9273 | Q50: 13684.9608 | R50: 16535.9943 | S50: 19387.0278 | T50: 22238.0613 | U50: 25089.0948 | V50: 27940.1283 | W50: 30791.1618 | X50: 33642.1953 | Y50: 36493.2288 | Z50: 40343.90592 | AA50: 44194.58304 | AB50: 48045.26016 | AC50: 51895.93728 | AD50: 55746.6144 | AE50: 59597.29152 | AF50: 63447.96864 | AG50: 67298.64576 | AH50: 71149.32288 | AI50: 75000 | AJ50: 76700 | AK50: 78400 | AL50: 80100 | AM50: 81800 | AN50: 83500 | AO50: 85200 | AP50: 86900 | AQ50: 88600 | AR50: 90300 | AS50: 92000
B51: Tech_20 | C51: Other 1 | D51: =D27*1000 -> 0 | E51: 0 | F51: 0 | G51: 0 | H51: 0 | I51: 0 | J51: 0 | K51: 0 | L51: 0 | M51: 0 | N51: 0 | O51: 0 | P51: 0 | Q51: 0 | R51: 0 | S51: 0 | T51: 0 | U51: 0 | V51: 0 | W51: 0 | X51: 0 | Y51: 0 | Z51: 0 | AA51: 0 | AB51: 0 | AC51: 0 | AD51: 0 | AE51: 0 | AF51: 0 | AG51: 0 | AH51: 0 | AI51: 0 | AJ51: 0 | AK51: 0 | AL51: 0 | AM51: 0 | AN51: 0 | AO51: 0 | AP51: 0 | AQ51: 0 | AR51: 0 | AS51: 0
C52: TOTAL | D52: =SUM(D32:D51) -> 78732.40521 | E52: =SUM(E32:E51) -> 83419.00521 | F52: =SUM(F32:F51) -> 85655.00521 | G52: =SUM(G32:G51) -> 98525.01911 | H52: =SUM(H32:H51) -> 107770.034 | I52: =SUM(I32:I51) -> 121090.0489 | J52: =SUM(J32:J51) -> 130370.0638 | K52: =SUM(K32:K51) -> 138450.0787 | L52: =SUM(L32:L51) -> 149771.0926 | M52: =SUM(M32:M51) -> 157301.1065 | N52: =SUM(N32:N51) -> 163551.1204 | O52: =SUM(O32:O51) -> 170831.1343 | P52: =SUM(P32:P51) -> 166947.9928 | Q52: =SUM(Q32:Q51) -> 186743.4553 | R52: =SUM(R32:R51) -> 206538.9178 | S52: =SUM(S32:S51) -> 226334.3802 | T52: =SUM(T32:T51) -> 246129.8427 | U52: =SUM(U32:U51) -> 265925.3052 | V52: =SUM(V32:V51) -> 285720.7677 | W52: =SUM(W32:W51) -> 305516.2302 | X52: =SUM(X32:X51) -> 325311.6927 | Y52: =SUM(Y32:Y51) -> 345107.1552 | Z52: =SUM(Z32:Z51) -> 372301.0726 | AA52: =SUM(AA32:AA51) -> 399494.99 | AB52: =SUM(AB32:AB51) -> 426688.9074 | AC52: =SUM(AC32:AC51) -> 453882.8248 | AD52: =SUM(AD32:AD51) -> 481076.7422 | AE52: =SUM(AE32:AE51) -> 508270.6596 | AF52: =SUM(AF32:AF51) -> 535464.5771 | AG52: =SUM(AG32:AG51) -> 562658.4945 | AH52: =SUM(AH32:AH51) -> 589852.4119 | AI52: =SUM(AI32:AI51) -> 617046.3293 | AJ52: =SUM(AJ32:AJ51) -> 629234.4262 | AK52: =SUM(AK32:AK51) -> 641422.5232 | AL52: =SUM(AL32:AL51) -> 653610.6201 | AM52: =SUM(AM32:AM51) -> 665798.717 | AN52: =SUM(AN32:AN51) -> 677986.814 | AO52: =SUM(AO32:AO51) -> 690174.9109 | AP52: =SUM(AP32:AP51) -> 702363.0078 | AQ52: =SUM(AQ32:AQ51) -> 714551.1048 | AR52: =SUM(AR32:AR51) -> 726739.2017 | AS52: =SUM(AS32:AS51) -> 738927.2986
B55: Scenario 1 Generation
D58: TWh
B59: TechList | C59: TechList | D59: 2019 | E59: 2020 | F59: 2021 | G59: 2022 | H59: 2023 | I59: 2024 | J59: 2025 | K59: 2026 | L59: 2027 | M59: 2028 | N59: 2029 | O59: 2030 | P59: 2031 | Q59: 2032 | R59: 2033 | S59: 2034 | T59: 2035 | U59: 2036 | V59: 2037 | W59: 2038 | X59: 2039 | Y59: 2040 | Z59: 2041 | AA59: 2042 | AB59: 2043 | AC59: 2044 | AD59: 2045 | AE59: 2046 | AF59: 2047 | AG59: 2048 | AH59: 2049 | AI59: 2050 | AJ59: 2051 | AK59: 2052 | AL59: 2053 | AM59: 2054 | AN59: 2055 | AO59: 2056 | AP59: 2057 | AQ59: 2058 | AR59: 2059 | AS59: 2060
B60: Tech_1 | C60: Coal | D60: 189.0694239 | E60: 189.0694239 | F60: 189.0694239 | G60: 194.9778434 | H60: 200.8862629 | I60: 212.7031019 | J60: 224.5199409 | K60: 233.3825702 | L60: 242.2451994 | M60: 248.1536189 | N60: 259.9704579 | O60: 262.9246677 | P60: 265.8788774 | Q60: 262.9246677 | R60: 259.9704579 | S60: 251.1078287 | T60: 239.2909897 | U60: 230.4283604 | V60: 209.7488922 | W60: 192.0236337 | X60: 180.2067947 | Y60: 162.4815362 | Z60: 141.8020679 | AA60: 124.0768095 | AB60: 106.351551 | AC60: 85.67208272 | AD60: 70.90103397 | AE60: 56.12998523 | AF60: 44.31314623 | AG60: 38.40472674 | AH60: 32.49630724 | AI60: 23.63367799 | AJ60: 20.67946824 | AK60: 17.17946824 | AL60: 13.67946824 | AM60: 10.17946824 | AN60: 6.679468242 | AO60: 3.179468242 | AP60: 1 | AQ60: 1 | AR60: 0.5 | AS60: 0.25
B61: Tech_2 | C61: Coal_CCS | D61: 0 | E61: 0 | F61: 0 | G61: 0 | H61: 0 | I61: 0 | J61: 0 | K61: 0 | L61: 0 | M61: 0 | N61: 0 | O61: 0 | P61: 0 | Q61: 0 | R61: 0 | S61: 0 | T61: 0.0066 | U61: 5.842735303 | V61: 5.849335303 | W61: 3.899556869 | X61: 1.949778434 | Y61: 5.849335303 | Z61: 11.73412112 | AA61: 13.73116691 | AB61: 15.74002954 | AC61: 15.7872969 | AD61: 17.81388479 | AE61: 21.83751846 | AF61: 25.88478582 | AG61: 19.9704579 | AH61: 24.03545052 | AI61: 28.12407681 | AJ61: 22.16248154 | AK61: 24.24815362 | AL61: 24.31905465 | AM61: 28.4549483 | AN61: 26.49926145 | AO61: 26.5760709 | AP61: 24.60265879 | AQ61: 26.72968981 | AR61: 28.86853767 | AS61: 28.95125554
B62: Tech_3 | C62: Gas_Open | D62: 13.29394387 | E62: 13.29394387 | F62: 13.29394387 | G62: 13.29394387 | H62: 14.03249631 | I62: 16.98670606 | J62: 15.50960118 | K62: 14.77104874 | L62: 16.24815362 | M62: 17.72525849 | N62: 16.98670606 | O62: 16.24815362 | P62: 16.24815362 | Q62: 17.72525849 | R62: 16.24815362 | S62: 16.98670606 | T62: 16.98670606 | U62: 14.77104874 | V62: 14.77104874 | W62: 14.77104874 | X62: 11.816839 | Y62: 11.07828656 | Z62: 11.07828656 | AA62: 9.601181684 | AB62: 8.862629247 | AC62: 8.862629247 | AD62: 7.385524372 | AE62: 7.385524372 | AF62: 6.646971935 | AG62: 5.908419498 | AH62: 5.169867061 | AI62: 5.169867061 | AJ62: 4.431314623 | AK62: 3.692762186 | AL62: 2.954209749 | AM62: 2.954209749 | AN62: 2.954209749 | AO62: 2.215657312 | AP62: 0.7385524372 | AQ62: 1.477104874 | AR62: 0.7385524372 | AS62: 0.7385524372
B63: Tech_4 | C63: Gas_Combined | D63: 39.88183161 | E63: 39.88183161 | F63: 39.88183161 | G63: 39.88183161 | H63: 42.09748892 | I63: 50.96011817 | J63: 46.52880355 | K63: 44.31314623 | L63: 48.74446086 | M63: 53.17577548 | N63: 50.96011817 | O63: 48.74446086 | P63: 48.74446086 | Q63: 53.17577548 | R63: 48.74446086 | S63: 50.96011817 | T63: 50.96011817 | U63: 44.31314623 | V63: 44.31314623 | W63: 44.31314623 | X63: 35.45051699 | Y63: 33.23485968 | Z63: 33.23485968 | AA63: 28.80354505 | AB63: 26.58788774 | AC63: 26.58788774 | AD63: 22.15657312 | AE63: 22.15657312 | AF63: 19.94091581 | AG63: 17.72525849 | AH63: 15.50960118 | AI63: 15.50960118 | AJ63: 13.29394387 | AK63: 11.07828656 | AL63: 8.862629247 | AM63: 8.862629247 | AN63: 8.862629247 | AO63: 6.646971935 | AP63: 2.215657312 | AQ63: 4.431314623 | AR63: 2.215657312 | AS63: 2.215657312
B64: Tech_5 | C64: Gas_Combined_CCS | D64: 0 | E64: 0 | F64: 0 | G64: 0 | H64: 0 | I64: 0 | J64: 0 | K64: 0 | L64: 0 | M64: 0 | N64: 0 | O64: 0 | P64: 0 | Q64: 0 | R64: 0 | S64: 0 | T64: 0.0034 | U64: 3.009893944 | V64: 3.013293944 | W64: 2.008862629 | X64: 1.004431315 | Y64: 3.013293944 | Z64: 5.991137371 | AA64: 6.948301329 | AB64: 7.893648449 | AC64: 7.846381093 | AD64: 8.774002954 | AE64: 10.65878877 | AF64: 12.51994092 | AG64: 9.571639586 | AH64: 11.41506647 | AI64: 13.23485968 | AJ64: 10.3338257 | AK64: 11.20236337 | AL64: 11.13146233 | AM64: 12.90398818 | AN64: 11.90546529 | AO64: 11.82865583 | AP64: 10.8478582 | AQ64: 11.67503693 | AR64: 12.49039882 | AS64: 12.40768095
B65: Tech_6 | C65: Oil | D65: 11.816839 | E65: 11.816839 | F65: 11.816839 | G65: 8.862629247 | H65: 8.862629247 | I65: 8.862629247 | J65: 8.862629247 | K65: 8.862629247 | L65: 5.908419498 | M65: 5.908419498 | N65: 5.908419498 | O65: 5.908419498 | P65: 8.862629247 | Q65: 5.908419498 | R65: 5.908419498 | S65: 8.862629247 | T65: 5.908419498 | U65: 8.862629247 | V65: 5.908419498 | W65: 5.908419498 | X65: 8.862629247 | Y65: 2.954209749 | Z65: 2.954209749 | AA65: 2.954209749 | AB65: 2.954209749 | AC65: 2.954209749 | AD65: 0.01 | AE65: 2.954209749 | AF65: 5.908419498 | AG65: 0.011 | AH65: 5.908419498 | AI65: 2.954209749 | AJ65: 0.01 | AK65: 2.954209749 | AL65: 2.954209749 | AM65: 2.954209749 | AN65: 0.01 | AO65: 0.01 | AP65: 2.964209749 | AQ65: 2.954209749 | AR65: 5.908419498 | AS65: 2.954209749
B66: Tech_7 | C66: Nuclear | D66: 0 | E66: 0 | F66: 0 | G66: 0 | H66: 0 | I66: 0 | J66: 0 | K66: 0 | L66: 0 | M66: 0 | N66: 0 | O66: 0 | P66: 0 | Q66: 0 | R66: 0 | S66: 0 | T66: 0 | U66: 5 | V66: 11.816839 | W66: 20.67946824 | X66: 20.67946824 | Y66: 23.63367799 | Z66: 26.58788774 | AA66: 32.49630724 | AB66: 35.45051699 | AC66: 41.35893648 | AD66: 41.35893648 | AE66: 47.26735598 | AF66: 53.17577548 | AG66: 56.12998523 | AH66: 59.08419498 | AI66: 56.12998523 | AJ66: 70.90103397 | AK66: 64.99261448 | AL66: 67.94682422 | AM66: 62.03840473 | AN66: 64.99261448 | AO66: 62.03840473 | AP66: 64.99261448 | AQ66: 64.99261448 | AR66: 64.99261448 | AS66: 62.03840473
B67: Tech_8 | C67: Biomass | D67: 17.72525849 | E67: 17.72525849 | F67: 17.72525849 | G67: 17.72525849 | H67: 20.67946824 | I67: 17.72525849 | J67: 17.72525849 | K67: 23.63367799 | L67: 23.63367799 | M67: 23.63367799 | N67: 29.54209749 | O67: 26.58788774 | P67: 32.49630724 | Q67: 32.49630724 | R67: 32.49630724 | S67: 44.31314623 | T67: 41.35893648 | U67: 47.26735598 | V67: 50.22156573 | W67: 53.17577548 | X67: 53.17577548 | Y67: 62.03840473 | Z67: 67.94682422 | AA67: 73.85524372 | AB67: 76.80945347 | AC67: 79.76366322 | AD67: 85.67208272 | AE67: 91.58050222 | AF67: 94.53471196 | AG67: 100.4431315 | AH67: 97.48892171 | AI67: 103.3973412 | AJ67: 109.3057607 | AK67: 112.2599705 | AL67: 118.16839 | AM67: 118.16839 | AN67: 121.1225997 | AO67: 127.0310192 | AP67: 129.985229 | AQ67: 127.0310192 | AR67: 132.9394387 | AS67: 132.9394387
B68: Tech_9 | C68: Solar_utility | D68: 0.823878 | E68: 0.823878 | F68: 0.823878 | G68: 4.775958475 | H68: 8.508010024 | I68: 12.02003265 | J68: 15.31202634 | K68: 18.38399112 | L68: 21.23592696 | M68: 23.86783388 | N68: 26.27971187 | O68: 28.47156094 | P68: 40.529267 | Q68: 51.88467455 | R68: 62.53778361 | S68: 72.48859416 | T68: 81.7371062 | U68: 90.28331974 | V68: 98.12723478 | W68: 105.2688513 | X68: 111.7081694 | Y68: 117.4451889 | Z68: 133.62098 | AA68: 149.7967711 | AB68: 165.9725622 | AC68: 182.1483533 | AD68: 198.3241444 | AE68: 214.4999356 | AF68: 230.6757267 | AG68: 246.8515178 | AH68: 263.0273089 | AI68: 279.2031 | AJ68: 283.5410685 | AK68: 287.8790371 | AL68: 292.2170056 | AM68: 296.5549742 | AN68: 300.8929427 | AO68: 305.2309113 | AP68: 309.5688798 | AQ68: 313.9068484 | AR68: 318.2448169 | AS68: 322.5827855
B69: Tech_10 | C69: Solar_rooftop | D69: 0.008322 | E69: 0.008322 | F69: 0.008322 | G69: 0.07161183411 | H69: 0.1715731559 | I69: 0.3082059653 | J69: 0.4815102624 | K69: 0.6914860471 | L69: 0.9381333196 | M69: 1.22145208 | N69: 1.541442327 | O69: 1.898104063 | P69: 3.33117263 | Q69: 5.115390449 | R69: 7.25075752 | S69: 9.737273842 | T69: 12.57493942 | U69: 15.76375424 | V69: 19.30371832 | W69: 23.19483165 | X69: 27.43709423 | Y69: 32.03050606 | Z69: 37.65682163 | AA69: 43.5772425 | AB69: 49.79176867 | AC69: 56.30040012 | AD69: 63.10313687 | AE69: 70.19997891 | AF69: 77.59092624 | AG69: 85.27597887 | AH69: 93.25513679 | AI69: 101.5284 | AJ69: 103.1058431 | AK69: 104.6832862 | AL69: 106.2607293 | AM69: 107.8381724 | AN69: 109.4156155 | AO69: 110.9930586 | AP69: 112.5705018 | AQ69: 114.1479449 | AR69: 115.725388 | AS69: 117.3028311
B70: Tech_11 | C70: Solar_floating | D70: 0 | E70: 0 | F70: 0 | G70: 0.1101720525 | H70: 0.4037015433 | I70: 0.8805884723 | J70: 1.54083284 | K70: 2.384434645 | L70: 3.411393889 | M70: 4.621710572 | N70: 6.015384692 | O70: 7.592416251 | P70: 11.65910421 | Q70: 16.07694141 | R70: 20.84592787 | S70: 25.96606358 | T70: 31.43734854 | U70: 37.25978275 | V70: 43.43336622 | W70: 49.95809893 | X70: 56.8339809 | Y70: 64.06101212 | Z70: 71.66943472 | AA70: 78.98375204 | AB70: 86.00396406 | AC70: 92.73007079 | AD70: 99.16207222 | AE70: 105.2999684 | AF70: 111.1437592 | AG70: 116.6934448 | AH70: 121.949025 | AI70: 126.9105 | AJ70: 128.8823039 | AK70: 130.8541078 | AL70: 132.8259117 | AM70: 134.7977155 | AN70: 136.7695194 | AO70: 138.7413233 | AP70: 140.7131272 | AQ70: 142.6849311 | AR70: 144.656735 | AS70: 146.6285388
B71: Tech_12 | C71: Wind_onshore | D71: 0.01 | E71: 0.01 | F71: 0.01 | G71: 0.001 | H71: 0.01 | I71: 0.01 | J71: 0.01 | K71: 2.954209749 | L71: 5.908419498 | M71: 8.862629247 | N71: 11.816839 | O71: 8.862629247 | P71: 17.19350074 | Q71: 22.21565731 | R71: 18.8183161 | S71: 25.99704579 | T71: 35.15509601 | U71: 33.91432792 | V71: 46.67651403 | W71: 53.88478582 | X71: 56.07090103 | Y71: 66.17429838 | Z71: 75.42097489 | AA71: 82.3633678 | AB71: 95.00738552 | AC71: 101.3884786 | AD71: 111.3737075 | AE71: 119.1137371 | AF71: 120.9748892 | AG71: 130.0443131 | AH71: 133.3530281 | AI71: 136.4844904 | AJ71: 143.5745938 | AK71: 150.6646972 | AL71: 155.9822747 | AM71: 166.6174298 | AN71: 171.9350074 | AO71: 179.0251108 | AP71: 187.88774 | AQ71: 198.5228951 | AR71: 205.6129985 | AS71: 212.7031019
B72: Tech_13 | C72: Wind_offshore | D72: 0 | E72: 0 | F72: 0 | G72: 0 | H72: 0 | I72: 0 | J72: 0 | K72: 0 | L72: 0 | M72: 0 | N72: 0 | O72: 0 | P72: 0.5317577548 | Q72: 1.418020679 | R72: 1.861152142 | S72: 3.545051699 | T72: 6.203840473 | U72: 7.444608567 | V72: 12.40768095 | W72: 17.01624815 | X72: 20.73855244 | Y72: 28.36041359 | Z72: 33.88478582 | AA72: 38.75923191 | AB72: 46.79468242 | AC72: 52.23042836 | AD72: 59.9704579 | AE72: 67.0014771 | AF72: 71.04874446 | AG72: 79.70457903 | AH72: 85.25849335 | AI72: 90.98966027 | AJ72: 95.71639586 | AK72: 100.4431315 | AL72: 103.9881832 | AM72: 111.0782866 | AN72: 114.6233383 | AO72: 119.3500739 | AP72: 125.2584934 | AQ72: 132.3485968 | AR72: 137.0753323 | AS72: 141.8020679
B73: Tech_14 | C73: Geothermal | D73: 14.77104874 | E73: 14.77104874 | F73: 14.77104874 | G73: 14.77104874 | H73: 14.77104874 | I73: 20.67946824 | J73: 23.63367799 | K73: 23.63367799 | L73: 35.45051699 | M73: 41.35893648 | N73: 44.31314623 | O73: 62.03840473 | P73: 62.03840473 | Q73: 70.90103397 | R73: 85.67208272 | S73: 88.62629247 | T73: 97.48892171 | U73: 106.351551 | V73: 112.2599705 | W73: 118.16839 | X73: 127.0310192 | Y73: 127.0310192 | Z73: 129.985229 | AA73: 135.8936484 | AB73: 135.8936484 | AC73: 141.8020679 | AD73: 141.8020679 | AE73: 138.8478582 | AF73: 147.7104874 | AG73: 147.7104874 | AH73: 153.6189069 | AI73: 153.6189069 | AJ73: 153.6189069 | AK73: 156.5731167 | AL73: 156.5731167 | AM73: 153.6189069 | AN73: 156.5731167 | AO73: 159.5273264 | AP73: 159.5273264 | AQ73: 159.5273264 | AR73: 156.5731167 | AS73: 162.4815362
B74: Tech_15 | C74: Hydro_large | D74: 19.64549483 | E74: 19.64549483 | F74: 19.64549483 | G74: 19.5306089 | H74: 19.41572296 | I74: 22.05809946 | J74: 21.92680125 | K74: 27.2443788 | L74: 27.08025603 | M74: 29.60774659 | N74: 32.1024126 | O74: 39.88183161 | P74: 42.3042836 | Q74: 47.32644018 | R74: 57.51846381 | S74: 54.59379616 | T74: 64.62333826 | U74: 69.394387 | V74: 79.21713442 | W74: 83.84047267 | X74: 90.93057607 | Y74: 100.4431315 | Z74: 102.3485968 | AA74: 106.7060561 | AB74: 111.0044313 | AC74: 115.2437223 | AD74: 121.8529021 | AE74: 123.5450517 | AF74: 125.1994092 | AG74: 131.6011343 | AH74: 133.1757755 | AI74: 137.0753323 | AJ74: 138.5592583 | AK74: 140.0295421 | AL74: 139.1432792 | AM74: 142.8655835 | AN74: 146.5210535 | AO74: 145.5757564 | AP74: 144.6304593 | AQ74: 148.183161 | AR74: 149.4387001 | AS74: 148.4490399
B75: Tech_16 | C75: Hydro_small | D75: 1.033973412 | E75: 1.033973412 | F75: 1.033973412 | G75: 1.148859347 | H75: 1.263745281 | I75: 1.575578533 | J75: 1.706876744 | K75: 2.297718694 | L75: 2.461841457 | M75: 2.888560643 | N75: 3.348104382 | O75: 4.431314623 | P75: 4.963072378 | Q75: 5.849335303 | R75: 7.474150665 | S75: 7.444608567 | T75: 9.231905465 | U75: 10.36927622 | V75: 12.3633678 | W75: 13.64844904 | X75: 15.42097489 | Y75: 17.72525849 | Z75: 18.77400295 | AA75: 20.32496307 | AB75: 21.93500739 | AC75: 23.60413589 | AD75: 25.8475853 | AE75: 27.11964549 | AF75: 28.41949778 | AG75: 30.86940188 | AH75: 32.25997046 | AI75: 34.26883309 | AJ75: 35.72911691 | AK75: 37.22304284 | AL75: 38.10930576 | AM75: 40.29542097 | AN75: 42.53837038 | AO75: 43.4836675 | AP75: 44.42896462 | AQ75: 46.79468242 | AR75: 48.49335303 | AS75: 49.48301329
B76: Tech_17 | C76: Hydrogen | D76: 0 | E76: 0 | F76: 0 | G76: 0 | H76: 0 | I76: 0 | J76: 0 | K76: 0 | L76: 0 | M76: 0 | N76: 0 | O76: 0 | P76: 0 | Q76: 0 | R76: 0 | S76: 0 | T76: 2.944209749 | U76: 5.908419498 | V76: 8.862629247 | W76: 11.816839 | X76: 17.72525849 | Y76: 20.67946824 | Z76: 14.77104874 | AA76: 20.67946824 | AB76: 23.63367799 | AC76: 26.58788774 | AD76: 41.35893648 | AE76: 38.40472674 | AF76: 38.40472674 | AG76: 47.26735598 | AH76: 47.26735598 | AI76: 53.17577548 | AJ76: 62.03840473 | AK76: 56.12998523 | AL76: 59.08419498 | AM76: 53.17577548 | AN76: 53.17577548 | AO76: 59.08419498 | AP76: 56.12998523 | AQ76: 62.03840473 | AR76: 56.12998523 | AS76: 62.03840473
B77: Tech_18 | C77: Pumped_storage | D77: 0 | E77: 0 | F77: 0 | G77: 0 | H77: 0 | I77: 0 | J77: 0 | K77: 0 | L77: 0 | M77: 0 | N77: 0 | O77: 0 | P77: 0 | Q77: 0 | R77: 0 | S77: 0 | T77: 0 | U77: 0 | V77: 0 | W77: 0 | X77: 0 | Y77: 0 | Z77: 0 | AA77: 0 | AB77: 0 | AC77: 0 | AD77: 0 | AE77: 0 | AF77: 0 | AG77: 0 | AH77: 0 | AI77: 0 | AJ77: 0 | AK77: 0 | AL77: 0 | AM77: 0 | AN77: 0 | AO77: 0 | AP77: 0 | AQ77: 0 | AR77: 0 | AS77: 0
B78: Tech_19 | C78: Batteries | D78: 0 | E78: 0 | F78: 0 | G78: 0 | H78: 0 | I78: 0 | J78: 0 | K78: 0 | L78: 0 | M78: 0 | N78: 0 | O78: 0 | P78: 0 | Q78: 0 | R78: 0 | S78: 0 | T78: 0 | U78: 0 | V78: 0 | W78: 0 | X78: 0 | Y78: 0 | Z78: 0 | AA78: 0 | AB78: 0 | AC78: 0 | AD78: 0 | AE78: 0 | AF78: 0 | AG78: 0 | AH78: 0 | AI78: 0 | AJ78: 0 | AK78: 0 | AL78: 0 | AM78: 0 | AN78: 0 | AO78: 0 | AP78: 0 | AQ78: 0 | AR78: 0 | AS78: 0
B79: Tech_20 | C79: Other 1 | D79: 0 | E79: 0 | F79: 0 | G79: 0 | H79: 0 | I79: 0 | J79: 0 | K79: 0 | L79: 0 | M79: 0 | N79: 0 | O79: 0 | P79: 0 | Q79: 0 | R79: 0 | S79: 0 | T79: 0 | U79: 0 | V79: 0 | W79: 0 | X79: 0 | Y79: 0 | Z79: 0 | AA79: 0 | AB79: 0 | AC79: 0 | AD79: 0 | AE79: 0 | AF79: 0 | AG79: 0 | AH79: 0 | AI79: 0 | AJ79: 0 | AK79: 0 | AL79: 0 | AM79: 0 | AN79: 0 | AO79: 0 | AP79: 0 | AQ79: 0 | AR79: 0 | AS79: 0
C80: TOTAL | D80: =SUM(D60:D79) -> 308.0800139 | E80: =SUM(E60:E79) -> 308.0800139 | F80: 308.0800139 | G80: 315.150766 | H80: 331.1021474 | I80: 364.7697872 | J80: 377.7579588 | K80: 402.5529694 | L80: 433.2663995 | M80: 461.0256199 | N80: 488.7848402 | O80: 513.5898508 | P80: 554.7809914 | Q80: 593.0179222 | R80: 625.3464335 | S80: 660.6291546 | T80: 695.9118757 | U80: 736.1845968 | V80: 778.2941568 | W80: 813.5768779 | X80: 837.04276 | Y80: 878.2339006 | Z80: 919.4612688 | AA80: 969.5512664 | AB80: 1016.687054 | AC80: 1060.868632 | AD80: 1116.867049 | AE80: 1164.002837 | AF80: 1214.092835 | AG80: 1264.182832 | AH80: 1314.27283 | AI80: 1361.408617 | AJ80: =SUM(AJ60:AJ79) -> 1395.883721 | AK80: 1412.087775 | AL80: 1434.200249 | AM80: 1453.358514 | AN80: 1475.470988 | AO80: 1500.537671 | AP80: 1518.062258 | AQ80: 1558.44578 | AR80: 1580.604045 | AS80: 1605.966519
D82: GW
B83: TechList | C83: TechList | D83: 2019 | E83: 2020 | F83: 2021 | G83: 2022 | H83: 2023 | I83: 2024 | J83: 2025 | K83: 2026 | L83: 2027 | M83: 2028 | N83: 2029 | O83: 2030 | P83: 2031 | Q83: 2032 | R83: 2033 | S83: 2034 | T83: 2035 | U83: 2036 | V83: 2037 | W83: 2038 | X83: 2039 | Y83: 2040 | Z83: 2041 | AA83: 2042 | AB83: 2043 | AC83: 2044 | AD83: 2045 | AE83: 2046 | AF83: 2047 | AG83: 2048 | AH83: 2049 | AI83: 2050 | AJ83: 2051 | AK83: 2052 | AL83: 2053 | AM83: 2054 | AN83: 2055 | AO83: 2056 | AP83: 2057 | AQ83: 2058 | AR83: 2059 | AS83: 2060
B84: Tech_1 | C84: Coal | D84: =D60*1000 -> 189069.4239 | E84: =E60*1000 -> 189069.4239 | F84: 189069.4239 | G84: 194977.8434 | H84: 200886.2629 | I84: 212703.1019 | J84: 224519.9409 | K84: 233382.5702 | L84: 242245.1994 | M84: 248153.6189 | N84: 259970.4579 | O84: 262924.6677 | P84: 265878.8774 | Q84: 262924.6677 | R84: 259970.4579 | S84: 251107.8287 | T84: 239290.9897 | U84: 230428.3604 | V84: 209748.8922 | W84: 192023.6337 | X84: 180206.7947 | Y84: 162481.5362 | Z84: 141802.0679 | AA84: 124076.8095 | AB84: 106351.551 | AC84: 85672.08272 | AD84: 70901.03397 | AE84: 56129.98523 | AF84: 44313.14623 | AG84: 38404.72674 | AH84: 32496.30724 | AI84: 23633.67799 | AJ84: 20679.46824 | AK84: 17179.46824 | AL84: 13679.46824 | AM84: 10179.46824 | AN84: 6679.468242 | AO84: 3179.468242 | AP84: 1000 | AQ84: 1000 | AR84: 500 | AS84: 250
B85: Tech_2 | C85: Coal_CCS | D85: =D61*1000 -> 0 | E85: 0 | F85: 0 | G85: 0 | H85: 0 | I85: 0 | J85: 0 | K85: 0 | L85: 0 | M85: 0 | N85: 0 | O85: 0 | P85: 0 | Q85: 0 | R85: 0 | S85: 0 | T85: 6.6 | U85: 5842.735303 | V85: 5849.335303 | W85: 3899.556869 | X85: 1949.778434 | Y85: 5849.335303 | Z85: 11734.12112 | AA85: 13731.16691 | AB85: 15740.02954 | AC85: 15787.2969 | AD85: 17813.88479 | AE85: 21837.51846 | AF85: 25884.78582 | AG85: 19970.4579 | AH85: 24035.45052 | AI85: 28124.07681 | AJ85: 22162.48154 | AK85: 24248.15362 | AL85: 24319.05465 | AM85: 28454.9483 | AN85: 26499.26145 | AO85: 26576.0709 | AP85: 24602.65879 | AQ85: 26729.68981 | AR85: 28868.53767 | AS85: 28951.25554
B86: Tech_3 | C86: Gas_Open | D86: =D62*1000 -> 13293.94387 | E86: 13293.94387 | F86: 13293.94387 | G86: 13293.94387 | H86: 14032.49631 | I86: 16986.70606 | J86: 15509.60118 | K86: 14771.04874 | L86: 16248.15362 | M86: 17725.25849 | N86: 16986.70606 | O86: 16248.15362 | P86: 16248.15362 | Q86: 17725.25849 | R86: 16248.15362 | S86: 16986.70606 | T86: 16986.70606 | U86: 14771.04874 | V86: 14771.04874 | W86: 14771.04874 | X86: 11816.839 | Y86: 11078.28656 | Z86: 11078.28656 | AA86: 9601.181684 | AB86: 8862.629247 | AC86: 8862.629247 | AD86: 7385.524372 | AE86: 7385.524372 | AF86: 6646.971935 | AG86: 5908.419498 | AH86: 5169.867061 | AI86: 5169.867061 | AJ86: 4431.314623 | AK86: 3692.762186 | AL86: 2954.209749 | AM86: 2954.209749 | AN86: 2954.209749 | AO86: 2215.657312 | AP86: 738.5524372 | AQ86: 1477.104874 | AR86: 738.5524372 | AS86: 738.5524372
B87: Tech_4 | C87: Gas_Combined | D87: =D63*1000 -> 39881.83161 | E87: 39881.83161 | F87: 39881.83161 | G87: 39881.83161 | H87: 42097.48892 | I87: 50960.11817 | J87: 46528.80355 | K87: 44313.14623 | L87: 48744.46086 | M87: 53175.77548 | N87: 50960.11817 | O87: 48744.46086 | P87: 48744.46086 | Q87: 53175.77548 | R87: 48744.46086 | S87: 50960.11817 | T87: 50960.11817 | U87: 44313.14623 | V87: 44313.14623 | W87: 44313.14623 | X87: 35450.51699 | Y87: 33234.85968 | Z87: 33234.85968 | AA87: 28803.54505 | AB87: 26587.88774 | AC87: 26587.88774 | AD87: 22156.57312 | AE87: 22156.57312 | AF87: 19940.91581 | AG87: 17725.25849 | AH87: 15509.60118 | AI87: 15509.60118 | AJ87: 13293.94387 | AK87: 11078.28656 | AL87: 8862.629247 | AM87: 8862.629247 | AN87: 8862.629247 | AO87: 6646.971935 | AP87: 2215.657312 | AQ87: 4431.314623 | AR87: 2215.657312 | AS87: 2215.657312
B88: Tech_5 | C88: Gas_Combined_CCS | D88: =D64*1000 -> 0 | E88: 0 | F88: 0 | G88: 0 | H88: 0 | I88: 0 | J88: 0 | K88: 0 | L88: 0 | M88: 0 | N88: 0 | O88: 0 | P88: 0 | Q88: 0 | R88: 0 | S88: 0 | T88: 3.4 | U88: 3009.893944 | V88: 3013.293944 | W88: 2008.862629 | X88: 1004.431315 | Y88: 3013.293944 | Z88: 5991.137371 | AA88: 6948.301329 | AB88: 7893.648449 | AC88: 7846.381093 | AD88: 8774.002954 | AE88: 10658.78877 | AF88: 12519.94092 | AG88: 9571.639586 | AH88: 11415.06647 | AI88: 13234.85968 | AJ88: 10333.8257 | AK88: 11202.36337 | AL88: 11131.46233 | AM88: 12903.98818 | AN88: 11905.46529 | AO88: 11828.65583 | AP88: 10847.8582 | AQ88: 11675.03693 | AR88: 12490.39882 | AS88: 12407.68095
B89: Tech_6 | C89: Oil | D89: =D65*1000 -> 11816.839 | E89: 11816.839 | F89: 11816.839 | G89: 8862.629247 | H89: 8862.629247 | I89: 8862.629247 | J89: 8862.629247 | K89: 8862.629247 | L89: 5908.419498 | M89: 5908.419498 | N89: 5908.419498 | O89: 5908.419498 | P89: 8862.629247 | Q89: 5908.419498 | R89: 5908.419498 | S89: 8862.629247 | T89: 5908.419498 | U89: 8862.629247 | V89: 5908.419498 | W89: 5908.419498 | X89: 8862.629247 | Y89: 2954.209749 | Z89: 2954.209749 | AA89: 2954.209749 | AB89: 2954.209749 | AC89: 2954.209749 | AD89: 10 | AE89: 2954.209749 | AF89: 5908.419498 | AG89: 11 | AH89: 5908.419498 | AI89: 2954.209749 | AJ89: 10 | AK89: 2954.209749 | AL89: 2954.209749 | AM89: 2954.209749 | AN89: 10 | AO89: 10 | AP89: 2964.209749 | AQ89: 2954.209749 | AR89: 5908.419498 | AS89: 2954.209749
B90: Tech_7 | C90: Nuclear | D90: =D66*1000 -> 0 | E90: 0 | F90: 0 | G90: 0 | H90: 0 | I90: 0 | J90: 0 | K90: 0 | L90: 0 | M90: 0 | N90: 0 | O90: 0 | P90: 0 | Q90: 0 | R90: 0 | S90: 0 | T90: 0 | U90: 5000 | V90: 11816.839 | W90: 20679.46824 | X90: 20679.46824 | Y90: 23633.67799 | Z90: 26587.88774 | AA90: 32496.30724 | AB90: 35450.51699 | AC90: 41358.93648 | AD90: 41358.93648 | AE90: 47267.35598 | AF90: 53175.77548 | AG90: 56129.98523 | AH90: 59084.19498 | AI90: 56129.98523 | AJ90: 70901.03397 | AK90: 64992.61448 | AL90: 67946.82422 | AM90: 62038.40473 | AN90: 64992.61448 | AO90: 62038.40473 | AP90: 64992.61448 | AQ90: 64992.61448 | AR90: 64992.61448 | AS90: 62038.40473
B91: Tech_8 | C91: Biomass | D91: =D67*1000 -> 17725.25849 | E91: 17725.25849 | F91: 17725.25849 | G91: 17725.25849 | H91: 20679.46824 | I91: 17725.25849 | J91: 17725.25849 | K91: 23633.67799 | L91: 23633.67799 | M91: 23633.67799 | N91: 29542.09749 | O91: 26587.88774 | P91: 32496.30724 | Q91: 32496.30724 | R91: 32496.30724 | S91: 44313.14623 | T91: 41358.93648 | U91: 47267.35598 | V91: 50221.56573 | W91: 53175.77548 | X91: 53175.77548 | Y91: 62038.40473 | Z91: 67946.82422 | AA91: 73855.24372 | AB91: 76809.45347 | AC91: 79763.66322 | AD91: 85672.08272 | AE91: 91580.50222 | AF91: 94534.71196 | AG91: 100443.1315 | AH91: 97488.92171 | AI91: 103397.3412 | AJ91: 109305.7607 | AK91: 112259.9705 | AL91: 118168.39 | AM91: 118168.39 | AN91: 121122.5997 | AO91: 127031.0192 | AP91: 129985.229 | AQ91: 127031.0192 | AR91: 132939.4387 | AS91: 132939.4387
B92: Tech_9 | C92: Solar_utility | D92: =D68*1000 -> 823.878 | E92: 823.878 | F92: 823.878 | G92: 4775.958475 | H92: 8508.010024 | I92: 12020.03265 | J92: 15312.02634 | K92: 18383.99112 | L92: 21235.92696 | M92: 23867.83388 | N92: 26279.71187 | O92: 28471.56094 | P92: 40529.267 | Q92: 51884.67455 | R92: 62537.78361 | S92: 72488.59416 | T92: 81737.1062 | U92: 90283.31974 | V92: 98127.23478 | W92: 105268.8513 | X92: 111708.1694 | Y92: 117445.1889 | Z92: 133620.98 | AA92: 149796.7711 | AB92: 165972.5622 | AC92: 182148.3533 | AD92: 198324.1444 | AE92: 214499.9356 | AF92: 230675.7267 | AG92: 246851.5178 | AH92: 263027.3089 | AI92: 279203.1 | AJ92: 283541.0685 | AK92: 287879.0371 | AL92: 292217.0056 | AM92: 296554.9742 | AN92: 300892.9427 | AO92: 305230.9113 | AP92: 309568.8798 | AQ92: 313906.8484 | AR92: 318244.8169 | AS92: 322582.7855
B93: Tech_10 | C93: Solar_rooftop | D93: =D69*1000 -> 8.322 | E93: 8.322 | F93: 8.322 | G93: 71.61183411 | H93: 171.5731559 | I93: 308.2059653 | J93: 481.5102624 | K93: 691.4860471 | L93: 938.1333196 | M93: 1221.45208 | N93: 1541.442327 | O93: 1898.104063 | P93: 3331.17263 | Q93: 5115.390449 | R93: 7250.75752 | S93: 9737.273842 | T93: 12574.93942 | U93: 15763.75424 | V93: 19303.71832 | W93: 23194.83165 | X93: 27437.09423 | Y93: 32030.50606 | Z93: 37656.82163 | AA93: 43577.2425 | AB93: 49791.76867 | AC93: 56300.40012 | AD93: 63103.13687 | AE93: 70199.97891 | AF93: 77590.92624 | AG93: 85275.97887 | AH93: 93255.13679 | AI93: 101528.4 | AJ93: 103105.8431 | AK93: 104683.2862 | AL93: 106260.7293 | AM93: 107838.1724 | AN93: 109415.6155 | AO93: 110993.0586 | AP93: 112570.5018 | AQ93: 114147.9449 | AR93: 115725.388 | AS93: 117302.8311
B94: Tech_11 | C94: Solar_floating | D94: =D70*1000 -> 0 | E94: 0 | F94: 0 | G94: 110.1720525 | H94: 403.7015433 | I94: 880.5884723 | J94: 1540.83284 | K94: 2384.434645 | L94: 3411.393889 | M94: 4621.710572 | N94: 6015.384692 | O94: 7592.416251 | P94: 11659.10421 | Q94: 16076.94141 | R94: 20845.92787 | S94: 25966.06358 | T94: 31437.34854 | U94: 37259.78275 | V94: 43433.36622 | W94: 49958.09893 | X94: 56833.9809 | Y94: 64061.01212 | Z94: 71669.43472 | AA94: 78983.75204 | AB94: 86003.96406 | AC94: 92730.07079 | AD94: 99162.07222 | AE94: 105299.9684 | AF94: 111143.7592 | AG94: 116693.4448 | AH94: 121949.025 | AI94: 126910.5 | AJ94: 128882.3039 | AK94: 130854.1078 | AL94: 132825.9117 | AM94: 134797.7155 | AN94: 136769.5194 | AO94: 138741.3233 | AP94: 140713.1272 | AQ94: 142684.9311 | AR94: 144656.735 | AS94: 146628.5388
B95: Tech_12 | C95: Wind_onshore | D95: =D71*1000 -> 10 | E95: 10 | F95: 10 | G95: 1 | H95: 10 | I95: 10 | J95: 10 | K95: 2954.209749 | L95: 5908.419498 | M95: 8862.629247 | N95: 11816.839 | O95: 8862.629247 | P95: 17193.50074 | Q95: 22215.65731 | R95: 18818.3161 | S95: 25997.04579 | T95: 35155.09601 | U95: 33914.32792 | V95: 46676.51403 | W95: 53884.78582 | X95: 56070.90103 | Y95: 66174.29838 | Z95: 75420.97489 | AA95: 82363.3678 | AB95: 95007.38552 | AC95: 101388.4786 | AD95: 111373.7075 | AE95: 119113.7371 | AF95: 120974.8892 | AG95: 130044.3131 | AH95: 133353.0281 | AI95: 136484.4904 | AJ95: 143574.5938 | AK95: 150664.6972 | AL95: 155982.2747 | AM95: 166617.4298 | AN95: 171935.0074 | AO95: 179025.1108 | AP95: 187887.74 | AQ95: 198522.8951 | AR95: 205612.9985 | AS95: 212703.1019
B96: Tech_13 | C96: Wind_offshore | D96: =D72*1000 -> 0 | E96: 0 | F96: 0 | G96: 0 | H96: 0 | I96: 0 | J96: 0 | K96: 0 | L96: 0 | M96: 0 | N96: 0 | O96: 0 | P96: 531.7577548 | Q96: 1418.020679 | R96: 1861.152142 | S96: 3545.051699 | T96: 6203.840473 | U96: 7444.608567 | V96: 12407.68095 | W96: 17016.24815 | X96: 20738.55244 | Y96: 28360.41359 | Z96: 33884.78582 | AA96: 38759.23191 | AB96: 46794.68242 | AC96: 52230.42836 | AD96: 59970.4579 | AE96: 67001.4771 | AF96: 71048.74446 | AG96: 79704.57903 | AH96: 85258.49335 | AI96: 90989.66027 | AJ96: 95716.39586 | AK96: 100443.1315 | AL96: 103988.1832 | AM96: 111078.2866 | AN96: 114623.3383 | AO96: 119350.0739 | AP96: 125258.4934 | AQ96: 132348.5968 | AR96: 137075.3323 | AS96: 141802.0679
B97: Tech_14 | C97: Geothermal | D97: =D73*1000 -> 14771.04874 | E97: 14771.04874 | F97: 14771.04874 | G97: 14771.04874 | H97: 14771.04874 | I97: 20679.46824 | J97: 23633.67799 | K97: 23633.67799 | L97: 35450.51699 | M97: 41358.93648 | N97: 44313.14623 | O97: 62038.40473 | P97: 62038.40473 | Q97: 70901.03397 | R97: 85672.08272 | S97: 88626.29247 | T97: 97488.92171 | U97: 106351.551 | V97: 112259.9705 | W97: 118168.39 | X97: 127031.0192 | Y97: 127031.0192 | Z97: 129985.229 | AA97: 135893.6484 | AB97: 135893.6484 | AC97: 141802.0679 | AD97: 141802.0679 | AE97: 138847.8582 | AF97: 147710.4874 | AG97: 147710.4874 | AH97: 153618.9069 | AI97: 153618.9069 | AJ97: 153618.9069 | AK97: 156573.1167 | AL97: 156573.1167 | AM97: 153618.9069 | AN97: 156573.1167 | AO97: 159527.3264 | AP97: 159527.3264 | AQ97: 159527.3264 | AR97: 156573.1167 | AS97: 162481.5362
B98: Tech_15 | C98: Hydro_large | D98: =D74*1000 -> 19645.49483 | E98: 19645.49483 | F98: 19645.49483 | G98: 19530.6089 | H98: 19415.72296 | I98: 22058.09946 | J98: 21926.80125 | K98: 27244.3788 | L98: 27080.25603 | M98: 29607.74659 | N98: 32102.4126 | O98: 39881.83161 | P98: 42304.2836 | Q98: 47326.44018 | R98: 57518.46381 | S98: 54593.79616 | T98: 64623.33826 | U98: 69394.387 | V98: 79217.13442 | W98: 83840.47267 | X98: 90930.57607 | Y98: 100443.1315 | Z98: 102348.5968 | AA98: 106706.0561 | AB98: 111004.4313 | AC98: 115243.7223 | AD98: 121852.9021 | AE98: 123545.0517 | AF98: 125199.4092 | AG98: 131601.1343 | AH98: 133175.7755 | AI98: 137075.3323 | AJ98: 138559.2583 | AK98: 140029.5421 | AL98: 139143.2792 | AM98: 142865.5835 | AN98: 146521.0535 | AO98: 145575.7564 | AP98: 144630.4593 | AQ98: 148183.161 | AR98: 149438.7001 | AS98: 148449.0399
B99: Tech_16 | C99: Hydro_small | D99: =D75*1000 -> 1033.973412 | E99: 1033.973412 | F99: 1033.973412 | G99: 1148.859347 | H99: 1263.745281 | I99: 1575.578533 | J99: 1706.876744 | K99: 2297.718694 | L99: 2461.841457 | M99: 2888.560643 | N99: 3348.104382 | O99: 4431.314623 | P99: 4963.072378 | Q99: 5849.335303 | R99: 7474.150665 | S99: 7444.608567 | T99: 9231.905465 | U99: 10369.27622 | V99: 12363.3678 | W99: 13648.44904 | X99: 15420.97489 | Y99: 17725.25849 | Z99: 18774.00295 | AA99: 20324.96307 | AB99: 21935.00739 | AC99: 23604.13589 | AD99: 25847.5853 | AE99: 27119.64549 | AF99: 28419.49778 | AG99: 30869.40188 | AH99: 32259.97046 | AI99: 34268.83309 | AJ99: 35729.11691 | AK99: 37223.04284 | AL99: 38109.30576 | AM99: 40295.42097 | AN99: 42538.37038 | AO99: 43483.6675 | AP99: 44428.96462 | AQ99: 46794.68242 | AR99: 48493.35303 | AS99: 49483.01329
B100: Tech_17 | C100: Hydrogen | D100: =D76*1000 -> 0 | E100: 0 | F100: 0 | G100: 0 | H100: 0 | I100: 0 | J100: 0 | K100: 0 | L100: 0 | M100: 0 | N100: 0 | O100: 0 | P100: 0 | Q100: 0 | R100: 0 | S100: 0 | T100: 2944.209749 | U100: 5908.419498 | V100: 8862.629247 | W100: 11816.839 | X100: 17725.25849 | Y100: 20679.46824 | Z100: 14771.04874 | AA100: 20679.46824 | AB100: 23633.67799 | AC100: 26587.88774 | AD100: 41358.93648 | AE100: 38404.72674 | AF100: 38404.72674 | AG100: 47267.35598 | AH100: 47267.35598 | AI100: 53175.77548 | AJ100: 62038.40473 | AK100: 56129.98523 | AL100: 59084.19498 | AM100: 53175.77548 | AN100: 53175.77548 | AO100: 59084.19498 | AP100: 56129.98523 | AQ100: 62038.40473 | AR100: 56129.98523 | AS100: 62038.40473
B101: Tech_18 | C101: Pumped_storage | D101: =D77*1000 -> 0 | E101: 0 | F101: 0 | G101: 0 | H101: 0 | I101: 0 | J101: 0 | K101: 0 | L101: 0 | M101: 0 | N101: 0 | O101: 0 | P101: 0 | Q101: 0 | R101: 0 | S101: 0 | T101: 0 | U101: 0 | V101: 0 | W101: 0 | X101: 0 | Y101: 0 | Z101: 0 | AA101: 0 | AB101: 0 | AC101: 0 | AD101: 0 | AE101: 0 | AF101: 0 | AG101: 0 | AH101: 0 | AI101: 0 | AJ101: 0 | AK101: 0 | AL101: 0 | AM101: 0 | AN101: 0 | AO101: 0 | AP101: 0 | AQ101: 0 | AR101: 0 | AS101: 0
B102: Tech_19 | C102: Batteries | D102: =D78*1000 -> 0 | E102: 0 | F102: 0 | G102: 0 | H102: 0 | I102: 0 | J102: 0 | K102: 0 | L102: 0 | M102: 0 | N102: 0 | O102: 0 | P102: 0 | Q102: 0 | R102: 0 | S102: 0 | T102: 0 | U102: 0 | V102: 0 | W102: 0 | X102: 0 | Y102: 0 | Z102: 0 | AA102: 0 | AB102: 0 | AC102: 0 | AD102: 0 | AE102: 0 | AF102: 0 | AG102: 0 | AH102: 0 | AI102: 0 | AJ102: 0 | AK102: 0 | AL102: 0 | AM102: 0 | AN102: 0 | AO102: 0 | AP102: 0 | AQ102: 0 | AR102: 0 | AS102: 0
B103: Tech_20 | C103: Other 1 | D103: =D79*1000 -> 0 | E103: 0 | F103: 0 | G103: 0 | H103: 0 | I103: 0 | J103: 0 | K103: 0 | L103: 0 | M103: 0 | N103: 0 | O103: 0 | P103: 0 | Q103: 0 | R103: 0 | S103: 0 | T103: 0 | U103: 0 | V103: 0 | W103: 0 | X103: 0 | Y103: 0 | Z103: 0 | AA103: 0 | AB103: 0 | AC103: 0 | AD103: 0 | AE103: 0 | AF103: 0 | AG103: 0 | AH103: 0 | AI103: 0 | AJ103: 0 | AK103: 0 | AL103: 0 | AM103: 0 | AN103: 0 | AO103: 0 | AP103: 0 | AQ103: 0 | AR103: 0 | AS103: 0
C104: TOTAL | D104: =SUM(D84:D103) -> 308080.0139 | E104: =SUM(E84:E103) -> 308080.0139 | F104: 308080.0139 | G104: 315150.766 | H104: 331102.1474 | I104: 364769.7872 | J104: 377757.9588 | K104: 402552.9694 | L104: 433266.3995 | M104: 461025.6199 | N104: 488784.8402 | O104: 513589.8508 | P104: 554780.9914 | Q104: 593017.9222 | R104: 625346.4335 | S104: 660629.1546 | T104: 695911.8757 | U104: 736184.5968 | V104: 778294.1568 | W104: 813576.8779 | X104: 837042.76 | Y104: 878233.9006 | Z104: 919461.2688 | AA104: 969551.2664 | AB104: 1016687.054 | AC104: 1060868.632 | AD104: 1116867.049 | AE104: 1164002.837 | AF104: 1214092.835 | AG104: 1264182.832 | AH104: 1314272.83 | AI104: 1361408.617 | AJ104: 1395883.721 | AK104: 1412087.775 | AL104: 1434200.249 | AM104: 1453358.514 | AN104: 1475470.988 | AO104: 1500537.671 | AP104: 1518062.258 | AQ104: 1558445.78 | AR104: 1580604.045 | AS104: 1605966.519
B107: Scenario 1 Retirements
D110: GW
B111: TechList | C111: TechList | D111: 2019 | E111: 2020 | F111: 2021 | G111: 2022 | H111: 2023 | I111: 2024 | J111: 2025 | K111: 2026 | L111: 2027 | M111: 2028 | N111: 2029 | O111: 2030 | P111: 2031 | Q111: 2032 | R111: 2033 | S111: 2034 | T111: 2035 | U111: 2036 | V111: 2037 | W111: 2038 | X111: 2039 | Y111: 2040 | Z111: 2041 | AA111: 2042 | AB111: 2043 | AC111: 2044 | AD111: 2045 | AE111: 2046 | AF111: 2047 | AG111: 2048 | AH111: 2049 | AI111: 2050 | AJ111: 2051 | AK111: 2052 | AL111: 2053 | AM111: 2054 | AN111: 2055 | AO111: 2056 | AP111: 2057 | AQ111: 2058 | AR111: 2059 | AS111: 2060
B112: Tech_1 | C112: Coal | D112: 0 | E112: 0 | F112: 0 | G112: 0 | H112: 0 | I112: -0.4 | J112: -0.4 | K112: 0 | L112: -0.13 | M112: -0.4 | N112: -0.4 | O112: 0 | P112: -24.878604 | Q112: -1.2 | R112: -1.2 | S112: -1.2 | T112: -1.2 | U112: -1.2 | V112: -1.2 | W112: -1.2 | X112: -1.2 | Y112: -1.2 | Z112: -2.3 | AA112: -2.3 | AB112: -2.3 | AC112: -2.3 | AD112: -2.3 | AE112: -2.3 | AF112: -2.3 | AG112: -2.3 | AH112: -2.3 | AI112: -2.3 | AJ112: -1 | AK112: -1 | AL112: -1 | AM112: -1 | AN112: -1 | AO112: -1 | AP112: -1 | AQ112: -1 | AR112: -1 | AS112: -1
B113: Tech_2 | C113: Coal_CCS | D113: 0 | E113: 0 | F113: 0 | G113: 0 | H113: 0 | I113: 0 | J113: 0 | K113: 0 | L113: 0 | M113: 0 | N113: 0 | O113: 0 | P113: 0 | Q113: 0 | R113: 0 | S113: 0 | T113: 0 | U113: 0 | V113: 0 | W113: 0 | X113: 0 | Y113: 0 | Z113: 0 | AA113: 0 | AB113: 0 | AC113: 0 | AD113: 0 | AE113: 0 | AF113: 0 | AG113: 0 | AH113: 0 | AI113: 0 | AJ113: 0 | AK113: 0 | AL113: 0 | AM113: 0 | AN113: 0 | AO113: 0 | AP113: 0 | AQ113: 0 | AR113: 0 | AS113: 0
B114: Tech_3 | C114: Gas_Open | D114: 0 | E114: -0.4855 | F114: 0 | G114: 0 | H114: -0.075 | I114: 0 | J114: 0 | K114: 0 | L114: -0.0375 | M114: -0.21 | N114: 0 | O114: -0.185 | P114: -0.2661290323 | Q114: -0.2661290323 | R114: -0.2661290323 | S114: -0.2661290323 | T114: -0.2661290323 | U114: -0.2661290323 | V114: -0.2661290323 | W114: -0.2661290323 | X114: -0.2661290323 | Y114: -0.2661290323 | Z114: -0.3088709677 | AA114: -0.3088709677 | AB114: -0.3088709677 | AC114: -0.3088709677 | AD114: -0.3088709677 | AE114: -0.3088709677 | AF114: -0.3088709677 | AG114: -0.3088709677 | AH114: -0.3088709677 | AI114: -0.3088709677 | AJ114: -0.05 | AK114: -0.05 | AL114: -0.05 | AM114: -0.05 | AN114: -0.05 | AO114: -0.05 | AP114: -0.05 | AQ114: -0.05 | AR114: -0.05 | AS114: -0.05
B115: Tech_4 | C115: Gas_Combined | D115: 0 | E115: -1.4565 | F115: 0 | G115: 0 | H115: -0.225 | I115: 0 | J115: 0 | K115: 0 | L115: -0.1125 | M115: -0.63 | N115: 0 | O115: -0.555 | P115: -0.7983870968 | Q115: -0.7983870968 | R115: -0.7983870968 | S115: -0.7983870968 | T115: -0.7983870968 | U115: -0.7983870968 | V115: -0.7983870968 | W115: -0.7983870968 | X115: -0.7983870968 | Y115: -0.7983870968 | Z115: -0.9266129032 | AA115: -0.9266129032 | AB115: -0.9266129032 | AC115: -0.9266129032 | AD115: -0.9266129032 | AE115: -0.9266129032 | AF115: -0.9266129032 | AG115: -0.9266129032 | AH115: -0.9266129032 | AI115: -0.9266129032 | AJ115: -0.15 | AK115: -0.15 | AL115: -0.15 | AM115: -0.15 | AN115: -0.15 | AO115: -0.15 | AP115: -0.15 | AQ115: -0.15 | AR115: -0.15 | AS115: -0.15
B116: Tech_5 | C116: Gas_Combined_CCS | D116: 0 | E116: 0 | F116: 0 | G116: 0 | H116: 0 | I116: 0 | J116: 0 | K116: 0 | L116: 0 | M116: 0 | N116: 0 | O116: 0 | P116: 0 | Q116: 0 | R116: 0 | S116: 0 | T116: 0 | U116: 0 | V116: 0 | W116: 0 | X116: 0 | Y116: 0 | Z116: 0 | AA116: 0 | AB116: 0 | AC116: 0 | AD116: 0 | AE116: 0 | AF116: 0 | AG116: 0 | AH116: 0 | AI116: 0 | AJ116: 0 | AK116: 0 | AL116: 0 | AM116: 0 | AN116: 0 | AO116: 0 | AP116: 0 | AQ116: 0 | AR116: 0 | AS116: 0
B117: Tech_6 | C117: Oil | D117: 0 | E117: 0 | F117: 0 | G117: -0.2329749104 | H117: -0.2329749104 | I117: -0.2329749104 | J117: -0.2329749104 | K117: -0.2329749104 | L117: -0.2329749104 | M117: -0.2329749104 | N117: -0.2329749104 | O117: -0.2329749104 | P117: -0.3 | Q117: -0.3 | R117: -0.3 | S117: -0.3 | T117: -0.3 | U117: -0.3 | V117: -0.3 | W117: -0.3 | X117: -0.3 | Y117: -0.3 | Z117: -0.25 | AA117: -0.25 | AB117: -0.25 | AC117: -0.25 | AD117: -0.25 | AE117: -0.25 | AF117: -0.25 | AG117: -0.25 | AH117: -0.25 | AI117: -0.25 | AJ117: -0.05 | AK117: -0.05 | AL117: -0.05 | AM117: -0.05 | AN117: -0.05 | AO117: -0.05 | AP117: -0.05 | AQ117: -0.05 | AR117: -0.05 | AS117: -0.05
B118: Tech_7 | C118: Nuclear | D118: 0 | E118: 0 | F118: 0 | G118: 0 | H118: 0 | I118: 0 | J118: 0 | K118: 0 | L118: 0 | M118: 0 | N118: 0 | O118: 0 | P118: 0 | Q118: 0 | R118: 0 | S118: 0 | T118: 0 | U118: 0 | V118: 0 | W118: 0 | X118: 0 | Y118: 0 | Z118: 0 | AA118: 0 | AB118: 0 | AC118: 0 | AD118: 0 | AE118: 0 | AF118: 0 | AG118: 0 | AH118: 0 | AI118: 0 | AJ118: 0 | AK118: 0 | AL118: 0 | AM118: 0 | AN118: 0 | AO118: 0 | AP118: 0 | AQ118: 0 | AR118: 0 | AS118: 0
B119: Tech_8 | C119: Biomass | D119: 0 | E119: 0 | F119: 0 | G119: 0 | H119: 0 | I119: 0 | J119: 0 | K119: 0 | L119: 0 | M119: 0 | N119: 0 | O119: 0 | P119: 0 | Q119: 0 | R119: 0 | S119: 0 | T119: 0 | U119: 0 | V119: 0 | W119: 0 | X119: 0 | Y119: 0 | Z119: 0 | AA119: 0 | AB119: 0 | AC119: 0 | AD119: 0 | AE119: -0.026 | AF119: 0 | AG119: 0 | AH119: -0.01 | AI119: -1.70566 | AJ119: -0.04144 | AK119: -0.07371 | AL119: -0.02599 | AM119: -0.0088 | AN119: -0.00891 | AO119: -0.38389 | AP119: 0 | AQ119: 0 | AR119: 0 | AS119: 0
B120: Tech_9 | C120: Solar_utility | D120: 0 | E120: 0 | F120: 0 | G120: 0 | H120: 0 | I120: 0 | J120: 0 | K120: 0 | L120: 0 | M120: 0 | N120: 0 | O120: 0 | P120: 0 | Q120: 0 | R120: 0 | S120: 0 | T120: 0 | U120: 0 | V120: 0 | W120: 0 | X120: 0 | Y120: 0 | Z120: 0 | AA120: 0 | AB120: 0 | AC120: 0 | AD120: 0 | AE120: 0 | AF120: 0 | AG120: 0 | AH120: 0 | AI120: 0 | AJ120: 0 | AK120: 0 | AL120: 0 | AM120: 0 | AN120: 0 | AO120: 0 | AP120: 0 | AQ120: 0 | AR120: 0 | AS120: 0
B121: Tech_10 | C121: Solar_rooftop | D121: 0 | E121: 0 | F121: 0 | G121: 0 | H121: 0 | I121: 0 | J121: 0 | K121: 0 | L121: 0 | M121: 0 | N121: 0 | O121: 0 | P121: 0 | Q121: 0 | R121: 0 | S121: 0 | T121: 0 | U121: 0 | V121: 0 | W121: 0 | X121: 0 | Y121: 0 | Z121: 0 | AA121: 0 | AB121: 0 | AC121: 0 | AD121: 0 | AE121: 0 | AF121: 0 | AG121: 0 | AH121: 0 | AI121: 0 | AJ121: 0 | AK121: 0 | AL121: 0 | AM121: 0 | AN121: 0 | AO121: 0 | AP121: 0 | AQ121: 0 | AR121: 0 | AS121: 0
B122: Tech_11 | C122: Solar_floating | D122: 0 | E122: 0 | F122: 0 | G122: 0 | H122: 0 | I122: 0 | J122: 0 | K122: 0 | L122: 0 | M122: 0 | N122: 0 | O122: 0 | P122: 0 | Q122: 0 | R122: 0 | S122: 0 | T122: 0 | U122: 0 | V122: 0 | W122: 0 | X122: 0 | Y122: 0 | Z122: 0 | AA122: 0 | AB122: 0 | AC122: 0 | AD122: 0 | AE122: 0 | AF122: 0 | AG122: 0 | AH122: 0 | AI122: 0 | AJ122: 0 | AK122: 0 | AL122: 0 | AM122: 0 | AN122: 0 | AO122: 0 | AP122: 0 | AQ122: 0 | AR122: 0 | AS122: 0
B123: Tech_12 | C123: Wind_onshore | D123: 0 | E123: 0 | F123: 0 | G123: 0 | H123: 0 | I123: 0 | J123: 0 | K123: 0 | L123: 0 | M123: 0 | N123: 0 | O123: 0 | P123: 0 | Q123: 0 | R123: 0 | S123: 0 | T123: 0 | U123: 0 | V123: 0 | W123: 0 | X123: 0 | Y123: 0 | Z123: 0 | AA123: 0 | AB123: 0 | AC123: 0 | AD123: 0 | AE123: 0 | AF123: 0 | AG123: 0 | AH123: 0 | AI123: 0 | AJ123: 0 | AK123: 0 | AL123: 0 | AM123: 0 | AN123: 0 | AO123: 0 | AP123: 0 | AQ123: 0 | AR123: 0 | AS123: 0
B124: Tech_13 | C124: Wind_offshore | D124: 0 | E124: 0 | F124: 0 | G124: 0 | H124: 0 | I124: 0 | J124: 0 | K124: 0 | L124: 0 | M124: 0 | N124: 0 | O124: 0 | P124: 0 | Q124: 0 | R124: 0 | S124: 0 | T124: 0 | U124: 0 | V124: 0 | W124: 0 | X124: 0 | Y124: 0 | Z124: 0 | AA124: 0 | AB124: 0 | AC124: 0 | AD124: 0 | AE124: 0 | AF124: 0 | AG124: 0 | AH124: 0 | AI124: 0 | AJ124: 0 | AK124: 0 | AL124: 0 | AM124: 0 | AN124: 0 | AO124: 0 | AP124: 0 | AQ124: 0 | AR124: 0 | AS124: 0
B125: Tech_14 | C125: Geothermal | D125: 0 | E125: 0 | F125: 0 | G125: -0.165 | H125: 0 | I125: 0 | J125: -0.165 | K125: -0.06 | L125: 0 | M125: -0.2 | N125: 0 | O125: 0 | P125: 0 | Q125: 0 | R125: 0 | S125: 0 | T125: 0 | U125: -0.06 | V125: -0.238 | W125: 0 | X125: 0 | Y125: -0.11 | Z125: 0 | AA125: -0.055 | AB125: -0.035 | AC125: -0.055 | AD125: -0.275 | AE125: -0.195 | AF125: -0.185 | AG125: 0 | AH125: -0.136 | AI125: -0.345 | AJ125: -0.27 | AK125: -0.33 | AL125: -0.165 | AM125: 0 | AN125: 0 | AO125: -0.165 | AP125: 0 | AQ125: -0.56 | AR125: 0 | AS125: -0.31
B126: Tech_15 | C126: Hydro_large | D126: 0 | E126: 0 | F126: -0.12825 | G126: 0 | H126: 0 | I126: 0 | J126: 0 | K126: -0.0513 | L126: -0.15675 | M126: 0 | N126: 0 | O126: -0.57285 | P126: -0.121125 | Q126: 0 | R126: -0.665 | S126: 0 | T126: 0 | U126: -1.157005 | V126: 0 | W126: 0 | X126: -0.1197 | Y126: 0 | Z126: -0.0342 | AA126: 0 | AB126: 0 | AC126: 0 | AD126: -0.16625 | AE126: -0.27455 | AF126: -0.1235 | AG126: 0 | AH126: -0.08816 | AI126: -0.0475 | AJ126: -0.005985 | AK126: 0 | AL126: 0 | AM126: -0.2774 | AN126: 0 | AO126: 0 | AP126: 0 | AQ126: -0.171 | AR126: -0.152095 | AS126: -0.06557565
B127: Tech_16 | C127: Hydro_small | D127: 0 | E127: 0 | F127: -0.00675 | G127: 0 | H127: 0 | I127: 0 | J127: 0 | K127: -0.0027 | L127: -0.00825 | M127: 0 | N127: 0 | O127: -0.03015 | P127: -0.006375 | Q127: 0 | R127: -0.035 | S127: 0 | T127: 0 | U127: -0.060895 | V127: 0 | W127: 0 | X127: -0.0063 | Y127: 0 | Z127: -0.0018 | AA127: 0 | AB127: 0 | AC127: 0 | AD127: -0.00875 | AE127: -0.01445 | AF127: -0.0065 | AG127: 0 | AH127: -0.00464 | AI127: -0.0025 | AJ127: -0.000315 | AK127: 0 | AL127: 0 | AM127: -0.0146 | AN127: 0 | AO127: 0 | AP127: 0 | AQ127: -0.009 | AR127: -0.008005 | AS127: -0.00345135
B128: Tech_17 | C128: Hydrogen | D128: 0 | E128: 0 | F128: 0 | G128: 0 | H128: 0 | I128: 0 | J128: 0 | K128: 0 | L128: 0 | M128: 0 | N128: 0 | O128: 0 | P128: 0 | Q128: 0 | R128: 0 | S128: 0 | T128: 0 | U128: 0 | V128: 0 | W128: 0 | X128: 0 | Y128: 0 | Z128: 0 | AA128: 0 | AB128: 0 | AC128: 0 | AD128: 0 | AE128: 0 | AF128: 0 | AG128: 0 | AH128: 0 | AI128: 0 | AJ128: 0 | AK128: 0 | AL128: 0 | AM128: 0 | AN128: 0 | AO128: 0 | AP128: 0 | AQ128: 0 | AR128: 0 | AS128: 0
B129: Tech_18 | C129: Pumped_storage | D129: 0 | E129: 0 | F129: 0 | G129: 0 | H129: 0 | I129: 0 | J129: 0 | K129: 0 | L129: 0 | M129: 0 | N129: 0 | O129: 0 | P129: 0 | Q129: 0 | R129: 0 | S129: 0 | T129: 0 | U129: 0 | V129: 0 | W129: 0 | X129: 0 | Y129: 0 | Z129: 0 | AA129: 0 | AB129: 0 | AC129: 0 | AD129: 0 | AE129: 0 | AF129: 0 | AG129: 0 | AH129: 0 | AI129: 0 | AJ129: 0 | AK129: 0 | AL129: 0 | AM129: 0 | AN129: 0 | AO129: 0 | AP129: 0 | AQ129: 0 | AR129: 0 | AS129: 0
B130: Tech_19 | C130: Batteries | D130: 0 | E130: 0 | F130: 0 | G130: 0 | H130: 0 | I130: 0 | J130: 0 | K130: 0 | L130: 0 | M130: 0 | N130: 0 | O130: 0 | P130: 0 | Q130: 0 | R130: 0 | S130: 0 | T130: 0 | U130: 0 | V130: 0 | W130: 0 | X130: 0 | Y130: 0 | Z130: 0 | AA130: 0 | AB130: 0 | AC130: 0 | AD130: 0 | AE130: 0 | AF130: 0 | AG130: 0 | AH130: 0 | AI130: 0 | AJ130: 0 | AK130: 0 | AL130: 0 | AM130: 0 | AN130: 0 | AO130: 0 | AP130: 0 | AQ130: 0 | AR130: 0 | AS130: 0
B131: Tech_20 | C131: Other 1 | D131: 0 | E131: 0 | F131: 0 | G131: 0 | H131: 0 | I131: 0 | J131: 0 | K131: 0 | L131: 0 | M131: 0 | N131: 0 | O131: 0 | P131: 0 | Q131: 0 | R131: 0 | S131: 0 | T131: 0 | U131: 0 | V131: 0 | W131: 0 | X131: 0 | Y131: 0 | Z131: 0 | AA131: 0 | AB131: 0 | AC131: 0 | AD131: 0 | AE131: 0 | AF131: 0 | AG131: 0 | AH131: 0 | AI131: 0 | AJ131: 0 | AK131: 0 | AL131: 0 | AM131: 0 | AN131: 0 | AO131: 0 | AP131: 0 | AQ131: 0 | AR131: 0 | AS131: 0
C132: TOTAL | D132: =SUM(D112:D131) -> 0 | E132: =SUM(E112:E131) -> -1.942 | F132: -0.135 | G132: -0.3979749104 | H132: -0.5329749104 | I132: -0.6329749104 | J132: -0.7979749104 | K132: -0.3469749104 | L132: -0.6779749104 | M132: -1.67297491 | N132: -0.6329749104 | O132: -1.57597491 | P132: -26.37062013 | Q132: -2.564516129 | R132: -3.264516129 | S132: -2.564516129 | T132: -2.564516129 | U132: -3.842416129 | V132: -2.802516129 | W132: -2.564516129 | X132: -2.690516129 | Y132: -2.674516129 | Z132: -3.821483871 | AA132: -3.840483871 | AB132: -3.820483871 | AC132: -3.840483871 | AD132: -4.235483871 | AE132: -4.295483871 | AF132: -4.100483871 | AG132: -3.785483871 | AH132: -4.024283871 | AI132: -5.886143871 | AJ132: -1.56774 | AK132: -1.65371 | AL132: -1.44099 | AM132: -1.5508 | AN132: -1.25891 | AO132: -1.79889 | AP132: -1.25 | AQ132: -1.99 | AR132: -1.4101 | AS132: -1.629027
D134: MW
B135: TechList | C135: TechList | D135: 2019 | E135: 2020 | F135: 2021 | G135: 2022 | H135: 2023 | I135: 2024 | J135: 2025 | K135: 2026 | L135: 2027 | M135: 2028 | N135: 2029 | O135: 2030 | P135: 2031 | Q135: 2032 | R135: 2033 | S135: 2034 | T135: 2035 | U135: 2036 | V135: 2037 | W135: 2038 | X135: 2039 | Y135: 2040 | Z135: 2041 | AA135: 2042 | AB135: 2043 | AC135: 2044 | AD135: 2045 | AE135: 2046 | AF135: 2047 | AG135: 2048 | AH135: 2049 | AI135: 2050 | AJ135: 2051 | AK135: 2052 | AL135: 2053 | AM135: 2054 | AN135: 2055 | AO135: 2056 | AP135: 2057 | AQ135: 2058 | AR135: 2059 | AS135: 2060
B136: Tech_1 | C136: Coal | D136: =D112*1000 -> 0 | E136: =E112*1000 -> 0 | F136: 0 | G136: 0 | H136: 0 | I136: -400 | J136: -400 | K136: 0 | L136: -130 | M136: -400 | N136: -400 | O136: 0 | P136: -24878.604 | Q136: -1200 | R136: -1200 | S136: -1200 | T136: -1200 | U136: -1200 | V136: -1200 | W136: -1200 | X136: -1200 | Y136: -1200 | Z136: -2300 | AA136: -2300 | AB136: -2300 | AC136: -2300 | AD136: -2300 | AE136: -2300 | AF136: -2300 | AG136: -2300 | AH136: -2300 | AI136: -2300 | AJ136: -1000 | AK136: -1000 | AL136: -1000 | AM136: -1000 | AN136: -1000 | AO136: -1000 | AP136: -1000 | AQ136: -1000 | AR136: -1000 | AS136: -1000
B137: Tech_2 | C137: Coal_CCS | D137: =D113*1000 -> 0 | E137: 0 | F137: 0 | G137: 0 | H137: 0 | I137: 0 | J137: 0 | K137: 0 | L137: 0 | M137: 0 | N137: 0 | O137: 0 | P137: 0 | Q137: 0 | R137: 0 | S137: 0 | T137: 0 | U137: 0 | V137: 0 | W137: 0 | X137: 0 | Y137: 0 | Z137: 0 | AA137: 0 | AB137: 0 | AC137: 0 | AD137: 0 | AE137: 0 | AF137: 0 | AG137: 0 | AH137: 0 | AI137: 0 | AJ137: 0 | AK137: 0 | AL137: 0 | AM137: 0 | AN137: 0 | AO137: 0 | AP137: 0 | AQ137: 0 | AR137: 0 | AS137: 0
B138: Tech_3 | C138: Gas_Open | D138: =D114*1000 -> 0 | E138: -485.5 | F138: 0 | G138: 0 | H138: -75 | I138: 0 | J138: 0 | K138: 0 | L138: -37.5 | M138: -210 | N138: 0 | O138: -185 | P138: -266.1290323 | Q138: -266.1290323 | R138: -266.1290323 | S138: -266.1290323 | T138: -266.1290323 | U138: -266.1290323 | V138: -266.1290323 | W138: -266.1290323 | X138: -266.1290323 | Y138: -266.1290323 | Z138: -308.8709677 | AA138: -308.8709677 | AB138: -308.8709677 | AC138: -308.8709677 | AD138: -308.8709677 | AE138: -308.8709677 | AF138: -308.8709677 | AG138: -308.8709677 | AH138: -308.8709677 | AI138: -308.8709677 | AJ138: -50 | AK138: -50 | AL138: -50 | AM138: -50 | AN138: -50 | AO138: -50 | AP138: -50 | AQ138: -50 | AR138: -50 | AS138: -50
B139: Tech_4 | C139: Gas_Combined | D139: =D115*1000 -> 0 | E139: =E115*1000 -> -1456.5 | F139: 0 | G139: 0 | H139: -225 | I139: 0 | J139: 0 | K139: 0 | L139: -112.5 | M139: -630 | N139: 0 | O139: -555 | P139: -798.3870968 | Q139: -798.3870968 | R139: -798.3870968 | S139: -798.3870968 | T139: -798.3870968 | U139: -798.3870968 | V139: -798.3870968 | W139: -798.3870968 | X139: -798.3870968 | Y139: -798.3870968 | Z139: -926.6129032 | AA139: -926.6129032 | AB139: -926.6129032 | AC139: -926.6129032 | AD139: -926.6129032 | AE139: -926.6129032 | AF139: -926.6129032 | AG139: -926.6129032 | AH139: -926.6129032 | AI139: -926.6129032 | AJ139: -150 | AK139: -150 | AL139: -150 | AM139: -150 | AN139: -150 | AO139: -150 | AP139: -150 | AQ139: -150 | AR139: -150 | AS139: -150
B140: Tech_5 | C140: Gas_Combined_CCS | D140: =D116*1000 -> 0 | E140: 0 | F140: 0 | G140: 0 | H140: 0 | I140: 0 | J140: 0 | K140: 0 | L140: 0 | M140: 0 | N140: 0 | O140: 0 | P140: 0 | Q140: 0 | R140: 0 | S140: 0 | T140: 0 | U140: 0 | V140: 0 | W140: 0 | X140: 0 | Y140: 0 | Z140: 0 | AA140: 0 | AB140: 0 | AC140: 0 | AD140: 0 | AE140: 0 | AF140: 0 | AG140: 0 | AH140: 0 | AI140: 0 | AJ140: 0 | AK140: 0 | AL140: 0 | AM140: 0 | AN140: 0 | AO140: 0 | AP140: 0 | AQ140: 0 | AR140: 0 | AS140: 0
B141: Tech_6 | C141: Oil | D141: =D117*1000 -> 0 | E141: 0 | F141: 0 | G141: -232.9749104 | H141: -232.9749104 | I141: -232.9749104 | J141: -232.9749104 | K141: -232.9749104 | L141: -232.9749104 | M141: -232.9749104 | N141: -232.9749104 | O141: -232.9749104 | P141: -300 | Q141: -300 | R141: -300 | S141: -300 | T141: -300 | U141: -300 | V141: -300 | W141: -300 | X141: -300 | Y141: -300 | Z141: -250 | AA141: -250 | AB141: -250 | AC141: -250 | AD141: -250 | AE141: -250 | AF141: -250 | AG141: -250 | AH141: -250 | AI141: -250 | AJ141: -50 | AK141: -50 | AL141: -50 | AM141: -50 | AN141: -50 | AO141: -50 | AP141: -50 | AQ141: -50 | AR141: -50 | AS141: -50
B142: Tech_7 | C142: Nuclear | D142: =D118*1000 -> 0 | E142: 0 | F142: 0 | G142: 0 | H142: 0 | I142: 0 | J142: 0 | K142: 0 | L142: 0 | M142: 0 | N142: 0 | O142: 0 | P142: 0 | Q142: 0 | R142: 0 | S142: 0 | T142: 0 | U142: 0 | V142: 0 | W142: 0 | X142: 0 | Y142: 0 | Z142: 0 | AA142: 0 | AB142: 0 | AC142: 0 | AD142: 0 | AE142: 0 | AF142: 0 | AG142: 0 | AH142: 0 | AI142: 0 | AJ142: 0 | AK142: 0 | AL142: 0 | AM142: 0 | AN142: 0 | AO142: 0 | AP142: 0 | AQ142: 0 | AR142: 0 | AS142: 0
B143: Tech_8 | C143: Biomass | D143: =D119*1000 -> 0 | E143: 0 | F143: 0 | G143: 0 | H143: 0 | I143: 0 | J143: 0 | K143: 0 | L143: 0 | M143: 0 | N143: 0 | O143: 0 | P143: 0 | Q143: 0 | R143: 0 | S143: 0 | T143: 0 | U143: 0 | V143: 0 | W143: 0 | X143: 0 | Y143: 0 | Z143: 0 | AA143: 0 | AB143: 0 | AC143: 0 | AD143: 0 | AE143: -26 | AF143: 0 | AG143: 0 | AH143: -10 | AI143: -1705.66 | AJ143: -41.44 | AK143: -73.71 | AL143: -25.99 | AM143: -8.8 | AN143: -8.91 | AO143: -383.89 | AP143: 0 | AQ143: 0 | AR143: 0 | AS143: 0
B144: Tech_9 | C144: Solar_utility | D144: =D120*1000 -> 0 | E144: 0 | F144: 0 | G144: 0 | H144: 0 | I144: 0 | J144: 0 | K144: 0 | L144: 0 | M144: 0 | N144: 0 | O144: 0 | P144: 0 | Q144: 0 | R144: 0 | S144: 0 | T144: 0 | U144: 0 | V144: 0 | W144: 0 | X144: 0 | Y144: 0 | Z144: 0 | AA144: 0 | AB144: 0 | AC144: 0 | AD144: 0 | AE144: 0 | AF144: 0 | AG144: 0 | AH144: 0 | AI144: 0 | AJ144: 0 | AK144: 0 | AL144: 0 | AM144: 0 | AN144: 0 | AO144: 0 | AP144: 0 | AQ144: 0 | AR144: 0 | AS144: 0
B145: Tech_10 | C145: Solar_rooftop | D145: =D121*1000 -> 0 | E145: 0 | F145: 0 | G145: 0 | H145: 0 | I145: 0 | J145: 0 | K145: 0 | L145: 0 | M145: 0 | N145: 0 | O145: 0 | P145: 0 | Q145: 0 | R145: 0 | S145: 0 | T145: 0 | U145: 0 | V145: 0 | W145: 0 | X145: 0 | Y145: 0 | Z145: 0 | AA145: 0 | AB145: 0 | AC145: 0 | AD145: 0 | AE145: 0 | AF145: 0 | AG145: 0 | AH145: 0 | AI145: 0 | AJ145: 0 | AK145: 0 | AL145: 0 | AM145: 0 | AN145: 0 | AO145: 0 | AP145: 0 | AQ145: 0 | AR145: 0 | AS145: 0
B146: Tech_11 | C146: Solar_floating | D146: =D122*1000 -> 0 | E146: 0 | F146: 0 | G146: 0 | H146: 0 | I146: 0 | J146: 0 | K146: 0 | L146: 0 | M146: 0 | N146: 0 | O146: 0 | P146: 0 | Q146: 0 | R146: 0 | S146: 0 | T146: 0 | U146: 0 | V146: 0 | W146: 0 | X146: 0 | Y146: 0 | Z146: 0 | AA146: 0 | AB146: 0 | AC146: 0 | AD146: 0 | AE146: 0 | AF146: 0 | AG146: 0 | AH146: 0 | AI146: 0 | AJ146: 0 | AK146: 0 | AL146: 0 | AM146: 0 | AN146: 0 | AO146: 0 | AP146: 0 | AQ146: 0 | AR146: 0 | AS146: 0
B147: Tech_12 | C147: Wind_onshore | D147: =D123*1000 -> 0 | E147: 0 | F147: 0 | G147: 0 | H147: 0 | I147: 0 | J147: 0 | K147: 0 | L147: 0 | M147: 0 | N147: 0 | O147: 0 | P147: 0 | Q147: 0 | R147: 0 | S147: 0 | T147: 0 | U147: 0 | V147: 0 | W147: 0 | X147: 0 | Y147: 0 | Z147: 0 | AA147: 0 | AB147: 0 | AC147: 0 | AD147: 0 | AE147: 0 | AF147: 0 | AG147: 0 | AH147: 0 | AI147: 0 | AJ147: 0 | AK147: 0 | AL147: 0 | AM147: 0 | AN147: 0 | AO147: 0 | AP147: 0 | AQ147: 0 | AR147: 0 | AS147: 0
B148: Tech_13 | C148: Wind_offshore | D148: =D124*1000 -> 0 | E148: 0 | F148: 0 | G148: 0 | H148: 0 | I148: 0 | J148: 0 | K148: 0 | L148: 0 | M148: 0 | N148: 0 | O148: 0 | P148: 0 | Q148: 0 | R148: 0 | S148: 0 | T148: 0 | U148: 0 | V148: 0 | W148: 0 | X148: 0 | Y148: 0 | Z148: 0 | AA148: 0 | AB148: 0 | AC148: 0 | AD148: 0 | AE148: 0 | AF148: 0 | AG148: 0 | AH148: 0 | AI148: 0 | AJ148: 0 | AK148: 0 | AL148: 0 | AM148: 0 | AN148: 0 | AO148: 0 | AP148: 0 | AQ148: 0 | AR148: 0 | AS148: 0
B149: Tech_14 | C149: Geothermal | D149: =D125*1000 -> 0 | E149: 0 | F149: 0 | G149: -165 | H149: 0 | I149: 0 | J149: -165 | K149: -60 | L149: 0 | M149: -200 | N149: 0 | O149: 0 | P149: 0 | Q149: 0 | R149: 0 | S149: 0 | T149: 0 | U149: -60 | V149: -238 | W149: 0 | X149: 0 | Y149: -110 | Z149: 0 | AA149: -55 | AB149: -35 | AC149: -55 | AD149: -275 | AE149: -195 | AF149: -185 | AG149: 0 | AH149: -136 | AI149: -345 | AJ149: -270 | AK149: -330 | AL149: -165 | AM149: 0 | AN149: 0 | AO149: -165 | AP149: 0 | AQ149: -560 | AR149: 0 | AS149: -310
B150: Tech_15 | C150: Hydro_large | D150: =D126*1000 -> 0 | E150: 0 | F150: -128.25 | G150: 0 | H150: 0 | I150: 0 | J150: 0 | K150: -51.3 | L150: -156.75 | M150: 0 | N150: 0 | O150: -572.85 | P150: -121.125 | Q150: 0 | R150: -665 | S150: 0 | T150: 0 | U150: -1157.005 | V150: 0 | W150: 0 | X150: -119.7 | Y150: 0 | Z150: -34.2 | AA150: 0 | AB150: 0 | AC150: 0 | AD150: -166.25 | AE150: -274.55 | AF150: -123.5 | AG150: 0 | AH150: -88.16 | AI150: -47.5 | AJ150: -5.985 | AK150: 0 | AL150: 0 | AM150: -277.4 | AN150: 0 | AO150: 0 | AP150: 0 | AQ150: -171 | AR150: -152.095 | AS150: -65.57565
B151: Tech_16 | C151: Hydro_small | D151: =D127*1000 -> 0 | E151: 0 | F151: -6.75 | G151: 0 | H151: 0 | I151: 0 | J151: 0 | K151: -2.7 | L151: -8.25 | M151: 0 | N151: 0 | O151: -30.15 | P151: -6.375 | Q151: 0 | R151: -35 | S151: 0 | T151: 0 | U151: -60.895 | V151: 0 | W151: 0 | X151: -6.3 | Y151: 0 | Z151: -1.8 | AA151: 0 | AB151: 0 | AC151: 0 | AD151: -8.75 | AE151: -14.45 | AF151: -6.5 | AG151: 0 | AH151: -4.64 | AI151: -2.5 | AJ151: -0.315 | AK151: 0 | AL151: 0 | AM151: -14.6 | AN151: 0 | AO151: 0 | AP151: 0 | AQ151: -9 | AR151: -8.005 | AS151: -3.45135
B152: Tech_17 | C152: Hydrogen | D152: =D128*1000 -> 0 | E152: 0 | F152: 0 | G152: 0 | H152: 0 | I152: 0 | J152: 0 | K152: 0 | L152: 0 | M152: 0 | N152: 0 | O152: 0 | P152: 0 | Q152: 0 | R152: 0 | S152: 0 | T152: 0 | U152: 0 | V152: 0 | W152: 0 | X152: 0 | Y152: 0 | Z152: 0 | AA152: 0 | AB152: 0 | AC152: 0 | AD152: 0 | AE152: 0 | AF152: 0 | AG152: 0 | AH152: 0 | AI152: 0 | AJ152: 0 | AK152: 0 | AL152: 0 | AM152: 0 | AN152: 0 | AO152: 0 | AP152: 0 | AQ152: 0 | AR152: 0 | AS152: 0
B153: Tech_18 | C153: Pumped_storage | D153: =D129*1000 -> 0 | E153: 0 | F153: 0 | G153: 0 | H153: 0 | I153: 0 | J153: 0 | K153: 0 | L153: 0 | M153: 0 | N153: 0 | O153: 0 | P153: 0 | Q153: 0 | R153: 0 | S153: 0 | T153: 0 | U153: 0 | V153: 0 | W153: 0 | X153: 0 | Y153: 0 | Z153: 0 | AA153: 0 | AB153: 0 | AC153: 0 | AD153: 0 | AE153: 0 | AF153: 0 | AG153: 0 | AH153: 0 | AI153: 0 | AJ153: 0 | AK153: 0 | AL153: 0 | AM153: 0 | AN153: 0 | AO153: 0 | AP153: 0 | AQ153: 0 | AR153: 0 | AS153: 0
B154: Tech_19 | C154: Batteries | D154: =D130*1000 -> 0 | E154: 0 | F154: 0 | G154: 0 | H154: 0 | I154: 0 | J154: 0 | K154: 0 | L154: 0 | M154: 0 | N154: 0 | O154: 0 | P154: 0 | Q154: 0 | R154: 0 | S154: 0 | T154: 0 | U154: 0 | V154: 0 | W154: 0 | X154: 0 | Y154: 0 | Z154: 0 | AA154: 0 | AB154: 0 | AC154: 0 | AD154: 0 | AE154: 0 | AF154: 0 | AG154: 0 | AH154: 0 | AI154: 0 | AJ154: 0 | AK154: 0 | AL154: 0 | AM154: 0 | AN154: 0 | AO154: 0 | AP154: 0 | AQ154: 0 | AR154: 0 | AS154: 0
B155: Tech_20 | C155: Other 1 | D155: =D131*1000 -> 0 | E155: 0 | F155: 0 | G155: 0 | H155: 0 | I155: 0 | J155: 0 | K155: 0 | L155: 0 | M155: 0 | N155: 0 | O155: 0 | P155: 0 | Q155: 0 | R155: 0 | S155: 0 | T155: 0 | U155: 0 | V155: 0 | W155: 0 | X155: 0 | Y155: 0 | Z155: 0 | AA155: 0 | AB155: 0 | AC155: 0 | AD155: 0 | AE155: 0 | AF155: 0 | AG155: 0 | AH155: 0 | AI155: 0 | AJ155: 0 | AK155: 0 | AL155: 0 | AM155: 0 | AN155: 0 | AO155: 0 | AP155: 0 | AQ155: 0 | AR155: 0 | AS155: 0
C156: TOTAL | D156: =SUM(D136:D155) -> 0 | E156: =SUM(E136:E155) -> -1942 | F156: =SUM(F136:F155) -> -135 | G156: =SUM(G136:G155) -> -397.9749104 | H156: =SUM(H136:H155) -> -532.9749104 | I156: =SUM(I136:I155) -> -632.9749104 | J156: =SUM(J136:J155) -> -797.9749104 | K156: =SUM(K136:K155) -> -346.9749104 | L156: =SUM(L136:L155) -> -677.9749104 | M156: =SUM(M136:M155) -> -1672.97491 | N156: =SUM(N136:N155) -> -632.9749104 | O156: =SUM(O136:O155) -> -1575.97491 | P156: =SUM(P136:P155) -> -26370.62013 | Q156: =SUM(Q136:Q155) -> -2564.516129 | R156: =SUM(R136:R155) -> -3264.516129 | S156: =SUM(S136:S155) -> -2564.516129 | T156: =SUM(T136:T155) -> -2564.516129 | U156: =SUM(U136:U155) -> -3842.416129 | V156: =SUM(V136:V155) -> -2802.516129 | W156: =SUM(W136:W155) -> -2564.516129 | X156: =SUM(X136:X155) -> -2690.516129 | Y156: =SUM(Y136:Y155) -> -2674.516129 | Z156: =SUM(Z136:Z155) -> -3821.483871 | AA156: =SUM(AA136:AA155) -> -3840.483871 | AB156: =SUM(AB136:AB155) -> -3820.483871 | AC156: =SUM(AC136:AC155) -> -3840.483871 | AD156: =SUM(AD136:AD155) -> -4235.483871 | AE156: =SUM(AE136:AE155) -> -4295.483871 | AF156: =SUM(AF136:AF155) -> -4100.483871 | AG156: =SUM(AG136:AG155) -> -3785.483871 | AH156: =SUM(AH136:AH155) -> -4024.283871 | AI156: =SUM(AI136:AI155) -> -5886.143871 | AJ156: =SUM(AJ136:AJ155) -> -1567.74 | AK156: =SUM(AK136:AK155) -> -1653.71 | AL156: =SUM(AL136:AL155) -> -1440.99 | AM156: =SUM(AM136:AM155) -> -1550.8 | AN156: =SUM(AN136:AN155) -> -1258.91 | AO156: =SUM(AO136:AO155) -> -1798.89 | AP156: =SUM(AP136:AP155) -> -1250 | AQ156: =SUM(AQ136:AQ155) -> -1990 | AR156: =SUM(AR136:AR155) -> -1410.1 | AS156: =SUM(AS136:AS155) -> -1629.027
B159: Scenario 2 Capacity
D162: GW
B163: TechList | C163: TechList | D163: 2019 | E163: 2020 | F163: 2021 | G163: 2022 | H163: 2023 | I163: 2024 | J163: 2025 | K163: 2026 | L163: 2027 | M163: 2028 | N163: 2029 | O163: 2030 | P163: 2031 | Q163: 2032 | R163: 2033 | S163: 2034 | T163: 2035 | U163: 2036 | V163: 2037 | W163: 2038 | X163: 2039 | Y163: 2040 | Z163: 2041 | AA163: 2042 | AB163: 2043 | AC163: 2044 | AD163: 2045 | AE163: 2046 | AF163: 2047 | AG163: 2048 | AH163: 2049 | AI163: 2050 | AJ163: 2051 | AK163: 2052 | AL163: 2053 | AM163: 2054 | AN163: 2055 | AO163: 2056 | AP163: 2057 | AQ163: 2058 | AR163: 2059 | AS163: 2060
B164: Tech_1 | C164: Coal | D164: 34.71760797 | E164: 38.6866 | F164: 40.9226 | G164: 47.4126 | H164: 50.277601 | I164: 57.217602 | J164: 60.117603 | K164: 43.78737542 | L164: 43.30564784 | M164: 42.82392027 | N164: 42.34219269 | O164: 41.86046512 | P164: 38.73754153 | Q164: 35.61461794 | R164: 32.49169436 | S164: 29.36877077 | T164: 26.24584718 | U164: 22.39202658 | V164: 18.53820598 | W164: 14.68438538 | X164: 10.83056478 | Y164: 6.976744186 | Z164: 6.079734219 | AA164: 5.182724252 | AB164: 4.285714286 | AC164: 3.388704319 | AD164: 2.491694352 | AE164: 1.993355482 | AF164: 1.495016611 | AG164: 0.9966777408 | AH164: 0.4983388704 | AI164: 0 | AJ164: 0 | AK164: 0 | AL164: 0 | AM164: 0 | AN164: 0 | AO164: 0 | AP164: 0 | AQ164: 0 | AR164: 0 | AS164: 0
B165: Tech_2 | C165: Coal_CCS | D165: 0 | E165: 0 | F165: 0 | G165: 0 | H165: 0 | I165: 0 | J165: 0 | K165: 0 | L165: 0 | M165: 0 | N165: 0 | O165: 0 | P165: 0.365448504 | Q165: 0.730897008 | R165: 1.096345512 | S165: 1.461794016 | T165: 1.82724252 | U165: 2.591362123 | V165: 3.355481726 | W165: 4.119601328 | X165: 4.883720931 | Y165: 5.647840534 | Z165: 6.411960135 | AA165: 7.176079736 | AB165: 7.940199336 | AC165: 8.704318937 | AD165: 9.468438538 | AE165: 9.933554816 | AF165: 10.39867109 | AG165: 10.86378737 | AH165: 11.32890365 | AI165: 11.79401993 | AJ165: 11.99335548 | AK165: 12.19269103 | AL165: 12.39202657 | AM165: 12.59136212 | AN165: 12.79069767 | AO165: 12.85714285 | AP165: 12.92358804 | AQ165: 12.99003322 | AR165: 13.05647841 | AS165: 13.12292359
B166: Tech_3 | C166: Gas_Open | D166: 5.040322581 | E166: 5.040322581 | F166: 5.040322581 | G166: 5.313620072 | H166: 5.586917563 | I166: 5.860215054 | J166: 6.133512545 | K166: 6.406810036 | L166: 6.680107527 | M166: 6.953405018 | N166: 7.226702509 | O166: 7.5 | P166: 7.233870968 | Q166: 6.967741935 | R166: 6.701612903 | S166: 6.435483871 | T166: 6.169354839 | U166: 4.935483871 | V166: 3.701612903 | W166: 2.467741935 | X166: 1.233870968 | Y166: 0 | Z166: 0 | AA166: 0 | AB166: 0 | AC166: 0 | AD166: 0 | AE166: 0 | AF166: 0 | AG166: 0 | AH166: 0 | AI166: 0 | AJ166: 0 | AK166: 0 | AL166: 0 | AM166: 0 | AN166: 0 | AO166: 0 | AP166: 0 | AQ166: 0 | AR166: 0 | AS166: 0
B167: Tech_4 | C167: Gas_Combined | D167: 15.12096774 | E167: 15.12096774 | F167: 15.12096774 | G167: 15.94086022 | H167: 16.76075269 | I167: 17.58064516 | J167: 18.40053763 | K167: 19.22043011 | L167: 20.04032258 | M167: 20.86021505 | N167: 21.68010753 | O167: 22.5 | P167: 21.7016129 | Q167: 20.90322581 | R167: 20.10483871 | S167: 19.30645161 | T167: 18.50806452 | U167: 14.80645161 | V167: 11.10483871 | W167: 7.403225806 | X167: 3.701612903 | Y167: 0 | Z167: 0 | AA167: 0 | AB167: 0 | AC167: 0 | AD167: 0 | AE167: 0 | AF167: 0 | AG167: 0 | AH167: 0 | AI167: 0 | AJ167: 0 | AK167: 0 | AL167: 0 | AM167: 0 | AN167: 0 | AO167: 0 | AP167: 0 | AQ167: 0 | AR167: 0 | AS167: 0
B168: Tech_5 | C168: Gas_Combined_CCS | D168: 0 | E168: 0 | F168: 0 | G168: 0 | H168: 0 | I168: 0 | J168: 0 | K168: 0 | L168: 0 | M168: 0 | N168: 0 | O168: 1.384772727 | P168: 1.297416738 | Q168: 1.296190548 | R168: 2.754661994 | S168: 1.855418252 | T168: 3.984829704 | U168: 4.470020583 | V168: 3.521634284 | W168: 6.17909469 | X168: 7.516229942 | Y168: 8.371382967 | Z168: 10.86497636 | AA168: 11.26012122 | AB168: 10.60189998 | AC168: 11.14854095 | AD168: 11.56214442 | AE168: 10.19960927 | AF168: 11.30912644 | AG168: 10.85074648 | AH168: 11.32184456 | AI168: 9.790600519 | AJ168: 9.790600519 | AK168: 9.790600519 | AL168: 9.790600519 | AM168: 9.790600519 | AN168: 9.790600519 | AO168: 9.790600519 | AP168: 9.790600519 | AQ168: 9.790600519 | AR168: 9.790600519 | AS168: 9.790600519
B169: Tech_6 | C169: Oil | D169: 12.09677419 | E169: 12.09677419 | F169: 12.09677419 | G169: 11.86379928 | H169: 11.63082437 | I169: 11.39784946 | J169: 11.16487455 | K169: 10.93189964 | L169: 10.69892473 | M169: 10.46594982 | N169: 10.23297491 | O169: 10 | P169: 9.7 | Q169: 9.4 | R169: 9.1 | S169: 8.8 | T169: 8.5 | U169: 6.8 | V169: 5.1 | W169: 3.4 | X169: 1.7 | Y169: 0 | Z169: 0 | AA169: 0 | AB169: 0 | AC169: 0 | AD169: 0 | AE169: 0 | AF169: 0 | AG169: 0 | AH169: 0 | AI169: 0 | AJ169: 0 | AK169: 0 | AL169: 0 | AM169: 0 | AN169: 0 | AO169: 0 | AP169: 0 | AQ169: 0 | AR169: 0 | AS169: 0
B170: Tech_7 | C170: Nuclear | D170: 0 | E170: 0 | F170: 0 | G170: 0 | H170: 0 | I170: 0 | J170: 0 | K170: 0 | L170: 0 | M170: 0 | N170: 0 | O170: 0 | P170: 0.35 | Q170: 0.7 | R170: 1.05 | S170: 1.4 | T170: 1.75 | U170: 2.1 | V170: 2.45 | W170: 2.8 | X170: 3.15 | Y170: 3.5 | Z170: 4 | AA170: 4.5 | AB170: 5 | AC170: 5.5 | AD170: 6 | AE170: 6.5 | AF170: 7 | AG170: 7.5 | AH170: 8 | AI170: 8.5 | AJ170: 8.65 | AK170: 8.8 | AL170: 8.95 | AM170: 9.1 | AN170: 9.25 | AO170: 9.4 | AP170: 9.55 | AQ170: 9.7 | AR170: 9.85 | AS170: 10
B171: Tech_8 | C171: Biomass | D171: 1.705426357 | E171: 1.705426357 | F171: 1.705426357 | G171: 2.25667528 | H171: 2.807924204 | I171: 3.359173127 | J171: 3.91042205 | K171: 4.461670974 | L171: 5.012919897 | M171: 5.56416882 | N171: 6.115417744 | O171: 6.666666667 | P171: 8.263565891 | Q171: 9.860465116 | R171: 11.45736434 | S171: 13.05426356 | T171: 14.65116279 | U171: 16.24806201 | V171: 17.84496124 | W171: 19.44186046 | X171: 21.03875969 | Y171: 22.63565891 | Z171: 23.51937984 | AA171: 24.40310077 | AB171: 25.2868217 | AC171: 26.17054263 | AD171: 27.05426356 | AE171: 27.9379845 | AF171: 28.82170543 | AG171: 29.70542636 | AH171: 30.58914729 | AI171: 31.47286822 | AJ171: 31.68992248 | AK171: 31.90697675 | AL171: 32.12403101 | AM171: 32.34108527 | AN171: 32.55813954 | AO171: 32.7751938 | AP171: 32.99224806 | AQ171: 33.20930232 | AR171: 33.42635659 | AS171: 33.64341085
B172: Tech_9 | C172: Solar_utility | D172: 0.495 | E172: 0.495 | F172: 0.495 | G172: 8.450155469 | H172: 16.53207022 | I172: 26.51183322 | J172: 35.46648859 | K172: 41.81262702 | L172: 45.17732201 | M172: 46.78396272 | N172: 48.25467758 | O172: 51.05671845 | P172: 57.31288172 | Q172: 68.18236874 | R172: 78.40243219 | S172: 88.04810197 | T172: 96.94291883 | U172: 105.2133221 | V172: 112.9947824 | W172: 120.1393241 | X172: 128.35586 | Y172: 135.9708514 | Z172: 141.8895681 | AA172: 146.0005476 | AB172: 149.7933576 | AC172: 153.6510706 | AD172: 159.2049126 | AE172: 162.7766742 | AF172: 166.0995722 | AG172: 169.3740483 | AH172: 172.5991473 | AI172: 175.7213755 | AJ172: 176.722511 | AK172: 177.7586722 | AL172: 178.7948333 | AM172: 179.7784561 | AN172: 180.7445662 | AO172: 181.6931635 | AP172: 182.6067352 | AQ172: 183.6078708 | AR172: 184.5564681 | AS172: 185.5751164
B173: Tech_10 | C173: Solar_rooftop | D173: 0.005 | E173: 0.005 | F173: 0.005 | G173: 0.1259770884 | H173: 0.3294785389 | I173: 0.6675641459 | J173: 1.087929098 | K173: 1.523324351 | L173: 1.918727962 | M173: 2.283649895 | N173: 2.677187795 | O173: 3.191044903 | P173: 4.408683209 | Q173: 6.279955016 | R173: 8.475938615 | S173: 11.00601275 | T173: 13.8489884 | U173: 17.0198021 | V173: 20.54450589 | W173: 24.40330022 | X173: 28.9835813 | Y173: 33.99271286 | Z173: 36.96282866 | AA173: 39.59336883 | AB173: 42.24940856 | AC173: 45.03565862 | AD173: 48.45366905 | AE173: 51.40316027 | AF173: 54.3865856 | AG173: 57.46619497 | AH173: 60.64294364 | AI173: 63.89868198 | AJ173: 64.26273129 | AK173: 64.63951716 | AL173: 65.01630302 | AM173: 65.37398405 | AN173: 65.72529679 | AO173: 66.07024126 | AP173: 66.40244916 | AQ173: 66.76649847 | AR173: 67.11144293 | AS173: 67.48186052
B174: Tech_11 | C174: Solar_floating | D174: 0 | E174: 0 | F174: 0 | G174: 0.1453581789 | H174: 0.5814327157 | I174: 1.430494598 | J174: 2.611029835 | K174: 3.939631943 | L174: 5.232894442 | M174: 6.480628081 | N174: 7.835671596 | O174: 9.57313471 | P174: 11.75648856 | Q174: 15.25131932 | R174: 19.07086188 | S174: 23.2349158 | T174: 27.69797681 | U174: 32.49234946 | V174: 37.66492747 | W174: 43.17506962 | X174: 49.68613937 | Y174: 56.65452144 | Z174: 59.61746558 | AA174: 61.8646388 | AB174: 64.01425539 | AC174: 66.22890973 | AD174: 69.21952721 | AE174: 71.39327816 | AF174: 73.49538595 | AG174: 75.61341444 | AH174: 77.74736363 | AI174: 79.87335248 | AJ174: 80.32841411 | AK174: 80.79939644 | AL174: 81.27037878 | AM174: 81.71748006 | AN174: 82.15662099 | AO174: 82.58780157 | AP174: 83.00306145 | AQ174: 83.45812308 | AR174: 83.88930366 | AS174: 84.35232565
B175: Tech_12 | C175: Wind_onshore | D175: 0.004566210046 | E175: 0.004566210046 | F175: 0.004566210046 | G175: 1.83406482 | H175: 3.668129639 | I175: 3.056774699 | J175: 3.056774699 | K175: 5.502194459 | L175: 11.00438892 | M175: 18.3406482 | N175: 25.67690747 | O175: 31.17910193 | P175: 46.69604095 | Q175: 55.01158305 | R175: 62.70416242 | S175: 69.6820758 | T175: 76.1613816 | U175: 81.98715691 | V175: 86.99787899 | W175: 91.37382806 | X175: 93.10356951 | Y175: 94.19545321 | Z175: 93.8023403 | AA175: 95.32851455 | AB175: 97.03126916 | AC175: 98.46964814 | AD175: 97.80305003 | AE175: 99.20223435 | AF175: 100.6912142 | AG175: 102.0442341 | AH175: 103.2632044 | AI175: 104.4073503 | AJ175: 104.9331646 | AK175: 105.4207693 | AL175: 105.908374 | AM175: 106.4532931 | AN175: 107.0173172 | AO175: 107.600446 | AP175: 108.2217846 | AQ175: 108.7475989 | AR175: 109.3307278 | AS175: 109.8374373
B176: Tech_13 | C176: Wind_offshore | D176: 0 | E176: 0 | F176: 0 | G176: 0 | H176: 0 | I176: 0 | J176: 0 | K176: 0 | L176: 0 | M176: 0 | N176: 0 | O176: 0 | P176: 1.444207452 | Q176: 3.511377642 | R176: 6.201510569 | S176: 9.502101245 | T176: 13.44024381 | U176: 17.99718079 | V176: 23.12601847 | W176: 28.85489307 | X176: 34.4355668 | Y176: 40.36947995 | Z176: 42.14308043 | AA176: 44.86047743 | AB176: 47.79152063 | AC176: 50.72678843 | AD176: 52.66318079 | AE176: 55.80125682 | AF176: 59.13610994 | AG176: 62.54324025 | AH176: 66.02073727 | AI176: 69.60490019 | AJ176: 69.95544309 | AK176: 70.28051286 | AL176: 70.60558264 | AM176: 70.9688621 | AN176: 71.34487811 | AO176: 71.73363069 | AP176: 72.1478564 | AQ176: 72.49839929 | AR176: 72.88715187 | AS176: 73.22495821
B177: Tech_14 | C177: Geothermal | D177: 2.692155604 | E177: 2.692155604 | F177: 2.692155604 | G177: 3.703451609 | H177: 4.714747614 | I177: 5.726043619 | J177: 6.737339624 | K177: 7.74863563 | L177: 8.759931635 | M177: 9.77122764 | N177: 10.78252364 | O177: 11.79381965 | P177: 12.85476751 | Q177: 13.91571537 | R177: 14.97666323 | S177: 16.03761109 | T177: 17.09855896 | U177: 18.15950682 | V177: 19.22045468 | W177: 20.28140254 | X177: 21.3423504 | Y177: 22.40329826 | Z177: 22.74712666 | AA177: 23.09095505 | AB177: 23.43478345 | AC177: 23.77861185 | AD177: 24.12244024 | AE177: 24.46626864 | AF177: 24.81009704 | AG177: 25.15392544 | AH177: 25.49775383 | AI177: 25.84158223 | AJ177: 25.9585902 | AK177: 26.07559816 | AL177: 26.19260613 | AM177: 26.3096141 | AN177: 26.42662206 | AO177: 26.54363003 | AP177: 26.660638 | AQ177: 26.77764597 | AR177: 26.89465393 | AS177: 27.0116619
B178: Tech_15 | C178: Hydro_large | D178: 6.348104668 | E178: 6.348104668 | F178: 6.348104668 | G178: 7.657101913 | H178: 8.950262444 | I178: 10.22758626 | J178: 11.48907336 | K178: 12.73472375 | L178: 13.96453743 | M178: 15.17851439 | N178: 16.37665464 | O178: 17.55895818 | P178: 21.21163037 | Q178: 24.82240064 | R178: 28.39126899 | S178: 31.91823542 | T178: 35.40329993 | U178: 38.84646251 | V178: 42.24772317 | W178: 45.60708192 | X178: 48.92453874 | Y178: 52.20009364 | Z178: 53.18453562 | AA178: 54.15369356 | AB178: 55.10756746 | AC178: 56.04615732 | AD178: 56.96946314 | AE178: 57.87748492 | AF178: 58.77022266 | AG178: 59.64767636 | AH178: 60.50984602 | AI178: 61.35673164 | AJ178: 61.24097247 | AK178: 61.12184574 | AL178: 60.99935146 | AM178: 60.87348963 | AN178: 60.74426025 | AO178: 60.61166332 | AP178: 60.47569883 | AQ178: 60.33636679 | AR178: 60.1936672 | AS178: 60.04760005
B179: Tech_16 | C179: Hydro_small | D179: 0.334110772 | E179: 0.334110772 | F179: 0.334110772 | G179: 0.4504177596 | H179: 0.5825614608 | I179: 0.7305418758 | J179: 0.8943590044 | K179: 1.074012847 | L179: 1.269503403 | M179: 1.480830672 | N179: 1.707994656 | O179: 1.950995353 | P179: 2.488515295 | Q179: 3.067937158 | R179: 3.689260942 | S179: 4.352486648 | T179: 5.057614275 | U179: 5.804643823 | V179: 6.593575293 | W179: 7.424408684 | X179: 8.297143997 | Y179: 9.211781231 | Z179: 9.75574322 | AA179: 10.31498925 | AB179: 10.88951932 | AC179: 11.47933343 | AD179: 12.08443157 | AE179: 12.70481376 | AF179: 13.34047999 | AG179: 13.99143026 | AH179: 14.65766456 | AI179: 15.33918291 | AJ179: 15.7916973 | AK179: 16.24757925 | AL179: 16.70682874 | AM179: 17.16944579 | AN179: 17.6354304 | AO179: 18.10478255 | AP179: 18.57750225 | AQ179: 19.05358951 | AR179: 19.53304432 | AS179: 20.01586668
B180: Tech_17 | C180: Hydrogen | D180: 0 | E180: 0 | F180: 0 | G180: 0 | H180: 0 | I180: 0 | J180: 0 | K180: 0 | L180: 0.8406130423 | M180: 0.8406130423 | N180: 0.8406130423 | O180: 0.8406130423 | P180: 0.8406130423 | Q180: 2.521839127 | R180: 5.043678254 | S180: 6.724904338 | T180: 7.565517381 | U180: 10.92796955 | V180: 12.18888911 | W180: 10.92796955 | X180: 10.23348873 | Y180: 9.74617974 | Z180: 12.60919563 | AA180: 12.49734354 | AB180: 13.75731773 | AC180: 12.6506135 | AD180: 8.866180927 | AE180: 10.98441469 | AF180: 10.78058951 | AG180: 9.683722971 | AH180: 10.97101502 | AI180: 9.748977254 | AJ180: 7.833999579 | AK180: 9.813115262 | AL180: 9.596649485 | AM180: 10.35828833 | AN180: 10.35828833 | AO180: 9.596649485 | AP180: 9.813115262 | AQ180: 9.400799495 | AR180: 10.39035734 | AS180: 9.400799495
B181: Tech_18 | C181: Pumped_storage | D181: 0 | E181: 0 | F181: 0 | G181: 0 | H181: 0 | I181: 0 | J181: 0 | K181: 0 | L181: 0 | M181: 0 | N181: 0 | O181: 0 | P181: 0 | Q181: 0 | R181: 0 | S181: 0 | T181: 0 | U181: 0 | V181: 0 | W181: 0 | X181: 0 | Y181: 0 | Z181: 0 | AA181: 0 | AB181: 0 | AC181: 0 | AD181: 0 | AE181: 0 | AF181: 0 | AG181: 0 | AH181: 0 | AI181: 0 | AJ181: 0 | AK181: 0 | AL181: 0 | AM181: 0 | AN181: 0 | AO181: 0 | AP181: 0 | AQ181: 0 | AR181: 0 | AS181: 0
B182: Tech_19 | C182: Batteries | D182: 0 | E182: 0 | F182: 0 | G182: 0.8869881999 | H182: 1.7739764 | I182: 2.6609646 | J182: 3.5479528 | K182: 4.434940999 | L182: 5.321929199 | M182: 6.208917399 | N182: 7.095905599 | O182: 7.982893799 | P182: 10.8339273 | Q182: 13.6849608 | R182: 16.5359943 | S182: 19.3870278 | T182: 22.2380613 | U182: 25.0890948 | V182: 27.9401283 | W182: 30.7911618 | X182: 33.6421953 | Y182: 36.4932288 | Z182: 40.34390592 | AA182: 44.19458304 | AB182: 48.04526016 | AC182: 51.89593728 | AD182: 55.7466144 | AE182: 59.59729152 | AF182: 63.44796864 | AG182: 67.29864576 | AH182: 71.14932288 | AI182: 75 | AJ182: 76.7 | AK182: 78.4 | AL182: 80.1 | AM182: 81.8 | AN182: 83.5 | AO182: 85.2 | AP182: 86.9 | AQ182: 88.6 | AR182: 90.3 | AS182: 92
B183: Tech_20 | C183: Other 1 | D183: 0 | E183: 0 | F183: 0 | G183: 0 | H183: 0 | I183: 0 | J183: 0 | K183: 0 | L183: 0 | M183: 0 | N183: 0 | O183: 0 | P183: 0 | Q183: 0 | R183: 0 | S183: 0 | T183: 0 | U183: 0 | V183: 0 | W183: 0 | X183: 0 | Y183: 0 | Z183: 0 | AA183: 0 | AB183: 0 | AC183: 0 | AD183: 0 | AE183: 0 | AF183: 0 | AG183: 0 | AH183: 0 | AI183: 0 | AJ183: 0 | AK183: 0 | AL183: 0 | AM183: 0 | AN183: 0 | AO183: 0 | AP183: 0 | AQ183: 0 | AR183: 0 | AS183: 0
C184: TOTAL | D184: =SUM(D164:D183) -> 78.5600361 | E184: =SUM(E164:E183) -> 82.52902813 | F184: =SUM(F164:F183) -> 84.76502813 | G184: =SUM(G164:G183) -> 106.0410699 | H184: =SUM(H164:H183) -> 124.1966789 | I184: =SUM(I164:I183) -> 146.4272878 | J184: =SUM(J164:J183) -> 164.6178968 | K184: =SUM(K164:K183) -> 163.5782772 | L184: =SUM(L164:L183) -> 179.2277706 | M184: =SUM(M164:M183) -> 194.036651 | N184: =SUM(N164:N183) -> 208.8455314 | O184: =SUM(O164:O183) -> 225.0391845 | P184: =SUM(P164:P183) -> 257.4972119 | Q184: =SUM(Q164:Q183) -> 291.7225952 | R184: =SUM(R164:R183) -> 328.2482892 | S184: =SUM(S164:S183) -> 361.5756549 | T184: =SUM(T164:T183) -> 397.0910628 | U184: =SUM(U164:U183) -> 427.8808956 | V184: =SUM(V164:V183) -> 455.1356186 | W184: =SUM(W164:W183) -> 483.4743492 | X184: =SUM(X164:X183) -> 511.0591934 | Y184: =SUM(Y164:Y183) -> 538.3692272 | Z184: =SUM(Z164:Z183) -> 563.9318407 | AA184: =SUM(AA164:AA183) -> 584.4211376 | AB184: =SUM(AB164:AB183) -> 605.2288948 | AC184: =SUM(AC164:AC183) -> 624.8748357 | AD184: =SUM(AD164:AD183) -> 641.7100108 | AE184: =SUM(AE164:AE183) -> 662.7713814 | AF184: =SUM(AF164:AF183) -> 683.9827454 | AG184: =SUM(AG164:AG183) -> 702.7331708 | AH184: =SUM(AH164:AH183) -> 724.7972329 | AI184: =SUM(AI164:AI183) -> 742.3496231 | AJ184: =SUM(AJ164:AJ183) -> 745.8514022 | AK184: =SUM(AK164:AK183) -> 753.2472746 | AL184: =SUM(AL164:AL183) -> 758.4475656 | AM184: =SUM(AM164:AM183) -> 764.6259612 | AN184: =SUM(AN164:AN183) -> 770.042718 | AO184: =SUM(AO164:AO183) -> 774.5649456 | AP184: =SUM(AP164:AP183) -> 780.0652778 | AQ184: =SUM(AQ164:AQ183) -> 784.9368284 | AR184: =SUM(AR164:AR183) -> 791.2102526 | AS184: =SUM(AS164:AS183) -> 795.5045612
D186: MW
B187: TechList | C187: TechList | D187: 2019 | E187: 2020 | F187: 2021 | G187: 2022 | H187: 2023 | I187: 2024 | J187: 2025 | K187: 2026 | L187: 2027 | M187: 2028 | N187: 2029 | O187: 2030 | P187: 2031 | Q187: 2032 | R187: 2033 | S187: 2034 | T187: 2035 | U187: 2036 | V187: 2037 | W187: 2038 | X187: 2039 | Y187: 2040 | Z187: 2041 | AA187: 2042 | AB187: 2043 | AC187: 2044 | AD187: 2045 | AE187: 2046 | AF187: 2047 | AG187: 2048 | AH187: 2049 | AI187: 2050 | AJ187: 2051 | AK187: 2052 | AL187: 2053 | AM187: 2054 | AN187: 2055 | AO187: 2056 | AP187: 2057 | AQ187: 2058 | AR187: 2059 | AS187: 2060
B188: Tech_1 | C188: Coal | D188: =D164*1000 -> 34717.60797 | E188: =E164*1000 -> 38686.6 | F188: 40922.6 | G188: 47412.6 | H188: 50277.601 | I188: 57217.602 | J188: 60117.603 | K188: 43787.37542 | L188: 43305.64784 | M188: 42823.92027 | N188: 42342.19269 | O188: 41860.46512 | P188: 38737.54153 | Q188: 35614.61794 | R188: 32491.69436 | S188: 29368.77077 | T188: 26245.84718 | U188: 22392.02658 | V188: 18538.20598 | W188: 14684.38538 | X188: 10830.56478 | Y188: 6976.744186 | Z188: 6079.734219 | AA188: 5182.724252 | AB188: 4285.714286 | AC188: 3388.704319 | AD188: 2491.694352 | AE188: 1993.355482 | AF188: 1495.016611 | AG188: 996.6777408 | AH188: 498.3388704 | AI188: 0 | AJ188: 0 | AK188: 0 | AL188: 0 | AM188: 0 | AN188: 0 | AO188: 0 | AP188: 0 | AQ188: 0 | AR188: 0 | AS188: 0
B189: Tech_2 | C189: Coal_CCS | D189: =D165*1000 -> 0 | E189: 0 | F189: 0 | G189: 0 | H189: 0 | I189: 0 | J189: 0 | K189: 0 | L189: 0 | M189: 0 | N189: 0 | O189: 0 | P189: 365.448504 | Q189: 730.897008 | R189: 1096.345512 | S189: 1461.794016 | T189: 1827.24252 | U189: 2591.362123 | V189: 3355.481726 | W189: 4119.601328 | X189: 4883.720931 | Y189: 5647.840534 | Z189: 6411.960135 | AA189: 7176.079736 | AB189: 7940.199336 | AC189: 8704.318937 | AD189: 9468.438538 | AE189: 9933.554816 | AF189: 10398.67109 | AG189: 10863.78737 | AH189: 11328.90365 | AI189: 11794.01993 | AJ189: 11993.35548 | AK189: 12192.69103 | AL189: 12392.02657 | AM189: 12591.36212 | AN189: 12790.69767 | AO189: 12857.14285 | AP189: 12923.58804 | AQ189: 12990.03322 | AR189: 13056.47841 | AS189: 13122.92359
B190: Tech_3 | C190: Gas_Open | D190: =D166*1000 -> 5040.322581 | E190: 5040.322581 | F190: 5040.322581 | G190: 5313.620072 | H190: 5586.917563 | I190: 5860.215054 | J190: 6133.512545 | K190: 6406.810036 | L190: 6680.107527 | M190: 6953.405018 | N190: 7226.702509 | O190: 7500 | P190: 7233.870968 | Q190: 6967.741935 | R190: 6701.612903 | S190: 6435.483871 | T190: 6169.354839 | U190: 4935.483871 | V190: 3701.612903 | W190: 2467.741935 | X190: 1233.870968 | Y190: 0 | Z190: 0 | AA190: 0 | AB190: 0 | AC190: 0 | AD190: 0 | AE190: 0 | AF190: 0 | AG190: 0 | AH190: 0 | AI190: 0 | AJ190: 0 | AK190: 0 | AL190: 0 | AM190: 0 | AN190: 0 | AO190: 0 | AP190: 0 | AQ190: 0 | AR190: 0 | AS190: 0
B191: Tech_4 | C191: Gas_Combined | D191: =D167*1000 -> 15120.96774 | E191: 15120.96774 | F191: 15120.96774 | G191: 15940.86022 | H191: 16760.75269 | I191: 17580.64516 | J191: 18400.53763 | K191: 19220.43011 | L191: 20040.32258 | M191: 20860.21505 | N191: 21680.10753 | O191: 22500 | P191: 21701.6129 | Q191: 20903.22581 | R191: 20104.83871 | S191: 19306.45161 | T191: 18508.06452 | U191: 14806.45161 | V191: 11104.83871 | W191: 7403.225806 | X191: 3701.612903 | Y191: 0 | Z191: 0 | AA191: 0 | AB191: 0 | AC191: 0 | AD191: 0 | AE191: 0 | AF191: 0 | AG191: 0 | AH191: 0 | AI191: 0 | AJ191: 0 | AK191: 0 | AL191: 0 | AM191: 0 | AN191: 0 | AO191: 0 | AP191: 0 | AQ191: 0 | AR191: 0 | AS191: 0
B192: Tech_5 | C192: Gas_Combined_CCS | D192: =D168*1000 -> 0 | E192: 0 | F192: 0 | G192: 0 | H192: 0 | I192: 0 | J192: 0 | K192: 0 | L192: 0 | M192: 0 | N192: 0 | O192: 1384.772727 | P192: 1297.416738 | Q192: 1296.190548 | R192: 2754.661994 | S192: 1855.418252 | T192: 3984.829704 | U192: 4470.020583 | V192: 3521.634284 | W192: 6179.09469 | X192: 7516.229942 | Y192: 8371.382967 | Z192: 10864.97636 | AA192: 11260.12122 | AB192: 10601.89998 | AC192: 11148.54095 | AD192: 11562.14442 | AE192: 10199.60927 | AF192: 11309.12644 | AG192: 10850.74648 | AH192: 11321.84456 | AI192: 9790.600519 | AJ192: 9790.600519 | AK192: 9790.600519 | AL192: 9790.600519 | AM192: 9790.600519 | AN192: 9790.600519 | AO192: 9790.600519 | AP192: 9790.600519 | AQ192: 9790.600519 | AR192: 9790.600519 | AS192: 9790.600519
B193: Tech_6 | C193: Oil | D193: =D169*1000 -> 12096.77419 | E193: 12096.77419 | F193: 12096.77419 | G193: 11863.79928 | H193: 11630.82437 | I193: 11397.84946 | J193: 11164.87455 | K193: 10931.89964 | L193: 10698.92473 | M193: 10465.94982 | N193: 10232.97491 | O193: 10000 | P193: 9700 | Q193: 9400 | R193: 9100 | S193: 8800 | T193: 8500 | U193: 6800 | V193: 5100 | W193: 3400 | X193: 1700 | Y193: 0 | Z193: 0 | AA193: 0 | AB193: 0 | AC193: 0 | AD193: 0 | AE193: 0 | AF193: 0 | AG193: 0 | AH193: 0 | AI193: 0 | AJ193: 0 | AK193: 0 | AL193: 0 | AM193: 0 | AN193: 0 | AO193: 0 | AP193: 0 | AQ193: 0 | AR193: 0 | AS193: 0
B194: Tech_7 | C194: Nuclear | D194: =D170*1000 -> 0 | E194: 0 | F194: 0 | G194: 0 | H194: 0 | I194: 0 | J194: 0 | K194: 0 | L194: 0 | M194: 0 | N194: 0 | O194: 0 | P194: 350 | Q194: 700 | R194: 1050 | S194: 1400 | T194: 1750 | U194: 2100 | V194: 2450 | W194: 2800 | X194: 3150 | Y194: 3500 | Z194: 4000 | AA194: 4500 | AB194: 5000 | AC194: 5500 | AD194: 6000 | AE194: 6500 | AF194: 7000 | AG194: 7500 | AH194: 8000 | AI194: 8500 | AJ194: 8650 | AK194: 8800 | AL194: 8950 | AM194: 9100 | AN194: 9250 | AO194: 9400 | AP194: 9550 | AQ194: 9700 | AR194: 9850 | AS194: 10000
B195: Tech_8 | C195: Biomass | D195: =D171*1000 -> 1705.426357 | E195: 1705.426357 | F195: 1705.426357 | G195: 2256.67528 | H195: 2807.924204 | I195: 3359.173127 | J195: 3910.42205 | K195: 4461.670974 | L195: 5012.919897 | M195: 5564.16882 | N195: 6115.417744 | O195: 6666.666667 | P195: 8263.565891 | Q195: 9860.465116 | R195: 11457.36434 | S195: 13054.26356 | T195: 14651.16279 | U195: 16248.06201 | V195: 17844.96124 | W195: 19441.86046 | X195: 21038.75969 | Y195: 22635.65891 | Z195: 23519.37984 | AA195: 24403.10077 | AB195: 25286.8217 | AC195: 26170.54263 | AD195: 27054.26356 | AE195: 27937.9845 | AF195: 28821.70543 | AG195: 29705.42636 | AH195: 30589.14729 | AI195: 31472.86822 | AJ195: 31689.92248 | AK195: 31906.97675 | AL195: 32124.03101 | AM195: 32341.08527 | AN195: 32558.13954 | AO195: 32775.1938 | AP195: 32992.24806 | AQ195: 33209.30232 | AR195: 33426.35659 | AS195: 33643.41085
B196: Tech_9 | C196: Solar_utility | D196: =D172*1000 -> 495 | E196: 495 | F196: 495 | G196: 8450.155469 | H196: 16532.07022 | I196: 26511.83322 | J196: 35466.48859 | K196: 41812.62702 | L196: 45177.32201 | M196: 46783.96272 | N196: 48254.67758 | O196: 51056.71845 | P196: 57312.88172 | Q196: 68182.36874 | R196: 78402.43219 | S196: 88048.10197 | T196: 96942.91883 | U196: 105213.3221 | V196: 112994.7824 | W196: 120139.3241 | X196: 128355.86 | Y196: 135970.8514 | Z196: 141889.5681 | AA196: 146000.5476 | AB196: 149793.3576 | AC196: 153651.0706 | AD196: 159204.9126 | AE196: 162776.6742 | AF196: 166099.5722 | AG196: 169374.0483 | AH196: 172599.1473 | AI196: 175721.3755 | AJ196: 176722.511 | AK196: 177758.6722 | AL196: 178794.8333 | AM196: 179778.4561 | AN196: 180744.5662 | AO196: 181693.1635 | AP196: 182606.7352 | AQ196: 183607.8708 | AR196: 184556.4681 | AS196: 185575.1164
B197: Tech_10 | C197: Solar_rooftop | D197: =D173*1000 -> 5 | E197: 5 | F197: 5 | G197: 125.9770884 | H197: 329.4785389 | I197: 667.5641459 | J197: 1087.929098 | K197: 1523.324351 | L197: 1918.727962 | M197: 2283.649895 | N197: 2677.187795 | O197: 3191.044903 | P197: 4408.683209 | Q197: 6279.955016 | R197: 8475.938615 | S197: 11006.01275 | T197: 13848.9884 | U197: 17019.8021 | V197: 20544.50589 | W197: 24403.30022 | X197: 28983.5813 | Y197: 33992.71286 | Z197: 36962.82866 | AA197: 39593.36883 | AB197: 42249.40856 | AC197: 45035.65862 | AD197: 48453.66905 | AE197: 51403.16027 | AF197: 54386.5856 | AG197: 57466.19497 | AH197: 60642.94364 | AI197: 63898.68198 | AJ197: 64262.73129 | AK197: 64639.51716 | AL197: 65016.30302 | AM197: 65373.98405 | AN197: 65725.29679 | AO197: 66070.24126 | AP197: 66402.44916 | AQ197: 66766.49847 | AR197: 67111.44293 | AS197: 67481.86052
B198: Tech_11 | C198: Solar_floating | D198: =D174*1000 -> 0 | E198: 0 | F198: 0 | G198: 145.3581789 | H198: 581.4327157 | I198: 1430.494598 | J198: 2611.029835 | K198: 3939.631943 | L198: 5232.894442 | M198: 6480.628081 | N198: 7835.671596 | O198: 9573.13471 | P198: 11756.48856 | Q198: 15251.31932 | R198: 19070.86188 | S198: 23234.9158 | T198: 27697.97681 | U198: 32492.34946 | V198: 37664.92747 | W198: 43175.06962 | X198: 49686.13937 | Y198: 56654.52144 | Z198: 59617.46558 | AA198: 61864.6388 | AB198: 64014.25539 | AC198: 66228.90973 | AD198: 69219.52721 | AE198: 71393.27816 | AF198: 73495.38595 | AG198: 75613.41444 | AH198: 77747.36363 | AI198: 79873.35248 | AJ198: 80328.41411 | AK198: 80799.39644 | AL198: 81270.37878 | AM198: 81717.48006 | AN198: 82156.62099 | AO198: 82587.80157 | AP198: 83003.06145 | AQ198: 83458.12308 | AR198: 83889.30366 | AS198: 84352.32565
B199: Tech_12 | C199: Wind_onshore | D199: =D175*1000 -> 4.566210046 | E199: 4.566210046 | F199: 4.566210046 | G199: 1834.06482 | H199: 3668.129639 | I199: 3056.774699 | J199: 3056.774699 | K199: 5502.194459 | L199: 11004.38892 | M199: 18340.6482 | N199: 25676.90747 | O199: 31179.10193 | P199: 46696.04095 | Q199: 55011.58305 | R199: 62704.16242 | S199: 69682.0758 | T199: 76161.3816 | U199: 81987.15691 | V199: 86997.87899 | W199: 91373.82806 | X199: 93103.56951 | Y199: 94195.45321 | Z199: 93802.3403 | AA199: 95328.51455 | AB199: 97031.26916 | AC199: 98469.64814 | AD199: 97803.05003 | AE199: 99202.23435 | AF199: 100691.2142 | AG199: 102044.2341 | AH199: 103263.2044 | AI199: 104407.3503 | AJ199: 104933.1646 | AK199: 105420.7693 | AL199: 105908.374 | AM199: 106453.2931 | AN199: 107017.3172 | AO199: 107600.446 | AP199: 108221.7846 | AQ199: 108747.5989 | AR199: 109330.7278 | AS199: 109837.4373
B200: Tech_13 | C200: Wind_offshore | D200: =D176*1000 -> 0 | E200: 0 | F200: 0 | G200: 0 | H200: 0 | I200: 0 | J200: 0 | K200: 0 | L200: 0 | M200: 0 | N200: 0 | O200: 0 | P200: 1444.207452 | Q200: 3511.377642 | R200: 6201.510569 | S200: 9502.101245 | T200: 13440.24381 | U200: 17997.18079 | V200: 23126.01847 | W200: 28854.89307 | X200: 34435.5668 | Y200: 40369.47995 | Z200: 42143.08043 | AA200: 44860.47743 | AB200: 47791.52063 | AC200: 50726.78843 | AD200: 52663.18079 | AE200: 55801.25682 | AF200: 59136.10994 | AG200: 62543.24025 | AH200: 66020.73727 | AI200: 69604.90019 | AJ200: 69955.44309 | AK200: 70280.51286 | AL200: 70605.58264 | AM200: 70968.8621 | AN200: 71344.87811 | AO200: 71733.63069 | AP200: 72147.8564 | AQ200: 72498.39929 | AR200: 72887.15187 | AS200: 73224.95821
B201: Tech_14 | C201: Geothermal | D201: =D177*1000 -> 2692.155604 | E201: 2692.155604 | F201: 2692.155604 | G201: 3703.451609 | H201: 4714.747614 | I201: 5726.043619 | J201: 6737.339624 | K201: 7748.63563 | L201: 8759.931635 | M201: 9771.22764 | N201: 10782.52364 | O201: 11793.81965 | P201: 12854.76751 | Q201: 13915.71537 | R201: 14976.66323 | S201: 16037.61109 | T201: 17098.55896 | U201: 18159.50682 | V201: 19220.45468 | W201: 20281.40254 | X201: 21342.3504 | Y201: 22403.29826 | Z201: 22747.12666 | AA201: 23090.95505 | AB201: 23434.78345 | AC201: 23778.61185 | AD201: 24122.44024 | AE201: 24466.26864 | AF201: 24810.09704 | AG201: 25153.92544 | AH201: 25497.75383 | AI201: 25841.58223 | AJ201: 25958.5902 | AK201: 26075.59816 | AL201: 26192.60613 | AM201: 26309.6141 | AN201: 26426.62206 | AO201: 26543.63003 | AP201: 26660.638 | AQ201: 26777.64597 | AR201: 26894.65393 | AS201: 27011.6619
B202: Tech_15 | C202: Hydro_large | D202: =D178*1000 -> 6348.104668 | E202: 6348.104668 | F202: 6348.104668 | G202: 7657.101913 | H202: 8950.262444 | I202: 10227.58626 | J202: 11489.07336 | K202: 12734.72375 | L202: 13964.53743 | M202: 15178.51439 | N202: 16376.65464 | O202: 17558.95818 | P202: 21211.63037 | Q202: 24822.40064 | R202: 28391.26899 | S202: 31918.23542 | T202: 35403.29993 | U202: 38846.46251 | V202: 42247.72317 | W202: 45607.08192 | X202: 48924.53874 | Y202: 52200.09364 | Z202: 53184.53562 | AA202: 54153.69356 | AB202: 55107.56746 | AC202: 56046.15732 | AD202: 56969.46314 | AE202: 57877.48492 | AF202: 58770.22266 | AG202: 59647.67636 | AH202: 60509.84602 | AI202: 61356.73164 | AJ202: 61240.97247 | AK202: 61121.84574 | AL202: 60999.35146 | AM202: 60873.48963 | AN202: 60744.26025 | AO202: 60611.66332 | AP202: 60475.69883 | AQ202: 60336.36679 | AR202: 60193.6672 | AS202: 60047.60005
B203: Tech_16 | C203: Hydro_small | D203: =D179*1000 -> 334.110772 | E203: 334.110772 | F203: 334.110772 | G203: 450.4177596 | H203: 582.5614608 | I203: 730.5418758 | J203: 894.3590044 | K203: 1074.012847 | L203: 1269.503403 | M203: 1480.830672 | N203: 1707.994656 | O203: 1950.995353 | P203: 2488.515295 | Q203: 3067.937158 | R203: 3689.260942 | S203: 4352.486648 | T203: 5057.614275 | U203: 5804.643823 | V203: 6593.575293 | W203: 7424.408684 | X203: 8297.143997 | Y203: 9211.781231 | Z203: 9755.74322 | AA203: 10314.98925 | AB203: 10889.51932 | AC203: 11479.33343 | AD203: 12084.43157 | AE203: 12704.81376 | AF203: 13340.47999 | AG203: 13991.43026 | AH203: 14657.66456 | AI203: 15339.18291 | AJ203: 15791.6973 | AK203: 16247.57925 | AL203: 16706.82874 | AM203: 17169.44579 | AN203: 17635.4304 | AO203: 18104.78255 | AP203: 18577.50225 | AQ203: 19053.58951 | AR203: 19533.04432 | AS203: 20015.86668
B204: Tech_17 | C204: Hydrogen | D204: =D180*1000 -> 0 | E204: 0 | F204: 0 | G204: 0 | H204: 0 | I204: 0 | J204: 0 | K204: 0 | L204: 840.6130423 | M204: 840.6130423 | N204: 840.6130423 | O204: 840.6130423 | P204: 840.6130423 | Q204: 2521.839127 | R204: 5043.678254 | S204: 6724.904338 | T204: 7565.517381 | U204: 10927.96955 | V204: 12188.88911 | W204: 10927.96955 | X204: 10233.48873 | Y204: 9746.17974 | Z204: 12609.19563 | AA204: 12497.34354 | AB204: 13757.31773 | AC204: 12650.6135 | AD204: 8866.180927 | AE204: 10984.41469 | AF204: 10780.58951 | AG204: 9683.722971 | AH204: 10971.01502 | AI204: 9748.977254 | AJ204: 7833.999579 | AK204: 9813.115262 | AL204: 9596.649485 | AM204: 10358.28833 | AN204: 10358.28833 | AO204: 9596.649485 | AP204: 9813.115262 | AQ204: 9400.799495 | AR204: 10390.35734 | AS204: 9400.799495
B205: Tech_18 | C205: Pumped_storage | D205: =D181*1000 -> 0 | E205: 0 | F205: 0 | G205: 0 | H205: 0 | I205: 0 | J205: 0 | K205: 0 | L205: 0 | M205: 0 | N205: 0 | O205: 0 | P205: 0 | Q205: 0 | R205: 0 | S205: 0 | T205: 0 | U205: 0 | V205: 0 | W205: 0 | X205: 0 | Y205: 0 | Z205: 0 | AA205: 0 | AB205: 0 | AC205: 0 | AD205: 0 | AE205: 0 | AF205: 0 | AG205: 0 | AH205: 0 | AI205: 0 | AJ205: 0 | AK205: 0 | AL205: 0 | AM205: 0 | AN205: 0 | AO205: 0 | AP205: 0 | AQ205: 0 | AR205: 0 | AS205: 0
B206: Tech_19 | C206: Batteries | D206: =D182*1000 -> 0 | E206: 0 | F206: 0 | G206: 886.9881999 | H206: 1773.9764 | I206: 2660.9646 | J206: 3547.9528 | K206: 4434.940999 | L206: 5321.929199 | M206: 6208.917399 | N206: 7095.905599 | O206: 7982.893799 | P206: 10833.9273 | Q206: 13684.9608 | R206: 16535.9943 | S206: 19387.0278 | T206: 22238.0613 | U206: 25089.0948 | V206: 27940.1283 | W206: 30791.1618 | X206: 33642.1953 | Y206: 36493.2288 | Z206: 40343.90592 | AA206: 44194.58304 | AB206: 48045.26016 | AC206: 51895.93728 | AD206: 55746.6144 | AE206: 59597.29152 | AF206: 63447.96864 | AG206: 67298.64576 | AH206: 71149.32288 | AI206: 75000 | AJ206: 76700 | AK206: 78400 | AL206: 80100 | AM206: 81800 | AN206: 83500 | AO206: 85200 | AP206: 86900 | AQ206: 88600 | AR206: 90300 | AS206: 92000
B207: Tech_20 | C207: Other 1 | D207: =D183*1000 -> 0 | E207: 0 | F207: 0 | G207: 0 | H207: 0 | I207: 0 | J207: 0 | K207: 0 | L207: 0 | M207: 0 | N207: 0 | O207: 0 | P207: 0 | Q207: 0 | R207: 0 | S207: 0 | T207: 0 | U207: 0 | V207: 0 | W207: 0 | X207: 0 | Y207: 0 | Z207: 0 | AA207: 0 | AB207: 0 | AC207: 0 | AD207: 0 | AE207: 0 | AF207: 0 | AG207: 0 | AH207: 0 | AI207: 0 | AJ207: 0 | AK207: 0 | AL207: 0 | AM207: 0 | AN207: 0 | AO207: 0 | AP207: 0 | AQ207: 0 | AR207: 0 | AS207: 0
C208: TOTAL | D208: =SUM(D188:D207) -> 78560.0361 | E208: =SUM(E188:E207) -> 82529.02813 | F208: =SUM(F188:F207) -> 84765.02813 | G208: =SUM(G188:G207) -> 106041.0699 | H208: =SUM(H188:H207) -> 124196.6789 | I208: =SUM(I188:I207) -> 146427.2878 | J208: =SUM(J188:J207) -> 164617.8968 | K208: =SUM(K188:K207) -> 163578.2772 | L208: =SUM(L188:L207) -> 179227.7706 | M208: =SUM(M188:M207) -> 194036.651 | N208: =SUM(N188:N207) -> 208845.5314 | O208: =SUM(O188:O207) -> 225039.1845 | P208: =SUM(P188:P207) -> 257497.2119 | Q208: =SUM(Q188:Q207) -> 291722.5952 | R208: =SUM(R188:R207) -> 328248.2892 | S208: =SUM(S188:S207) -> 361575.6549 | T208: =SUM(T188:T207) -> 397091.0628 | U208: =SUM(U188:U207) -> 427880.8956 | V208: =SUM(V188:V207) -> 455135.6186 | W208: =SUM(W188:W207) -> 483474.3492 | X208: =SUM(X188:X207) -> 511059.1934 | Y208: =SUM(Y188:Y207) -> 538369.2272 | Z208: =SUM(Z188:Z207) -> 563931.8407 | AA208: =SUM(AA188:AA207) -> 584421.1376 | AB208: =SUM(AB188:AB207) -> 605228.8948 | AC208: =SUM(AC188:AC207) -> 624874.8357 | AD208: =SUM(AD188:AD207) -> 641710.0108 | AE208: =SUM(AE188:AE207) -> 662771.3814 | AF208: =SUM(AF188:AF207) -> 683982.7454 | AG208: =SUM(AG188:AG207) -> 702733.1708 | AH208: =SUM(AH188:AH207) -> 724797.2329 | AI208: =SUM(AI188:AI207) -> 742349.6231 | AJ208: =SUM(AJ188:AJ207) -> 745851.4022 | AK208: =SUM(AK188:AK207) -> 753247.2746 | AL208: =SUM(AL188:AL207) -> 758447.5656 | AM208: =SUM(AM188:AM207) -> 764625.9612 | AN208: =SUM(AN188:AN207) -> 770042.718 | AO208: =SUM(AO188:AO207) -> 774564.9456 | AP208: =SUM(AP188:AP207) -> 780065.2778 | AQ208: =SUM(AQ188:AQ207) -> 784936.8284 | AR208: =SUM(AR188:AR207) -> 791210.2526 | AS208: =SUM(AS188:AS207) -> 795504.5612
B211: Scenario 2 Generation
D214: TWh
B215: TechList | C215: TechList | D215: 2019 | E215: 2020 | F215: 2021 | G215: 2022 | H215: 2023 | I215: 2024 | J215: 2025 | K215: 2026 | L215: 2027 | M215: 2028 | N215: 2029 | O215: 2030 | P215: 2031 | Q215: 2032 | R215: 2033 | S215: 2034 | T215: 2035 | U215: 2036 | V215: 2037 | W215: 2038 | X215: 2039 | Y215: 2040 | Z215: 2041 | AA215: 2042 | AB215: 2043 | AC215: 2044 | AD215: 2045 | AE215: 2046 | AF215: 2047 | AG215: 2048 | AH215: 2049 | AI215: 2050 | AJ215: 2051 | AK215: 2052 | AL215: 2053 | AM215: 2054 | AN215: 2055 | AO215: 2056 | AP215: 2057 | AQ215: 2058 | AR215: 2059 | AS215: 2060
B216: Tech_1 | C216: Coal | D216: 189.8559836 | E216: 189.8559836 | F216: 189.8559836 | G216: 190.1917862 | H216: 190.8889554 | I216: 191.5842309 | J216: 192.0992966 | K216: 192.2529957 | L216: 166.8636035 | M216: 143.2848313 | N216: 116.8094459 | O216: 91.41721329 | P216: 71.82483475 | Q216: 58.02946984 | R216: 44.23315811 | S216: 29.71316649 | T216: 14.46665455 | U216: 7.193876778 | V216: 5.353905662 | W216: 3.151621194 | X216: 1.675857054 | Y216: 0 | Z216: 0 | AA216: 0 | AB216: 0 | AC216: 0 | AD216: 0 | AE216: 0 | AF216: 0 | AG216: 0 | AH216: 0 | AI216: 0 | AJ216: 0 | AK216: 0 | AL216: 0 | AM216: 0 | AN216: 0 | AO216: 0 | AP216: 0 | AQ216: 0 | AR216: 0 | AS216: 0
B217: Tech_2 | C217: Coal_CCS | D217: 0 | E217: 0 | F217: 0 | G217: 0 | H217: 0 | I217: 0 | J217: 0 | K217: 0 | L217: 0 | M217: 0 | N217: 0 | O217: 0 | P217: 0.085844278 | Q217: 2.593633384 | R217: 5.103316114 | S217: 6.884584892 | T217: 9.028167023 | U217: 10.81511667 | V217: 14.77215919 | W217: 18.00646862 | X217: 21.60119778 | Y217: 24.83361359 | Z217: 28.42834275 | AA217: 32.38727889 | AB217: 35.98200805 | AC217: 39.57863083 | AD217: 44.07914338 | AE217: 46.76808916 | AF217: 48.91545853 | AG217: 51.42324764 | AH217: 53.57061702 | AI217: 56.0765125 | AJ217: 57.50020199 | AK217: 58.19547752 | AL217: 59.25401322 | AM217: 60.31444254 | AN217: 61.37392505 | AO217: 61.70688724 | AP217: 62.39932234 | AQ217: 62.01239187 | AR217: 62.34819449 | AS217: 62.68210349
B218: Tech_3 | C218: Gas_Open | D218: 13.98246183 | E218: 13.98246183 | F218: 13.98246183 | G218: 16.19376831 | H218: 17.78434269 | I218: 20.61203046 | J218: 22.82116154 | K218: 25.03029261 | L218: 27.97797613 | M218: 29.45073018 | N218: 30.92348423 | O218: 33.86899233 | P218: 32.78434269 | Q218: 31.02289513 | R218: 24.77289513 | S218: 17.78434269 | T218: 13.52289513 | U218: 6.918463376 | V218: 5.741130301 | W218: 4.563797225 | X218: 3.38646415 | Y218: 2.9455081 | Z218: 0 | AA218: 0 | AB218: 0 | AC218: 0 | AD218: 0 | AE218: 0 | AF218: 0 | AG218: 0 | AH218: 0 | AI218: 0 | AJ218: 0 | AK218: 0 | AL218: 0 | AM218: 0 | AN218: 0 | AO218: 0 | AP218: 0 | AQ218: 0 | AR218: 0 | AS218: 0
B219: Tech_4 | C219: Gas_Combined | D219: 41.94738548 | E219: 41.94738548 | F219: 41.94738548 | G219: 48.58130494 | H219: 53.35302806 | I219: 61.83609139 | J219: 68.46348462 | K219: 75.09087784 | L219: 83.93392838 | M219: 88.35219053 | N219: 92.77045268 | O219: 101.606977 | P219: 98.35302806 | Q219: 93.06868538 | R219: 74.31868538 | S219: 53.35302806 | T219: 40.56868538 | U219: 20.75539013 | V219: 17.2233909 | W219: 13.69139168 | X219: 10.15939245 | Y219: 8.8365243 | Z219: 0 | AA219: 0 | AB219: 0 | AC219: 0 | AD219: 0 | AE219: 0 | AF219: 0 | AG219: 0 | AH219: 0 | AI219: 0 | AJ219: 0 | AK219: 0 | AL219: 0 | AM219: 0 | AN219: 0 | AO219: 0 | AP219: 0 | AQ219: 0 | AR219: 0 | AS219: 0
B220: Tech_5 | C220: Gas_Combined_CCS | D220: 0 | E220: 0 | F220: 0 | G220: 0 | H220: 0 | I220: 0 | J220: 0 | K220: 0 | L220: 0 | M220: 0 | N220: 0 | O220: 3 | P220: 2.914155722 | Q220: 3.297382816 | R220: 6.678716287 | S220: 4.897447509 | T220: 10.97183298 | U220: 11.18488333 | V220: 9.22784081 | W220: 16.99353138 | X220: 17.39880222 | Y220: 19.16638641 | Z220: 26.57165725 | AA220: 25.61272111 | AB220: 24.01799195 | AC220: 27.42136917 | AD220: 25.92085662 | AE220: 25.23191084 | AF220: 28.08454147 | AG220: 27.07675236 | AH220: 28.42938298 | AI220: 28.9234875 | AJ220: 29.49979801 | AK220: 29.80452248 | AL220: 29.74598678 | AM220: 29.68555746 | AN220: 29.62607495 | AO220: 30.29311276 | AP220: 30.60067766 | AQ220: 30.98760813 | AR220: 30.65180551 | AS220: 30.31789651
B221: Tech_6 | C221: Oil | D221: 11.816839 | E221: 11.816839 | F221: 11.816839 | G221: 8.862629247 | H221: 8.862629247 | I221: 8.862629247 | J221: 8.862629247 | K221: 8.862629247 | L221: 5.908419498 | M221: 5.908419498 | N221: 5.908419498 | O221: 5.908419498 | P221: 8.862629247 | Q221: 5.908419498 | R221: 5.908419498 | S221: 8.862629247 | T221: 5.908419498 | U221: 4.726735598 | V221: 3.545051699 | W221: 2.363367799 | X221: 1.1816839 | Y221: 0 | Z221: 0 | AA221: 0 | AB221: 0 | AC221: 0 | AD221: 0 | AE221: 0 | AF221: 0 | AG221: 0 | AH221: 0 | AI221: 0 | AJ221: 0 | AK221: 0 | AL221: 0 | AM221: 0 | AN221: 0 | AO221: 0 | AP221: 0 | AQ221: 0 | AR221: 0 | AS221: 0
B222: Tech_7 | C222: Nuclear | D222: 0 | E222: 0 | F222: 0 | G222: 0 | H222: 0 | I222: 0 | J222: 0 | K222: 0 | L222: 0 | M222: 0 | N222: 0 | O222: 0 | P222: 0 | Q222: 0 | R222: 0 | S222: 0 | T222: 0 | U222: 5 | V222: 11.816839 | W222: 20.67946824 | X222: 20.67946824 | Y222: 23.63367799 | Z222: 26.58788774 | AA222: 32.49630724 | AB222: 35.45051699 | AC222: 41.35893648 | AD222: 41.35893648 | AE222: 47.26735598 | AF222: 53.17577548 | AG222: 56.12998523 | AH222: 59.08419498 | AI222: 56.12998523 | AJ222: 70.90103397 | AK222: 64.99261448 | AL222: 67.94682422 | AM222: 62.03840473 | AN222: 64.99261448 | AO222: 62.03840473 | AP222: 64.99261448 | AQ222: 64.99261448 | AR222: 64.99261448 | AS222: 62.03840473
B223: Tech_8 | C223: Biomass | D223: 6.722790699 | E223: 6.722790699 | F223: 6.722790699 | G223: 8.895813955 | H223: 11.06883721 | I223: 13.24186047 | J223: 15.41488372 | K223: 17.58790698 | L223: 19.76093023 | M223: 21.93395349 | N223: 24.10697675 | O223: 32.12 | P223: 39.81386046 | Q223: 47.50772093 | R223: 55.20158139 | S223: 62.89544185 | T223: 70.58930231 | U223: 78.28316278 | V223: 85.97702324 | W223: 93.6708837 | X223: 101.3647442 | Y223: 118.9730232 | Z223: 123.6178604 | AA223: 128.2626977 | AB223: 132.9075349 | AC223: 137.5523721 | AD223: 142.1972093 | AE223: 146.8420465 | AF223: 151.4868837 | AG223: 156.1317209 | AH223: 160.7765582 | AI223: 165.4213954 | AJ223: 166.5622326 | AK223: 167.7030698 | AL223: 168.843907 | AM223: 169.9847442 | AN223: 171.1255814 | AO223: 172.2664186 | AP223: 173.4072558 | AQ223: 174.548093 | AR223: 175.6889302 | AS223: 176.8297674
B224: Tech_9 | C224: Solar_utility | D224: 0.823878 | E224: 0.823878 | F224: 0.823878 | G224: 4.669969206 | H224: 9.13643058 | I224: 7.444102289 | J224: 7.274512429 | K224: 12.78886062 | L224: 24.96719775 | M224: 40.59445709 | N224: 55.4076851 | O224: 65.5509439 | P224: 78.95032802 | Q224: 96.46271255 | R224: 112.946847 | S224: 130.1379033 | T224: 143.9550141 | U224: 157.3222654 | V224: 173.3726068 | W224: 188.6838934 | X224: 201.2156915 | Y224: 212.0765832 | Z224: 226.5604499 | AA224: 240.7711876 | AB224: 249.0694872 | AC224: 260.918463 | AD224: 271.140715 | AE224: 278.8566073 | AF224: 282.310885 | AG224: 286.5604499 | AH224: 291.5812023 | AI224: 296.0235641 | AJ224: 298.6745214 | AK224: 302.2091311 | AL224: 305.7437408 | AM224: 307.9528719 | AN224: 309.7201767 | AO224: 311.0456554 | AP224: 311.4874816 | AQ224: 314.1384389 | AR224: 315.4639175 | AS224: 318.556701
... 152 more rows

Sheet General_INPUT_S1
A1: Return to Cover
B3: General Input | C3: S1
C6: Scenario name | D6: Scenario description
C7: =INDIRECT("ScenarioName_"&$C$3) -> Scenario 1 (JETP) | D7: =INDIRECT("ScenarioDescrip_"&$C$3) -> Based on the IEA's Announced Pledges Scenario, Indonesia achieves the targets set by the JETP.
B10: Step 3.1 | C10: Enter average annual salaries for all sectors corresponding to the sectoral breakdown in the national input output table
B11: Step 3.2 | C11: Enter historic and future (projections) capacity data for all technologies for all years of the modeling horizon (enter historic data for at least as many years as the construction period for the relevant technology to avoid the model considering it as new)
B12: Step 3.3 | C12: Enter capacity retirements for all technologies over the years of the modeling horizon (this is required to calculate the capacity additions in each year)
B13: Step 3.4 | C13: Either enter generation data for all technologies over the years of the modeling horizon or estimate generation using the load factor assumptions entered on the scenario setup sheet (note these may not be representative for all years)
C16: Average annual salaries
C18: The average annual salary should be a Full-time Equivalent (FTE). Investment estimates are divided by the annual salary to calculate the number of annual FTE jobs.
D19: Salary
C20: Sectors | D20: US$k
C21: =Lists!D9 -> D01T02: Agriculture, hunting, forestry | D21: 1.643507376
C22: =Lists!D10 -> D03: Fishing and aquaculture | D22: 1.643507376
C23: =Lists!D11 -> D05T06: Mining and quarrying, energy producing products | D23: 3.676805863
C24: =Lists!D12 -> D07T08: Mining and quarrying, non-energy producing products | D24: 3.676805863
C25: =Lists!D13 -> D09: Mining support service activities | D25: 3.676805863
C26: =Lists!D14 -> D10T12: Food products, beverages and tobacco | D26: 2.416679778
C27: =Lists!D15 -> D13T15: Textiles, textile products, leather and footwear | D27: 2.416679778
C28: =Lists!D16 -> D16: Wood and products of wood and cork | D28: 2.416679778
C29: =Lists!D17 -> D17T18: Paper products and printing | D29: 2.416679778
C30: =Lists!D18 -> D19: Coke and refined petroleum products | D30: 2.416679778
C31: =Lists!D19 -> D20: Chemical and chemical products | D31: 2.416679778
C32: =Lists!D20 -> D21: Pharmaceuticals, medicinal chemical and botanical products | D32: 2.416679778
C33: =Lists!D21 -> D22: Rubber and plastics products | D33: 2.416679778
C34: =Lists!D22 -> D23: Other non-metallic mineral products | D34: 2.416679778
C35: =Lists!D23 -> D24: Basic metals | D35: 2.416679778
C36: =Lists!D24 -> D25: Fabricated metal products | D36: 2.416679778
C37: =Lists!D25 -> D26: Computer, electronic and optical equipment | D37: 2.416679778
C38: =Lists!D26 -> D27: Electrical equipment | D38: 2.416679778
C39: =Lists!D27 -> D28: Machinery and equipment, nec | D39: 2.416679778
C40: =Lists!D28 -> D29: Motor vehicles, trailers and semi-trailers | D40: 2.416679778
C41: =Lists!D29 -> D30: Other transport equipment | D41: 2.416679778
C42: =Lists!D30 -> D31T33: Manufacturing nec; repair and installation of machinery and equipment | D42: 2.416679778
C43: =Lists!D31 -> D35: Electricity, gas, steam and air conditioning supply | D43: 3.906953725
C44: =Lists!D32 -> D36T39: Water supply; sewerage, waste management and remediation activities | D44: 2.307554247
C45: =Lists!D33 -> D41T43: Construction | D45: 2.532375437
C46: =Lists!D34 -> D45T47: Wholesale and retail trade; repair of motor vehicles | D46: 2.134338163
C47: =Lists!D35 -> D49: Land transport and transport via pipelines | D47: 2.893426267
C48: =Lists!D36 -> D50: Water transport | D48: 2.893426267
C49: =Lists!D37 -> D51: Air transport | D49: 2.893426267
C50: =Lists!D38 -> D52: Warehousing and support activities for transportation | D50: 2.893426267
C51: =Lists!D39 -> D53: Postal and courier activities | D51: 2.893426267
C52: =Lists!D40 -> D55T56: Accommodation and food service activities | D52: 1.799384634
C53: =Lists!D41 -> D58T60: Publishing, audiovisual and broadcasting activities | D53: 4.123124161
C54: =Lists!D42 -> D61: Telecommunications | D54: 4.123124161
C55: =Lists!D43 -> D62T63: IT and other information services | D55: 4.123124161
C56: =Lists!D44 -> D64T66: Financial and insurance activities | D56: 3.970015416
C57: =Lists!D45 -> D68: Real estate activities | D57: 3.564315537
C58: =Lists!D46 -> D69T75: Professional, scientific and technical activities | D58: 2.975472286
C59: =Lists!D47 -> D77T82: Administrative and support services | D59: 2.975472286
C60: =Lists!D48 -> D84: Public administration and defence; compulsory social security | D60: 3.355051963
C61: =Lists!D49 -> D85: Education | D61: 2.135302562
C62: =Lists!D50 -> D86T88: Human health and social work activities | D62: 2.858219339
C63: =Lists!D51 -> D90T93: Arts, entertainment and recreation | D63: 1.463574426
C64: =Lists!D52 -> D94T96: Other service activities | D64: 1.463574426
C65: =Lists!D53 -> D97T98: Activities of households as employers; undifferentiated goods- and services-producing activities of households for own use | D65: 1.463574426
C67: Year | D67: 2022
C68: Source | D68: Badan Pusat Statistik (2022a)
B70: Scenario input data
C72: Historic and future capacity
C73: Enter historic and future capacity projections. If historic data is not available enter capacities prior to the first year of data you have as equal to the level in that first year to avoid the model interpreting a sharp increase in newly constructed capacity. Similarly if your projections do not extend to 2050 enter the capacity level for the last year of the projections in all remaining years to avoid the model interpreting a sharp decrease in capacity.
C74: Unit | D74: MW
C75: Source | D75: IEA (2022) and Global Energy Monitor (2023)
B77: Tech Ref | C77: Technology | D77: 2010 | E77: 2011 | F77: 2012 | G77: 2013 | H77: 2014 | I77: 2015 | J77: 2016 | K77: 2017 | L77: 2018 | M77: 2019 | N77: 2020 | O77: 2021 | P77: 2022 | Q77: 2023 | R77: 2024 | S77: 2025 | T77: 2026 | U77: 2027 | V77: 2028 | W77: 2029 | X77: 2030 | Y77: 2031 | Z77: 2032 | AA77: 2033 | AB77: 2034 | AC77: 2035 | AD77: 2036 | AE77: 2037 | AF77: 2038 | AG77: 2039 | AH77: 2040 | AI77: 2041 | AJ77: 2042 | AK77: 2043 | AL77: 2044 | AM77: 2045 | AN77: 2046 | AO77: 2047 | AP77: 2048 | AQ77: 2049 | AR77: 2050 | AS77: 2051 | AT77: 2052 | AU77: 2053 | AV77: 2054 | AW77: 2055 | AX77: 2056 | AY77: 2057 | AZ77: 2058 | BA77: 2059 | BB77: 2060
B78: =TechRef_List -> Tech1 | C78: =INDEX(TechName_List,MATCH($B78,TechRef_List,0)) -> Coal | D78: =$M78 -> 34000 | E78: 34000 | F78: 34000 | G78: 34000 | H78: 34000 | I78: 34000 | J78: 34000 | K78: 34000 | L78: =$M78 -> 34000 | M78: 34000 | N78: 38686.6 | O78: 40922.6 | P78: 47412.6 | Q78: 50277.601 | R78: 57217.602 | S78: 60117.603 | T78: 61817.604 | U78: 66758.604 | V78: 67908.604 | W78: 67778.604 | X78: 68678.604 | Y78: 43800 | Z78: 42600 | AA78: 41400 | AB78: 40200 | AC78: 39000 | AD78: 37800 | AE78: 36600 | AF78: 35400 | AG78: 34200 | AH78: 33000 | AI78: 30700 | AJ78: 28400 | AK78: 26100 | AL78: 23800 | AM78: 21500 | AN78: 19200 | AO78: 16900 | AP78: 14600 | AQ78: 12300 | AR78: 10000 | AS78: 9000 | AT78: 8000 | AU78: 7000 | AV78: 6000 | AW78: 5000 | AX78: 4000 | AY78: 3000 | AZ78: 2000 | BA78: 1000 | BB78: 0
B79: Tech2 | C79: Coal CCS | D79: 0 | E79: 0 | F79: 0 | G79: 0 | H79: 0 | I79: 0 | J79: 0 | K79: 0 | L79: =$M79 -> 0 | M79: 0 | N79: 0 | O79: 0 | P79: 0 | Q79: 0 | R79: 0 | S79: 0 | T79: 0 | U79: 0 | V79: 0 | W79: 0 | X79: 0 | Y79: 301.0691376 | Z79: 602.1382751 | AA79: 903.2074127 | AB79: 1204.27655 | AC79: 1505.345688 | AD79: 1806.414825 | AE79: 2107.483963 | AF79: 2408.5531 | AG79: 2709.622238 | AH79: 3010.691376 | AI79: 3095.31005 | AJ79: 3180.38489 | AK79: 3265.915895 | AL79: 3351.903065 | AM79: 3438.346401 | AN79: 3525.245902 | AO79: 3612.601568 | AP79: 3700.4134 | AQ79: 3788.681397 | AR79: 3877.40556 | AS79: 4161.026372 | AT79: 4446.243763 | AU79: 4733.057733 | AV79: 5021.468282 | AW79: 5311.47541 | AX79: 5603.079116 | AY79: 5896.279401 | AZ79: 6191.076265 | BA79: 6487.469708 | BB79: 6785.459729
B80: Tech3 | C80: Gas Open | D80: 5040.322581 | E80: 5040.322581 | F80: 5040.322581 | G80: 5040.322581 | H80: 5040.322581 | I80: 5040.322581 | J80: 5040.322581 | K80: 5040.322581 | L80: 5040.322581 | M80: 5040.322581 | N80: 5040.322581 | O80: 5040.322581 | P80: 5313.620072 | Q80: 5586.917563 | R80: 5860.215054 | S80: 6133.512545 | T80: 6406.810036 | U80: 6680.107527 | V80: 6953.405018 | W80: 7226.702509 | X80: 7500 | Y80: 7233.870968 | Z80: 6967.741935 | AA80: 6701.612903 | AB80: 6435.483871 | AC80: 6169.354839 | AD80: 5903.225806 | AE80: 5637.096774 | AF80: 5370.967742 | AG80: 5104.83871 | AH80: 4838.709677 | AI80: 4529.83871 | AJ80: 4220.967742 | AK80: 3912.096774 | AL80: 3603.225806 | AM80: 3294.354839 | AN80: 2985.483871 | AO80: 2676.612903 | AP80: 2367.741935 | AQ80: 2058.870968 | AR80: 1750 | AS80: 1700 | AT80: 1650 | AU80: 1600 | AV80: 1550 | AW80: 1500 | AX80: 1450 | AY80: 1400 | AZ80: 1350 | BA80: 1300 | BB80: 1250
B81: Tech4 | C81: Gas Combined | D81: 15120.96774 | E81: 15120.96774 | F81: 15120.96774 | G81: 15120.96774 | H81: 15120.96774 | I81: 15120.96774 | J81: 15120.96774 | K81: 15120.96774 | L81: 15120.96774 | M81: 15120.96774 | N81: 15120.96774 | O81: 15120.96774 | P81: 15940.86022 | Q81: 16760.75269 | R81: 17580.64516 | S81: 18400.53763 | T81: 19220.43011 | U81: 20040.32258 | V81: 20860.21505 | W81: 21680.10753 | X81: 22500 | Y81: 21701.6129 | Z81: 20903.22581 | AA81: 20104.83871 | AB81: 19306.45161 | AC81: 18508.06452 | AD81: 17709.67742 | AE81: 16911.29032 | AF81: 16112.90323 | AG81: 15314.51613 | AH81: 14516.12903 | AI81: 13589.51613 | AJ81: 12662.90323 | AK81: 11736.29032 | AL81: 10809.67742 | AM81: 9883.064516 | AN81: 8956.451613 | AO81: 8029.83871 | AP81: 7103.225806 | AQ81: 6176.612903 | AR81: 5250 | AS81: 5100 | AT81: 4950 | AU81: 4800 | AV81: 4650 | AW81: 4500 | AX81: 4350 | AY81: 4200 | AZ81: 4050 | BA81: 3900 | BB81: 3750
B82: Tech5 | C82: Gas Combined CCS | D82: 0 | E82: 0 | F82: 0 | G82: 0 | H82: 0 | I82: 0 | J82: 0 | K82: 0 | L82: 0 | M82: 0 | N82: 0 | O82: 0 | P82: 0 | Q82: 0 | R82: 0 | S82: 0 | T82: 0 | U82: 0 | V82: 0 | W82: 0 | X82: 0 | Y82: 155.0962224 | Z82: 310.1924448 | AA82: 465.2886671 | AB82: 620.3848895 | AC82: 775.4811119 | AD82: 930.5773343 | AE82: 1085.673557 | AF82: 1240.769779 | AG82: 1395.866001 | AH82: 1550.962224 | AI82: 1580.38489 | AJ82: 1609.35139 | AK82: 1637.861725 | AL82: 1665.915895 | AM82: 1693.513899 | AN82: 1720.655738 | AO82: 1747.341411 | AP82: 1773.570919 | AQ82: 1799.344262 | AR82: 1824.66144 | AS82: 1940.185317 | AT82: 2054.112616 | AU82: 2166.443336 | AV82: 2277.177477 | AW82: 2386.315039 | AX82: 2493.856023 | AY82: 2599.800428 | AZ82: 2704.148254 | BA82: 2806.899501 | BB82: 2908.05417
B83: Tech6 | C83: Oil | D83: 12096.77419 | E83: 12096.77419 | F83: 12096.77419 | G83: 12096.77419 | H83: 12096.77419 | I83: 12096.77419 | J83: 12096.77419 | K83: 12096.77419 | L83: 12096.77419 | M83: 12096.77419 | N83: 12096.77419 | O83: 12096.77419 | P83: 11863.79928 | Q83: 11630.82437 | R83: 11397.84946 | S83: 11164.87455 | T83: 10931.89964 | U83: 10698.92473 | V83: 10465.94982 | W83: 10232.97491 | X83: 10000 | Y83: 9700 | Z83: 9400 | AA83: 9100 | AB83: 8800 | AC83: 8500 | AD83: 8200 | AE83: 7900 | AF83: 7600 | AG83: 7300 | AH83: 7000 | AI83: 6750 | AJ83: 6500 | AK83: 6250 | AL83: 6000 | AM83: 5750 | AN83: 5500 | AO83: 5250 | AP83: 5000 | AQ83: 4750 | AR83: 4500 | AS83: 4450 | AT83: 4400 | AU83: 4350 | AV83: 4300 | AW83: 4250 | AX83: 4200 | AY83: 4150 | AZ83: 4100 | BA83: 4050 | BB83: 4000
B84: Tech7 | C84: Nuclear | D84: 0 | E84: 0 | F84: 0 | G84: 0 | H84: 0 | I84: 0 | J84: 0 | K84: 0 | L84: 0 | M84: 0 | N84: 0 | O84: 0 | P84: 0 | Q84: 0 | R84: 0 | S84: 0 | T84: 0 | U84: 0 | V84: 0 | W84: 0 | X84: 0 | Y84: 350 | Z84: 700 | AA84: 1050 | AB84: 1400 | AC84: 1750 | AD84: 2100 | AE84: 2450 | AF84: 2800 | AG84: 3150 | AH84: 3500 | AI84: 4000 | AJ84: 4500 | AK84: 5000 | AL84: 5500 | AM84: 6000 | AN84: 6500 | AO84: 7000 | AP84: 7500 | AQ84: 8000 | AR84: 8500 | AS84: 8650 | AT84: 8800 | AU84: 8950 | AV84: 9100 | AW84: 9250 | AX84: 9400 | AY84: 9550 | AZ84: 9700 | BA84: 9850 | BB84: 10000
B85: Tech8 | C85: Biomass | D85: 3991.4469 | E85: 3991.4469 | F85: 3991.4469 | G85: 3991.4469 | H85: 3991.4469 | I85: 3991.4469 | J85: 3991.4469 | K85: 3991.4469 | L85: 3991.4469 | M85: 3991.4469 | N85: 3991.4469 | O85: 3991.4469 | P85: 4054.803199 | Q85: 4118.159499 | R85: 4181.515799 | S85: 4244.872099 | T85: 4308.228399 | U85: 4371.584699 | V85: 4434.940999 | W85: 4498.297299 | X85: 4561.653599 | Y85: 5188.880969 | Z85: 5816.108339 | AA85: 6443.335709 | AB85: 7070.563079 | AC85: 7697.790449 | AD85: 8325.017819 | AE85: 8952.245189 | AF85: 9579.472559 | AG85: 10206.69993 | AH85: 10833.9273 | AI85: 11746.25802 | AJ85: 12658.58874 | AK85: 13570.91946 | AL85: 14483.25018 | AM85: 15395.5809 | AN85: 16307.91162 | AO85: 17220.24234 | AP85: 18132.57306 | AQ85: 19044.90378 | AR85: 19957.2345 | AS85: 20461.51105 | AT85: 20965.7876 | AU85: 21470.06415 | AV85: 21974.3407 | AW85: 22478.61725 | AX85: 22982.8938 | AY85: 23487.17035 | AZ85: 23991.4469 | BA85: 24495.72345 | BB85: 25000
B86: Tech9 | C86: Solar utility | D86: 495 | E86: 495 | F86: 495 | G86: 495 | H86: 495 | I86: 495 | J86: 495 | K86: 495 | L86: 495 | M86: 495 | N86: 495 | O86: 495 | P86: 2869.477575 | Q86: 5111.758005 | R86: 7221.841292 | S86: 9199.727436 | T86: 11045.41644 | U86: 12758.90829 | V86: 14340.203 | W86: 15789.30057 | X86: 17106.201 | Y86: 24350.67712 | Z86: 31173.20029 | AA86: 37573.77049 | AB86: 43552.38774 | AC86: 49109.05203 | AD86: 54243.76336 | AE86: 58956.52174 | AF86: 63247.32716 | AG86: 67116.17962 | AH86: 70563.07912 | AI86: 80281.7712 | AJ86: 90000.46329 | AK86: 99719.15538 | AL86: 109437.8475 | AM86: 119156.5396 | AN86: 128875.2316 | AO86: 138593.9237 | AP86: 148312.6158 | AQ86: 158031.3079 | AR86: 167750 | AS86: 170356.3257 | AT86: 172962.6515 | AU86: 175568.9772 | AV86: 178175.3029 | AW86: 180781.6287 | AX86: 183387.9544 | AY86: 185994.2801 | AZ86: 188600.6058 | BA86: 191206.9316 | BB86: 193813.2573
B87: Tech10 | C87: Solar rooftop | D87: 5 | E87: 5 | F87: 5 | G87: 5 | H87: 5 | I87: 5 | J87: 5 | K87: 5 | L87: 5 | M87: 5 | N87: 5 | O87: 5 | P87: 43.0256153 | Q87: 103.0840879 | R87: 185.1754178 | S87: 289.2996049 | T87: 415.4566493 | U87: 563.646551 | V87: 733.86931 | W87: 926.1249263 | X87: 1140.4134 | Y87: 2001.425517 | Z87: 3073.414113 | AA87: 4356.379187 | AB87: 5850.320741 | AC87: 7555.238774 | AD87: 9471.133286 | AE87: 11598.00428 | AF87: 13935.85175 | AG87: 16484.67569 | AH87: 19244.47612 | AI87: 22624.86279 | AJ87: 26181.95296 | AK87: 29915.74661 | AL87: 33826.24376 | AM87: 37913.4444 | AN87: 42177.34854 | AO87: 46617.95617 | AP87: 51235.26728 | AQ87: 56029.2819 | AR87: 61000 | AS87: 61947.75481 | AT87: 62895.50962 | AU87: 63843.26443 | AV87: 64791.01924 | AW87: 65738.77406 | AX87: 66686.52887 | AY87: 67634.28368 | AZ87: 68582.03849 | BA87: 69529.7933 | BB87: 70477.54811
B88: Tech11 | C88: Solar floating | D88: 0 | E88: 0 | F88: 0 | G88: 0 | H88: 0 | I88: 0 | J88: 0 | K88: 0 | L88: 0 | M88: 0 | N88: 0 | O88: 0 | P88: 66.19325431 | Q88: 242.550795 | R88: 529.0726222 | S88: 925.7587357 | T88: 1432.609136 | U88: 2049.623822 | V88: 2776.802795 | W88: 3614.146054 | X88: 4561.653599 | Y88: 7004.989309 | Z88: 9659.301497 | AA88: 12524.59016 | AB88: 15600.85531 | AC88: 18888.09694 | AD88: 22386.31504 | AE88: 26095.50962 | AF88: 30015.68068 | AG88: 34146.82823 | AH88: 38488.95225 | AI88: 43060.22274 | AJ88: 47454.78974 | AK88: 51672.65324 | AL88: 55713.81326 | AM88: 59578.26978 | AN88: 63266.02281 | AO88: 66777.07234 | AP88: 70111.41839 | AQ88: 73269.06094 | AR88: 76250 | AS88: 77434.69351 | AT88: 78619.38703 | AU88: 79804.08054 | AV88: 80988.77406 | AW88: 82173.46757 | AX88: 83358.16108 | AY88: 84542.8546 | AZ88: 85727.54811 | BA88: 86912.24163 | BB88: 88096.93514
B89: Tech12 | C89: Wind onshore | D89: 0 | E89: 0 | F89: 0 | G89: 0 | H89: 0 | I89: 0 | J89: 0 | K89: 0 | L89: 0 | M89: 0 | N89: 0 | O89: 0 | P89: 570.2066999 | Q89: 1140.4134 | R89: 1710.6201 | S89: 2280.8268 | T89: 2851.0335 | U89: 3421.2402 | V89: 3991.4469 | W89: 4561.653599 | X89: 5131.860299 | Y89: 8130.577334 | Z89: 10934.28368 | AA89: 13542.97933 | AB89: 15956.66429 | AC89: 18175.33856 | AD89: 20199.00214 | AE89: 22027.65502 | AF89: 23661.29722 | AG89: 25099.92872 | AH89: 26343.54954 | AI89: 29787.4918 | AJ89: 33120.70135 | AK89: 36343.17819 | AL89: 39454.92231 | AM89: 42455.93371 | AN89: 45346.2124 | AO89: 48125.75837 | AP89: 50794.57163 | AQ89: 53352.65217 | AR89: 55800 | AS89: 58380 | AT89: 60960 | AU89: 63540 | AV89: 66120 | AW89: 68700 | AX89: 71280 | AY89: 73860 | AZ89: 76440 | BA89: 79020 | BB89: 81600
B90: Tech13 | C90: Wind offshore | D90: 0 | E90: 0 | F90: 0 | G90: 0 | H90: 0 | I90: 0 | J90: 0 | K90: 0 | L90: 0 | M90: 0 | N90: 0 | O90: 0 | P90: 0 | Q90: 0 | R90: 0 | S90: 0 | T90: 0 | U90: 0 | V90: 0 | W90: 0 | X90: 0 | Y90: 251.4611547 | Z90: 697.9330007 | AA90: 1339.415538 | AB90: 2175.908767 | AC90: 3207.412687 | AD90: 4433.927299 | AE90: 5855.452602 | AF90: 7471.988596 | AG90: 9283.535282 | AH90: 11290.09266 | AI90: 13382.78617 | AJ90: 15586.2124 | AK90: 17900.37135 | AL90: 20325.26301 | AM90: 22860.88738 | AN90: 25507.24448 | AO90: 28264.33428 | AP90: 31132.15681 | AQ90: 34110.71205 | AR90: 37200 | AS90: 38920 | AT90: 40640 | AU90: 42360 | AV90: 44080 | AW90: 45800 | AX90: 47520 | AY90: 49240 | AZ90: 50960 | BA90: 52680 | BB90: 54400
B91: Tech14 | C91: Geothermal | D91: 3421.2402 | E91: 3421.2402 | F91: 3421.2402 | G91: 3421.2402 | H91: 3421.2402 | I91: 3421.2402 | J91: 3421.2402 | K91: 3421.2402 | L91: 3421.2402 | M91: 3421.2402 | N91: 3421.2402 | O91: 3421.2402 | P91: 3928.0906 | Q91: 4434.940999 | R91: 4941.791399 | S91: 5448.641799 | T91: 5955.492199 | U91: 6462.342599 | V91: 6969.192999 | W91: 7476.043399 | X91: 7982.893799 | Y91: 9066.286529 | Z91: 10149.67926 | AA91: 11233.07199 | AB91: 12316.46472 | AC91: 13399.85745 | AD91: 14483.25018 | AE91: 15566.64291 | AF91: 16650.03564 | AG91: 17733.42837 | AH91: 18816.8211 | AI91: 18873.84177 | AJ91: 18930.86244 | AK91: 18987.88311 | AL91: 19044.90378 | AM91: 19101.92445 | AN91: 19158.94512 | AO91: 19215.96579 | AP91: 19272.98646 | AQ91: 19330.00713 | AR91: 19387.0278 | AS91: 19648.32502 | AT91: 19909.62224 | AU91: 20170.91946 | AV91: 20432.21668 | AW91: 20693.5139 | AX91: 20954.81112 | AY91: 21216.10834 | AZ91: 21477.40556 | BA91: 21738.70278 | BB91: 22000
B92: Tech15 | C92: Hydro large | D92: 4333.570919 | E92: 4333.570919 | F92: 4333.570919 | G92: 4333.570919 | H92: 4333.570919 | I92: 4333.570919 | J92: 4333.570919 | K92: 4333.570919 | L92: 4333.570919 | M92: 4333.570919 | N92: 4333.570919 | O92: 4333.570919 | P92: 5265.612488 | Q92: 6186.390715 | R92: 7095.905599 | S92: 7994.157141 | T92: 8881.145341 | U92: 9756.870199 | V92: 10621.33171 | W92: 11474.52989 | X92: 12316.46472 | Y92: 14697.6479 | Z92: 17051.46115 | AA92: 19377.90449 | AB92: 21676.9779 | AC92: 23948.6814 | AD92: 26193.01497 | AE92: 28409.97862 | AF92: 30599.57234 | AG92: 32761.79615 | AH92: 34896.65004 | AI92: 36123.23806 | AJ92: 37332.88097 | AK92: 38525.57876 | AL92: 39701.33143 | AM92: 40860.13899 | AN92: 42002.00143 | AO92: 43126.91875 | AP92: 44234.89095 | AQ92: 45325.91803 | AR92: 46400 | AS92: 47210.76051 | AT92: 48007.67498 | AU92: 48790.74341 | AV92: 49559.96579 | AW92: 50315.34212 | AX92: 51056.87242 | AY92: 51784.55666 | AZ92: 52498.39487 | BA92: 53198.38703 | BB92: 53884.53314
B93: Tech16 | C93: Hydro small | D93: 228.08268 | E93: 228.08268 | F93: 228.08268 | G93: 228.08268 | H93: 228.08268 | I93: 228.08268 | J93: 228.08268 | K93: 228.08268 | L93: 228.08268 | M93: 228.08268 | N93: 228.08268 | O93: 228.08268 | P93: 309.7419111 | Q93: 402.6644844 | R93: 506.8503999 | S93: 622.2996577 | T93: 749.0122577 | U93: 886.9881999 | V93: 1036.227484 | W93: 1196.730111 | X93: 1368.49608 | Y93: 1724.305061 | Z93: 2107.483963 | AA93: 2518.032787 | AB93: 2955.951532 | AC93: 3421.2402 | AD93: 3913.898788 | AE93: 4433.927299 | AF93: 4981.325731 | AG93: 5556.094084 | AH93: 6158.232359 | AI93: 6626.156094 | AJ93: 7111.024947 | AK93: 7612.838917 | AL93: 8131.598004 | AM93: 8667.30221 | AN93: 9219.951532 | AO93: 9789.545973 | AP93: 10376.08553 | AQ93: 10979.57021 | AR93: 11600 | AS93: 12173.84391 | AT93: 12761.53386 | AU93: 13363.06985 | AV93: 13978.45189 | AW93: 14607.67997 | AX93: 15250.7541 | AY93: 15907.67427 | AZ93: 16578.44048 | BA93: 17263.05274 | BB93: 17961.51105
B94: Tech17 | C94: Hydrogen | D94: =$M94 -> 0 | E94: 0 | F94: 0 | G94: 0 | H94: 0 | I94: 0 | J94: 0 | K94: 0 | L94: 0 | M94: 0 | N94: 0 | O94: 0 | P94: 0 | Q94: 0 | R94: 0 | S94: 0 | T94: 0 | U94: 0 | V94: 0 | W94: 0 | X94: 0 | Y94: 456.1653599 | Z94: 912.3307199 | AA94: 1368.49608 | AB94: 1824.66144 | AC94: 2280.8268 | AD94: 2736.99216 | AE94: 3193.15752 | AF94: 3649.32288 | AG94: 4105.488239 | AH94: 4561.653599 | AI94: 5205.488239 | AJ94: 5849.32288 | AK94: 6493.15752 | AL94: 7136.99216 | AM94: 7780.8268 | AN94: 8424.66144 | AO94: 9068.49608 | AP94: 9712.33072 | AQ94: 10356.16536 | AR94: 11000 | AS94: 11000 | AT94: 11000 | AU94: 11000 | AV94: 11000 | AW94: 11000 | AX94: 11000 | AY94: 11000 | AZ94: 11000 | BA94: 11000 | BB94: 11000
B95: Tech18 | C95: Pumped storage | D95: 0 | E95: 0 | F95: 0 | G95: 0 | H95: 0 | I95: 0 | J95: 0 | K95: 0 | L95: 0 | M95: 0 | N95: 0 | O95: 0 | P95: 0 | Q95: 0 | R95: 0 | S95: 0 | T95: 0 | U95: 0 | V95: 0 | W95: 0 | X95: 0 | Y95: 0 | Z95: 0 | AA95: 0 | AB95: 0 | AC95: 0 | AD95: 0 | AE95: 0 | AF95: 0 | AG95: 0 | AH95: 0 | AI95: 0 | AJ95: 0 | AK95: 0 | AL95: 0 | AM95: 0 | AN95: 0 | AO95: 0 | AP95: 0 | AQ95: 0 | AR95: 0 | AS95: 0 | AT95: 0 | AU95: 0 | AV95: 0 | AW95: 0 | AX95: 0 | AY95: 0 | AZ95: 0 | BA95: 0 | BB95: 0
B96: Tech19 | C96: Batteries | D96: 0 | E96: 0 | F96: 0 | G96: 0 | H96: 0 | I96: 0 | J96: 0 | K96: 0 | L96: 0 | M96: 0 | N96: 0 | O96: 0 | P96: 886.9881999 | Q96: 1773.9764 | R96: 2660.9646 | S96: 3547.9528 | T96: 4434.940999 | U96: 5321.929199 | V96: 6208.917399 | W96: 7095.905599 | X96: 7982.893799 | Y96: 10833.9273 | Z96: 13684.9608 | AA96: 16535.9943 | AB96: 19387.0278 | AC96: 22238.0613 | AD96: 25089.0948 | AE96: 27940.1283 | AF96: 30791.1618 | AG96: 33642.1953 | AH96: 36493.2288 | AI96: 40343.90592 | AJ96: 44194.58304 | AK96: 48045.26016 | AL96: 51895.93728 | AM96: 55746.6144 | AN96: 59597.29152 | AO96: 63447.96864 | AP96: 67298.64576 | AQ96: 71149.32288 | AR96: 75000 | AS96: 76700 | AT96: 78400 | AU96: 80100 | AV96: 81800 | AW96: 83500 | AX96: 85200 | AY96: 86900 | AZ96: 88600 | BA96: 90300 | BB96: 92000
B97: Tech20 | C97: unassigned1 | D97: 0 | E97: 0 | F97: 0 | G97: 0 | H97: 0 | I97: 0 | J97: 0 | K97: 0 | L97: 0 | M97: 0 | N97: 0 | O97: 0 | P97: 0 | Q97: 0 | R97: 0 | S97: 0 | T97: 0 | U97: 0 | V97: 0 | W97: 0 | X97: 0 | Y97: 0 | Z97: 0 | AA97: 0 | AB97: 0 | AC97: 0 | AD97: 0 | AE97: 0 | AF97: 0 | AG97: 0 | AH97: 0 | AI97: 0 | AJ97: 0 | AK97: 0 | AL97: 0 | AM97: 0 | AN97: 0 | AO97: 0 | AP97: 0 | AQ97: 0 | AR97: 0 | AS97: 0 | AT97: 0 | AU97: 0 | AV97: 0 | AW97: 0 | AX97: 0 | AY97: 0 | AZ97: 0 | BA97: 0 | BB97: 0
B98: Tech21 | C98: unassigned2 | D98: 0 | E98: 0 | F98: 0 | G98: 0 | H98: 0 | I98: 0 | J98: 0 | K98: 0 | L98: 0 | M98: 0 | N98: 0 | O98: 0 | P98: 0 | Q98: 0 | R98: 0 | S98: 0 | T98: 0 | U98: 0 | V98: 0 | W98: 0 | X98: 0 | Y98: 0 | Z98: 0 | AA98: 0 | AB98: 0 | AC98: 0 | AD98: 0 | AE98: 0 | AF98: 0 | AG98: 0 | AH98: 0 | AI98: 0 | AJ98: 0 | AK98: 0 | AL98: 0 | AM98: 0 | AN98: 0 | AO98: 0 | AP98: 0 | AQ98: 0 | AR98: 0 | AS98: 0 | AT98: 0 | AU98: 0 | AV98: 0 | AW98: 0 | AX98: 0 | AY98: 0 | AZ98: 0 | BA98: 0 | BB98: 0
B99: Tech22 | C99: unassigned3 | D99: 0 | E99: 0 | F99: 0 | G99: 0 | H99: 0 | I99: 0 | J99: 0 | K99: 0 | L99: 0 | M99: 0 | N99: 0 | O99: 0 | P99: 0 | Q99: 0 | R99: 0 | S99: 0 | T99: 0 | U99: 0 | V99: 0 | W99: 0 | X99: 0 | Y99: 0 | Z99: 0 | AA99: 0 | AB99: 0 | AC99: 0 | AD99: 0 | AE99: 0 | AF99: 0 | AG99: 0 | AH99: 0 | AI99: 0 | AJ99: 0 | AK99: 0 | AL99: 0 | AM99: 0 | AN99: 0 | AO99: 0 | AP99: 0 | AQ99: 0 | AR99: 0 | AS99: 0 | AT99: 0 | AU99: 0 | AV99: 0 | AW99: 0 | AX99: 0 | AY99: 0 | AZ99: 0 | BA99: 0 | BB99: 0
B100: Tech23 | C100: unassigned4 | D100: 0 | E100: 0 | F100: 0 | G100: 0 | H100: 0 | I100: 0 | J100: 0 | K100: 0 | L100: 0 | M100: 0 | N100: 0 | O100: 0 | P100: 0 | Q100: 0 | R100: 0 | S100: 0 | T100: 0 | U100: 0 | V100: 0 | W100: 0 | X100: 0 | Y100: 0 | Z100: 0 | AA100: 0 | AB100: 0 | AC100: 0 | AD100: 0 | AE100: 0 | AF100: 0 | AG100: 0 | AH100: 0 | AI100: 0 | AJ100: 0 | AK100: 0 | AL100: 0 | AM100: 0 | AN100: 0 | AO100: 0 | AP100: 0 | AQ100: 0 | AR100: 0 | AS100: 0 | AT100: 0 | AU100: 0 | AV100: 0 | AW100: 0 | AX100: 0 | AY100: 0 | AZ100: 0 | BA100: 0 | BB100: 0
B101: Tech24 | C101: unassigned5 | D101: 0 | E101: 0 | F101: 0 | G101: 0 | H101: 0 | I101: 0 | J101: 0 | K101: 0 | L101: 0 | M101: 0 | N101: 0 | O101: 0 | P101: 0 | Q101: 0 | R101: 0 | S101: 0 | T101: 0 | U101: 0 | V101: 0 | W101: 0 | X101: 0 | Y101: 0 | Z101: 0 | AA101: 0 | AB101: 0 | AC101: 0 | AD101: 0 | AE101: 0 | AF101: 0 | AG101: 0 | AH101: 0 | AI101: 0 | AJ101: 0 | AK101: 0 | AL101: 0 | AM101: 0 | AN101: 0 | AO101: 0 | AP101: 0 | AQ101: 0 | AR101: 0 | AS101: 0 | AT101: 0 | AU101: 0 | AV101: 0 | AW101: 0 | AX101: 0 | AY101: 0 | AZ101: 0 | BA101: 0 | BB101: 0
B102: Tech25 | C102: unassigned6 | D102: 0 | E102: 0 | F102: 0 | G102: 0 | H102: 0 | I102: 0 | J102: 0 | K102: 0 | L102: 0 | M102: 0 | N102: 0 | O102: 0 | P102: 0 | Q102: 0 | R102: 0 | S102: 0 | T102: 0 | U102: 0 | V102: 0 | W102: 0 | X102: 0 | Y102: 0 | Z102: 0 | AA102: 0 | AB102: 0 | AC102: 0 | AD102: 0 | AE102: 0 | AF102: 0 | AG102: 0 | AH102: 0 | AI102: 0 | AJ102: 0 | AK102: 0 | AL102: 0 | AM102: 0 | AN102: 0 | AO102: 0 | AP102: 0 | AQ102: 0 | AR102: 0 | AS102: 0 | AT102: 0 | AU102: 0 | AV102: 0 | AW102: 0 | AX102: 0 | AY102: 0 | AZ102: 0 | BA102: 0 | BB102: 0
B103: Tech26 | C103: unassigned7 | D103: 0 | E103: 0 | F103: 0 | G103: 0 | H103: 0 | I103: 0 | J103: 0 | K103: 0 | L103: 0 | M103: 0 | N103: 0 | O103: 0 | P103: 0 | Q103: 0 | R103: 0 | S103: 0 | T103: 0 | U103: 0 | V103: 0 | W103: 0 | X103: 0 | Y103: 0 | Z103: 0 | AA103: 0 | AB103: 0 | AC103: 0 | AD103: 0 | AE103: 0 | AF103: 0 | AG103: 0 | AH103: 0 | AI103: 0 | AJ103: 0 | AK103: 0 | AL103: 0 | AM103: 0 | AN103: 0 | AO103: 0 | AP103: 0 | AQ103: 0 | AR103: 0 | AS103: 0 | AT103: 0 | AU103: 0 | AV103: 0 | AW103: 0 | AX103: 0 | AY103: 0 | AZ103: 0 | BA103: 0 | BB103: 0
B104: Tech27 | C104: unassigned8 | D104: 0 | E104: 0 | F104: 0 | G104: 0 | H104: 0 | I104: 0 | J104: 0 | K104: 0 | L104: 0 | M104: 0 | N104: 0 | O104: 0 | P104: 0 | Q104: 0 | R104: 0 | S104: 0 | T104: 0 | U104: 0 | V104: 0 | W104: 0 | X104: 0 | Y104: 0 | Z104: 0 | AA104: 0 | AB104: 0 | AC104: 0 | AD104: 0 | AE104: 0 | AF104: 0 | AG104: 0 | AH104: 0 | AI104: 0 | AJ104: 0 | AK104: 0 | AL104: 0 | AM104: 0 | AN104: 0 | AO104: 0 | AP104: 0 | AQ104: 0 | AR104: 0 | AS104: 0 | AT104: 0 | AU104: 0 | AV104: 0 | AW104: 0 | AX104: 0 | AY104: 0 | AZ104: 0 | BA104: 0 | BB104: 0
B105: Tech28 | C105: unassigned9 | D105: 0 | E105: 0 | F105: 0 | G105: 0 | H105: 0 | I105: 0 | J105: 0 | K105: 0 | L105: 0 | M105: 0 | N105: 0 | O105: 0 | P105: 0 | Q105: 0 | R105: 0 | S105: 0 | T105: 0 | U105: 0 | V105: 0 | W105: 0 | X105: 0 | Y105: 0 | Z105: 0 | AA105: 0 | AB105: 0 | AC105: 0 | AD105: 0 | AE105: 0 | AF105: 0 | AG105: 0 | AH105: 0 | AI105: 0 | AJ105: 0 | AK105: 0 | AL105: 0 | AM105: 0 | AN105: 0 | AO105: 0 | AP105: 0 | AQ105: 0 | AR105: 0 | AS105: 0 | AT105: 0 | AU105: 0 | AV105: 0 | AW105: 0 | AX105: 0 | AY105: 0 | AZ105: 0 | BA105: 0 | BB105: 0
B106: Tech29 | C106: unassigned10 | D106: 0 | E106: 0 | F106: 0 | G106: 0 | H106: 0 | I106: 0 | J106: 0 | K106: 0 | L106: 0 | M106: 0 | N106: 0 | O106: 0 | P106: 0 | Q106: 0 | R106: 0 | S106: 0 | T106: 0 | U106: 0 | V106: 0 | W106: 0 | X106: 0 | Y106: 0 | Z106: 0 | AA106: 0 | AB106: 0 | AC106: 0 | AD106: 0 | AE106: 0 | AF106: 0 | AG106: 0 | AH106: 0 | AI106: 0 | AJ106: 0 | AK106: 0 | AL106: 0 | AM106: 0 | AN106: 0 | AO106: 0 | AP106: 0 | AQ106: 0 | AR106: 0 | AS106: 0 | AT106: 0 | AU106: 0 | AV106: 0 | AW106: 0 | AX106: 0 | AY106: 0 | AZ106: 0 | BA106: 0 | BB106: 0
B107: Tech30 | C107: unassigned11 | D107: 0 | E107: 0 | F107: 0 | G107: 0 | H107: 0 | I107: 0 | J107: 0 | K107: 0 | L107: 0 | M107: 0 | N107: 0 | O107: 0 | P107: 0 | Q107: 0 | R107: 0 | S107: 0 | T107: 0 | U107: 0 | V107: 0 | W107: 0 | X107: 0 | Y107: 0 | Z107: 0 | AA107: 0 | AB107: 0 | AC107: 0 | AD107: 0 | AE107: 0 | AF107: 0 | AG107: 0 | AH107: 0 | AI107: 0 | AJ107: 0 | AK107: 0 | AL107: 0 | AM107: 0 | AN107: 0 | AO107: 0 | AP107: 0 | AQ107: 0 | AR107: 0 | AS107: 0 | AT107: 0 | AU107: 0 | AV107: 0 | AW107: 0 | AX107: 0 | AY107: 0 | AZ107: 0 | BA107: 0 | BB107: 0
B108: Tech31 | C108: unassigned12 | D108: 0 | E108: 0 | F108: 0 | G108: 0 | H108: 0 | I108: 0 | J108: 0 | K108: 0 | L108: 0 | M108: 0 | N108: 0 | O108: 0 | P108: 0 | Q108: 0 | R108: 0 | S108: 0 | T108: 0 | U108: 0 | V108: 0 | W108: 0 | X108: 0 | Y108: 0 | Z108: 0 | AA108: 0 | AB108: 0 | AC108: 0 | AD108: 0 | AE108: 0 | AF108: 0 | AG108: 0 | AH108: 0 | AI108: 0 | AJ108: 0 | AK108: 0 | AL108: 0 | AM108: 0 | AN108: 0 | AO108: 0 | AP108: 0 | AQ108: 0 | AR108: 0 | AS108: 0 | AT108: 0 | AU108: 0 | AV108: 0 | AW108: 0 | AX108: 0 | AY108: 0 | AZ108: 0 | BA108: 0 | BB108: 0
B109: Tech32 | C109: unassigned13 | D109: 0 | E109: 0 | F109: 0 | G109: 0 | H109: 0 | I109: 0 | J109: 0 | K109: 0 | L109: 0 | M109: 0 | N109: 0 | O109: 0 | P109: 0 | Q109: 0 | R109: 0 | S109: 0 | T109: 0 | U109: 0 | V109: 0 | W109: 0 | X109: 0 | Y109: 0 | Z109: 0 | AA109: 0 | AB109: 0 | AC109: 0 | AD109: 0 | AE109: 0 | AF109: 0 | AG109: 0 | AH109: 0 | AI109: 0 | AJ109: 0 | AK109: 0 | AL109: 0 | AM109: 0 | AN109: 0 | AO109: 0 | AP109: 0 | AQ109: 0 | AR109: 0 | AS109: 0 | AT109: 0 | AU109: 0 | AV109: 0 | AW109: 0 | AX109: 0 | AY109: 0 | AZ109: 0 | BA109: 0 | BB109: 0
B110: Tech33 | C110: unassigned14 | D110: =$M110 -> 0 | E110: 0 | F110: 0 | G110: 0 | H110: 0 | I110: 0 | J110: 0 | K110: 0 | L110: 0 | M110: 0 | N110: 0 | O110: 0 | P110: 0 | Q110: 0 | R110: 0 | S110: 0 | T110: 0 | U110: 0 | V110: 0 | W110: 0 | X110: 0 | Y110: 0 | Z110: 0 | AA110: 0 | AB110: 0 | AC110: 0 | AD110: 0 | AE110: 0 | AF110: 0 | AG110: 0 | AH110: 0 | AI110: 0 | AJ110: 0 | AK110: 0 | AL110: 0 | AM110: 0 | AN110: 0 | AO110: 0 | AP110: 0 | AQ110: 0 | AR110: 0 | AS110: 0 | AT110: 0 | AU110: 0 | AV110: 0 | AW110: 0 | AX110: 0 | AY110: 0 | AZ110: 0 | BA110: 0 | BB110: 0
B111: Tech34 | C111: unassigned15 | D111: 0 | E111: 0 | F111: 0 | G111: 0 | H111: 0 | I111: 0 | J111: 0 | K111: 0 | L111: 0 | M111: 0 | N111: 0 | O111: 0 | P111: 0 | Q111: 0 | R111: 0 | S111: 0 | T111: 0 | U111: 0 | V111: 0 | W111: 0 | X111: 0 | Y111: 0 | Z111: 0 | AA111: 0 | AB111: 0 | AC111: 0 | AD111: 0 | AE111: 0 | AF111: 0 | AG111: 0 | AH111: 0 | AI111: 0 | AJ111: 0 | AK111: 0 | AL111: 0 | AM111: 0 | AN111: 0 | AO111: 0 | AP111: 0 | AQ111: 0 | AR111: 0 | AS111: 0 | AT111: 0 | AU111: 0 | AV111: 0 | AW111: 0 | AX111: 0 | AY111: 0 | AZ111: 0 | BA111: 0 | BB111: 0
B112: Tech35 | C112: unassigned16 | D112: 0 | E112: 0 | F112: 0 | G112: 0 | H112: 0 | I112: 0 | J112: 0 | K112: 0 | L112: 0 | M112: 0 | N112: 0 | O112: 0 | P112: 0 | Q112: 0 | R112: 0 | S112: 0 | T112: 0 | U112: 0 | V112: 0 | W112: 0 | X112: 0 | Y112: 0 | Z112: 0 | AA112: 0 | AB112: 0 | AC112: 0 | AD112: 0 | AE112: 0 | AF112: 0 | AG112: 0 | AH112: 0 | AI112: 0 | AJ112: 0 | AK112: 0 | AL112: 0 | AM112: 0 | AN112: 0 | AO112: 0 | AP112: 0 | AQ112: 0 | AR112: 0 | AS112: 0 | AT112: 0 | AU112: 0 | AV112: 0 | AW112: 0 | AX112: 0 | AY112: 0 | AZ112: 0 | BA112: 0 | BB112: 0
C115: Retirements
C116: Enter retirements as negative numbers, i.e. the retirement of 10MW of capacity should be entered as -10 in the relevant year
C117: Unit | D117: MW
C118: Source | D118: IEA (2022) and Global Energy Monitor (2023)
B120: Tech Ref | C120: Technology | D120: 2010 | E120: 2011 | F120: 2012 | G120: 2013 | H120: 2014 | I120: 2015 | J120: 2016 | K120: 2017 | L120: 2018 | M120: 2019 | N120: 2020 | O120: 2021 | P120: 2022 | Q120: 2023 | R120: 2024 | S120: 2025 | T120: 2026 | U120: 2027 | V120: 2028 | W120: 2029 | X120: 2030 | Y120: 2031 | Z120: 2032 | AA120: 2033 | AB120: 2034 | AC120: 2035 | AD120: 2036 | AE120: 2037 | AF120: 2038 | AG120: 2039 | AH120: 2040 | AI120: 2041 | AJ120: 2042 | AK120: 2043 | AL120: 2044 | AM120: 2045 | AN120: 2046 | AO120: 2047 | AP120: 2048 | AQ120: 2049 | AR120: 2050 | AS120: 2051 | AT120: 2052 | AU120: 2053 | AV120: 2054 | AW120: 2055 | AX120: 2056 | AY120: 2057 | AZ120: 2058 | BA120: 2059 | BB120: 2060
B121: =TechRef_List -> Tech1 | C121: =INDEX(TechName_List,MATCH($B121,TechRef_List,0)) -> Coal | D121: 0 | E121: 0 | F121: 0 | G121: 0 | H121: 0 | I121: 0 | J121: 0 | K121: 0 | L121: 0 | M121: 0 | N121: 0 | O121: 0 | P121: 0 | Q121: 0 | R121: -400 | S121: -400 | T121: 0 | U121: -130 | V121: -400 | W121: -400 | X121: 0 | Y121: -24878.604 | Z121: -1200 | AA121: -1200 | AB121: -1200 | AC121: -1200 | AD121: -1200 | AE121: -1200 | AF121: -1200 | AG121: -1200 | AH121: -1200 | AI121: -2300 | AJ121: -2300 | AK121: -2300 | AL121: -2300 | AM121: -2300 | AN121: -2300 | AO121: -2300 | AP121: -2300 | AQ121: -2300 | AR121: -2300 | AS121: -1000 | AT121: -1000 | AU121: -1000 | AV121: -1000 | AW121: -1000 | AX121: -1000 | AY121: -1000 | AZ121: -1000 | BA121: -1000 | BB121: -1000
B122: Tech2 | C122: Coal CCS | D122: 0 | E122: 0 | F122: 0 | G122: 0 | H122: 0 | I122: 0 | J122: 0 | K122: 0 | L122: 0 | M122: 0 | N122: 0 | O122: 0 | P122: 0 | Q122: 0 | R122: 0 | S122: 0 | T122: 0 | U122: 0 | V122: 0 | W122: 0 | X122: 0 | Y122: 0 | Z122: 0 | AA122: 0 | AB122: 0 | AC122: 0 | AD122: 0 | AE122: 0 | AF122: 0 | AG122: 0 | AH122: 0 | AI122: 0 | AJ122: 0 | AK122: 0 | AL122: 0 | AM122: 0 | AN122: 0 | AO122: 0 | AP122: 0 | AQ122: 0 | AR122: 0 | AS122: 0 | AT122: 0 | AU122: 0 | AV122: 0 | AW122: 0 | AX122: 0 | AY122: 0 | AZ122: 0 | BA122: 0 | BB122: 0
B123: Tech3 | C123: Gas Open | D123: 0 | E123: 0 | F123: 0 | G123: 0 | H123: 0 | I123: 0 | J123: 0 | K123: 0 | L123: 0 | M123: 0 | N123: -485.5 | O123: 0 | P123: 0 | Q123: -75 | R123: 0 | S123: 0 | T123: 0 | U123: -37.5 | V123: -210 | W123: 0 | X123: -185 | Y123: -266.1290323 | Z123: -266.1290323 | AA123: -266.1290323 | AB123: -266.1290323 | AC123: -266.1290323 | AD123: -266.1290323 | AE123: -266.1290323 | AF123: -266.1290323 | AG123: -266.1290323 | AH123: -266.1290323 | AI123: -308.8709677 | AJ123: -308.8709677 | AK123: -308.8709677 | AL123: -308.8709677 | AM123: -308.8709677 | AN123: -308.8709677 | AO123: -308.8709677 | AP123: -308.8709677 | AQ123: -308.8709677 | AR123: -308.8709677 | AS123: -50 | AT123: -50 | AU123: -50 | AV123: -50 | AW123: -50 | AX123: -50 | AY123: -50 | AZ123: -50 | BA123: -50 | BB123: -50
B124: Tech4 | C124: Gas Combined | D124: 0 | E124: 0 | F124: 0 | G124: 0 | H124: 0 | I124: 0 | J124: 0 | K124: 0 | L124: 0 | M124: 0 | N124: -1456.5 | O124: 0 | P124: 0 | Q124: -225 | R124: 0 | S124: 0 | T124: 0 | U124: -112.5 | V124: -630 | W124: 0 | X124: -555 | Y124: -798.3870968 | Z124: -798.3870968 | AA124: -798.3870968 | AB124: -798.3870968 | AC124: -798.3870968 | AD124: -798.3870968 | AE124: -798.3870968 | AF124: -798.3870968 | AG124: -798.3870968 | AH124: -798.3870968 | AI124: -926.6129032 | AJ124: -926.6129032 | AK124: -926.6129032 | AL124: -926.6129032 | AM124: -926.6129032 | AN124: -926.6129032 | AO124: -926.6129032 | AP124: -926.6129032 | AQ124: -926.6129032 | AR124: -926.6129032 | AS124: -150 | AT124: -150 | AU124: -150 | AV124: -150 | AW124: -150 | AX124: -150 | AY124: -150 | AZ124: -150 | BA124: -150 | BB124: -150
B125: Tech5 | C125: Gas Combined CCS | D125: 0 | E125: 0 | F125: 0 | G125: 0 | H125: 0 | I125: 0 | J125: 0 | K125: 0 | L125: 0 | M125: 0 | N125: 0 | O125: 0 | P125: 0 | Q125: 0 | R125: 0 | S125: 0 | T125: 0 | U125: 0 | V125: 0 | W125: 0 | X125: 0 | Y125: 0 | Z125: 0 | AA125: 0 | AB125: 0 | AC125: 0 | AD125: 0 | AE125: 0 | AF125: 0 | AG125: 0 | AH125: 0 | AI125: 0 | AJ125: 0 | AK125: 0 | AL125: 0 | AM125: 0 | AN125: 0 | AO125: 0 | AP125: 0 | AQ125: 0 | AR125: 0 | AS125: 0 | AT125: 0 | AU125: 0 | AV125: 0 | AW125: 0 | AX125: 0 | AY125: 0 | AZ125: 0 | BA125: 0 | BB125: 0
B126: Tech6 | C126: Oil | D126: 0 | E126: 0 | F126: 0 | G126: 0 | H126: 0 | I126: 0 | J126: 0 | K126: 0 | L126: 0 | M126: 0 | N126: 0 | O126: 0 | P126: -232.9749104 | Q126: -232.9749104 | R126: -232.9749104 | S126: -232.9749104 | T126: -232.9749104 | U126: -232.9749104 | V126: -232.9749104 | W126: -232.9749104 | X126: -232.9749104 | Y126: -300 | Z126: -300 | AA126: -300 | AB126: -300 | AC126: -300 | AD126: -300 | AE126: -300 | AF126: -300 | AG126: -300 | AH126: -300 | AI126: -250 | AJ126: -250 | AK126: -250 | AL126: -250 | AM126: -250 | AN126: -250 | AO126: -250 | AP126: -250 | AQ126: -250 | AR126: -250 | AS126: -50 | AT126: -50 | AU126: -50 | AV126: -50 | AW126: -50 | AX126: -50 | AY126: -50 | AZ126: -50 | BA126: -50 | BB126: -50
B127: Tech7 | C127: Nuclear | D127: 0 | E127: 0 | F127: 0 | G127: 0 | H127: 0 | I127: 0 | J127: 0 | K127: 0 | L127: 0 | M127: 0 | N127: 0 | O127: 0 | P127: 0 | Q127: 0 | R127: 0 | S127: 0 | T127: 0 | U127: 0 | V127: 0 | W127: 0 | X127: 0 | Y127: 0 | Z127: 0 | AA127: 0 | AB127: 0 | AC127: 0 | AD127: 0 | AE127: 0 | AF127: 0 | AG127: 0 | AH127: 0 | AI127: 0 | AJ127: 0 | AK127: 0 | AL127: 0 | AM127: 0 | AN127: 0 | AO127: 0 | AP127: 0 | AQ127: 0 | AR127: 0 | AS127: 0 | AT127: 0 | AU127: 0 | AV127: 0 | AW127: 0 | AX127: 0 | AY127: 0 | AZ127: 0 | BA127: 0 | BB127: 0
B128: Tech8 | C128: Biomass | D128: 0 | E128: 0 | F128: 0 | G128: 0 | H128: 0 | I128: 0 | J128: 0 | K128: 0 | L128: 0 | M128: 0 | N128: 0 | O128: 0 | P128: 0 | Q128: 0 | R128: 0 | S128: 0 | T128: 0 | U128: 0 | V128: 0 | W128: 0 | X128: 0 | Y128: 0 | Z128: 0 | AA128: 0 | AB128: 0 | AC128: 0 | AD128: 0 | AE128: 0 | AF128: 0 | AG128: 0 | AH128: 0 | AI128: 0 | AJ128: 0 | AK128: 0 | AL128: 0 | AM128: 0 | AN128: -26 | AO128: 0 | AP128: 0 | AQ128: -10 | AR128: -1705.66 | AS128: -41.44 | AT128: -73.71 | AU128: -25.99 | AV128: -8.8 | AW128: -8.91 | AX128: -383.89 | AY128: 0 | AZ128: 0 | BA128: 0 | BB128: 0
B129: Tech9 | C129: Solar utility | D129: 0 | E129: 0 | F129: 0 | G129: 0 | H129: 0 | I129: 0 | J129: 0 | K129: 0 | L129: 0 | M129: 0 | N129: 0 | O129: 0 | P129: 0 | Q129: 0 | R129: 0 | S129: 0 | T129: 0 | U129: 0 | V129: 0 | W129: 0 | X129: 0 | Y129: 0 | Z129: 0 | AA129: 0 | AB129: 0 | AC129: 0 | AD129: 0 | AE129: 0 | AF129: 0 | AG129: 0 | AH129: 0 | AI129: 0 | AJ129: 0 | AK129: 0 | AL129: 0 | AM129: 0 | AN129: 0 | AO129: 0 | AP129: 0 | AQ129: 0 | AR129: 0 | AS129: 0 | AT129: 0 | AU129: 0 | AV129: 0 | AW129: 0 | AX129: 0 | AY129: 0 | AZ129: 0 | BA129: 0 | BB129: 0
B130: Tech10 | C130: Solar rooftop | D130: 0 | E130: 0 | F130: 0 | G130: 0 | H130: 0 | I130: 0 | J130: 0 | K130: 0 | L130: 0 | M130: 0 | N130: 0 | O130: 0 | P130: 0 | Q130: 0 | R130: 0 | S130: 0 | T130: 0 | U130: 0 | V130: 0 | W130: 0 | X130: 0 | Y130: 0 | Z130: 0 | AA130: 0 | AB130: 0 | AC130: 0 | AD130: 0 | AE130: 0 | AF130: 0 | AG130: 0 | AH130: 0 | AI130: 0 | AJ130: 0 | AK130: 0 | AL130: 0 | AM130: 0 | AN130: 0 | AO130: 0 | AP130: 0 | AQ130: 0 | AR130: 0 | AS130: 0 | AT130: 0 | AU130: 0 | AV130: 0 | AW130: 0 | AX130: 0 | AY130: 0 | AZ130: 0 | BA130: 0 | BB130: 0
B131: Tech11 | C131: Solar floating | D131: 0 | E131: 0 | F131: 0 | G131: 0 | H131: 0 | I131: 0 | J131: 0 | K131: 0 | L131: 0 | M131: 0 | N131: 0 | O131: 0 | P131: 0 | Q131: 0 | R131: 0 | S131: 0 | T131: 0 | U131: 0 | V131: 0 | W131: 0 | X131: 0 | Y131: 0 | Z131: 0 | AA131: 0 | AB131: 0 | AC131: 0 | AD131: 0 | AE131: 0 | AF131: 0 | AG131: 0 | AH131: 0 | AI131: 0 | AJ131: 0 | AK131: 0 | AL131: 0 | AM131: 0 | AN131: 0 | AO131: 0 | AP131: 0 | AQ131: 0 | AR131: 0 | AS131: 0 | AT131: 0 | AU131: 0 | AV131: 0 | AW131: 0 | AX131: 0 | AY131: 0 | AZ131: 0 | BA131: 0 | BB131: 0
B132: Tech12 | C132: Wind onshore | D132: 0 | E132: 0 | F132: 0 | G132: 0 | H132: 0 | I132: 0 | J132: 0 | K132: 0 | L132: 0 | M132: 0 | N132: 0 | O132: 0 | P132: 0 | Q132: 0 | R132: 0 | S132: 0 | T132: 0 | U132: 0 | V132: 0 | W132: 0 | X132: 0 | Y132: 0 | Z132: 0 | AA132: 0 | AB132: 0 | AC132: 0 | AD132: 0 | AE132: 0 | AF132: 0 | AG132: 0 | AH132: 0 | AI132: 0 | AJ132: 0 | AK132: 0 | AL132: 0 | AM132: 0 | AN132: 0 | AO132: 0 | AP132: 0 | AQ132: 0 | AR132: 0 | AS132: 0 | AT132: 0 | AU132: 0 | AV132: 0 | AW132: 0 | AX132: 0 | AY132: 0 | AZ132: 0 | BA132: 0 | BB132: 0
B133: Tech13 | C133: Wind offshore | D133: 0 | E133: 0 | F133: 0 | G133: 0 | H133: 0 | I133: 0 | J133: 0 | K133: 0 | L133: 0 | M133: 0 | N133: 0 | O133: 0 | P133: 0 | Q133: 0 | R133: 0 | S133: 0 | T133: 0 | U133: 0 | V133: 0 | W133: 0 | X133: 0 | Y133: 0 | Z133: 0 | AA133: 0 | AB133: 0 | AC133: 0 | AD133: 0 | AE133: 0 | AF133: 0 | AG133: 0 | AH133: 0 | AI133: 0 | AJ133: 0 | AK133: 0 | AL133: 0 | AM133: 0 | AN133: 0 | AO133: 0 | AP133: 0 | AQ133: 0 | AR133: 0 | AS133: 0 | AT133: 0 | AU133: 0 | AV133: 0 | AW133: 0 | AX133: 0 | AY133: 0 | AZ133: 0 | BA133: 0 | BB133: 0
B134: Tech14 | C134: Geothermal | D134: 0 | E134: 0 | F134: 0 | G134: 0 | H134: 0 | I134: 0 | J134: 0 | K134: 0 | L134: 0 | M134: 0 | N134: 0 | O134: 0 | P134: -165 | Q134: 0 | R134: 0 | S134: -165 | T134: -60 | U134: 0 | V134: -200 | W134: 0 | X134: 0 | Y134: 0 | Z134: 0 | AA134: 0 | AB134: 0 | AC134: 0 | AD134: -60 | AE134: -238 | AF134: 0 | AG134: 0 | AH134: -110 | AI134: 0 | AJ134: -55 | AK134: -35 | AL134: -55 | AM134: -275 | AN134: -195 | AO134: -185 | AP134: 0 | AQ134: -136 | AR134: -345 | AS134: -270 | AT134: -330 | AU134: -165 | AV134: 0 | AW134: 0 | AX134: -165 | AY134: 0 | AZ134: -560 | BA134: 0 | BB134: -310
B135: Tech15 | C135: Hydro large | D135: 0 | E135: 0 | F135: 0 | G135: 0 | H135: 0 | I135: 0 | J135: 0 | K135: 0 | L135: 0 | M135: 0 | N135: 0 | O135: -128.25 | P135: 0 | Q135: 0 | R135: 0 | S135: 0 | T135: -51.3 | U135: -156.75 | V135: 0 | W135: 0 | X135: -572.85 | Y135: -121.125 | Z135: 0 | AA135: -665 | AB135: 0 | AC135: 0 | AD135: -1157.005 | AE135: 0 | AF135: 0 | AG135: -119.7 | AH135: 0 | AI135: -34.2 | AJ135: 0 | AK135: 0 | AL135: 0 | AM135: -166.25 | AN135: -274.55 | AO135: -123.5 | AP135: 0 | AQ135: -88.16 | AR135: -47.5 | AS135: -5.985 | AT135: 0 | AU135: 0 | AV135: -277.4 | AW135: 0 | AX135: 0 | AY135: 0 | AZ135: -171 | BA135: -152.095 | BB135: -65.57565
B136: Tech16 | C136: Hydro small | D136: 0 | E136: 0 | F136: 0 | G136: 0 | H136: 0 | I136: 0 | J136: 0 | K136: 0 | L136: 0 | M136: 0 | N136: 0 | O136: -6.75 | P136: 0 | Q136: 0 | R136: 0 | S136: 0 | T136: -2.7 | U136: -8.25 | V136: 0 | W136: 0 | X136: -30.15 | Y136: -6.375 | Z136: 0 | AA136: -35 | AB136: 0 | AC136: 0 | AD136: -60.895 | AE136: 0 | AF136: 0 | AG136: -6.3 | AH136: 0 | AI136: -1.8 | AJ136: 0 | AK136: 0 | AL136: 0 | AM136: -8.75 | AN136: -14.45 | AO136: -6.5 | AP136: 0 | AQ136: -4.64 | AR136: -2.5 | AS136: -0.315 | AT136: 0 | AU136: 0 | AV136: -14.6 | AW136: 0 | AX136: 0 | AY136: 0 | AZ136: -9 | BA136: -8.005 | BB136: -3.45135
B137: Tech17 | C137: Hydrogen | D137: 0 | E137: 0 | F137: 0 | G137: 0 | H137: 0 | I137: 0 | J137: 0 | K137: 0 | L137: 0 | M137: 0 | N137: 0 | O137: 0 | P137: 0 | Q137: 0 | R137: 0 | S137: 0 | T137: 0 | U137: 0 | V137: 0 | W137: 0 | X137: 0 | Y137: 0 | Z137: 0 | AA137: 0 | AB137: 0 | AC137: 0 | AD137: 0 | AE137: 0 | AF137: 0 | AG137: 0 | AH137: 0 | AI137: 0 | AJ137: 0 | AK137: 0 | AL137: 0 | AM137: 0 | AN137: 0 | AO137: 0 | AP137: 0 | AQ137: 0 | AR137: 0 | AS137: 0 | AT137: 0 | AU137: 0 | AV137: 0 | AW137: 0 | AX137: 0 | AY137: 0 | AZ137: 0 | BA137: 0 | BB137: 0
B138: Tech18 | C138: Pumped storage | D138: 0 | E138: 0 | F138: 0 | G138: 0 | H138: 0 | I138: 0 | J138: 0 | K138: 0 | L138: 0 | M138: 0 | N138: 0 | O138: 0 | P138: 0 | Q138: 0 | R138: 0 | S138: 0 | T138: 0 | U138: 0 | V138: 0 | W138: 0 | X138: 0 | Y138: 0 | Z138: 0 | AA138: 0 | AB138: 0 | AC138: 0 | AD138: 0 | AE138: 0 | AF138: 0 | AG138: 0 | AH138: 0 | AI138: 0 | AJ138: 0 | AK138: 0 | AL138: 0 | AM138: 0 | AN138: 0 | AO138: 0 | AP138: 0 | AQ138: 0 | AR138: 0 | AS138: 0 | AT138: 0 | AU138: 0 | AV138: 0 | AW138: 0 | AX138: 0 | AY138: 0 | AZ138: 0 | BA138: 0 | BB138: 0
B139: Tech19 | C139: Batteries | D139: 0 | E139: 0 | F139: 0 | G139: 0 | H139: 0 | I139: 0 | J139: 0 | K139: 0 | L139: 0 | M139: 0 | N139: 0 | O139: 0 | P139: 0 | Q139: 0 | R139: 0 | S139: 0 | T139: 0 | U139: 0 | V139: 0 | W139: 0 | X139: 0 | Y139: 0 | Z139: 0 | AA139: 0 | AB139: 0 | AC139: 0 | AD139: 0 | AE139: 0 | AF139: 0 | AG139: 0 | AH139: 0 | AI139: 0 | AJ139: 0 | AK139: 0 | AL139: 0 | AM139: 0 | AN139: 0 | AO139: 0 | AP139: 0 | AQ139: 0 | AR139: 0 | AS139: 0 | AT139: 0 | AU139: 0 | AV139: 0 | AW139: 0 | AX139: 0 | AY139: 0 | AZ139: 0 | BA139: 0 | BB139: 0
B140: Tech20 | C140: unassigned1 | D140: 0 | E140: 0 | F140: 0 | G140: 0 | H140: 0 | I140: 0 | J140: 0 | K140: 0 | L140: 0 | M140: 0 | N140: 0 | O140: 0 | P140: 0 | Q140: 0 | R140: 0 | S140: 0 | T140: 0 | U140: 0 | V140: 0 | W140: 0 | X140: 0 | Y140: 0 | Z140: 0 | AA140: 0 | AB140: 0 | AC140: 0 | AD140: 0 | AE140: 0 | AF140: 0 | AG140: 0 | AH140: 0 | AI140: 0 | AJ140: 0 | AK140: 0 | AL140: 0 | AM140: 0 | AN140: 0 | AO140: 0 | AP140: 0 | AQ140: 0 | AR140: 0 | AS140: 0 | AT140: 0 | AU140: 0 | AV140: 0 | AW140: 0 | AX140: 0 | AY140: 0 | AZ140: 0 | BA140: 0 | BB140: 0
B141: Tech21 | C141: unassigned2
B142: Tech22 | C142: unassigned3
B143: Tech23 | C143: unassigned4
B144: Tech24 | C144: unassigned5
B145: Tech25 | C145: unassigned6
B146: Tech26 | C146: unassigned7
B147: Tech27 | C147: unassigned8
B148: Tech28 | C148: unassigned9
B149: Tech29 | C149: unassigned10
B150: Tech30 | C150: unassigned11
B151: Tech31 | C151: unassigned12
B152: Tech32 | C152: unassigned13
B153: Tech33 | C153: unassigned14
B154: Tech34 | C154: unassigned15
B155: Tech35 | C155: unassigned16
C158: Capacity additions
C160: Unit | D160: MW
C161: Source | D161: Calculated
B163: Tech Ref | C163: Technology | D163: 2010 | E163: 2011 | F163: 2012 | G163: 2013 | H163: 2014 | I163: 2015 | J163: 2016 | K163: 2017 | L163: 2018 | M163: 2019 | N163: 2020 | O163: 2021 | P163: 2022 | Q163: 2023 | R163: 2024 | S163: 2025 | T163: 2026 | U163: 2027 | V163: 2028 | W163: 2029 | X163: 2030 | Y163: 2031 | Z163: 2032 | AA163: 2033 | AB163: 2034 | AC163: 2035 | AD163: 2036 | AE163: 2037 | AF163: 2038 | AG163: 2039 | AH163: 2040 | AI163: 2041 | AJ163: 2042 | AK163: 2043 | AL163: 2044 | AM163: 2045 | AN163: 2046 | AO163: 2047 | AP163: 2048 | AQ163: 2049 | AR163: 2050 | AS163: 2051 | AT163: 2052 | AU163: 2053 | AV163: 2054 | AW163: 2055 | AX163: 2056 | AY163: 2057 | AZ163: 2058 | BA163: 2059 | BB163: 2060
B164: =TechRef_List -> Tech1 | C164: =INDEX(TechName_List,MATCH($B164,TechRef_List,0)) -> Coal | E164: =E78-D78-E121 -> 0 | F164: =F78-E78-F121 -> 0 | G164: 0 | H164: 0 | I164: 0 | J164: 0 | K164: 0 | L164: 0 | M164: 0 | N164: =N78-M78-N121 -> 4686.6 | O164: 2236 | P164: 6490 | Q164: 2865.001 | R164: =R78-Q78-R121 -> 7340.001 | S164: 3300.001 | T164: 1700.001 | U164: 5071 | V164: 1550 | W164: 270 | X164: 900 | Y164: 0 | Z164: -4.547473509e-12 | AA164: 2.728484105e-12 | AB164: -4.547473509e-12 | AC164: 2.728484105e-12 | AD164: 2.728484105e-12 | AE164: -4.547473509e-12 | AF164: 2.728484105e-12 | AG164: -4.547473509e-12 | AH164: =AH78-AG78-AH121 -> 3.637978807e-12 | AI164: 0 | AJ164: 0 | AK164: 0 | AL164: 0 | AM164: 0 | AN164: 0 | AO164: 0 | AP164: 0 | AQ164: 0 | AR164: 0 | AS164: 0 | AT164: 0 | AU164: 0 | AV164: 0 | AW164: 0 | AX164: 0 | AY164: 0 | AZ164: 0 | BA164: 0 | BB164: 0
B165: Tech2 | C165: Coal CCS | E165: =E79-D79-E122 -> 0 | F165: 0 | G165: 0 | H165: 0 | I165: 0 | J165: 0 | K165: 0 | L165: 0 | M165: 0 | N165: 0 | O165: 0 | P165: 0 | Q165: 0 | R165: 0 | S165: 0 | T165: 0 | U165: 0 | V165: 0 | W165: 0 | X165: 0 | Y165: 301.0691376 | Z165: 301.0691376 | AA165: 301.0691376 | AB165: 301.0691376 | AC165: 301.0691376 | AD165: 301.0691376 | AE165: 301.0691376 | AF165: 301.0691376 | AG165: 301.0691376 | AH165: 301.0691376 | AI165: 84.61867427 | AJ165: 85.07483963 | AK165: 85.53100499 | AL165: 85.98717035 | AM165: 86.44333571 | AN165: 86.89950107 | AO165: 87.35566643 | AP165: 87.81183179 | AQ165: 88.26799715 | AR165: 88.72416251 | AS165: 283.6208125 | AT165: 285.2173913 | AU165: 286.8139701 | AV165: 288.4105488 | AW165: 290.0071276 | AX165: 291.6037063 | AY165: 293.2002851 | AZ165: 294.7968639 | BA165: 296.3934426 | BB165: 297.9900214
B166: Tech3 | C166: Gas Open | E166: 0 | F166: 0 | G166: 0 | H166: 0 | I166: 0 | J166: 0 | K166: 0 | L166: 0 | M166: 0 | N166: 485.5 | O166: 0 | P166: 273.297491 | Q166: 348.297491 | R166: 273.297491 | S166: 273.297491 | T166: 273.297491 | U166: 310.797491 | V166: 483.297491 | W166: 273.297491 | X166: 458.297491 | Y166: 0 | Z166: 5.684341886e-13 | AA166: 0 | AB166: 5.684341886e-13 | AC166: 0 | AD166: 0 | AE166: 5.684341886e-13 | AF166: 0 | AG166: 5.684341886e-13 | AH166: 0 | AI166: 0 | AJ166: 5.684341886e-13 | AK166: 0 | AL166: 0 | AM166: 0 | AN166: 0 | AO166: 0 | AP166: 0 | AQ166: 0 | AR166: 0 | AS166: 0 | AT166: 0 | AU166: -1.847411113e-13 | AV166: 0 | AW166: 0 | AX166: 0 | AY166: 0 | AZ166: -1.847411113e-13 | BA166: 0 | BB166: 5.684341886e-14
B167: Tech4 | C167: Gas Combined | E167: 0 | F167: 0 | G167: 0 | H167: 0 | I167: 0 | J167: 0 | K167: 0 | L167: 0 | M167: 0 | N167: 1456.5 | O167: 0 | P167: 819.8924731 | Q167: 1044.892473 | R167: 819.8924731 | S167: 819.8924731 | T167: 819.8924731 | U167: 932.3924731 | V167: 1449.892473 | W167: 819.8924731 | X167: 1374.892473 | Y167: -1.136868377e-12 | Z167: 2.50111043e-12 | AA167: -1.023181539e-12 | AB167: -1.136868377e-12 | AC167: -1.136868377e-12 | AD167: 2.614797268e-12 | AE167: -1.136868377e-12 | AF167: 0 | AG167: -1.136868377e-12 | AH167: 0 | AI167: 0 | AJ167: -1.136868377e-12 | AK167: 0 | AL167: -1.136868377e-12 | AM167: 0 | AN167: 0 | AO167: -1.136868377e-12 | AP167: 0 | AQ167: 0 | AR167: 0 | AS167: 3.410605132e-13 | AT167: -5.684341886e-13 | AU167: 3.694822226e-13 | AV167: -5.684341886e-13 | AW167: 3.410605132e-13 | AX167: 3.694822226e-13 | AY167: -5.684341886e-13 | AZ167: 3.410605132e-13 | BA167: 0 | BB167: 0
B168: Tech5 | C168: Gas Combined CCS | E168: 0 | F168: 0 | G168: 0 | H168: 0 | I168: 0 | J168: 0 | K168: 0 | L168: 0 | M168: 0 | N168: 0 | O168: 0 | P168: 0 | Q168: 0 | R168: 0 | S168: 0 | T168: 0 | U168: 0 | V168: 0 | W168: 0 | X168: 0 | Y168: 155.0962224 | Z168: 155.0962224 | AA168: 155.0962224 | AB168: 155.0962224 | AC168: 155.0962224 | AD168: 155.0962224 | AE168: 155.0962224 | AF168: 155.0962224 | AG168: 155.0962224 | AH168: 155.0962224 | AI168: 29.42266572 | AJ168: 28.96650036 | AK168: 28.510335 | AL168: 28.05416964 | AM168: 27.59800428 | AN168: 27.14183892 | AO168: 26.68567356 | AP168: 26.2295082 | AQ168: 25.77334284 | AR168: 25.31717748 | AS168: 115.5238774 | AT168: 113.9272986 | AU168: 112.3307199 | AV168: 110.7341411 | AW168: 109.1375624 | AX168: 107.5409836 | AY168: 105.9444048 | AZ168: 104.3478261 | BA168: 102.7512473 | BB168: 101.1546686
B169: Tech6 | C169: Oil | E169: 0 | F169: 0 | G169: 0 | H169: 0 | I169: 0 | J169: 0 | K169: 0 | L169: 0 | M169: 0 | N169: 0 | O169: 0 | P169: 0 | Q169: 0 | R169: 0 | S169: 0 | T169: 1.648459147e-12 | U169: 0 | V169: 0 | W169: 0 | X169: -2.273736754e-13 | Y169: 6.821210263e-13 | Z169: -1.136868377e-12 | AA169: 6.821210263e-13 | AB169: -1.136868377e-12 | AC169: 6.821210263e-13 | AD169: 6.821210263e-13 | AE169: =AE83-AD83-AE126 -> 0 | AF169: 0 | AG169: 0 | AH169: 0 | AI169: 0 | AJ169: 0 | AK169: 0 | AL169: 0 | AM169: 0 | AN169: 0 | AO169: 0 | AP169: 0 | AQ169: 0 | AR169: =AR83-AQ83-AR126 -> 0 | AS169: -1.776356839e-13 | AT169: -1.776356839e-13 | AU169: 7.318590178e-13 | AV169: -1.776356839e-13 | AW169: -1.776356839e-13 | AX169: -1.776356839e-13 | AY169: -1.776356839e-13 | AZ169: 7.318590178e-13 | BA169: -1.776356839e-13 | BB169: -2.202682481e-13
B170: Tech7 | C170: Nuclear | E170: 0 | F170: 0 | G170: 0 | H170: 0 | I170: 0 | J170: 0 | K170: 0 | L170: 0 | M170: 0 | N170: 0 | O170: 0 | P170: 0 | Q170: 0 | R170: 0 | S170: 0 | T170: 0 | U170: 0 | V170: 0 | W170: 0 | X170: 0 | Y170: 350 | Z170: 350 | AA170: 350 | AB170: 350 | AC170: 350 | AD170: 350 | AE170: 350 | AF170: 350 | AG170: 350 | AH170: 350 | AI170: 500 | AJ170: 500 | AK170: 500 | AL170: 500 | AM170: 500 | AN170: 500 | AO170: 500 | AP170: 500 | AQ170: 500 | AR170: 500 | AS170: 150 | AT170: 150 | AU170: 150 | AV170: 150 | AW170: 150 | AX170: 150 | AY170: 150 | AZ170: 150 | BA170: 150 | BB170: 150
B171: Tech8 | C171: Biomass | E171: 0 | F171: 0 | G171: 0 | H171: 0 | I171: 0 | J171: 0 | K171: 0 | L171: 0 | M171: 0 | N171: 0 | O171: 0 | P171: 63.35629999 | Q171: 63.35629999 | R171: 63.35629999 | S171: 63.35629999 | T171: 63.35629999 | U171: 63.35629999 | V171: 63.35629999 | W171: 63.35629999 | X171: 63.35629999 | Y171: 627.2273699 | Z171: 627.2273699 | AA171: 627.2273699 | AB171: 627.2273699 | AC171: 627.2273699 | AD171: 627.2273699 | AE171: 627.2273699 | AF171: 627.2273699 | AG171: 627.2273699 | AH171: 627.2273699 | AI171: 912.3307199 | AJ171: 912.3307199 | AK171: 912.3307199 | AL171: 912.3307199 | AM171: 912.3307199 | AN171: 938.3307199 | AO171: 912.3307199 | AP171: 912.3307199 | AQ171: 922.3307199 | AR171: 2617.99072 | AS171: 545.7165502 | AT171: 577.9865502 | AU171: 530.2665502 | AV171: 513.0765502 | AW171: 513.1865502 | AX171: 888.1665502 | AY171: 504.2765502 | AZ171: 504.2765502 | BA171: 504.2765502 | BB171: 504.2765502
B172: Tech9 | C172: Solar utility | E172: 0 | F172: 0 | G172: 0 | H172: 0 | I172: 0 | J172: 0 | K172: 0 | L172: 0 | M172: 0 | N172: 0 | O172: 0 | P172: 2374.477575 | Q172: 2242.280431 | R172: 2110.083287 | S172: 1977.886143 | T172: 1845.689 | U172: 1713.491856 | V172: 1581.294712 | W172: 1449.097569 | X172: 1316.900425 | Y172: 7244.476123 | Z172: 6822.523165 | AA172: 6400.570207 | AB172: 5978.617249 | AC172: 5556.664291 | AD172: 5134.711333 | AE172: 4712.758375 | AF172: 4290.805417 | AG172: 3868.852459 | AH172: 3446.899501 | AI172: 9718.692088 | AJ172: 9718.692088 | AK172: 9718.692088 | AL172: 9718.692088 | AM172: 9718.692088 | AN172: 9718.692088 | AO172: 9718.692088 | AP172: 9718.692088 | AQ172: 9718.692088 | AR172: 9718.692088 | AS172: 2606.325731 | AT172: 2606.325731 | AU172: 2606.325731 | AV172: 2606.325731 | AW172: 2606.325731 | AX172: 2606.325731 | AY172: 2606.325731 | AZ172: 2606.325731 | BA172: 2606.325731 | BB172: 2606.325731
B173: Tech10 | C173: Solar rooftop | E173: 0 | F173: 0 | G173: 0 | H173: 0 | I173: 0 | J173: 0 | K173: 0 | L173: 0 | M173: 0 | N173: 0 | O173: 0 | P173: 38.0256153 | Q173: 60.05847259 | R173: 82.09132987 | S173: 104.1241871 | T173: 126.1570444 | U173: 148.1899017 | V173: 170.222759 | W173: 192.2556163 | X173: 214.2884736 | Y173: 861.0121169 | Z173: 1071.988596 | AA173: 1282.965075 | AB173: 1493.941554 | AC173: 1704.918033 | AD173: 1915.894512 | AE173: 2126.870991 | AF173: 2337.84747 | AG173: 2548.823949 | AH173: 2759.800428 | AI173: 3380.386671 | AJ173: 3557.090164 | AK173: 3733.793656 | AL173: 3910.497149 | AM173: 4087.200641 | AN173: 4263.904134 | AO173: 4440.607627 | AP173: 4617.311119 | AQ173: 4794.014612 | AR173: 4970.718104 | AS173: 947.7548111 | AT173: 947.7548111 | AU173: 947.7548111 | AV173: 947.7548111 | AW173: 947.7548111 | AX173: 947.7548111 | AY173: 947.7548111 | AZ173: 947.7548111 | BA173: 947.7548111 | BB173: 947.7548111
B174: Tech11 | C174: Solar floating | E174: 0 | F174: 0 | G174: 0 | H174: 0 | I174: 0 | J174: 0 | K174: 0 | L174: 0 | M174: 0 | N174: 0 | O174: 0 | P174: 66.19325431 | Q174: 176.3575407 | R174: 286.5218271 | S174: 396.6861135 | T174: 506.8503999 | U174: 617.0146863 | V174: 727.1789727 | W174: 837.3432592 | X174: 947.5075456 | Y174: 2443.335709 | Z174: 2654.312188 | AA174: 2865.288667 | AB174: 3076.265146 | AC174: =AC88-AB88-AC131 -> 3287.241625 | AD174: 3498.218104 | AE174: 3709.194583 | AF174: 3920.171062 | AG174: 4131.147541 | AH174: 4342.12402 | AI174: 4571.270492 | AJ174: 4394.566999 | AK174: 4217.863507 | AL174: 4041.160014 | AM174: 3864.456522 | AN174: 3687.753029 | AO174: =AO88-AN88-AO131 -> 3511.049537 | AP174: 3334.346044 | AQ174: 3157.642552 | AR174: 2980.939059 | AS174: 1184.693514 | AT174: 1184.693514 | AU174: 1184.693514 | AV174: 1184.693514 | AW174: 1184.693514 | AX174: 1184.693514 | AY174: 1184.693514 | AZ174: 1184.693514 | BA174: 1184.693514 | BB174: 1184.693514
B175: Tech12 | C175: Wind onshore | E175: 0 | F175: 0 | G175: 0 | H175: 0 | I175: 0 | J175: 0 | K175: 0 | L175: 0 | M175: 0 | N175: 0 | O175: 0 | P175: 570.2066999 | Q175: 570.2066999 | R175: 570.2066999 | S175: 570.2066999 | T175: 570.2066999 | U175: 570.2066999 | V175: 570.2066999 | W175: 570.2066999 | X175: 570.2066999 | Y175: 2998.717035 | Z175: 2803.706344 | AA175: 2608.695652 | AB175: 2413.684961 | AC175: 2218.674269 | AD175: 2023.663578 | AE175: 1828.652887 | AF175: 1633.642195 | AG175: 1438.631504 | AH175: 1243.620813 | AI175: 3443.942267 | AJ175: 3333.209551 | AK175: 3222.476835 | AL175: 3111.74412 | AM175: 3001.011404 | AN175: 2890.278689 | AO175: 2779.545973 | AP175: 2668.813257 | AQ175: 2558.080542 | AR175: 2447.347826 | AS175: 2580 | AT175: 2580 | AU175: 2580 | AV175: 2580 | AW175: 2580 | AX175: 2580 | AY175: 2580 | AZ175: 2580 | BA175: 2580 | BB175: 2580
B176: Tech13 | C176: Wind offshore | E176: 0 | F176: 0 | G176: 0 | H176: 0 | I176: 0 | J176: 0 | K176: 0 | L176: 0 | M176: 0 | N176: 0 | O176: 0 | P176: 0 | Q176: 0 | R176: 0 | S176: 0 | T176: 0 | U176: 0 | V176: 0 | W176: 0 | X176: 0 | Y176: 251.4611547 | Z176: 446.471846 | AA176: 641.4825374 | AB176: 836.4932288 | AC176: 1031.50392 | AD176: 1226.514612 | AE176: 1421.525303 | AF176: 1616.535994 | AG176: 1811.546686 | AH176: 2006.557377 | AI176: 2092.693514 | AJ176: 2203.42623 | AK176: 2314.158945 | AL176: 2424.891661 | AM176: 2535.624376 | AN176: 2646.357092 | AO176: 2757.089808 | AP176: 2867.822523 | AQ176: 2978.555239 | AR176: 3089.287954 | AS176: 1720 | AT176: 1720 | AU176: 1720 | AV176: 1720 | AW176: 1720 | AX176: 1720 | AY176: 1720 | AZ176: 1720 | BA176: 1720 | BB176: 1720
B177: Tech14 | C177: Geothermal | E177: 0 | F177: 0 | G177: 0 | H177: 0 | I177: 0 | J177: 0 | K177: 0 | L177: 0 | M177: 0 | N177: 0 | O177: 0 | P177: 671.8503999 | Q177: =Q91-P91-Q134 -> 506.8503999 | R177: 506.8503999 | S177: 671.8503999 | T177: 566.8503999 | U177: 506.8503999 | V177: 706.8503999 | W177: 506.8503999 | X177: 506.8503999 | Y177: 1083.39273 | Z177: 1083.39273 | AA177: 1083.39273 | AB177: 1083.39273 | AC177: 1083.39273 | AD177: 1143.39273 | AE177: 1321.39273 | AF177: 1083.39273 | AG177: 1083.39273 | AH177: 1193.39273 | AI177: 57.02066999 | AJ177: 112.02067 | AK177: 92.02066999 | AL177: 112.02067 | AM177: 332.02067 | AN177: 252.02067 | AO177: 242.02067 | AP177: 57.02066999 | AQ177: 193.02067 | AR177: 402.02067 | AS177: 531.2972202 | AT177: 591.2972202 | AU177: 426.2972202 | AV177: 261.2972202 | AW177: 261.2972202 | AX177: 426.2972202 | AY177: 261.2972202 | AZ177: 821.2972202 | BA177: 261.2972202 | BB177: 571.2972202
B178: Tech15 | C178: Hydro large | E178: 0 | F178: 0 | G178: 0 | H178: 0 | I178: 0 | J178: 0 | K178: 0 | L178: 0 | M178: 0 | N178: 0 | O178: 128.25 | P178: 932.0415688 | Q178: 920.7782266 | R178: 909.5148843 | S178: 898.2515421 | T178: 938.2881999 | U178: 1032.474858 | V178: 864.4615154 | W178: 853.1981732 | X178: 1414.784831 | Y178: 2502.308179 | Z178: 2353.813257 | AA178: 2991.443336 | AB178: 2299.073414 | AC178: 2271.703493 | AD178: 3401.338571 | AE178: 2216.963649 | AF178: 2189.593728 | AG178: 2281.923806 | AH178: 2134.853885 | AI178: 1260.788026 | AJ178: 1209.642908 | AK178: 1192.69779 | AL178: 1175.752673 | AM178: 1325.057555 | AN178: 1416.412438 | AO178: 1248.41732 | AP178: 1107.972202 | AQ178: 1179.187085 | AR178: 1121.581967 | AS178: 816.7455132 | AT178: 796.914469 | AU178: 783.0684248 | AV178: 1046.622381 | AW178: 755.3763364 | AX178: 741.5302922 | AY178: 727.684248 | AZ178: 884.8382038 | BA178: 852.0871597 | BB178: 751.7217655
B179: Tech16 | C179: Hydro small | E179: 0 | F179: 0 | G179: 0 | H179: 0 | I179: 0 | J179: 0 | K179: 0 | L179: 0 | M179: 0 | N179: 0 | O179: 6.75 | P179: 81.6592311 | Q179: 92.92257332 | R179: 104.1859155 | S179: 115.4492578 | T179: 129.4126 | U179: 146.2259422 | V179: 149.2392844 | W179: 160.5026266 | X179: 201.9159689 | Y179: 362.1839808 | Z179: 383.1789024 | AA179: 445.5488239 | AB179: 437.9187455 | AC179: 465.2886671 | AD179: 553.5535887 | AE179: 520.0285103 | AF179: 547.3984319 | AG179: 581.0683535 | AH179: 602.1382751 | AI179: 469.7237349 | AJ179: 484.8688525 | AK179: 501.8139701 | AL179: 518.7590877 | AM179: 544.4542053 | AN179: 567.0993229 | AO179: 576.0944405 | AP179: 586.5395581 | AQ179: 608.1246757 | AR179: 622.9297933 | AS179: 574.1589059 | AT179: 587.6899501 | AU179: 601.5359943 | AV179: 629.9820385 | AW179: 629.2280827 | AX179: 643.0741269 | AY179: =AY93-AX93-AY136 -> 656.9201711 | AZ179: 679.7662153 | BA179: 692.6172594 | BB179: 701.9096536
B180: Tech17 | C180: Hydrogen | E180: 0 | F180: 0 | G180: 0 | H180: 0 | I180: 0 | J180: 0 | K180: 0 | L180: 0 | M180: 0 | N180: 0 | O180: 0 | P180: 0 | Q180: 0 | R180: 0 | S180: 0 | T180: 0 | U180: 0 | V180: 0 | W180: 0 | X180: 0 | Y180: 456.1653599 | Z180: 456.1653599 | AA180: 456.1653599 | AB180: 456.1653599 | AC180: 456.1653599 | AD180: 456.1653599 | AE180: 456.1653599 | AF180: 456.1653599 | AG180: 456.1653599 | AH180: 456.1653599 | AI180: 643.8346401 | AJ180: 643.8346401 | AK180: 643.8346401 | AL180: 643.8346401 | AM180: 643.8346401 | AN180: 643.8346401 | AO180: 643.8346401 | AP180: 643.8346401 | AQ180: 643.8346401 | AR180: 643.8346401 | AS180: 0 | AT180: 0 | AU180: 0 | AV180: 0 | AW180: 0 | AX180: 0 | AY180: 0 | AZ180: 0 | BA180: 0 | BB180: 0
B181: Tech18 | C181: Pumped storage | E181: 0 | F181: 0 | G181: 0 | H181: 0 | I181: 0 | J181: 0 | K181: 0 | L181: 0 | M181: 0 | N181: 0 | O181: 0 | P181: 0 | Q181: 0 | R181: 0 | S181: 0 | T181: 0 | U181: 0 | V181: 0 | W181: 0 | X181: 0 | Y181: 0 | Z181: 0 | AA181: 0 | AB181: 0 | AC181: 0 | AD181: 0 | AE181: 0 | AF181: 0 | AG181: 0 | AH181: 0 | AI181: 0 | AJ181: 0 | AK181: 0 | AL181: 0 | AM181: 0 | AN181: 0 | AO181: 0 | AP181: 0 | AQ181: 0 | AR181: 0 | AS181: 0 | AT181: 0 | AU181: 0 | AV181: 0 | AW181: 0 | AX181: 0 | AY181: 0 | AZ181: 0 | BA181: 0 | BB181: 0
B182: Tech19 | C182: Batteries | E182: 0 | F182: 0 | G182: 0 | H182: 0 | I182: 0 | J182: 0 | K182: 0 | L182: 0 | M182: 0 | N182: 0 | O182: 0 | P182: 886.9881999 | Q182: 886.9881999 | R182: 886.9881999 | S182: 886.9881999 | T182: 886.9881999 | U182: 886.9881999 | V182: 886.9881999 | W182: 886.9881999 | X182: 886.9881999 | Y182: 2851.0335 | Z182: 2851.0335 | AA182: 2851.0335 | AB182: 2851.0335 | AC182: 2851.0335 | AD182: 2851.0335 | AE182: 2851.0335 | AF182: 2851.0335 | AG182: 2851.0335 | AH182: 2851.0335 | AI182: 3850.67712 | AJ182: 3850.67712 | AK182: 3850.67712 | AL182: 3850.67712 | AM182: 3850.67712 | AN182: 3850.67712 | AO182: 3850.67712 | AP182: 3850.67712 | AQ182: 3850.67712 | AR182: 3850.67712 | AS182: 1700 | AT182: 1700 | AU182: 1700 | AV182: 1700 | AW182: 1700 | AX182: 1700 | AY182: 1700 | AZ182: 1700 | BA182: 1700 | BB182: 1700
B183: Tech20 | C183: unassigned1 | E183: 0 | F183: 0 | G183: 0 | H183: 0 | I183: 0 | J183: 0 | K183: 0 | L183: 0 | M183: 0 | N183: 0 | O183: 0 | P183: 0 | Q183: 0 | R183: 0 | S183: 0 | T183: 0 | U183: 0 | V183: 0 | W183: 0 | X183: 0 | Y183: 0 | Z183: 0 | AA183: 0 | AB183: 0 | AC183: 0 | AD183: 0 | AE183: 0 | AF183: 0 | AG183: 0 | AH183: 0 | AI183: 0 | AJ183: 0 | AK183: 0 | AL183: 0 | AM183: 0 | AN183: 0 | AO183: 0 | AP183: 0 | AQ183: 0 | AR183: 0 | AS183: 0 | AT183: 0 | AU183: 0 | AV183: 0 | AW183: 0 | AX183: 0 | AY183: 0 | AZ183: 0 | BA183: 0 | BB183: 0
B184: Tech21 | C184: unassigned2 | E184: 0 | F184: 0 | G184: 0 | H184: 0 | I184: 0 | J184: 0 | K184: 0 | L184: 0 | M184: 0 | N184: 0 | O184: 0 | P184: 0 | Q184: 0 | R184: 0 | S184: 0 | T184: 0 | U184: 0 | V184: 0 | W184: 0 | X184: 0 | Y184: 0 | Z184: 0 | AA184: 0 | AB184: 0 | AC184: 0 | AD184: 0 | AE184: 0 | AF184: 0 | AG184: 0 | AH184: 0 | AI184: 0 | AJ184: 0 | AK184: 0 | AL184: 0 | AM184: 0 | AN184: 0 | AO184: 0 | AP184: 0 | AQ184: 0 | AR184: 0 | AS184: 0 | AT184: 0 | AU184: 0 | AV184: 0 | AW184: 0 | AX184: 0 | AY184: 0 | AZ184: 0 | BA184: 0 | BB184: 0
B185: Tech22 | C185: unassigned3 | E185: 0 | F185: 0 | G185: 0 | H185: 0 | I185: 0 | J185: 0 | K185: 0 | L185: =L99-K99-L142 -> 0 | M185: 0 | N185: 0 | O185: 0 | P185: 0 | Q185: 0 | R185: 0 | S185: 0 | T185: 0 | U185: 0 | V185: 0 | W185: 0 | X185: 0 | Y185: 0 | Z185: 0 | AA185: 0 | AB185: 0 | AC185: 0 | AD185: 0 | AE185: 0 | AF185: 0 | AG185: 0 | AH185: 0 | AI185: 0 | AJ185: 0 | AK185: 0 | AL185: 0 | AM185: 0 | AN185: 0 | AO185: 0 | AP185: 0 | AQ185: 0 | AR185: 0 | AS185: 0 | AT185: 0 | AU185: 0 | AV185: 0 | AW185: 0 | AX185: 0 | AY185: 0 | AZ185: 0 | BA185: 0 | BB185: 0
B186: Tech23 | C186: unassigned4 | E186: 0 | F186: 0 | G186: 0 | H186: 0 | I186: 0 | J186: 0 | K186: 0 | L186: 0 | M186: 0 | N186: 0 | O186: 0 | P186: 0 | Q186: 0 | R186: 0 | S186: 0 | T186: 0 | U186: 0 | V186: 0 | W186: 0 | X186: 0 | Y186: 0 | Z186: 0 | AA186: 0 | AB186: 0 | AC186: 0 | AD186: 0 | AE186: 0 | AF186: 0 | AG186: 0 | AH186: 0 | AI186: 0 | AJ186: 0 | AK186: 0 | AL186: 0 | AM186: 0 | AN186: 0 | AO186: 0 | AP186: 0 | AQ186: 0 | AR186: 0 | AS186: 0 | AT186: 0 | AU186: 0 | AV186: 0 | AW186: 0 | AX186: 0 | AY186: 0 | AZ186: 0 | BA186: 0 | BB186: 0
B187: Tech24 | C187: unassigned5 | E187: 0 | F187: 0 | G187: 0 | H187: 0 | I187: 0 | J187: 0 | K187: 0 | L187: 0 | M187: 0 | N187: 0 | O187: 0 | P187: 0 | Q187: 0 | R187: 0 | S187: 0 | T187: 0 | U187: 0 | V187: 0 | W187: 0 | X187: 0 | Y187: 0 | Z187: 0 | AA187: 0 | AB187: 0 | AC187: 0 | AD187: 0 | AE187: 0 | AF187: 0 | AG187: 0 | AH187: 0 | AI187: 0 | AJ187: 0 | AK187: 0 | AL187: 0 | AM187: 0 | AN187: 0 | AO187: 0 | AP187: 0 | AQ187: 0 | AR187: 0 | AS187: 0 | AT187: 0 | AU187: 0 | AV187: 0 | AW187: 0 | AX187: 0 | AY187: 0 | AZ187: 0 | BA187: 0 | BB187: 0
B188: Tech25 | C188: unassigned6 | E188: 0 | F188: 0 | G188: 0 | H188: 0 | I188: 0 | J188: 0 | K188: 0 | L188: 0 | M188: 0 | N188: 0 | O188: 0 | P188: 0 | Q188: 0 | R188: 0 | S188: 0 | T188: 0 | U188: 0 | V188: 0 | W188: 0 | X188: 0 | Y188: 0 | Z188: 0 | AA188: 0 | AB188: 0 | AC188: 0 | AD188: 0 | AE188: 0 | AF188: 0 | AG188: 0 | AH188: 0 | AI188: 0 | AJ188: 0 | AK188: 0 | AL188: 0 | AM188: 0 | AN188: 0 | AO188: 0 | AP188: 0 | AQ188: 0 | AR188: 0 | AS188: 0 | AT188: 0 | AU188: 0 | AV188: 0 | AW188: 0 | AX188: 0 | AY188: 0 | AZ188: 0 | BA188: 0 | BB188: 0
B189: Tech26 | C189: unassigned7 | E189: 0 | F189: 0 | G189: 0 | H189: 0 | I189: 0 | J189: 0 | K189: 0 | L189: 0 | M189: 0 | N189: 0 | O189: 0 | P189: 0 | Q189: 0 | R189: 0 | S189: 0 | T189: 0 | U189: 0 | V189: 0 | W189: 0 | X189: 0 | Y189: 0 | Z189: 0 | AA189: 0 | AB189: 0 | AC189: 0 | AD189: 0 | AE189: 0 | AF189: 0 | AG189: 0 | AH189: 0 | AI189: 0 | AJ189: 0 | AK189: 0 | AL189: 0 | AM189: 0 | AN189: 0 | AO189: 0 | AP189: 0 | AQ189: 0 | AR189: 0 | AS189: 0 | AT189: 0 | AU189: 0 | AV189: 0 | AW189: 0 | AX189: 0 | AY189: 0 | AZ189: 0 | BA189: 0 | BB189: 0
B190: Tech27 | C190: unassigned8 | E190: 0 | F190: 0 | G190: 0 | H190: 0 | I190: 0 | J190: 0 | K190: 0 | L190: 0 | M190: 0 | N190: 0 | O190: 0 | P190: 0 | Q190: 0 | R190: 0 | S190: 0 | T190: 0 | U190: 0 | V190: =V104-U104-V147 -> 0 | W190: 0 | X190: 0 | Y190: 0 | Z190: 0 | AA190: 0 | AB190: 0 | AC190: 0 | AD190: 0 | AE190: 0 | AF190: 0 | AG190: 0 | AH190: 0 | AI190: 0 | AJ190: 0 | AK190: 0 | AL190: 0 | AM190: 0 | AN190: 0 | AO190: 0 | AP190: 0 | AQ190: 0 | AR190: 0 | AS190: 0 | AT190: 0 | AU190: 0 | AV190: 0 | AW190: 0 | AX190: 0 | AY190: 0 | AZ190: 0 | BA190: 0 | BB190: 0
B191: Tech28 | C191: unassigned9 | E191: 0 | F191: 0 | G191: 0 | H191: 0 | I191: 0 | J191: 0 | K191: 0 | L191: 0 | M191: 0 | N191: 0 | O191: 0 | P191: 0 | Q191: 0 | R191: 0 | S191: 0 | T191: 0 | U191: 0 | V191: 0 | W191: 0 | X191: 0 | Y191: 0 | Z191: 0 | AA191: 0 | AB191: 0 | AC191: 0 | AD191: 0 | AE191: 0 | AF191: 0 | AG191: 0 | AH191: 0 | AI191: 0 | AJ191: 0 | AK191: 0 | AL191: 0 | AM191: 0 | AN191: 0 | AO191: 0 | AP191: 0 | AQ191: 0 | AR191: 0 | AS191: 0 | AT191: 0 | AU191: 0 | AV191: 0 | AW191: 0 | AX191: 0 | AY191: 0 | AZ191: 0 | BA191: 0 | BB191: =BB105-BA105-BB148 -> 0
B192: Tech29 | C192: unassigned10 | E192: 0 | F192: 0 | G192: 0 | H192: 0 | I192: 0 | J192: 0 | K192: 0 | L192: 0 | M192: 0 | N192: 0 | O192: 0 | P192: 0 | Q192: 0 | R192: 0 | S192: 0 | T192: 0 | U192: 0 | V192: 0 | W192: 0 | X192: 0 | Y192: 0 | Z192: 0 | AA192: 0 | AB192: 0 | AC192: 0 | AD192: 0 | AE192: 0 | AF192: 0 | AG192: 0 | AH192: 0 | AI192: 0 | AJ192: 0 | AK192: 0 | AL192: 0 | AM192: 0 | AN192: 0 | AO192: 0 | AP192: 0 | AQ192: 0 | AR192: 0 | AS192: 0 | AT192: 0 | AU192: 0 | AV192: 0 | AW192: 0 | AX192: 0 | AY192: 0 | AZ192: 0 | BA192: 0 | BB192: 0
B193: Tech30 | C193: unassigned11 | E193: 0 | F193: 0 | G193: 0 | H193: 0 | I193: 0 | J193: 0 | K193: 0 | L193: 0 | M193: 0 | N193: 0 | O193: 0 | P193: 0 | Q193: 0 | R193: 0 | S193: 0 | T193: 0 | U193: 0 | V193: 0 | W193: 0 | X193: 0 | Y193: 0 | Z193: 0 | AA193: 0 | AB193: 0 | AC193: 0 | AD193: 0 | AE193: 0 | AF193: 0 | AG193: 0 | AH193: 0 | AI193: 0 | AJ193: 0 | AK193: 0 | AL193: 0 | AM193: 0 | AN193: 0 | AO193: 0 | AP193: 0 | AQ193: 0 | AR193: 0 | AS193: 0 | AT193: 0 | AU193: 0 | AV193: 0 | AW193: 0 | AX193: 0 | AY193: 0 | AZ193: 0 | BA193: 0 | BB193: 0
B194: Tech31 | C194: unassigned12 | E194: 0 | F194: 0 | G194: 0 | H194: 0 | I194: 0 | J194: 0 | K194: 0 | L194: 0 | M194: 0 | N194: 0 | O194: 0 | P194: 0 | Q194: 0 | R194: 0 | S194: 0 | T194: 0 | U194: 0 | V194: 0 | W194: 0 | X194: 0 | Y194: 0 | Z194: 0 | AA194: 0 | AB194: 0 | AC194: 0 | AD194: 0 | AE194: 0 | AF194: 0 | AG194: 0 | AH194: 0 | AI194: 0 | AJ194: 0 | AK194: 0 | AL194: 0 | AM194: 0 | AN194: 0 | AO194: 0 | AP194: 0 | AQ194: 0 | AR194: 0 | AS194: 0 | AT194: 0 | AU194: 0 | AV194: 0 | AW194: 0 | AX194: 0 | AY194: 0 | AZ194: 0 | BA194: 0 | BB194: 0
B195: Tech32 | C195: unassigned13 | E195: 0 | F195: 0 | G195: 0 | H195: 0 | I195: 0 | J195: 0 | K195: 0 | L195: 0 | M195: 0 | N195: 0 | O195: 0 | P195: 0 | Q195: 0 | R195: 0 | S195: 0 | T195: 0 | U195: 0 | V195: 0 | W195: 0 | X195: 0 | Y195: 0 | Z195: 0 | AA195: 0 | AB195: 0 | AC195: 0 | AD195: 0 | AE195: 0 | AF195: =AF109-AE109-AF152 -> 0 | AG195: 0 | AH195: 0 | AI195: 0 | AJ195: 0 | AK195: 0 | AL195: 0 | AM195: 0 | AN195: 0 | AO195: 0 | AP195: 0 | AQ195: 0 | AR195: 0 | AS195: 0 | AT195: 0 | AU195: 0 | AV195: 0 | AW195: 0 | AX195: 0 | AY195: 0 | AZ195: 0 | BA195: 0 | BB195: 0
B196: Tech33 | C196: unassigned14 | E196: 0 | F196: 0 | G196: 0 | H196: 0 | I196: 0 | J196: 0 | K196: 0 | L196: 0 | M196: 0 | N196: 0 | O196: 0 | P196: 0 | Q196: 0 | R196: 0 | S196: 0 | T196: 0 | U196: 0 | V196: 0 | W196: 0 | X196: 0 | Y196: 0 | Z196: 0 | AA196: 0 | AB196: 0 | AC196: 0 | AD196: 0 | AE196: 0 | AF196: 0 | AG196: 0 | AH196: 0 | AI196: 0 | AJ196: 0 | AK196: 0 | AL196: 0 | AM196: 0 | AN196: 0 | AO196: 0 | AP196: 0 | AQ196: 0 | AR196: 0 | AS196: 0 | AT196: 0 | AU196: 0 | AV196: 0 | AW196: 0 | AX196: 0 | AY196: 0 | AZ196: 0 | BA196: 0 | BB196: 0
B197: Tech34 | C197: unassigned15 | E197: 0 | F197: 0 | G197: 0 | H197: 0 | I197: 0 | J197: 0 | K197: 0 | L197: 0 | M197: 0 | N197: 0 | O197: 0 | P197: 0 | Q197: 0 | R197: 0 | S197: 0 | T197: 0 | U197: 0 | V197: 0 | W197: 0 | X197: 0 | Y197: 0 | Z197: 0 | AA197: 0 | AB197: 0 | AC197: 0 | AD197: 0 | AE197: 0 | AF197: 0 | AG197: 0 | AH197: 0 | AI197: 0 | AJ197: 0 | AK197: 0 | AL197: 0 | AM197: 0 | AN197: 0 | AO197: 0 | AP197: 0 | AQ197: 0 | AR197: 0 | AS197: 0 | AT197: 0 | AU197: 0 | AV197: 0 | AW197: 0 | AX197: 0 | AY197: 0 | AZ197: 0 | BA197: 0 | BB197: 0
B198: Tech35 | C198: unassigned16 | E198: 0 | F198: 0 | G198: 0 | H198: 0 | I198: 0 | J198: 0 | K198: 0 | L198: 0 | M198: 0 | N198: 0 | O198: 0 | P198: 0 | Q198: 0 | R198: 0 | S198: 0 | T198: 0 | U198: 0 | V198: 0 | W198: 0 | X198: 0 | Y198: 0 | Z198: 0 | AA198: 0 | AB198: 0 | AC198: 0 | AD198: 0 | AE198: 0 | AF198: 0 | AG198: 0 | AH198: 0 | AI198: 0 | AJ198: 0 | AK198: 0 | AL198: 0 | AM198: 0 | AN198: 0 | AO198: 0 | AP198: 0 | AQ198: 0 | AR198: 0 | AS198: 0 | AT198: 0 | AU198: 0 | AV198: 0 | AW198: 0 | AX198: 0 | AY198: 0 | AZ198: 0 | BA198: 0 | BB198: 0
C201: Generation
C202: Electricity generation can be calculated using annual average load factors from capacity information (drag formula for 2010 to the right) or manually input where modelled data exists
C203: Unit | D203: GWh
C204: Source | D204: IEA (2022) and Global Energy Monitor (2023)
D205: Load factor
B206: Tech Ref | C206: Technology | D206: 2010 | E206: 2011 | F206: 2012 | G206: 2013 | H206: 2014 | I206: 2015 | J206: 2016 | K206: 2017 | L206: 2018 | M206: 2019 | N206: 2020 | O206: 2021 | P206: 2022 | Q206: 2023 | R206: 2024 | S206: 2025 | T206: 2026 | U206: 2027 | V206: 2028 | W206: 2029 | X206: 2030 | Y206: 2031 | Z206: 2032 | AA206: 2033 | AB206: 2034 | AC206: 2035 | AD206: 2036 | AE206: 2037 | AF206: 2038 | AG206: 2039 | AH206: 2040 | AI206: 2041 | AJ206: 2042 | AK206: 2043 | AL206: 2044 | AM206: 2045 | AN206: 2046 | AO206: 2047 | AP206: 2048 | AQ206: 2049 | AR206: 2050 | AS206: 2051 | AT206: 2052 | AU206: 2053 | AV206: 2054 | AW206: 2055 | AX206: 2056 | AY206: 2057 | AZ206: 2058 | BA206: 2059 | BB206: 2060
B207: =TechRef_List -> Tech1 | C207: =INDEX(TechName_List,MATCH($B207,TechRef_List,0)) -> Coal | D207: =$M207 -> 189069.4239 | E207: 189069.4239 | F207: 189069.4239 | G207: 189069.4239 | H207: 189069.4239 | I207: 189069.4239 | J207: 189069.4239 | K207: 189069.4239 | L207: =$M207 -> 189069.4239 | M207: 189069.4239 | N207: 189069.4239 | O207: 189069.4239 | P207: 194977.8434 | Q207: 200886.2629 | R207: 212703.1019 | S207: 224519.9409 | T207: 233382.5702 | U207: 242245.1994 | V207: 248153.6189 | W207: 259970.4579 | X207: 262924.6677 | Y207: 265878.8774 | Z207: 262924.6677 | AA207: 259970.4579 | AB207: 251107.8287 | AC207: 239290.9897 | AD207: 230428.3604 | AE207: 209748.8922 | AF207: 192023.6337 | AG207: 180206.7947 | AH207: 162481.5362 | AI207: 141802.0679 | AJ207: 124076.8095 | AK207: 106351.551 | AL207: 85672.08272 | AM207: 70901.03397 | AN207: 56129.98523 | AO207: 44313.14623 | AP207: 38404.72674 | AQ207: 32496.30724 | AR207: 23633.67799 | AS207: 20679.46824 | AT207: 17179.46824 | AU207: 13679.46824 | AV207: 10179.46824 | AW207: 6679.468242 | AX207: 3179.468242 | AY207: 1000 | AZ207: 1000 | BA207: 500 | BB207: 250
B208: Tech2 | C208: Coal CCS | D208: 0 | E208: 0 | F208: 0 | G208: 0 | H208: 0 | I208: 0 | J208: 0 | K208: 0 | L208: =$M208 -> 0 | M208: 0 | N208: 0 | O208: 0 | P208: 0 | Q208: 0 | R208: 0 | S208: 0 | T208: 0 | U208: 0 | V208: 0 | W208: 0 | X208: 0 | Y208: 0 | Z208: 0 | AA208: 0 | AB208: 0 | AC208: 6.6 | AD208: 5842.735303 | AE208: 5849.335303 | AF208: 3899.556869 | AG208: 1949.778434 | AH208: 5849.335303 | AI208: 11734.12112 | AJ208: 13731.16691 | AK208: 15740.02954 | AL208: 15787.2969 | AM208: 17813.88479 | AN208: 21837.51846 | AO208: 25884.78582 | AP208: 19970.4579 | AQ208: 24035.45052 | AR208: 28124.07681 | AS208: 22162.48154 | AT208: 24248.15362 | AU208: 24319.05465 | AV208: 28454.9483 | AW208: 26499.26145 | AX208: 26576.0709 | AY208: 24602.65879 | AZ208: 26729.68981 | BA208: 28868.53767 | BB208: 28951.25554
B209: Tech3 | C209: Gas Open | D209: 13293.94387 | E209: 13293.94387 | F209: 13293.94387 | G209: 13293.94387 | H209: 13293.94387 | I209: 13293.94387 | J209: 13293.94387 | K209: 13293.94387 | L209: 13293.94387 | M209: 13293.94387 | N209: 13293.94387 | O209: 13293.94387 | P209: 13293.94387 | Q209: 14032.49631 | R209: 16986.70606 | S209: 15509.60118 | T209: 14771.04874 | U209: 16248.15362 | V209: 17725.25849 | W209: 16986.70606 | X209: 16248.15362 | Y209: 16248.15362 | Z209: 17725.25849 | AA209: 16248.15362 | AB209: 16986.70606 | AC209: 16986.70606 | AD209: 14771.04874 | AE209: 14771.04874 | AF209: 14771.04874 | AG209: 11816.839 | AH209: 11078.28656 | AI209: 11078.28656 | AJ209: 9601.181684 | AK209: 8862.629247 | AL209: 8862.629247 | AM209: 7385.524372 | AN209: 7385.524372 | AO209: 6646.971935 | AP209: 5908.419498 | AQ209: 5169.867061 | AR209: 5169.867061 | AS209: 4431.314623 | AT209: 3692.762186 | AU209: 2954.209749 | AV209: 2954.209749 | AW209: 2954.209749 | AX209: 2215.657312 | AY209: 738.5524372 | AZ209: 1477.104874 | BA209: 738.5524372 | BB209: 738.5524372
B210: Tech4 | C210: Gas Combined | D210: 39881.83161 | E210: 39881.83161 | F210: 39881.83161 | G210: 39881.83161 | H210: 39881.83161 | I210: 39881.83161 | J210: 39881.83161 | K210: 39881.83161 | L210: 39881.83161 | M210: 39881.83161 | N210: 39881.83161 | O210: 39881.83161 | P210: 39881.83161 | Q210: 42097.48892 | R210: 50960.11817 | S210: 46528.80355 | T210: 44313.14623 | U210: 48744.46086 | V210: 53175.77548 | W210: 50960.11817 | X210: 48744.46086 | Y210: 48744.46086 | Z210: 53175.77548 | AA210: 48744.46086 | AB210: 50960.11817 | AC210: 50960.11817 | AD210: 44313.14623 | AE210: 44313.14623 | AF210: 44313.14623 | AG210: 35450.51699 | AH210: 33234.85968 | AI210: 33234.85968 | AJ210: 28803.54505 | AK210: 26587.88774 | AL210: 26587.88774 | AM210: 22156.57312 | AN210: 22156.57312 | AO210: 19940.91581 | AP210: 17725.25849 | AQ210: 15509.60118 | AR210: 15509.60118 | AS210: 13293.94387 | AT210: 11078.28656 | AU210: 8862.629247 | AV210: 8862.629247 | AW210: 8862.629247 | AX210: 6646.971935 | AY210: 2215.657312 | AZ210: 4431.314623 | BA210: 2215.657312 | BB210: 2215.657312
B211: Tech5 | C211: Gas Combined CCS | D211: 0 | E211: 0 | F211: 0 | G211: 0 | H211: 0 | I211: 0 | J211: 0 | K211: 0 | L211: 0 | M211: 0 | N211: 0 | O211: 0 | P211: 0 | Q211: 0 | R211: 0 | S211: 0 | T211: 0 | U211: 0 | V211: 0 | W211: 0 | X211: 0 | Y211: 0 | Z211: 0 | AA211: 0 | AB211: 0 | AC211: 3.4 | AD211: 3009.893944 | AE211: 3013.293944 | AF211: 2008.862629 | AG211: 1004.431315 | AH211: 3013.293944 | AI211: 5991.137371 | AJ211: 6948.301329 | AK211: 7893.648449 | AL211: 7846.381093 | AM211: 8774.002954 | AN211: 10658.78877 | AO211: 12519.94092 | AP211: 9571.639586 | AQ211: 11415.06647 | AR211: 13234.85968 | AS211: 10333.8257 | AT211: 11202.36337 | AU211: 11131.46233 | AV211: 12903.98818 | AW211: 11905.46529 | AX211: 11828.65583 | AY211: 10847.8582 | AZ211: 11675.03693 | BA211: 12490.39882 | BB211: 12407.68095
B212: Tech6 | C212: Oil | D212: 11816.839 | E212: 11816.839 | F212: 11816.839 | G212: 11816.839 | H212: 11816.839 | I212: 11816.839 | J212: 11816.839 | K212: 11816.839 | L212: 11816.839 | M212: 11816.839 | N212: 11816.839 | O212: 11816.839 | P212: 8862.629247 | Q212: 8862.629247 | R212: 8862.629247 | S212: 8862.629247 | T212: 8862.629247 | U212: 5908.419498 | V212: 5908.419498 | W212: 5908.419498 | X212: 5908.419498 | Y212: 8862.629247 | Z212: 5908.419498 | AA212: 5908.419498 | AB212: 8862.629247 | AC212: 5908.419498 | AD212: 8862.629247 | AE212: 5908.419498 | AF212: 5908.419498 | AG212: 8862.629247 | AH212: 2954.209749 | AI212: 2954.209749 | AJ212: 2954.209749 | AK212: 2954.209749 | AL212: 2954.209749 | AM212: 10 | AN212: 2954.209749 | AO212: 5908.419498 | AP212: 11 | AQ212: 5908.419498 | AR212: 2954.209749 | AS212: 10 | AT212: 2954.209749 | AU212: 2954.209749 | AV212: 2954.209749 | AW212: 10 | AX212: 10 | AY212: 2964.209749 | AZ212: 2954.209749 | BA212: 5908.419498 | BB212: 2954.209749
B213: Tech7 | C213: Nuclear | D213: 0 | E213: 0 | F213: 0 | G213: 0 | H213: 0 | I213: 0 | J213: 0 | K213: 0 | L213: 0 | M213: 0 | N213: 0 | O213: 0 | P213: 0 | Q213: 0 | R213: 0 | S213: 0 | T213: 0 | U213: 0 | V213: 0 | W213: 0 | X213: 0 | Y213: 0 | Z213: 0 | AA213: 0 | AB213: 0 | AC213: 0 | AD213: 5000 | AE213: 11816.839 | AF213: 20679.46824 | AG213: 20679.46824 | AH213: 23633.67799 | AI213: 26587.88774 | AJ213: 32496.30724 | AK213: 35450.51699 | AL213: 41358.93648 | AM213: 41358.93648 | AN213: 47267.35598 | AO213: 53175.77548 | AP213: 56129.98523 | AQ213: 59084.19498 | AR213: 56129.98523 | AS213: 70901.03397 | AT213: 64992.61448 | AU213: 67946.82422 | AV213: 62038.40473 | AW213: 64992.61448 | AX213: 62038.40473 | AY213: 64992.61448 | AZ213: 64992.61448 | BA213: 64992.61448 | BB213: 62038.40473
B214: Tech8 | C214: Biomass | D214: 17725.25849 | E214: 17725.25849 | F214: 17725.25849 | G214: 17725.25849 | H214: 17725.25849 | I214: 17725.25849 | J214: 17725.25849 | K214: 17725.25849 | L214: 17725.25849 | M214: 17725.25849 | N214: 17725.25849 | O214: 17725.25849 | P214: 17725.25849 | Q214: 20679.46824 | R214: 17725.25849 | S214: 17725.25849 | T214: 23633.67799 | U214: 23633.67799 | V214: 23633.67799 | W214: 29542.09749 | X214: 26587.88774 | Y214: 32496.30724 | Z214: 32496.30724 | AA214: 32496.30724 | AB214: 44313.14623 | AC214: 41358.93648 | AD214: 47267.35598 | AE214: 50221.56573 | AF214: 53175.77548 | AG214: 53175.77548 | AH214: 62038.40473 | AI214: 67946.82422 | AJ214: 73855.24372 | AK214: 76809.45347 | AL214: 79763.66322 | AM214: 85672.08272 | AN214: 91580.50222 | AO214: 94534.71196 | AP214: 100443.1315 | AQ214: 97488.92171 | AR214: 103397.3412 | AS214: 109305.7607 | AT214: 112259.9705 | AU214: 118168.39 | AV214: 118168.39 | AW214: 121122.5997 | AX214: 127031.0192 | AY214: 129985.229 | AZ214: 127031.0192 | BA214: 132939.4387 | BB214: 132939.4387
B215: Tech9 | C215: Solar utility | D215: 823.878 | E215: 823.878 | F215: 823.878 | G215: 823.878 | H215: 823.878 | I215: 823.878 | J215: 823.878 | K215: 823.878 | L215: 823.878 | M215: 823.878 | N215: 823.878 | O215: 823.878 | P215: 4775.958475 | Q215: 8508.010024 | R215: 12020.03265 | S215: 15312.02634 | T215: 18383.99112 | U215: 21235.92696 | V215: 23867.83388 | W215: 26279.71187 | X215: 28471.56094 | Y215: 40529.267 | Z215: 51884.67455 | AA215: 62537.78361 | AB215: 72488.59416 | AC215: 81737.1062 | AD215: 90283.31974 | AE215: 98127.23478 | AF215: 105268.8513 | AG215: 111708.1694 | AH215: 117445.1889 | AI215: 133620.98 | AJ215: 149796.7711 | AK215: 165972.5622 | AL215: 182148.3533 | AM215: 198324.1444 | AN215: 214499.9356 | AO215: 230675.7267 | AP215: 246851.5178 | AQ215: 263027.3089 | AR215: 279203.1 | AS215: 283541.0685 | AT215: 287879.0371 | AU215: 292217.0056 | AV215: 296554.9742 | AW215: 300892.9427 | AX215: 305230.9113 | AY215: 309568.8798 | AZ215: 313906.8484 | BA215: 318244.8169 | BB215: 322582.7855
B216: Tech10 | C216: Solar rooftop | D216: 8.322 | E216: 8.322 | F216: 8.322 | G216: 8.322 | H216: 8.322 | I216: 8.322 | J216: 8.322 | K216: 8.322 | L216: 8.322 | M216: 8.322 | N216: 8.322 | O216: 8.322 | P216: 71.61183411 | Q216: 171.5731559 | R216: 308.2059653 | S216: 481.5102624 | T216: 691.4860471 | U216: 938.1333196 | V216: 1221.45208 | W216: 1541.442327 | X216: 1898.104063 | Y216: 3331.17263 | Z216: 5115.390449 | AA216: 7250.75752 | AB216: 9737.273842 | AC216: 12574.93942 | AD216: 15763.75424 | AE216: 19303.71832 | AF216: 23194.83165 | AG216: 27437.09423 | AH216: 32030.50606 | AI216: 37656.82163 | AJ216: 43577.2425 | AK216: 49791.76867 | AL216: 56300.40012 | AM216: 63103.13687 | AN216: 70199.97891 | AO216: 77590.92624 | AP216: 85275.97887 | AQ216: 93255.13679 | AR216: 101528.4 | AS216: 103105.8431 | AT216: 104683.2862 | AU216: 106260.7293 | AV216: 107838.1724 | AW216: 109415.6155 | AX216: 110993.0586 | AY216: 112570.5018 | AZ216: 114147.9449 | BA216: 115725.388 | BB216: 117302.8311
B217: Tech11 | C217: Solar floating | D217: 0 | E217: 0 | F217: 0 | G217: 0 | H217: 0 | I217: 0 | J217: 0 | K217: 0 | L217: 0 | M217: 0 | N217: 0 | O217: 0 | P217: 110.1720525 | Q217: 403.7015433 | R217: 880.5884723 | S217: 1540.83284 | T217: 2384.434645 | U217: 3411.393889 | V217: 4621.710572 | W217: 6015.384692 | X217: 7592.416251 | Y217: 11659.10421 | Z217: 16076.94141 | AA217: 20845.92787 | AB217: 25966.06358 | AC217: 31437.34854 | AD217: 37259.78275 | AE217: 43433.36622 | AF217: 49958.09893 | AG217: 56833.9809 | AH217: 64061.01212 | AI217: 71669.43472 | AJ217: 78983.75204 | AK217: 86003.96406 | AL217: 92730.07079 | AM217: 99162.07222 | AN217: 105299.9684 | AO217: 111143.7592 | AP217: 116693.4448 | AQ217: 121949.025 | AR217: 126910.5 | AS217: 128882.3039 | AT217: 130854.1078 | AU217: 132825.9117 | AV217: 134797.7155 | AW217: 136769.5194 | AX217: 138741.3233 | AY217: 140713.1272 | AZ217: 142684.9311 | BA217: 144656.735 | BB217: 146628.5388
B218: Tech12 | C218: Wind onshore | D218: 10 | E218: 10 | F218: 10 | G218: 10 | H218: 10 | I218: 10 | J218: 10 | K218: 10 | L218: 10 | M218: 10 | N218: 10 | O218: 10 | P218: 1 | Q218: 10 | R218: 10 | S218: 10 | T218: 2954.209749 | U218: 5908.419498 | V218: 8862.629247 | W218: 11816.839 | X218: 8862.629247 | Y218: 17193.50074 | Z218: 22215.65731 | AA218: 18818.3161 | AB218: 25997.04579 | AC218: 35155.09601 | AD218: 33914.32792 | AE218: 46676.51403 | AF218: 53884.78582 | AG218: 56070.90103 | AH218: 66174.29838 | AI218: 75420.97489 | AJ218: 82363.3678 | AK218: 95007.38552 | AL218: 101388.4786 | AM218: 111373.7075 | AN218: 119113.7371 | AO218: 120974.8892 | AP218: 130044.3131 | AQ218: 133353.0281 | AR218: 136484.4904 | AS218: 143574.5938 | AT218: 150664.6972 | AU218: 155982.2747 | AV218: 166617.4298 | AW218: 171935.0074 | AX218: 179025.1108 | AY218: 187887.74 | AZ218: 198522.8951 | BA218: 205612.9985 | BB218: 212703.1019
B219: Tech13 | C219: Wind offshore | D219: 0 | E219: 0 | F219: 0 | G219: 0 | H219: 0 | I219: 0 | J219: 0 | K219: 0 | L219: 0 | M219: 0 | N219: 0 | O219: 0 | P219: 0 | Q219: 0 | R219: 0 | S219: 0 | T219: 0 | U219: 0 | V219: 0 | W219: 0 | X219: 0 | Y219: 531.7577548 | Z219: 1418.020679 | AA219: 1861.152142 | AB219: 3545.051699 | AC219: 6203.840473 | AD219: 7444.608567 | AE219: 12407.68095 | AF219: 17016.24815 | AG219: 20738.55244 | AH219: 28360.41359 | AI219: 33884.78582 | AJ219: 38759.23191 | AK219: 46794.68242 | AL219: 52230.42836 | AM219: 59970.4579 | AN219: 67001.4771 | AO219: 71048.74446 | AP219: 79704.57903 | AQ219: 85258.49335 | AR219: 90989.66027 | AS219: 95716.39586 | AT219: 100443.1315 | AU219: 103988.1832 | AV219: 111078.2866 | AW219: 114623.3383 | AX219: 119350.0739 | AY219: 125258.4934 | AZ219: 132348.5968 | BA219: 137075.3323 | BB219: 141802.0679
B220: Tech14 | C220: Geothermal | D220: 14771.04874 | E220: 14771.04874 | F220: 14771.04874 | G220: 14771.04874 | H220: 14771.04874 | I220: 14771.04874 | J220: 14771.04874 | K220: 14771.04874 | L220: 14771.04874 | M220: 14771.04874 | N220: 14771.04874 | O220: 14771.04874 | P220: 14771.04874 | Q220: 14771.04874 | R220: 20679.46824 | S220: 23633.67799 | T220: 23633.67799 | U220: 35450.51699 | V220: 41358.93648 | W220: 44313.14623 | X220: 62038.40473 | Y220: 62038.40473 | Z220: 70901.03397 | AA220: 85672.08272 | AB220: 88626.29247 | AC220: 97488.92171 | AD220: 106351.551 | AE220: 112259.9705 | AF220: 118168.39 | AG220: 127031.0192 | AH220: 127031.0192 | AI220: 129985.229 | AJ220: 135893.6484 | AK220: 135893.6484 | AL220: 141802.0679 | AM220: 141802.0679 | AN220: 138847.8582 | AO220: 147710.4874 | AP220: 147710.4874 | AQ220: 153618.9069 | AR220: 153618.9069 | AS220: 153618.9069 | AT220: 156573.1167 | AU220: 156573.1167 | AV220: 153618.9069 | AW220: 156573.1167 | AX220: 159527.3264 | AY220: 159527.3264 | AZ220: 159527.3264 | BA220: 156573.1167 | BB220: 162481.5362
B221: Tech15 | C221: Hydro large | D221: 19645.49483 | E221: 19645.49483 | F221: 19645.49483 | G221: 19645.49483 | H221: 19645.49483 | I221: 19645.49483 | J221: 19645.49483 | K221: 19645.49483 | L221: 19645.49483 | M221: 19645.49483 | N221: 19645.49483 | O221: 19645.49483 | P221: 19530.6089 | Q221: 19415.72296 | R221: 22058.09946 | S221: 21926.80125 | T221: 27244.3788 | U221: 27080.25603 | V221: 29607.74659 | W221: 32102.4126 | X221: 39881.83161 | Y221: 42304.2836 | Z221: 47326.44018 | AA221: 57518.46381 | AB221: 54593.79616 | AC221: 64623.33826 | AD221: 69394.387 | AE221: 79217.13442 | AF221: 83840.47267 | AG221: 90930.57607 | AH221: 100443.1315 | AI221: 102348.5968 | AJ221: 106706.0561 | AK221: 111004.4313 | AL221: 115243.7223 | AM221: 121852.9021 | AN221: 123545.0517 | AO221: 125199.4092 | AP221: 131601.1343 | AQ221: 133175.7755 | AR221: 137075.3323 | AS221: 138559.2583 | AT221: 140029.5421 | AU221: 139143.2792 | AV221: 142865.5835 | AW221: 146521.0535 | AX221: 145575.7564 | AY221: 144630.4593 | AZ221: 148183.161 | BA221: 149438.7001 | BB221: 148449.0399
... 101 more rows

Sheet Cost_INPUT_S1
A1: Return to Cover
B3: Cost Input | C3: S1
C6: Step 3.5 | D6: Complete all yellow shaded cells in the tables below for each technology included in the scenario
C8: General | D8: Cost items included in the model can be used as-is, or replaced with an alternative aggregation of cost items to best suit the available data
C9: General | D9: Cost items are categorised into capital expenditure (Capex - expressed in cost per MW), fixed operational expenditure (OpexFixed - expressed in cost per MW per year) and variable operational expenditure (OpexVariable - expressed in cost per MWh of electrical output)
C10: General | D10: If applicable fuel costs are included in the "Fuel_Costs" sheet, variable operational expenditure (OpexVariable) should exclude any fuel costs to avoid double counting
C11: General | D11: If cost data is only available at the level of total capex, fixed opex and variable opex, these values can be added in the first three rows of the input tables for each technology and will then be automatically apportioned to the detailed cost items based on the "Share Input" percentage values
C12: General | D12: Values between 0-100% should be entered in the "In-country Share" column for each item; this should reflect the share of the total cost that is spent within the country (i.e. on domestically produced goods and domestic labour/services)
C13: General | D13: If the share of the cost that is directly spent on labour is known it can be added to the "Labour Share Override" column; if this is left as "na" then the average share of spending on labour corresponding to the particular sector will be extracted from the national input output table and used as a proxy
C16: Summary
G19: Local share
D20: Links | E20: Technology | F20: LCOE | G20: Capex | H20: OpexFixed | I20: OpexVariable
F21: USD/MWh | G21: % | H21: % | I21: %
D22: =TechRef_List -> Tech1 | E22: =INDEX(TechName_List,MATCH($D22,TechRef_List,0)) -> Coal | F22: =SUMIFS(CostInputs_Value,CostInput_Technology,$D22,CostInput_CostCat,F$20) -> 63.46326378 | G22: =SUMIFS($L$68:$L$2272,CostInput_Technology,$D22,CostInput_CostCat,G$20,$K$68:$K$2272,"Summary") -> 0.5220089066 | H22: 0.575 | I22: 0.4
D23: Tech2 | E23: =INDEX(TechName_List,MATCH($D23,TechRef_List,0)) -> Coal CCS | F23: =SUMIFS(CostInputs_Value,CostInput_Technology,$D23,CostInput_CostCat,F$20) -> 82.89457274 | G23: 0.6 | H23: 0.6 | I23: 0.4
D24: Tech3 | E24: Gas Open | F24: =SUMIFS(CostInputs_Value,CostInput_Technology,$D24,CostInput_CostCat,F$20) -> 125.2685865 | G24: 0.4913449161 | H24: 0.65 | I24: 0
D25: Tech4 | E25: Gas Combined | F25: =SUMIFS(CostInputs_Value,CostInput_Technology,$D25,CostInput_CostCat,F$20) -> 87.75434436 | G25: 0.3579220097 | H25: 0.4700178325 | I25: 0.7
D26: Tech5 | E26: Gas Combined CCS | F26: 108.4185692 | G26: 0.5 | H26: 0.5 | I26: 0.7
D27: Tech6 | E27: Oil | F27: 178.7352532 | G27: 0.4913449161 | H27: 0.65 | I27: 0
D28: Tech7 | E28: Nuclear | F28: 83.85118046 | G28: 0.1 | H28: 0 | I28: 0.1
D29: Tech8 | E29: Biomass | F29: 66.06005568 | G29: 0.5010270964 | H29: 0.9 | I29: 0.4
D30: Tech9 | E30: Solar utility | F30: 57.99221729 | G30: 0.5863863748 | H30: 1 | I30: 0
D31: Tech10 | E31: Solar rooftop | F31: 95.93506517 | G31: 0.5863863748 | H31: 1 | I31: 0
D32: Tech11 | E32: Solar floating | F32: 62.16555356 | G32: 0.5863863748 | H32: 1 | I32: 0
D33: Tech12 | E33: Wind onshore | F33: 74.66641936 | G33: 0.3617506516 | H33: 0.4555173023 | I33: 0
D34: Tech13 | E34: Wind offshore | F34: 107.3776988 | G34: 0.3348916661 | H34: 0.3725280193 | I34: =SUMIFS($L$68:$L$2272,CostInput_Technology,$D34,CostInput_CostCat,I$20,$K$68:$K$2272,"Summary") -> 0
D35: Tech14 | E35: Geothermal | F35: =SUMIFS(CostInputs_Value,CostInput_Technology,$D35,CostInput_CostCat,F$20) -> 67.68221932 | G35: 0.3668747439 | H35: 0.4 | I35: 0
D36: Tech15 | E36: Hydro large | F36: 78.47763889 | G36: 0.5839531434 | H36: 0.5 | I36: 0
D37: Tech16 | E37: Hydro small | F37: 40.98586706 | G37: 0.5839531434 | H37: 0.5 | I37: 0
D38: Tech17 | E38: Hydrogen | F38: 0 | G38: 0 | H38: 0 | I38: 0
D39: Tech18 | E39: Pumped storage | F39: 27.28086019 | G39: 0.5 | H39: 0.5 | I39: 0.5
D40: Tech19 | E40: Batteries | F40: 114.944399 | G40: 0.3647990256 | H40: 0.75 | I40: 0.2
D41: Tech20 | E41: unassigned1 | F41: 0 | G41: 0 | H41: 0 | I41: 0
D42: Tech21 | E42: unassigned2 | F42: 0 | G42: =SUMIFS($L$68:$L$2272,CostInput_Technology,$D42,CostInput_CostCat,G$20,$K$68:$K$2272,"Summary") -> 0 | H42: 0 | I42: 0
D43: Tech22 | E43: unassigned3 | F43: 0 | G43: 0 | H43: 0 | I43: 0
D44: Tech23 | E44: unassigned4 | F44: 0 | G44: 0 | H44: 0 | I44: 0
D45: Tech24 | E45: unassigned5 | F45: 0 | G45: 0 | H45: 0 | I45: 0
D46: Tech25 | E46: unassigned6 | F46: 0 | G46: 0 | H46: 0 | I46: 0
D47: Tech26 | E47: unassigned7 | F47: 0 | G47: 0 | H47: 0 | I47: 0
D48: Tech27 | E48: unassigned8 | F48: 0 | G48: 0 | H48: 0 | I48: 0
D49: Tech28 | E49: unassigned9 | F49: 0 | G49: 0 | H49: 0 | I49: 0
D50: Tech29 | E50: unassigned10 | F50: 0 | G50: 0 | H50: 0 | I50: 0
D51: Tech30 | E51: unassigned11 | F51: 0 | G51: 0 | H51: 0 | I51: 0
D52: Tech31 | E52: unassigned12 | F52: 0 | G52: 0 | H52: 0 | I52: 0
D53: Tech32 | E53: unassigned13 | F53: 0 | G53: 0 | H53: 0 | I53: 0
D54: Tech33 | E54: unassigned14 | F54: 0 | G54: 0 | H54: 0 | I54: 0
D55: Tech34 | E55: unassigned15 | F55: 0 | G55: 0 | H55: 0 | I55: 0
D56: Tech35 | E56: unassigned16 | F56: 0 | G56: 0 | H56: 0 | I56: 0
M65: Mixed
M66: Manual | N66: Bases the In-country share on manual entries in column L; any blanks will be read as zero
M67: Sector | N67: Bases the In-country share on sectoral level data contained in the country Input Output table, based on the sector defined in column P
M68: Mix | N68: Bases the In-country share on manual entries in column L where populated and the sectoral level shares in column M where column L is left blank
C69: Tech1 | D69: =INDEX(TechName_List,MATCH($C69,TechRef_List,0)) -> Coal
O70: Labour
D71: Technology | E71: Cost Item | F71: Cost Category | G71: Value Input | H71: Share Input | I71: Value | J71: Unit | K71: In-country Share Manual | L71: Sector In-country Share | M71: In-country Spend | N71: Sector | O71: Labour Share of Spend | P71: Labour Share Override | Q71: In-country Labour Spend | S71: Value or share input data source | T71: In-country share data source | U71: Labour share override data source
D72: Total capex and opex input fields - leave blank if using detailed cost item inputs
D73: Tech1 | E73: Total | F73: Capex | G73: =INDEX(Technology_Data!$E$9:$E$28, MATCH($D73, Technology_Data!$C$9:$C$28,0))*10^3 -> 1400 | J73: =IFERROR(INDEX(Cost_Category_Inputs_Units,MATCH($F73,Cost_Category_Inputs_List,0)),"") -> USDk/MW | S73: Directorate General of Electricity & Danish Energy Agency (2021)
D74: Tech1 | E74: Total | F74: OpexFixed | G74: =INDEX(Technology_Data!$H$9:$H$28, MATCH($D73, Technology_Data!$C$9:$C$28,0))/10^3 -> 41.2 | J74: =IFERROR(INDEX(Cost_Category_Inputs_Units,MATCH($F74,Cost_Category_Inputs_List,0)),"") -> USDk/MW/yr | S74: Directorate General of Electricity & Danish Energy Agency (2021)
D75: Tech1 | E75: Total | F75: OpexVariable | G75: =INDEX(Technology_Data!$K$9:$K$28, MATCH($D73, Technology_Data!$C$9:$C$28,0)) -> 0.12 | J75: =IFERROR(INDEX(Cost_Category_Inputs_Units,MATCH($F75,Cost_Category_Inputs_List,0)),"") -> USD/MWh | S75: Directorate General of Electricity & Danish Energy Agency (2021)
B76: Component number | C76: Select default technology | D76: Detailed cost item input fields - if using total capex and opex cost inputs, data in the value input column will not be used
A77: =CONCATENATE($C77,"_",$B77) -> Coal_1 | B77: 1 | C77: Coal | D77: Tech1 | E77: =IFERROR(INDEX(DefaultComp_CostItem, MATCH($A77,DefaultComp_Tech,0)),"") -> Project planning and management | F77: =IFERROR(INDEX(DefaultComp_CostCat, MATCH($A77,DefaultComp_Tech,0)),"") -> Capex | H77: =IFERROR(INDEX(DefaultComp_ValShare, MATCH($A77,DefaultComp_Tech,0)),"") -> 0.1071855006 | I77: =IF(ISNUMBER(INDEX($G$73:$G$75,MATCH($F77,$F$73:$F$75,0))),INDEX($G$73:$G$75,MATCH($F77,$F$73:$F$75))*$H77,$G77) -> 150.0597009 | J77: =IFERROR(INDEX(Cost_Category_Inputs_Units,MATCH($F77,Cost_Category_Inputs_List,0)),"") -> USDk/MW | K77: 0.75 | L77: =IF($N77="",0,INDEX(LocalShare_Value,MATCH($N77,LocalShare_Sector,0))) -> 0.8230246389 | M77: =I77*IF($M$65="Manual",K77,IF($M$65="Sector",L77,IF(K77="",L77,K77))) -> 112.5447757 | N77: =IFERROR(INDEX(DefaultComp_Sector, MATCH($A77,DefaultComp_Tech,0)),"") -> D69T75: Professional, scientific and technical activities | O77: =IF(N77<>"",INDEX(IO_Direct_Requirements_Tbl,MATCH(O$70,IO_Direct_Requirements_L,0),MATCH(N77,IO_Direct_Requirements_T,0)),"") -> 0.2412070388 | P77: na | Q77: =IF(P77="na",IF(N77<>"",O77*M77,""),P77*M77) -> 27.14659207 | T77: Informed by NewClimate Institute (2022)
A78: =CONCATENATE($C78,"_",$B78) -> Coal_2 | B78: 2 | C78: =C77 -> Coal | D78: Tech1 | E78: Civil works | F78: Capex | H78: =IFERROR(INDEX(DefaultComp_ValShare, MATCH($A78,DefaultComp_Tech,0)),"") -> 0.0938732744 | I78: 131.4225842 | J78: USDk/MW | K78: 0.75 | L78: 0.827018419 | M78: 98.56693812 | N78: D41T43: Construction | O78: 0.1794357009 | P78: na | Q78: =IF(P78="na",IF(N78<>"",O78*M78,""),P78*M78) -> 17.68642762 | T78: Informed by NewClimate Institute (2022)
A79: Coal_3 | B79: 3 | C79: =C78 -> Coal | D79: Tech1 | E79: Generating unit | F79: Capex | H79: 0.1426420939 | I79: 199.6989314 | J79: USDk/MW | K79: 0.4 | L79: 0.6628764527 | M79: 79.87957257 | N79: D27: Electrical equipment | O79: 0.1791560542 | P79: na | Q79: =IF(P79="na",IF(N79<>"",O79*M79,""),P79*M79) -> 14.31090904 | T79: Informed by NewClimate Institute (2022)
A80: Coal_4 | B80: 4 | C80: Coal | D80: Tech1 | E80: Mechanical equipment (ash handling, coal handling...) | F80: Capex | H80: 0.4006095739 | I80: 560.8534035 | J80: USDk/MW | K80: 0.4 | L80: 0.6461988997 | M80: =I80*IF($M$65="Manual",K80,IF($M$65="Sector",L80,IF(K80="",L80,K80))) -> 224.3413614 | N80: D28: Machinery and equipment, nec | O80: 0.255250376 | P80: na | Q80: 57.26321684 | T80: Informed by NewClimate Institute (2022)
A81: Coal_5 | B81: 5 | C81: Coal | D81: Tech1 | E81: Electrical balance of plants | F81: Capex | H81: 0.1081514563 | I81: 151.4120389 | J81: USDk/MW | K81: 0.4 | L81: 0.6628764527 | M81: 60.56481555 | N81: D27: Electrical equipment | O81: 0.1791560542 | P81: na | Q81: 10.85055338 | T81: Informed by NewClimate Institute (2022)
A82: Coal_6 | B82: 6 | C82: Coal | D82: Tech1 | E82: Contingency and finance | F82: Capex | H82: 0.1475381008 | I82: 206.5533412 | J82: USDk/MW | K82: 0.75 | L82: 0.8780192765 | M82: 154.9150059 | N82: D64T66: Financial and insurance activities | O82: 0.4073534022 | P82: na | Q82: 63.1051547 | T82: Informed by NewClimate Institute (2022)
A83: Coal_7 | B83: 7 | C83: Coal | D83: Tech1 | E83: Fixed operation | F83: OpexFixed | H83: 0.5 | I83: 20.6 | J83: USDk/MW/yr | K83: 0.75 | L83: 0.9304581951 | M83: 15.45 | N83: D35: Electricity, gas, steam and air conditioning supply | O83: 0.05826320566 | P83: na | Q83: 0.9001665274 | T83: Informed by NewClimate Institute (2022)
A84: Coal_8 | B84: 8 | C84: Coal | D84: Tech1 | E84: Maintenance | F84: OpexFixed | H84: 0.5 | I84: 20.6 | J84: USDk/MW/yr | K84: 0.4 | L84: 0.6461988997 | M84: 8.24 | N84: D28: Machinery and equipment, nec | O84: 0.255250376 | P84: na | Q84: 2.103263098 | T84: Informed by NewClimate Institute (2022)
A85: Coal_9 | B85: 9 | C85: Coal | D85: Tech1 | E85: Variable maintenance | F85: OpexVariable | H85: 1 | I85: 0.12 | J85: USD/MWh | K85: 0.4 | L85: 0.6461988997 | M85: 0.048 | N85: D28: Machinery and equipment, nec | O85: 0.255250376 | P85: na | Q85: 0.01225201805 | T85: Informed by NewClimate Institute (2022)
A86: Coal_10 | B86: 10 | C86: Coal | D86: Tech1 | I86: 0 | L86: 0 | M86: 0 | P86: na
A87: Coal_11 | B87: 11 | C87: Coal | D87: Tech1 | I87: 0 | L87: 0 | M87: 0 | P87: na
A88: Coal_12 | B88: 12 | C88: Coal | D88: Tech1 | I88: 0 | L88: =IF($N88="",0,INDEX(LocalShare_Value,MATCH($N88,LocalShare_Sector,0))) -> 0 | M88: =I88*IF($M$65="Manual",K88,IF($M$65="Sector",L88,IF(K88="",L88,K88))) -> 0 | P88: na
A89: Coal_13 | B89: 13 | C89: Coal | D89: Tech1 | I89: 0 | L89: 0 | M89: 0 | P89: na
A90: Coal_14 | B90: 14 | C90: Coal | D90: Tech1 | I90: 0 | L90: 0 | M90: 0 | P90: na
A91: Coal_15 | B91: 15 | C91: Coal | D91: Tech1 | I91: 0 | L91: 0 | M91: 0 | P91: na
A92: Coal_16 | B92: 16 | C92: Coal | D92: Tech1 | I92: 0 | L92: 0 | M92: 0 | P92: na
A93: Coal_17 | B93: 17 | C93: Coal | D93: Tech1 | I93: 0 | L93: 0 | M93: 0 | P93: na
A94: Coal_18 | B94: 18 | C94: Coal | D94: Tech1 | I94: 0 | L94: 0 | M94: 0 | P94: na
A95: Coal_19 | B95: 19 | C95: Coal | D95: Tech1 | I95: 0 | L95: 0 | M95: 0 | P95: na
A96: Coal_20 | B96: 20 | C96: Coal | D96: Tech1 | I96: 0 | L96: 0 | M96: 0 | P96: na
A97: Coal_21 | B97: 21 | C97: Coal | D97: Tech1 | I97: 0 | L97: 0 | M97: 0 | P97: na
A98: Coal_22 | B98: 22 | C98: Coal | D98: Tech1 | I98: 0 | L98: 0 | M98: 0 | P98: na
A99: Coal_23 | B99: 23 | C99: Coal | D99: Tech1 | I99: 0 | L99: 0 | M99: 0 | P99: na
A100: Coal_24 | B100: 24 | C100: Coal | D100: Tech1 | I100: 0 | L100: 0 | M100: 0 | P100: na
A101: Coal_25 | B101: 25 | C101: Coal | D101: Tech1 | I101: 0 | L101: 0 | M101: 0 | P101: na
A102: Coal_26 | B102: 26 | C102: Coal | D102: Tech1 | I102: 0 | L102: 0 | M102: 0 | P102: na
A103: Coal_27 | B103: 27 | C103: Coal | D103: Tech1 | I103: 0 | L103: 0 | M103: 0 | P103: na
A104: Coal_28 | B104: 28 | C104: Coal | D104: Tech1 | I104: 0 | L104: 0 | M104: 0 | P104: na
A105: Coal_29 | B105: 29 | C105: Coal | D105: Tech1 | I105: 0 | L105: 0 | M105: 0 | P105: na
A106: Coal_30 | B106: 30 | C106: Coal | D106: Tech1 | I106: 0 | L106: 0 | M106: 0 | P106: na
D108: Technology | E108: Fuel | F108: Cost Category | G108: Average plant efficiency | L108: Sector In-country Share | M108: Total Spend | N108: Sector | O108: Labour Share of Spend | P108: Labour Share Override | Q108: In-country Labour Spend
D109: Fuel cost inputs
D110: Tech1 | E110: =INDEX(TechFuelType,MATCH($D110,TechRef_List,0)) -> Coal | F110: Fuel | G110: =IF(INDEX(TechEfficiency,MATCH($D110,TechRef_List,0))=0,1,INDEX(TechEfficiency,MATCH($D110,TechRef_List,0))) -> 0.37 | I110: =INDEX(FuelCostInputs_Tbl,MATCH($E110,Fuel_Type_List,0),MATCH(Period_Start,FuelCostInputs_T,0))/$G110 -> 32.40540541 | J110: =IFERROR(INDEX(Cost_Category_Inputs_Units,MATCH($F110,Cost_Category_Inputs_List,0)),"") -> USD/MWh | K110: 1 | L110: =IF($N110="",0,INDEX(LocalShare_Value,MATCH($N110,LocalShare_Sector,0))) -> 0.8282584451 | M110: =I110*IF($M$65="Manual",K110,IF($M$65="Sector",L110,IF(K110="",L110,K110))) -> 32.40540541 | N110: D05T06: Mining and quarrying, energy producing products | O110: =IF(ISTEXT(N110),INDEX(IO_Direct_Requirements_Tbl,MATCH(O$70,IO_Direct_Requirements_L,0),MATCH(N110,IO_Direct_Requirements_T,0)),"") -> 0.0833361627 | P110: 0.04 | Q110: =IF(P110="na",IF(ISTEXT(N110),O110*M110,""),P110*M110) -> 1.296216216 | U110: Manual adjustment based on NewClimate Institute (2023) to calibrate to current employment data
D112: Technology | F112: Summary of costs
D113: Tech1 | F113: Capex | I113: =SUMIF($F$77:$F$110,$F113,I$77:I$110) -> 1400 | J113: USDk/MW | K113: Summary | L113: =IFERROR(M113/I113,0) -> 0.5220089066 | M113: =SUMIF($F$77:$F$110,$F113,M$77:M$110) -> 730.8124692 | Q113: =SUMIF($F$77:$F$110,$F113,Q$77:Q$110) -> 190.3628536
D114: Tech1 | F114: OpexFixed | I114: 41.2 | J114: USDk/MW/yr | K114: Summary | L114: =IFERROR(M114/I114,0) -> 0.575 | M114: =SUMIF($F$77:$F$110,$F114,M$77:M$110) -> 23.69 | Q114: =SUMIF($F$77:$F$110,$F114,Q$77:Q$110) -> 3.003429625
D115: Tech1 | F115: OpexVariable | I115: 0.12 | J115: USD/MWh | K115: Summary | L115: =IFERROR(M115/I115,0) -> 0.4 | M115: 0.048 | Q115: 0.01225201805
D116: Tech1 | F116: Fuel | I116: =SUMIF($F$77:$F$110,$F116,I$77:I$110) -> 32.40540541 | J116: USD/MWh | K116: Summary | L116: =IFERROR(M116/I116,0) -> 1 | M116: =SUMIF($F$77:$F$110,$F116,M$77:M$110) -> 32.40540541 | Q116: 1.296216216
D117: Tech1 | F117: Load factor | I117: =INDEX(TechInputs_Tbl,MATCH($D117,TechRef_List,0),MATCH($F117,TechInputs_T,0)) -> 0.7 | J117: =IFERROR(INDEX(Cost_Category_Inputs_Units,MATCH(#REF!,Cost_Category_Inputs_List,0)),"") -> 
D118: Tech1 | F118: Lifetime | I118: =INDEX(TechInputs_Tbl,MATCH($D118,TechRef_List,0),MATCH($F118,TechInputs_T,0)) -> 30 | J118: =IFERROR(INDEX(Cost_Category_Inputs_Units,MATCH(#REF!,Cost_Category_Inputs_List,0)),"") -> 
D119: Tech1 | F119: Discount rate | I119: =INDEX(TechInputs_Tbl,MATCH($D119,TechRef_List,0),MATCH($F119,TechInputs_T,0)) -> 0.1 | J119: =IFERROR(INDEX(Cost_Category_Inputs_Units,MATCH(#REF!,Cost_Category_Inputs_List,0)),"") -> 
D120: Tech1 | F120: Capital recovery factor | I120: =(I119*(1+I119)^I118)/(((1+I119)^I118)-1) -> 0.1060792483 | J120: =IFERROR(INDEX(Cost_Category_Inputs_Units,MATCH(#REF!,Cost_Category_Inputs_List,0)),"") -> 
D121: Tech1 | F121: LCOE | I121: =((I113*I120+I114)/(8760*I117))*10^3+(I115+I116) -> 63.46326378
C124: Tech2 | D124: =INDEX(TechName_List,MATCH($C124,TechRef_List,0)) -> Coal CCS
D126: Technology | E126: Cost Item | F126: Cost Category | G126: Value Input | H126: Share Input | I126: Value | J126: Unit | K126: In-country Share Manual | L126: Sector In-country Share | M126: In-country Spend | N126: Sector | O126: Labour Share of Spend | P126: Labour Share Override | Q126: In-country Labour Spend | S126: Value or share input data source | T126: In-country share data source | U126: Labour share override data source
D127: Total capex and opex input fields - leave blank if using detailed cost item inputs
D128: Tech2 | E128: Total | F128: Capex | G128: =INDEX(Technology_Data!$E$9:$E$28, MATCH($D128, Technology_Data!$C$9:$C$28,0))*10^3 -> 1950 | J128: =IFERROR(INDEX(Cost_Category_Inputs_Units,MATCH($F128,Cost_Category_Inputs_List,0)),"") -> USDk/MW | S128: Directorate General of Electricity & Danish Energy Agency (2021)
D129: Tech2 | E129: Total | F129: OpexFixed | G129: =(INDEX(Technology_Data!$H$9:$H$28, MATCH($D128, Technology_Data!$C$9:$C$28,0))/10^3) + (INDEX(Technology_Data!$H$9:$H$28, MATCH($D$73, Technology_Data!$C$9:$C$28,0))/10^3) -> 83 | J129: =IFERROR(INDEX(Cost_Category_Inputs_Units,MATCH($F129,Cost_Category_Inputs_List,0)),"") -> USDk/MW/yr | S129: Directorate General of Electricity & Danish Energy Agency (2021)
D130: Tech2 | E130: Total | F130: OpexVariable | G130: =(INDEX(Technology_Data!$K$9:$K$28,MATCH($D128,Technology_Data!$C$9:$C$28,0)))+ (INDEX(Technology_Data!$K$9:$K$28,MATCH($D$73,Technology_Data!$C$9:$C$28,0))) -> 3.22 | J130: =IFERROR(INDEX(Cost_Category_Inputs_Units,MATCH($F130,Cost_Category_Inputs_List,0)),"") -> USD/MWh | S130: Directorate General of Electricity & Danish Energy Agency (2021)
B131: Component number | C131: Select default technology | D131: Detailed cost item input fields - if using total capex and opex cost inputs, data in the value input column will not be used
A132: =CONCATENATE($C132,"_",$B132) -> _1 | B132: 1 | D132: Tech2 | E132: Capital investment | F132: Capex | H132: 1 | I132: =IF(ISNUMBER(INDEX($G$128:$G$130,MATCH($F132,$F$128:$F$130,0))),INDEX($G$128:$G$130,MATCH($F132,$F$128:$F$130))*$H132,$G132) -> 1950 | J132: =IFERROR(INDEX(Cost_Category_Inputs_Units,MATCH($F132,Cost_Category_Inputs_List,0)),"") -> USDk/MW | K132: 0.6 | L132: =IF($N132="",0,INDEX(LocalShare_Value,MATCH($N132,LocalShare_Sector,0))) -> 0.9304581951 | M132: =I132*IF($M$65="Manual",K132,IF($M$65="Sector",L132,IF(K132="",L132,K132))) -> 1170 | N132: D35: Electricity, gas, steam and air conditioning supply | O132: =IF(N132<>"",INDEX(IO_Direct_Requirements_Tbl,MATCH(O$70,IO_Direct_Requirements_L,0),MATCH(N132,IO_Direct_Requirements_T,0)),"") -> 0.05826320566 | P132: na | Q132: =IF(P132="na",IF(N132<>"",O132*M132,""),P132*M132) -> 68.16795062 | T132: Informed by NewClimate Institute (2022)
A133: =CONCATENATE($C133,"_",$B133) -> 0_2 | B133: 2 | C133: =C132 -> 0 | D133: Tech2 | E133: Fixed operation | F133: OpexFixed | H133: 1 | I133: 83 | J133: USDk/MW/yr | K133: 0.6 | L133: =IF($N133="",0,INDEX(LocalShare_Value,MATCH($N133,LocalShare_Sector,0))) -> 0.9304581951 | M133: 49.8 | N133: D35: Electricity, gas, steam and air conditioning supply | O133: 0.05826320566 | P133: na | Q133: =IF(P133="na",IF(N133<>"",O133*M133,""),P133*M133) -> 2.901507642 | T133: Informed by NewClimate Institute (2022)
A134: 0_3 | B134: 3 | C134: =C133 -> 0 | D134: Tech2 | E134: Variable operation | F134: OpexVariable | H134: 1 | I134: 3.22 | J134: USD/MWh | K134: 0.4 | L134: =IF($N134="",0,INDEX(LocalShare_Value,MATCH($N134,LocalShare_Sector,0))) -> 0.9304581951 | M134: 1.288 | N134: D35: Electricity, gas, steam and air conditioning supply | O134: 0.05826320566 | P134: na | Q134: 0.07504300889 | T134: Informed by NewClimate Institute (2022)
A135: 0_4 | B135: 4 | C135: 0 | D135: Tech2 | I135: 0 | M135: 0 | P135: na
A136: 0_5 | B136: 5 | C136: 0 | D136: Tech2 | I136: 0 | M136: 0 | P136: na
A137: 0_6 | B137: 6 | C137: 0 | D137: Tech2 | I137: 0 | M137: 0 | P137: na
A138: 0_7 | B138: 7 | C138: 0 | D138: Tech2 | I138: =IF(ISNUMBER(INDEX($G$128:$G$130,MATCH($F138,$F$128:$F$130,0))),INDEX($G$128:$G$130,MATCH($F138,$F$128:$F$130))*$H138,$G138) -> 0 | M138: 0 | P138: na
A139: 0_8 | B139: 8 | C139: 0 | D139: Tech2 | I139: 0 | M139: 0 | P139: na
A140: 0_9 | B140: 9 | C140: 0 | D140: Tech2 | I140: 0 | M140: =I140*IF($M$65="Manual",K140,IF($M$65="Sector",L140,IF(K140="",L140,K140))) -> 0 | P140: na
A141: 0_10 | B141: 10 | C141: 0 | D141: Tech2 | I141: 0 | M141: 0 | P141: na
A142: 0_11 | B142: 11 | C142: =C141 -> 0 | D142: Tech2 | I142: 0 | M142: 0 | P142: na
A143: 0_12 | B143: 12 | C143: =C142 -> 0 | D143: Tech2 | I143: 0 | M143: 0 | P143: na
A144: 0_13 | B144: 13 | C144: =C143 -> 0 | D144: Tech2 | I144: 0 | M144: 0 | P144: na
A145: 0_14 | B145: 14 | C145: =C144 -> 0 | D145: Tech2 | I145: 0 | M145: 0 | P145: na
A146: 0_15 | B146: 15 | C146: =C145 -> 0 | D146: Tech2 | I146: 0 | M146: 0 | P146: na
A147: 0_16 | B147: 16 | C147: 0 | D147: Tech2 | E147: =IFERROR(INDEX(DefaultComp_CostItem, MATCH($A147,DefaultComp_Tech,0)),"") ->  | F147: =IFERROR(INDEX(DefaultComp_CostCat, MATCH($A147,DefaultComp_Tech,0)),"") ->  | H147: =IFERROR(INDEX(DefaultComp_ValShare, MATCH($A147,DefaultComp_Tech,0)),"") ->  | I147: 0 | L147: =IF($N147="",0,INDEX(LocalShare_Value,MATCH($N147,LocalShare_Sector,0))) -> 0 | M147: 0 | N147: =IFERROR(INDEX(DefaultComp_Sector, MATCH($A147,DefaultComp_Tech,0)),"") ->  | P147: na
A148: 0_17 | B148: 17 | C148: 0 | D148: Tech2 | I148: 0 | L148: 0 | M148: 0 | P148: na
A149: 0_18 | B149: 18 | C149: 0 | D149: Tech2 | I149: 0 | L149: 0 | M149: 0 | P149: na
A150: 0_19 | B150: 19 | C150: 0 | D150: Tech2 | I150: 0 | L150: 0 | M150: 0 | P150: na
A151: 0_20 | B151: 20 | C151: 0 | D151: Tech2 | I151: 0 | L151: 0 | M151: 0 | P151: na
A152: 0_21 | B152: 21 | C152: 0 | D152: Tech2 | I152: 0 | L152: 0 | M152: 0 | P152: na
A153: 0_22 | B153: 22 | C153: 0 | D153: Tech2 | I153: 0 | L153: 0 | M153: 0 | P153: na
A154: 0_23 | B154: 23 | C154: 0 | D154: Tech2 | I154: 0 | L154: 0 | M154: 0 | P154: na
A155: 0_24 | B155: 24 | C155: 0 | D155: Tech2 | I155: 0 | L155: 0 | M155: 0 | P155: na
A156: 0_25 | B156: 25 | C156: 0 | D156: Tech2 | I156: 0 | L156: 0 | M156: 0 | P156: na
A157: 0_26 | B157: 26 | C157: 0 | D157: Tech2 | I157: 0 | L157: 0 | M157: 0 | P157: na
A158: 0_27 | B158: 27 | C158: 0 | D158: Tech2 | I158: 0 | L158: 0 | M158: 0 | P158: na
A159: 0_28 | B159: 28 | C159: 0 | D159: Tech2 | I159: 0 | L159: 0 | M159: 0 | P159: na
A160: 0_29 | B160: 29 | C160: 0 | D160: Tech2 | I160: 0 | L160: 0 | M160: 0 | P160: na
A161: 0_30 | B161: 30 | C161: 0 | D161: Tech2 | I161: 0 | L161: 0 | M161: 0 | P161: na
D163: Technology | E163: Fuel | F163: Cost Category | G163: Average plant efficiency | L163: Sector In-country Share | M163: Total Spend | N163: Sector | O163: Labour Share of Spend | P163: Labour Share Override | Q163: In-country Labour Spend
D164: Fuel cost inputs
D165: Tech2 | E165: =INDEX(TechFuelType,MATCH($D165,TechRef_List,0)) -> Coal | F165: Fuel | G165: =IF(INDEX(TechEfficiency,MATCH($D165,TechRef_List,0))=0,1,INDEX(TechEfficiency,MATCH($D165,TechRef_List,0))) -> 0.37 | I165: =INDEX(FuelCostInputs_Tbl,MATCH($E165,Fuel_Type_List,0),MATCH(Period_Start,FuelCostInputs_T,0))/$G165 -> 32.40540541 | J165: =IFERROR(INDEX(Cost_Category_Inputs_Units,MATCH($F165,Cost_Category_Inputs_List,0)),"") -> USD/MWh | K165: 1 | L165: =IF($N165="",0,INDEX(LocalShare_Value,MATCH($N165,LocalShare_Sector,0))) -> 0.8282584451 | M165: =I165*IF($M$65="Manual",K165,IF($M$65="Sector",L165,IF(K165="",L165,K165))) -> 32.40540541 | N165: D05T06: Mining and quarrying, energy producing products | O165: =IF(ISTEXT(N165),INDEX(IO_Direct_Requirements_Tbl,MATCH(O$70,IO_Direct_Requirements_L,0),MATCH(N165,IO_Direct_Requirements_T,0)),"") -> 0.0833361627 | P165: 0.04 | Q165: =IF(P165="na",IF(ISTEXT(N165),O165*M165,""),P165*M165) -> 1.296216216 | U165: Manual adjustment based on NewClimate Institute (2023) to calibrate to current employment data
D167: Technology | F167: Summary of costs
D168: Tech2 | F168: Capex | I168: =SUMIF($F$132:$F$165,$F168,I$132:I$165) -> 1950 | J168: =IFERROR(INDEX(Cost_Category_Inputs_Units,MATCH($F168,Cost_Category_Inputs_List,0)),"") -> USDk/MW | K168: Summary | L168: =IFERROR(M168/I168,0) -> 0.6 | M168: =SUMIF($F$132:$F$165,$F168,M$132:M$165) -> 1170 | Q168: =SUMIF($F$132:$F$165,$F168,Q$132:Q$165) -> 68.16795062
D169: Tech2 | F169: OpexFixed | I169: =SUMIF($F$132:$F$165,$F169,I$132:I$165) -> 83 | J169: USDk/MW/yr | K169: Summary | L169: =IFERROR(M169/I169,0) -> 0.6 | M169: =SUMIF($F$132:$F$165,$F169,M$132:M$165) -> 49.8 | Q169: =SUMIF($F$132:$F$165,$F169,Q$132:Q$165) -> 2.901507642
D170: Tech2 | F170: OpexVariable | I170: 3.22 | J170: USD/MWh | K170: Summary | L170: =IFERROR(M170/I170,0) -> 0.4 | M170: 1.288 | Q170: 0.07504300889
D171: Tech2 | F171: Fuel | I171: 32.40540541 | J171: USD/MWh | K171: Summary | L171: =IFERROR(M171/I171,0) -> 1 | M171: 32.40540541 | Q171: 1.296216216
D172: Tech2 | F172: Load factor | I172: =INDEX(TechInputs_Tbl,MATCH($D172,TechRef_List,0),MATCH($F172,TechInputs_T,0)) -> 0.7 | J172: =IFERROR(INDEX(Cost_Category_Inputs_Units,MATCH(#REF!,Cost_Category_Inputs_List,0)),"") -> 
D173: Tech2 | F173: Lifetime | I173: =INDEX(TechInputs_Tbl,MATCH($D173,TechRef_List,0),MATCH($F173,TechInputs_T,0)) -> 30 | J173: =IFERROR(INDEX(Cost_Category_Inputs_Units,MATCH(#REF!,Cost_Category_Inputs_List,0)),"") -> 
D174: Tech2 | F174: Discount rate | I174: =INDEX(TechInputs_Tbl,MATCH($D174,TechRef_List,0),MATCH($F174,TechInputs_T,0)) -> 0.1 | J174: =IFERROR(INDEX(Cost_Category_Inputs_Units,MATCH(#REF!,Cost_Category_Inputs_List,0)),"") -> 
D175: Tech2 | F175: Capital recovery factor | I175: =(I174*(1+I174)^I173)/(((1+I174)^I173)-1) -> 0.1060792483 | J175: =IFERROR(INDEX(Cost_Category_Inputs_Units,MATCH(#REF!,Cost_Category_Inputs_List,0)),"") -> 
D176: Tech2 | F176: LCOE | I176: =((I168*I175+I169)/(8760*I172))*10^3+(I170+I171) -> 82.89457274
C179: Tech3 | D179: =INDEX(TechName_List,MATCH($C179,TechRef_List,0)) -> Gas Open
D181: Technology | E181: Cost Item | F181: Cost Category | G181: Value Input | H181: Share Input | I181: Value | J181: Unit | K181: In-country Share Manual | L181: Sector In-country Share | M181: In-country Spend | N181: Sector | O181: Labour Share of Spend | P181: Labour Share Override | Q181: In-country Labour Spend | S181: Value or share input data source | T181: In-country share data source | U181: Labour share override data source
D182: Total capex and opex input fields - leave blank if using detailed cost item inputs
D183: Tech3 | E183: Total | F183: Capex | G183: =INDEX(Technology_Data!$E$9:$E$28, MATCH($D183, Technology_Data!$C$9:$C$28,0))*10^3 -> 772.8 | J183: =IFERROR(INDEX(Cost_Category_Inputs_Units,MATCH($F183,Cost_Category_Inputs_List,0)),"") -> USDk/MW | S183: Directorate General of Electricity & Danish Energy Agency (2021)
D184: Tech3 | E184: Total | F184: OpexFixed | G184: =INDEX(Technology_Data!$H$9:$H$28, MATCH($D183, Technology_Data!$C$9:$C$28,0))/10^3 -> 23.2 | J184: =IFERROR(INDEX(Cost_Category_Inputs_Units,MATCH($F184,Cost_Category_Inputs_List,0)),"") -> USDk/MW/yr | S184: Directorate General of Electricity & Danish Energy Agency (2021)
D185: Tech3 | E185: Total | F185: OpexVariable | G185: =INDEX(Technology_Data!$K$9:$K$28, MATCH($D183, Technology_Data!$C$9:$C$28,0)) -> 0 | J185: =IFERROR(INDEX(Cost_Category_Inputs_Units,MATCH($F185,Cost_Category_Inputs_List,0)),"") -> USD/MWh | S185: Directorate General of Electricity & Danish Energy Agency (2021)
B186: Component number | C186: Select default technology | D186: Detailed cost item input fields - if using total capex and opex cost inputs, data in the value input column will not be used
A187: =CONCATENATE($C187,"_",$B187) -> OCGT_1 | B187: 1 | C187: OCGT | D187: Tech3 | E187: =IFERROR(INDEX(DefaultComp_CostItem, MATCH($A187,DefaultComp_Tech,0)),"") -> Civil works | F187: =IFERROR(INDEX(DefaultComp_CostCat, MATCH($A187,DefaultComp_Tech,0)),"") -> Capex | H187: =IFERROR(INDEX(DefaultComp_ValShare, MATCH($A187,DefaultComp_Tech,0)),"") -> 0.07267443306 | I187: =IF(ISNUMBER(INDEX($G$183:$G$185,MATCH($F187,$F$183:$F$185,0))),INDEX($G$183:$G$185,MATCH($F187,$F$183:$F$185))*$H187,$G187) -> 56.16280187 | J187: =IFERROR(INDEX(Cost_Category_Inputs_Units,MATCH($F187,Cost_Category_Inputs_List,0)),"") -> USDk/MW | K187: 0.75 | L187: =IF($N187="",0,INDEX(LocalShare_Value,MATCH($N187,LocalShare_Sector,0))) -> 0.827018419 | M187: =I187*IF($M$65="Manual",K187,IF($M$65="Sector",L187,IF(K187="",L187,K187))) -> 42.1221014 | N187: =IFERROR(INDEX(DefaultComp_Sector, MATCH($A187,DefaultComp_Tech,0)),"") -> D41T43: Construction | O187: =IF(N187<>"",INDEX(IO_Direct_Requirements_Tbl,MATCH(O$70,IO_Direct_Requirements_L,0),MATCH(N187,IO_Direct_Requirements_T,0)),"") -> 0.1794357009 | P187: na | Q187: =IF(P187="na",IF(N187<>"",O187*M187,""),P187*M187) -> 7.558208787 | T187: As per coal, but higher than other capex as typically low-skilled labour
A188: =CONCATENATE($C188,"_",$B188) -> OCGT_2 | B188: 2 | C188: =C187 -> OCGT | D188: Tech3 | E188: Mechanical equipment / Generating unit | F188: Capex | H188: 0.5185685267 | I188: 400.7497575 | J188: USDk/MW | K188: 0.35 | L188: 0.6461988997 | M188: 140.2624151 | N188: D28: Machinery and equipment, nec | O188: 0.255250376 | P188: na | Q188: =IF(P188="na",IF(N188<>"",O188*M188,""),P188*M188) -> 35.80203419 | T188: Informed by Local Content Requirements for gas power plant 100MW for goods (Directorate General of Electricity & Danish Energy Agency, 2021)
A189: OCGT_3 | B189: 3 | C189: =C188 -> OCGT | D189: Tech3 | E189: Balance of plant / Electrical equipment | F189: Capex | H189: 0.2360260512 | I189: 182.4009323 | J189: USDk/MW | K189: 0.35 | L189: 0.6628764527 | M189: 63.84032632 | N189: D27: Electrical equipment | O189: 0.1791560542 | P189: na | Q189: 11.43738097 | T189: Informed by Local Content Requirements for gas power plant 100MW for goods (Directorate General of Electricity & Danish Energy Agency, 2021)
A190: OCGT_4 | B190: 4 | C190: OCGT | D190: Tech3 | E190: Project Planning and Management | F190: Capex | H190: 0.1296476733 | I190: 100.191722 | J190: USDk/MW | K190: 1 | L190: 0.8230246389 | M190: 100.191722 | N190: D69T75: Professional, scientific and technical activities | O190: 0.2412070388 | P190: na | Q190: 24.16694857 | T190: Informed by Local Content Requirements for gas power plant 100MW for services (Directorate General of Electricity & Danish Energy Agency, 2021) and assumed to be 100% domestic
A191: OCGT_5 | B191: 5 | C191: OCGT | D191: Tech3 | E191: Contingency and finance | F191: Capex | H191: 0.04308331571 | I191: 33.29478638 | J191: USDk/MW | K191: 1 | L191: 0.8780192765 | M191: 33.29478638 | N191: D64T66: Financial and insurance activities | O191: 0.4073534022 | P191: na | Q191: 13.56274451 | T191: Informed by Local Content Requirements for gas power plant 100MW for services (Directorate General of Electricity & Danish Energy Agency, 2021) and assumed to be 100% domestic
A192: OCGT_6 | B192: 6 | C192: OCGT | D192: Tech3 | E192: Operation | F192: OpexFixed | H192: 0.4166666667 | I192: 9.666666667 | J192: USDk/MW/yr | K192: 1 | L192: 0.9304581951 | M192: 9.666666667 | N192: D35: Electricity, gas, steam and air conditioning supply | O192: 0.05826320566 | P192: na | Q192: 0.563210988 | T192: Informed by Local Content Requirements for gas power plant 100MW for services (Directorate General of Electricity & Danish Energy Agency, 2021)
A193: OCGT_7 | B193: 7 | C193: OCGT | D193: Tech3 | E193: Maintenance | F193: OpexFixed | H193: 0.5833333333 | I193: 13.53333333 | J193: USDk/MW/yr | K193: 0.4 | L193: 0.6628764527 | M193: 5.413333333 | N193: D27: Electrical equipment | O193: 0.1791560542 | P193: na | Q193: 0.9698314403 | T193: Informed by Local Content Requirements for gas power plant 100MW for goods (Directorate General of Electricity & Danish Energy Agency, 2021)
A194: OCGT_8 | B194: 8 | C194: OCGT | D194: Tech3 | I194: 0 | L194: 0 | M194: 0 | P194: na
A195: OCGT_9 | B195: 9 | C195: OCGT | D195: Tech3 | I195: 0 | L195: =IF($N195="",0,INDEX(LocalShare_Value,MATCH($N195,LocalShare_Sector,0))) -> 0 | M195: =I195*IF($M$65="Manual",K195,IF($M$65="Sector",L195,IF(K195="",L195,K195))) -> 0 | P195: na
A196: OCGT_10 | B196: 10 | C196: OCGT | D196: Tech3 | I196: 0 | L196: 0 | M196: 0 | P196: na
A197: OCGT_11 | B197: 11 | C197: OCGT | D197: Tech3 | I197: 0 | L197: 0 | M197: 0 | P197: na
A198: OCGT_12 | B198: 12 | C198: OCGT | D198: Tech3 | I198: 0 | L198: 0 | M198: 0 | P198: na
A199: OCGT_13 | B199: 13 | C199: OCGT | D199: Tech3 | I199: 0 | L199: 0 | M199: 0 | P199: na
A200: OCGT_14 | B200: 14 | C200: OCGT | D200: Tech3 | I200: 0 | L200: 0 | M200: 0 | P200: na
A201: OCGT_15 | B201: 15 | C201: OCGT | D201: Tech3 | I201: 0 | L201: 0 | M201: 0 | P201: na
A202: OCGT_16 | B202: 16 | C202: OCGT | D202: Tech3 | I202: 0 | L202: 0 | M202: 0 | P202: na
A203: OCGT_17 | B203: 17 | C203: OCGT | D203: Tech3 | I203: 0 | L203: 0 | M203: 0 | P203: na
A204: OCGT_18 | B204: 18 | C204: OCGT | D204: Tech3 | I204: 0 | L204: 0 | M204: 0 | P204: na
A205: OCGT_19 | B205: 19 | C205: OCGT | D205: Tech3 | I205: 0 | L205: 0 | M205: 0 | P205: na
A206: OCGT_20 | B206: 20 | C206: OCGT | D206: Tech3 | I206: 0 | L206: 0 | M206: 0 | P206: na
A207: OCGT_21 | B207: 21 | C207: OCGT | D207: Tech3 | I207: 0 | L207: 0 | M207: 0 | P207: na
A208: OCGT_22 | B208: 22 | C208: OCGT | D208: Tech3 | I208: 0 | L208: 0 | M208: 0 | P208: na
A209: OCGT_23 | B209: 23 | C209: OCGT | D209: Tech3 | I209: 0 | L209: 0 | M209: 0 | P209: na
A210: OCGT_24 | B210: 24 | C210: OCGT | D210: Tech3 | I210: 0 | L210: 0 | M210: 0 | P210: na
A211: OCGT_25 | B211: 25 | C211: OCGT | D211: Tech3 | I211: 0 | L211: 0 | M211: 0 | P211: na
A212: OCGT_26 | B212: 26 | C212: OCGT | D212: Tech3 | I212: 0 | L212: 0 | M212: 0 | P212: na
A213: OCGT_27 | B213: 27 | C213: OCGT | D213: Tech3 | I213: 0 | L213: 0 | M213: 0 | P213: na
A214: OCGT_28 | B214: 28 | C214: OCGT | D214: Tech3 | I214: 0 | L214: 0 | M214: 0 | P214: na
A215: OCGT_29 | B215: 29 | C215: OCGT | D215: Tech3 | I215: 0 | L215: 0 | M215: 0 | P215: na
A216: OCGT_30 | B216: 30 | C216: OCGT | D216: Tech3 | I216: 0 | L216: 0 | M216: 0 | P216: na
D218: Technology | E218: Fuel | F218: Cost Category | G218: Average plant efficiency | L218: Sector In-country Share | M218: Total Spend | N218: Sector | O218: Labour Share of Spend | P218: Labour Share Override | Q218: In-country Labour Spend
D219: Fuel cost inputs
D220: Tech3 | E220: =INDEX(TechFuelType,MATCH($D220,TechRef_List,0)) -> Natural gas | F220: Fuel | G220: =IF(INDEX(TechEfficiency,MATCH($D220,TechRef_List,0))=0,1,INDEX(TechEfficiency,MATCH($D220,TechRef_List,0))) -> 0.33 | I220: =INDEX(FuelCostInputs_Tbl,MATCH($E220,Fuel_Type_List,0),MATCH(Period_Start,FuelCostInputs_T,0))/$G220 -> 89.93333333 | J220: =IFERROR(INDEX(Cost_Category_Inputs_Units,MATCH($F220,Cost_Category_Inputs_List,0)),"") -> USD/MWh | K220: 1 | L220: =IF($N220="",0,INDEX(LocalShare_Value,MATCH($N220,LocalShare_Sector,0))) -> 0.8282584451 | M220: =I220*IF($M$65="Manual",K220,IF($M$65="Sector",L220,IF(K220="",L220,K220))) -> 89.93333333 | N220: D05T06: Mining and quarrying, energy producing products | O220: =IF(ISTEXT(N220),INDEX(IO_Direct_Requirements_Tbl,MATCH(O$70,IO_Direct_Requirements_L,0),MATCH(N220,IO_Direct_Requirements_T,0)),"") -> 0.0833361627 | P220: na | Q220: =IF(P220="na",IF(ISTEXT(N220),O220*M220,""),P220*M220) -> 7.494698899
D222: Technology | F222: Summary of costs
D223: Tech3 | F223: Capex | I223: =SUMIF($F$187:$F$220,$F223,I$187:I$220) -> 772.8 | J223: =IFERROR(INDEX(Cost_Category_Inputs_Units,MATCH($F223,Cost_Category_Inputs_List,0)),"") -> USDk/MW | K223: Summary | L223: =IFERROR(M223/I223,0) -> 0.4913449161 | M223: =SUMIF($F$187:$F$220,$F223,M$187:M$220) -> 379.7113512 | Q223: =SUMIF($F$187:$F$220,$F223,Q$187:Q$220) -> 92.52731701
D224: Tech3 | F224: OpexFixed | I224: =SUMIF($F$187:$F$220,$F224,I$187:I$220) -> 23.2 | J224: USDk/MW/yr | K224: Summary | L224: =IFERROR(M224/I224,0) -> 0.65 | M224: =SUMIF($F$187:$F$220,$F224,M$187:M$220) -> 15.08 | Q224: =SUMIF($F$187:$F$220,$F224,Q$187:Q$220) -> 1.533042428
D225: Tech3 | F225: OpexVariable | I225: 0 | J225: USD/MWh | K225: Summary | L225: =IFERROR(M225/I225,0) -> 0 | M225: 0 | Q225: 0
D226: Tech3 | F226: Fuel | I226: 89.93333333 | J226: USD/MWh | K226: Summary | L226: =IFERROR(M226/I226,0) -> 1 | M226: 89.93333333 | Q226: 7.494698899
D227: Tech3 | F227: Load factor | I227: =INDEX(TechInputs_Tbl,MATCH($D227,TechRef_List,0),MATCH($F227,TechInputs_T,0)) -> 0.35 | J227: =IFERROR(INDEX(Cost_Category_Inputs_Units,MATCH(#REF!,Cost_Category_Inputs_List,0)),"") -> 
D228: Tech3 | F228: Lifetime | I228: =INDEX(TechInputs_Tbl,MATCH($D228,TechRef_List,0),MATCH($F228,TechInputs_T,0)) -> 25 | J228: =IFERROR(INDEX(Cost_Category_Inputs_Units,MATCH(#REF!,Cost_Category_Inputs_List,0)),"") -> 
... 295 more rows

Sheet General_INPUT_S2
A1: Return to Cover
B3: General Input | C3: S2
C6: Scenario name | D6: Scenario description
C7: =INDIRECT("ScenarioName_"&$C$3) -> Scenario 2 (JETP+) | D7: =INDIRECT("ScenarioDescrip_"&$C$3) -> Based on the IEA's Net Zero Emissions Scenario, Indonesia goes beyond the targets set by the JETP, in line with its commitments to the Paris Agreement.
B10: Step 3.1 | C10: Enter average annual salaries for all sectors corresponding to the sectoral breakdown in the national input output table
B11: Step 3.2 | C11: Enter historic and future (projections) capacity data for all technologies for all years of the modeling horizon (enter historic data for at least as many years as the construction period for the relevant technology to avoid the model considering it as new)
B12: Step 3.3 | C12: Enter capacity retirements for all technologies over the years of the modeling horizon (this is required to calculate the capacity additions in each year)
B13: Step 3.4 | C13: Either enter generation data for all technologies over the years of the modeling horizon or estimate generation using the load factor assumptions entered on the scenario setup sheet (note these may not be representative for all years)
C16: Average annual salaries
C18: The average annual salary should be a Full-time Equivalent (FTE). Investment estimates are divided by the annual salary to calculate the number of annual FTE jobs.
D19: Salary
C20: Sectors | D20: US$k
C21: =Lists!D9 -> D01T02: Agriculture, hunting, forestry | D21: 1.643507376
C22: =Lists!D10 -> D03: Fishing and aquaculture | D22: 1.643507376
C23: =Lists!D11 -> D05T06: Mining and quarrying, energy producing products | D23: 3.676805863
C24: =Lists!D12 -> D07T08: Mining and quarrying, non-energy producing products | D24: 3.676805863
C25: =Lists!D13 -> D09: Mining support service activities | D25: 3.676805863
C26: =Lists!D14 -> D10T12: Food products, beverages and tobacco | D26: 2.416679778
C27: =Lists!D15 -> D13T15: Textiles, textile products, leather and footwear | D27: 2.416679778
C28: =Lists!D16 -> D16: Wood and products of wood and cork | D28: 2.416679778
C29: =Lists!D17 -> D17T18: Paper products and printing | D29: 2.416679778
C30: =Lists!D18 -> D19: Coke and refined petroleum products | D30: 2.416679778
C31: =Lists!D19 -> D20: Chemical and chemical products | D31: 2.416679778
C32: =Lists!D20 -> D21: Pharmaceuticals, medicinal chemical and botanical products | D32: 2.416679778
C33: =Lists!D21 -> D22: Rubber and plastics products | D33: 2.416679778
C34: =Lists!D22 -> D23: Other non-metallic mineral products | D34: 2.416679778
C35: =Lists!D23 -> D24: Basic metals | D35: 2.416679778
C36: =Lists!D24 -> D25: Fabricated metal products | D36: 2.416679778
C37: =Lists!D25 -> D26: Computer, electronic and optical equipment | D37: 2.416679778
C38: =Lists!D26 -> D27: Electrical equipment | D38: 2.416679778
C39: =Lists!D27 -> D28: Machinery and equipment, nec | D39: 2.416679778
C40: =Lists!D28 -> D29: Motor vehicles, trailers and semi-trailers | D40: 2.416679778
C41: =Lists!D29 -> D30: Other transport equipment | D41: 2.416679778
C42: =Lists!D30 -> D31T33: Manufacturing nec; repair and installation of machinery and equipment | D42: 2.416679778
C43: =Lists!D31 -> D35: Electricity, gas, steam and air conditioning supply | D43: 3.906953725
C44: =Lists!D32 -> D36T39: Water supply; sewerage, waste management and remediation activities | D44: 2.307554247
C45: =Lists!D33 -> D41T43: Construction | D45: 2.532375437
C46: =Lists!D34 -> D45T47: Wholesale and retail trade; repair of motor vehicles | D46: 2.134338163
C47: =Lists!D35 -> D49: Land transport and transport via pipelines | D47: 2.893426267
C48: =Lists!D36 -> D50: Water transport | D48: 2.893426267
C49: =Lists!D37 -> D51: Air transport | D49: 2.893426267
C50: =Lists!D38 -> D52: Warehousing and support activities for transportation | D50: 2.893426267
C51: =Lists!D39 -> D53: Postal and courier activities | D51: 2.893426267
C52: =Lists!D40 -> D55T56: Accommodation and food service activities | D52: 1.799384634
C53: =Lists!D41 -> D58T60: Publishing, audiovisual and broadcasting activities | D53: 4.123124161
C54: =Lists!D42 -> D61: Telecommunications | D54: 4.123124161
C55: =Lists!D43 -> D62T63: IT and other information services | D55: 4.123124161
C56: =Lists!D44 -> D64T66: Financial and insurance activities | D56: 3.970015416
C57: =Lists!D45 -> D68: Real estate activities | D57: 3.564315537
C58: =Lists!D46 -> D69T75: Professional, scientific and technical activities | D58: 2.975472286
C59: =Lists!D47 -> D77T82: Administrative and support services | D59: 2.975472286
C60: =Lists!D48 -> D84: Public administration and defence; compulsory social security | D60: 3.355051963
C61: =Lists!D49 -> D85: Education | D61: 2.135302562
C62: =Lists!D50 -> D86T88: Human health and social work activities | D62: 2.858219339
C63: =Lists!D51 -> D90T93: Arts, entertainment and recreation | D63: 1.463574426
C64: =Lists!D52 -> D94T96: Other service activities | D64: 1.463574426
C65: =Lists!D53 -> D97T98: Activities of households as employers; undifferentiated goods- and services-producing activities of households for own use | D65: 1.463574426
C67: Year | D67: 2022
C68: Source | D68: Badan Pusat Statistik (2022a)
B70: Scenario input data
C72: Historic and future capacity
C73: Enter historic and future capacity projections. If historic data is not available enter capacities prior to the first year of data you have as equal to the level in that first year to avoid the model interpreting a sharp increase in newly constructed capacity. Similarly if your projections do not extend to 2050 enter the capacity level for the last year of the projections in all remaining years to avoid the model interpreting a sharp decrease in capacity.
C74: Unit | D74: MW
C75: Source | D75: IEA (2022) and Global Energy Monitor (2023)
B77: Tech Ref | C77: Technology | D77: 2010 | E77: 2011 | F77: 2012 | G77: 2013 | H77: 2014 | I77: 2015 | J77: 2016 | K77: 2017 | L77: 2018 | M77: 2019 | N77: 2020 | O77: 2021 | P77: 2022 | Q77: 2023 | R77: 2024 | S77: 2025 | T77: 2026 | U77: 2027 | V77: 2028 | W77: 2029 | X77: 2030 | Y77: 2031 | Z77: 2032 | AA77: 2033 | AB77: 2034 | AC77: 2035 | AD77: 2036 | AE77: 2037 | AF77: 2038 | AG77: 2039 | AH77: 2040 | AI77: 2041 | AJ77: 2042 | AK77: 2043 | AL77: 2044 | AM77: 2045 | AN77: 2046 | AO77: 2047 | AP77: 2048 | AQ77: 2049 | AR77: 2050 | AS77: 2051 | AT77: 2052 | AU77: 2053 | AV77: 2054 | AW77: 2055 | AX77: 2056 | AY77: 2057 | AZ77: 2058 | BA77: 2059 | BB77: 2060
B78: =TechRef_List -> Tech1 | C78: =INDEX(TechName_List,MATCH($B78,TechRef_List,0)) -> Coal | D78: =$M78 -> 34717.60797 | E78: 34717.60797 | F78: 34717.60797 | G78: 34717.60797 | H78: 34717.60797 | I78: 34717.60797 | J78: 34717.60797 | K78: 34717.60797 | L78: =$M78 -> 34717.60797 | M78: 34717.60797 | N78: 38686.6 | O78: 40922.6 | P78: 47412.6 | Q78: 50277.601 | R78: 57217.602 | S78: 60117.603 | T78: 43787.37542 | U78: 43305.64784 | V78: 42823.92027 | W78: 42342.19269 | X78: 41860.46512 | Y78: 38737.54153 | Z78: 35614.61794 | AA78: 32491.69436 | AB78: 29368.77077 | AC78: 26245.84718 | AD78: 22392.02658 | AE78: 18538.20598 | AF78: 14684.38538 | AG78: 10830.56478 | AH78: 6976.744186 | AI78: 6079.734219 | AJ78: 5182.724252 | AK78: 4285.714286 | AL78: 3388.704319 | AM78: 2491.694352 | AN78: 1993.355482 | AO78: 1495.016611 | AP78: 996.6777408 | AQ78: 498.3388704 | AR78: 0 | AS78: 0 | AT78: 0 | AU78: 0 | AV78: 0 | AW78: 0 | AX78: 0 | AY78: 0 | AZ78: 0 | BA78: 0 | BB78: 0
B79: Tech2 | C79: Coal CCS | D79: 0 | E79: 0 | F79: 0 | G79: 0 | H79: 0 | I79: 0 | J79: 0 | K79: 0 | L79: =$M79 -> 0 | M79: 0 | N79: 0 | O79: 0 | P79: 0 | Q79: 0 | R79: 0 | S79: 0 | T79: 0 | U79: 0 | V79: 0 | W79: 0 | X79: 0 | Y79: 365.448504 | Z79: 730.897008 | AA79: 1096.345512 | AB79: 1461.794016 | AC79: 1827.24252 | AD79: 2591.362123 | AE79: 3355.481726 | AF79: 4119.601328 | AG79: 4883.720931 | AH79: 5647.840534 | AI79: 6411.960135 | AJ79: 7176.079736 | AK79: 7940.199336 | AL79: 8704.318937 | AM79: 9468.438538 | AN79: 9933.554816 | AO79: 10398.67109 | AP79: 10863.78737 | AQ79: 11328.90365 | AR79: 11794.01993 | AS79: 11993.35548 | AT79: 12192.69103 | AU79: 12392.02657 | AV79: 12591.36212 | AW79: 12790.69767 | AX79: 12857.14285 | AY79: 12923.58804 | AZ79: 12990.03322 | BA79: 13056.47841 | BB79: 13122.92359
B80: Tech3 | C80: Gas Open | D80: 5040.322581 | E80: 5040.322581 | F80: 5040.322581 | G80: 5040.322581 | H80: 5040.322581 | I80: 5040.322581 | J80: 5040.322581 | K80: 5040.322581 | L80: 5040.322581 | M80: 5040.322581 | N80: 5040.322581 | O80: 5040.322581 | P80: 5313.620072 | Q80: 5586.917563 | R80: 5860.215054 | S80: 6133.512545 | T80: 6406.810036 | U80: 6680.107527 | V80: 6953.405018 | W80: 7226.702509 | X80: 7500 | Y80: 7233.870968 | Z80: 6967.741935 | AA80: 6701.612903 | AB80: 6435.483871 | AC80: 6169.354839 | AD80: 4935.483871 | AE80: 3701.612903 | AF80: 2467.741935 | AG80: 1233.870968 | AH80: 0 | AI80: 0 | AJ80: 0 | AK80: 0 | AL80: 0 | AM80: 0 | AN80: 0 | AO80: 0 | AP80: 0 | AQ80: 0 | AR80: 0 | AS80: 0 | AT80: 0 | AU80: 0 | AV80: 0 | AW80: 0 | AX80: 0 | AY80: 0 | AZ80: 0 | BA80: 0 | BB80: 0
B81: Tech4 | C81: Gas Combined | D81: 15120.96774 | E81: 15120.96774 | F81: 15120.96774 | G81: 15120.96774 | H81: 15120.96774 | I81: 15120.96774 | J81: 15120.96774 | K81: 15120.96774 | L81: 15120.96774 | M81: 15120.96774 | N81: 15120.96774 | O81: 15120.96774 | P81: 15940.86022 | Q81: 16760.75269 | R81: 17580.64516 | S81: 18400.53763 | T81: 19220.43011 | U81: 20040.32258 | V81: 20860.21505 | W81: 21680.10753 | X81: 22500 | Y81: 21701.6129 | Z81: 20903.22581 | AA81: 20104.83871 | AB81: 19306.45161 | AC81: 18508.06452 | AD81: 14806.45161 | AE81: 11104.83871 | AF81: 7403.225806 | AG81: 3701.612903 | AH81: 0 | AI81: 0 | AJ81: 0 | AK81: 0 | AL81: 0 | AM81: 0 | AN81: 0 | AO81: 0 | AP81: 0 | AQ81: 0 | AR81: 0 | AS81: 0 | AT81: 0 | AU81: 0 | AV81: 0 | AW81: 0 | AX81: 0 | AY81: 0 | AZ81: 0 | BA81: 0 | BB81: 0
B82: Tech5 | C82: Gas Combined CCS | D82: 0 | E82: 0 | F82: 0 | G82: 0 | H82: 0 | I82: 0 | J82: 0 | K82: 0 | L82: 0 | M82: 0 | N82: 0 | O82: 0 | P82: 0 | Q82: 0 | R82: 0 | S82: 0 | T82: 0 | U82: 0 | V82: 0 | W82: 0 | X82: 1384.772727 | Y82: 1297.416738 | Z82: 1296.190548 | AA82: 2754.661994 | AB82: 1855.418252 | AC82: 3984.829704 | AD82: 4470.020583 | AE82: 3521.634284 | AF82: 6179.09469 | AG82: 7516.229942 | AH82: 8371.382967 | AI82: 10864.97636 | AJ82: 11260.12122 | AK82: 10601.89998 | AL82: 11148.54095 | AM82: 11562.14442 | AN82: 10199.60927 | AO82: 11309.12644 | AP82: 10850.74648 | AQ82: 11321.84456 | AR82: 9790.600519 | AS82: 9790.600519 | AT82: 9790.600519 | AU82: 9790.600519 | AV82: 9790.600519 | AW82: 9790.600519 | AX82: 9790.600519 | AY82: 9790.600519 | AZ82: 9790.600519 | BA82: 9790.600519 | BB82: 9790.600519
B83: Tech6 | C83: Oil | D83: 12096.77419 | E83: 12096.77419 | F83: 12096.77419 | G83: 12096.77419 | H83: 12096.77419 | I83: 12096.77419 | J83: 12096.77419 | K83: 12096.77419 | L83: 12096.77419 | M83: 12096.77419 | N83: 12096.77419 | O83: 12096.77419 | P83: 11863.79928 | Q83: 11630.82437 | R83: 11397.84946 | S83: 11164.87455 | T83: 10931.89964 | U83: 10698.92473 | V83: 10465.94982 | W83: 10232.97491 | X83: 10000 | Y83: 9700 | Z83: 9400 | AA83: 9100 | AB83: 8800 | AC83: 8500 | AD83: 6800 | AE83: 5100 | AF83: 3400 | AG83: 1700 | AH83: 0 | AI83: 0 | AJ83: 0 | AK83: 0 | AL83: 0 | AM83: 0 | AN83: 0 | AO83: 0 | AP83: 0 | AQ83: 0 | AR83: 0 | AS83: 0 | AT83: 0 | AU83: 0 | AV83: 0 | AW83: 0 | AX83: 0 | AY83: 0 | AZ83: 0 | BA83: 0 | BB83: 0
B84: Tech7 | C84: Nuclear | D84: 0 | E84: 0 | F84: 0 | G84: 0 | H84: 0 | I84: 0 | J84: 0 | K84: 0 | L84: 0 | M84: 0 | N84: 0 | O84: 0 | P84: 0 | Q84: 0 | R84: 0 | S84: 0 | T84: 0 | U84: 0 | V84: 0 | W84: 0 | X84: 0 | Y84: 350 | Z84: 700 | AA84: 1050 | AB84: 1400 | AC84: 1750 | AD84: 2100 | AE84: 2450 | AF84: 2800 | AG84: 3150 | AH84: 3500 | AI84: 4000 | AJ84: 4500 | AK84: 5000 | AL84: 5500 | AM84: 6000 | AN84: 6500 | AO84: 7000 | AP84: 7500 | AQ84: 8000 | AR84: 8500 | AS84: 8650 | AT84: 8800 | AU84: 8950 | AV84: 9100 | AW84: 9250 | AX84: 9400 | AY84: 9550 | AZ84: 9700 | BA84: 9850 | BB84: 10000
B85: Tech8 | C85: Biomass | D85: 1705.426357 | E85: 1705.426357 | F85: 1705.426357 | G85: 1705.426357 | H85: 1705.426357 | I85: 1705.426357 | J85: 1705.426357 | K85: 1705.426357 | L85: 1705.426357 | M85: 1705.426357 | N85: 1705.426357 | O85: 1705.426357 | P85: 2256.67528 | Q85: 2807.924204 | R85: 3359.173127 | S85: 3910.42205 | T85: 4461.670974 | U85: 5012.919897 | V85: 5564.16882 | W85: 6115.417744 | X85: 6666.666667 | Y85: 8263.565891 | Z85: 9860.465116 | AA85: 11457.36434 | AB85: 13054.26356 | AC85: 14651.16279 | AD85: 16248.06201 | AE85: 17844.96124 | AF85: 19441.86046 | AG85: 21038.75969 | AH85: 22635.65891 | AI85: 23519.37984 | AJ85: 24403.10077 | AK85: 25286.8217 | AL85: 26170.54263 | AM85: 27054.26356 | AN85: 27937.9845 | AO85: 28821.70543 | AP85: 29705.42636 | AQ85: 30589.14729 | AR85: 31472.86822 | AS85: 31689.92248 | AT85: 31906.97675 | AU85: 32124.03101 | AV85: 32341.08527 | AW85: 32558.13954 | AX85: 32775.1938 | AY85: 32992.24806 | AZ85: 33209.30232 | BA85: 33426.35659 | BB85: 33643.41085
B86: Tech9 | C86: Solar utility | D86: 495 | E86: 495 | F86: 495 | G86: 495 | H86: 495 | I86: 495 | J86: 495 | K86: 495 | L86: 495 | M86: 495 | N86: 495 | O86: 495 | P86: 8450.155469 | Q86: 16532.07022 | R86: 26511.83322 | S86: 35466.48859 | T86: 41812.62702 | U86: 45177.32201 | V86: 46783.96272 | W86: 48254.67758 | X86: 51056.71845 | Y86: 57312.88172 | Z86: 68182.36874 | AA86: 78402.43219 | AB86: 88048.10197 | AC86: 96942.91883 | AD86: 105213.3221 | AE86: 112994.7824 | AF86: 120139.3241 | AG86: 128355.86 | AH86: 135970.8514 | AI86: 141889.5681 | AJ86: 146000.5476 | AK86: 149793.3576 | AL86: 153651.0706 | AM86: 159204.9126 | AN86: 162776.6742 | AO86: 166099.5722 | AP86: 169374.0483 | AQ86: 172599.1473 | AR86: 175721.3755 | AS86: 176722.511 | AT86: 177758.6722 | AU86: 178794.8333 | AV86: 179778.4561 | AW86: 180744.5662 | AX86: 181693.1635 | AY86: 182606.7352 | AZ86: 183607.8708 | BA86: 184556.4681 | BB86: 185575.1164
B87: Tech10 | C87: Solar rooftop | D87: 5 | E87: 5 | F87: 5 | G87: 5 | H87: 5 | I87: 5 | J87: 5 | K87: 5 | L87: 5 | M87: 5 | N87: 5 | O87: 5 | P87: 125.9770884 | Q87: 329.4785389 | R87: 667.5641459 | S87: 1087.929098 | T87: 1523.324351 | U87: 1918.727962 | V87: 2283.649895 | W87: 2677.187795 | X87: 3191.044903 | Y87: 4408.683209 | Z87: 6279.955016 | AA87: 8475.938615 | AB87: 11006.01275 | AC87: 13848.9884 | AD87: 17019.8021 | AE87: 20544.50589 | AF87: 24403.30022 | AG87: 28983.5813 | AH87: 33992.71286 | AI87: 36962.82866 | AJ87: 39593.36883 | AK87: 42249.40856 | AL87: 45035.65862 | AM87: 48453.66905 | AN87: 51403.16027 | AO87: 54386.5856 | AP87: 57466.19497 | AQ87: 60642.94364 | AR87: 63898.68198 | AS87: 64262.73129 | AT87: 64639.51716 | AU87: 65016.30302 | AV87: 65373.98405 | AW87: 65725.29679 | AX87: 66070.24126 | AY87: 66402.44916 | AZ87: 66766.49847 | BA87: 67111.44293 | BB87: 67481.86052
B88: Tech11 | C88: Solar floating | D88: 0 | E88: 0 | F88: 0 | G88: 0 | H88: 0 | I88: 0 | J88: 0 | K88: 0 | L88: 0 | M88: 0 | N88: 0 | O88: 0 | P88: 145.3581789 | Q88: 581.4327157 | R88: 1430.494598 | S88: 2611.029835 | T88: 3939.631943 | U88: 5232.894442 | V88: 6480.628081 | W88: 7835.671596 | X88: 9573.13471 | Y88: 11756.48856 | Z88: 15251.31932 | AA88: 19070.86188 | AB88: 23234.9158 | AC88: 27697.97681 | AD88: 32492.34946 | AE88: 37664.92747 | AF88: 43175.06962 | AG88: 49686.13937 | AH88: 56654.52144 | AI88: 59617.46558 | AJ88: 61864.6388 | AK88: 64014.25539 | AL88: 66228.90973 | AM88: 69219.52721 | AN88: 71393.27816 | AO88: 73495.38595 | AP88: 75613.41444 | AQ88: 77747.36363 | AR88: 79873.35248 | AS88: 80328.41411 | AT88: 80799.39644 | AU88: 81270.37878 | AV88: 81717.48006 | AW88: 82156.62099 | AX88: 82587.80157 | AY88: 83003.06145 | AZ88: 83458.12308 | BA88: 83889.30366 | BB88: 84352.32565
B89: Tech12 | C89: Wind onshore | D89: 4.566210046 | E89: 4.566210046 | F89: 4.566210046 | G89: 4.566210046 | H89: 4.566210046 | I89: 4.566210046 | J89: 4.566210046 | K89: 4.566210046 | L89: 4.566210046 | M89: 4.566210046 | N89: 4.566210046 | O89: 4.566210046 | P89: 1834.06482 | Q89: 3668.129639 | R89: 3056.774699 | S89: 3056.774699 | T89: 5502.194459 | U89: 11004.38892 | V89: 18340.6482 | W89: 25676.90747 | X89: 31179.10193 | Y89: 46696.04095 | Z89: 55011.58305 | AA89: 62704.16242 | AB89: 69682.0758 | AC89: 76161.3816 | AD89: 81987.15691 | AE89: 86997.87899 | AF89: 91373.82806 | AG89: 93103.56951 | AH89: 94195.45321 | AI89: 93802.3403 | AJ89: 95328.51455 | AK89: 97031.26916 | AL89: 98469.64814 | AM89: 97803.05003 | AN89: 99202.23435 | AO89: 100691.2142 | AP89: 102044.2341 | AQ89: 103263.2044 | AR89: 104407.3503 | AS89: 104933.1646 | AT89: 105420.7693 | AU89: 105908.374 | AV89: 106453.2931 | AW89: 107017.3172 | AX89: 107600.446 | AY89: 108221.7846 | AZ89: 108747.5989 | BA89: 109330.7278 | BB89: 109837.4373
B90: Tech13 | C90: Wind offshore | D90: 0 | E90: 0 | F90: 0 | G90: 0 | H90: 0 | I90: 0 | J90: 0 | K90: 0 | L90: 0 | M90: 0 | N90: 0 | O90: 0 | P90: 0 | Q90: 0 | R90: 0 | S90: 0 | T90: 0 | U90: 0 | V90: 0 | W90: 0 | X90: 0 | Y90: 1444.207452 | Z90: 3511.377642 | AA90: 6201.510569 | AB90: 9502.101245 | AC90: 13440.24381 | AD90: 17997.18079 | AE90: 23126.01847 | AF90: 28854.89307 | AG90: 34435.5668 | AH90: 40369.47995 | AI90: 42143.08043 | AJ90: 44860.47743 | AK90: 47791.52063 | AL90: 50726.78843 | AM90: 52663.18079 | AN90: 55801.25682 | AO90: 59136.10994 | AP90: 62543.24025 | AQ90: 66020.73727 | AR90: 69604.90019 | AS90: 69955.44309 | AT90: 70280.51286 | AU90: 70605.58264 | AV90: 70968.8621 | AW90: 71344.87811 | AX90: 71733.63069 | AY90: 72147.8564 | AZ90: 72498.39929 | BA90: 72887.15187 | BB90: 73224.95821
B91: Tech14 | C91: Geothermal | D91: 2692.155604 | E91: 2692.155604 | F91: 2692.155604 | G91: 2692.155604 | H91: 2692.155604 | I91: 2692.155604 | J91: 2692.155604 | K91: 2692.155604 | L91: 2692.155604 | M91: 2692.155604 | N91: 2692.155604 | O91: 2692.155604 | P91: 3703.451609 | Q91: 4714.747614 | R91: 5726.043619 | S91: 6737.339624 | T91: 7748.63563 | U91: 8759.931635 | V91: 9771.22764 | W91: 10782.52364 | X91: 11793.81965 | Y91: 12854.76751 | Z91: 13915.71537 | AA91: 14976.66323 | AB91: 16037.61109 | AC91: 17098.55896 | AD91: 18159.50682 | AE91: 19220.45468 | AF91: 20281.40254 | AG91: 21342.3504 | AH91: 22403.29826 | AI91: 22747.12666 | AJ91: 23090.95505 | AK91: 23434.78345 | AL91: 23778.61185 | AM91: 24122.44024 | AN91: 24466.26864 | AO91: 24810.09704 | AP91: 25153.92544 | AQ91: 25497.75383 | AR91: 25841.58223 | AS91: 25958.5902 | AT91: 26075.59816 | AU91: 26192.60613 | AV91: 26309.6141 | AW91: 26426.62206 | AX91: 26543.63003 | AY91: 26660.638 | AZ91: 26777.64597 | BA91: 26894.65393 | BB91: 27011.6619
B92: Tech15 | C92: Hydro large | D92: 6348.104668 | E92: 6348.104668 | F92: 6348.104668 | G92: 6348.104668 | H92: 6348.104668 | I92: 6348.104668 | J92: 6348.104668 | K92: 6348.104668 | L92: 6348.104668 | M92: 6348.104668 | N92: 6348.104668 | O92: 6348.104668 | P92: 7657.101913 | Q92: 8950.262444 | R92: 10227.58626 | S92: 11489.07336 | T92: 12734.72375 | U92: 13964.53743 | V92: 15178.51439 | W92: 16376.65464 | X92: 17558.95818 | Y92: 21211.63037 | Z92: 24822.40064 | AA92: 28391.26899 | AB92: 31918.23542 | AC92: 35403.29993 | AD92: 38846.46251 | AE92: 42247.72317 | AF92: 45607.08192 | AG92: 48924.53874 | AH92: 52200.09364 | AI92: 53184.53562 | AJ92: 54153.69356 | AK92: 55107.56746 | AL92: 56046.15732 | AM92: 56969.46314 | AN92: 57877.48492 | AO92: 58770.22266 | AP92: 59647.67636 | AQ92: 60509.84602 | AR92: 61356.73164 | AS92: 61240.97247 | AT92: 61121.84574 | AU92: 60999.35146 | AV92: 60873.48963 | AW92: 60744.26025 | AX92: 60611.66332 | AY92: 60475.69883 | AZ92: 60336.36679 | BA92: 60193.6672 | BB92: 60047.60005
B93: Tech16 | C93: Hydro small | D93: 334.110772 | E93: 334.110772 | F93: 334.110772 | G93: 334.110772 | H93: 334.110772 | I93: 334.110772 | J93: 334.110772 | K93: 334.110772 | L93: 334.110772 | M93: 334.110772 | N93: 334.110772 | O93: 334.110772 | P93: 450.4177596 | Q93: 582.5614608 | R93: 730.5418758 | S93: 894.3590044 | T93: 1074.012847 | U93: 1269.503403 | V93: 1480.830672 | W93: 1707.994656 | X93: 1950.995353 | Y93: 2488.515295 | Z93: 3067.937158 | AA93: 3689.260942 | AB93: 4352.486648 | AC93: 5057.614275 | AD93: 5804.643823 | AE93: 6593.575293 | AF93: 7424.408684 | AG93: 8297.143997 | AH93: 9211.781231 | AI93: 9755.74322 | AJ93: 10314.98925 | AK93: 10889.51932 | AL93: 11479.33343 | AM93: 12084.43157 | AN93: 12704.81376 | AO93: 13340.47999 | AP93: 13991.43026 | AQ93: 14657.66456 | AR93: 15339.18291 | AS93: 15791.6973 | AT93: 16247.57925 | AU93: 16706.82874 | AV93: 17169.44579 | AW93: 17635.4304 | AX93: 18104.78255 | AY93: 18577.50225 | AZ93: 19053.58951 | BA93: 19533.04432 | BB93: 20015.86668
B94: Tech17 | C94: Hydrogen | D94: =$M94 -> 0 | E94: 0 | F94: 0 | G94: 0 | H94: 0 | I94: 0 | J94: 0 | K94: 0 | L94: 0 | M94: 0 | N94: 0 | O94: 0 | P94: 0 | Q94: 0 | R94: 0 | S94: 0 | T94: 0 | U94: 840.6130423 | V94: 840.6130423 | W94: 840.6130423 | X94: 840.6130423 | Y94: 840.6130423 | Z94: 2521.839127 | AA94: 5043.678254 | AB94: 6724.904338 | AC94: 7565.517381 | AD94: 10927.96955 | AE94: 12188.88911 | AF94: 10927.96955 | AG94: 10233.48873 | AH94: 9746.17974 | AI94: 12609.19563 | AJ94: 12497.34354 | AK94: 13757.31773 | AL94: 12650.6135 | AM94: 8866.180927 | AN94: 10984.41469 | AO94: 10780.58951 | AP94: 9683.722971 | AQ94: 10971.01502 | AR94: 9748.977254 | AS94: 7833.999579 | AT94: 9813.115262 | AU94: 9596.649485 | AV94: 10358.28833 | AW94: 10358.28833 | AX94: 9596.649485 | AY94: 9813.115262 | AZ94: 9400.799495 | BA94: 10390.35734 | BB94: 9400.799495
B95: Tech18 | C95: Pumped storage | D95: 0 | E95: 0 | F95: 0 | G95: 0 | H95: 0 | I95: 0 | J95: 0 | K95: 0 | L95: 0 | M95: 0 | N95: 0 | O95: 0 | P95: 0 | Q95: 0 | R95: 0 | S95: 0 | T95: 0 | U95: 0 | V95: 0 | W95: 0 | X95: 0 | Y95: 0 | Z95: 0 | AA95: 0 | AB95: 0 | AC95: 0 | AD95: 0 | AE95: 0 | AF95: 0 | AG95: 0 | AH95: 0 | AI95: 0 | AJ95: 0 | AK95: 0 | AL95: 0 | AM95: 0 | AN95: 0 | AO95: 0 | AP95: 0 | AQ95: 0 | AR95: 0 | AS95: 0 | AT95: 0 | AU95: 0 | AV95: 0 | AW95: 0 | AX95: 0 | AY95: 0 | AZ95: 0 | BA95: 0 | BB95: 0
B96: Tech19 | C96: Batteries | D96: 0 | E96: 0 | F96: 0 | G96: 0 | H96: 0 | I96: 0 | J96: 0 | K96: 0 | L96: 0 | M96: 0 | N96: 0 | O96: 0 | P96: 886.9881999 | Q96: 1773.9764 | R96: 2660.9646 | S96: 3547.9528 | T96: 4434.940999 | U96: 5321.929199 | V96: 6208.917399 | W96: 7095.905599 | X96: 7982.893799 | Y96: 10833.9273 | Z96: 13684.9608 | AA96: 16535.9943 | AB96: 19387.0278 | AC96: 22238.0613 | AD96: 25089.0948 | AE96: 27940.1283 | AF96: 30791.1618 | AG96: 33642.1953 | AH96: 36493.2288 | AI96: 40343.90592 | AJ96: 44194.58304 | AK96: 48045.26016 | AL96: 51895.93728 | AM96: 55746.6144 | AN96: 59597.29152 | AO96: 63447.96864 | AP96: 67298.64576 | AQ96: 71149.32288 | AR96: 75000 | AS96: 76700 | AT96: 78400 | AU96: 80100 | AV96: 81800 | AW96: 83500 | AX96: 85200 | AY96: 86900 | AZ96: 88600 | BA96: 90300 | BB96: 92000
B97: Tech20 | C97: unassigned1 | D97: 0 | E97: 0 | F97: 0 | G97: 0 | H97: 0 | I97: 0 | J97: 0 | K97: 0 | L97: 0 | M97: 0 | N97: 0 | O97: 0 | P97: 0 | Q97: 0 | R97: 0 | S97: 0 | T97: 0 | U97: 0 | V97: 0 | W97: 0 | X97: 0 | Y97: 0 | Z97: 0 | AA97: 0 | AB97: 0 | AC97: 0 | AD97: 0 | AE97: 0 | AF97: 0 | AG97: 0 | AH97: 0 | AI97: 0 | AJ97: 0 | AK97: 0 | AL97: 0 | AM97: 0 | AN97: 0 | AO97: 0 | AP97: 0 | AQ97: 0 | AR97: 0 | AS97: 0 | AT97: 0 | AU97: 0 | AV97: 0 | AW97: 0 | AX97: 0 | AY97: 0 | AZ97: 0 | BA97: 0 | BB97: 0
B98: Tech21 | C98: unassigned2 | D98: 0 | E98: 0 | F98: 0 | G98: 0 | H98: 0 | I98: 0 | J98: 0 | K98: 0 | L98: 0 | O98: 0 | P98: 0 | Q98: 0 | R98: 0 | S98: 0 | T98: 0 | U98: 0 | V98: 0 | W98: 0 | X98: 0 | Y98: 0 | Z98: 0 | AA98: 0 | AB98: 0 | AC98: 0 | AD98: 0 | AE98: 0 | AF98: 0 | AG98: 0 | AH98: 0 | AI98: 0 | AJ98: 0 | AK98: 0 | AL98: 0 | AM98: 0 | AN98: 0 | AO98: 0 | AP98: 0 | AQ98: 0 | AR98: 0 | AS98: 0 | AT98: 0 | AU98: 0 | AV98: 0 | AW98: 0 | AX98: 0 | AY98: 0 | AZ98: 0 | BA98: 0 | BB98: 0
B99: Tech22 | C99: unassigned3 | D99: 0 | E99: 0 | F99: 0 | G99: 0 | H99: 0 | I99: 0 | J99: 0 | K99: 0 | L99: 0 | O99: 0 | P99: 0 | Q99: 0 | R99: 0 | S99: 0 | T99: 0 | U99: 0 | V99: 0 | W99: 0 | X99: 0 | Y99: 0 | Z99: 0 | AA99: 0 | AB99: 0 | AC99: 0 | AD99: 0 | AE99: 0 | AF99: 0 | AG99: 0 | AH99: 0 | AI99: 0 | AJ99: 0 | AK99: 0 | AL99: 0 | AM99: 0 | AN99: 0 | AO99: 0 | AP99: 0 | AQ99: 0 | AR99: 0 | AS99: 0 | AT99: 0 | AU99: 0 | AV99: 0 | AW99: 0 | AX99: 0 | AY99: 0 | AZ99: 0 | BA99: 0 | BB99: 0
B100: Tech23 | C100: unassigned4 | D100: 0 | E100: 0 | F100: 0 | G100: 0 | H100: 0 | I100: 0 | J100: 0 | K100: 0 | L100: 0 | O100: 0 | P100: 0 | Q100: 0 | R100: 0 | S100: 0 | T100: 0 | U100: 0 | V100: 0 | W100: 0 | X100: 0 | Y100: 0 | Z100: 0 | AA100: 0 | AB100: 0 | AC100: 0 | AD100: 0 | AE100: 0 | AF100: 0 | AG100: 0 | AH100: 0 | AI100: 0 | AJ100: 0 | AK100: 0 | AL100: 0 | AM100: 0 | AN100: 0 | AO100: 0 | AP100: 0 | AQ100: 0 | AR100: 0 | AS100: 0 | AT100: 0 | AU100: 0 | AV100: 0 | AW100: 0 | AX100: 0 | AY100: 0 | AZ100: 0 | BA100: 0 | BB100: 0
B101: Tech24 | C101: unassigned5 | D101: 0 | E101: 0 | F101: 0 | G101: 0 | H101: 0 | I101: 0 | J101: 0 | K101: 0 | L101: 0 | O101: 0 | P101: 0 | Q101: 0 | R101: 0 | S101: 0 | T101: 0 | U101: 0 | V101: 0 | W101: 0 | X101: 0 | Y101: 0 | Z101: 0 | AA101: 0 | AB101: 0 | AC101: 0 | AD101: 0 | AE101: 0 | AF101: 0 | AG101: 0 | AH101: 0 | AI101: 0 | AJ101: 0 | AK101: 0 | AL101: 0 | AM101: 0 | AN101: 0 | AO101: 0 | AP101: 0 | AQ101: 0 | AR101: 0 | AS101: 0 | AT101: 0 | AU101: 0 | AV101: 0 | AW101: 0 | AX101: 0 | AY101: 0 | AZ101: 0 | BA101: 0 | BB101: 0
